Workbook

Sheet senseInfo (hidden)
A1: selectionIndex | B1: checkSelected | C1: bookName | D1: sheetName | E1: cellAddress | F1: rangeAddress | G1: analysisString | H1: minPercent | I1: maxPercent | J1: minValue | K1: maxValue | L1: baseValue | M1: numIntervals | N1: varyWhenStepping | O1: isInput | P1: groupCount | Q1: groupIndex | R1: formulaIndex | S1: ioIndex | Y1: intIndex | Z1: intervalMode | AA1: useCellBase | AB1: tableRange
E2: ='Calculation of farm level cost'!$B$24 -> -269.7697548 | S2: 230
A3: senseTotal: | B3: 11 | C3: .
A4: selectionIndex | B4: checkSelected | C4: bookName | D4: sheetName | E4: cellAddress | F4: rangeAddress | G4: analysisString | H4: minPercent | I4: maxPercent | J4: minValue | K4: maxValue | L4: baseValue | M4: numIntervals | N4: varyWhenStepping | O4: isInput | P4: groupCount | Q4: groupIndex | R4: formulaIndex | S4: ioIndex | Y4: intIndex | Z4: intervalMode | AA4: useCellBase | AB4: tableRange
A5: 1 | B5: TRUE | C5: 0 | D5: Epidemiological Model flow | E5: ='Epidemiological Model flow'!$F$10 -> 0.37 | F5: $F$10 | G5: Base + Percent: -10.00% to 10.00% | H5: -10.00% | I5: 10.00% | L5: 0.370000000000434 | M5: 7 | N5: TRUE | O5: TRUE | P5: 1 | Q5: 0 | R5: 1 | S5: 0 | T5: PPS | U5: =RiskNormal(0.37, 0.05366, RiskTruncate(0, 1)) | V5: RiskNormal(0.37, 0.05366, RiskTruncate(0, 1)) | W5: 1 | X5: 46 | Y5: 0 | Z5: 1 | AA5: TRUE | AC5: -0.1 | AD5: -6.66666666666667E-02 | AE5: -3.33333333333333E-02 | AF5: 0 | AG5: 3.33333333333333E-02 | AH5: 6.66666666666667E-02 | AI5: 0.1 | BB5: 0.333000004291534 | BC5: 0.345333337783813 | BD5: 0.357666671276093 | BE5: 0.370000004768372 | BF5: 0.382333338260651 | BG5: 0.39466667175293 | BH5: 0.407000005245209 | CA5: Base -10.00% | CB5: Base -6.67% | CC5: Base -3.33% | CD5: Base +0.00% | CE5: Base +3.33% | CF5: Base +6.67% | CG5: Base +10.00%
A6: 2 | B6: TRUE | C6: 0 | D6: Epidemiological Model flow | E6: ='Epidemiological Model flow'!$J$28 -> 0.31237 | F6: $J$28 | G6: Base + Percent: -10.00% to 10.00% | H6: -10.00% | I6: 10.00% | L6: 0.31237 | M6: 7 | N6: TRUE | O6: TRUE | P6: 1 | Q6: 0 | R6: 1 | S6: 1 | T6: Post-weaning mortality (reg. coef.) / Value | U6: =RiskNormal(0.31237, 0.020894) | V6: RiskNormal(0.31237, 0.020894) | W6: 1 | X6: 30 | Y6: 0 | Z6: 1 | AA6: TRUE | AC6: -0.1 | AD6: -6.66666666666667E-02 | AE6: -3.33333333333333E-02 | AF6: 0 | AG6: 3.33333333333333E-02 | AH6: 6.66666666666667E-02 | AI6: 0.1 | BB6: 0.28113300204277 | BC6: 0.291545335451762 | BD6: 0.301957668860753 | BE6: 0.312370002269745 | BF6: 0.322782335678736 | BG6: 0.333194669087728 | BH6: 0.343607002496719 | CA6: Base -10.00% | CB6: Base -6.67% | CC6: Base -3.33% | CD6: Base +0.00% | CE6: Base +3.33% | CF6: Base +6.67% | CG6: Base +10.00%
A7: 3 | B7: TRUE | C7: 0 | D7: Epidemiological Model flow | E7: ='Epidemiological Model flow'!$J$30 -> 0.22442 | F7: $J$30 | G7: Base + Percent: -10.00% to 10.00% | H7: -10.00% | I7: 10.00% | L7: 0.22442 | M7: 7 | N7: TRUE | O7: TRUE | P7: 1 | Q7: 0 | R7: 1 | S7: 3 | T7: PCV2 prevalence (reg. coef.) / Value | U7: =RiskNormal(0.22442, 0.02401) | V7: RiskNormal(0.22442, 0.02401) | W7: 1 | X7: 29 | Y7: 0 | Z7: 1 | AA7: TRUE | AC7: -0.1 | AD7: -6.66666666666667E-02 | AE7: -3.33333333333333E-02 | AF7: 0 | AG7: 3.33333333333333E-02 | AH7: 6.66666666666667E-02 | AI7: 0.1 | BB7: 0.201977996528149 | BC7: 0.209458663066228 | BD7: 0.216939329604308 | BE7: 0.224419996142387 | BF7: 0.231900662680467 | BG7: 0.239381329218547 | BH7: 0.246861995756626 | CA7: Base -10.00% | CB7: Base -6.67% | CC7: Base -3.33% | CD7: Base +0.00% | CE7: Base +3.33% | CF7: Base +6.67% | CG7: Base +10.00%
A8: 4 | B8: TRUE | C8: 0 | D8: Epidemiological Model flow | E8: ='Epidemiological Model flow'!$B$29 -> 16 | F8: $B$29 | G8: Base + Percent: -10.00% to 10.00% | H8: -10.00% | I8: 10.00% | L8: 16 | M8: 7 | N8: TRUE | O8: TRUE | P8: 1 | Q8: 0 | R8: 1 | S8: 2 | T8: % ADG reduction in Subclinical | U8: =RiskNormal(16, 6.66) | V8: RiskNormal(16, 6.66) | W8: 1 | X8: 21 | Y8: 0 | Z8: 1 | AA8: TRUE | AC8: -0.1 | AD8: -6.66666666666667E-02 | AE8: -3.33333333333333E-02 | AF8: 0 | AG8: 3.33333333333333E-02 | AH8: 6.66666666666667E-02 | AI8: 0.1 | BB8: 14.4 | BC8: 14.9333333333333 | BD8: 15.4666666666667 | BE8: 16 | BF8: 16.5333333333333 | BG8: 17.0666666666667 | BH8: 17.6 | CA8: Base -10.00% | CB8: Base -6.67% | CC8: Base -3.33% | CD8: Base +0.00% | CE8: Base +3.33% | CF8: Base +6.67% | CG8: Base +10.00%
A9: 5 | B9: TRUE | C9: 0 | D9: Epidemiological Model flow | E9: ='Epidemiological Model flow'!$B$35 -> 60 | F9: $B$34 | G9: Base + Percent: -10.00% to 10.00% | H9: -10.00% | I9: 10.00% | L9: 60 | M9: 7 | N9: TRUE | O9: FALSE | P9: 1 | Q9: 0 | R9: 1 | S9: 0 | T9: Days in feed PMWS-D | U9: 60 | W9: 0 | X9: 0 | Y9: 0 | Z9: 1 | AA9: TRUE | AC9: -0.1 | AD9: -6.66666666666667E-02 | AE9: -3.33333333333333E-02 | AF9: 0 | AG9: 3.33333333333333E-02 | AH9: 6.66666666666667E-02 | AI9: 0.1 | BB9: 54 | BC9: 56 | BD9: 58 | BE9: 60 | BF9: 62 | BG9: 64 | BH9: 66 | CA9: Base -10.00% | CB9: Base -6.67% | CC9: Base -3.33% | CD9: Base +0.00% | CE9: Base +3.33% | CF9: Base +6.67% | CG9: Base +10.00%
A10: 6 | B10: TRUE | C10: 0 | D10: Epidemiological Model flow | E10: ='Epidemiological Model flow'!$B$36 -> 60 | F10: $B$35 | G10: Base + Percent: -10.00% to 10.00% | H10: -10.00% | I10: 10.00% | L10: 60 | M10: 7 | N10: TRUE | O10: FALSE | P10: 1 | Q10: 0 | R10: 1 | S10: 0 | T10: Recover day of PMWS-S | U10: 60 | W10: 0 | X10: 0 | Y10: 0 | Z10: 1 | AA10: TRUE | AC10: -0.1 | AD10: -6.66666666666667E-02 | AE10: -3.33333333333333E-02 | AF10: 0 | AG10: 3.33333333333333E-02 | AH10: 6.66666666666667E-02 | AI10: 0.1 | BB10: 54 | BC10: 56 | BD10: 58 | BE10: 60 | BF10: 62 | BG10: 64 | BH10: 66 | CA10: Base -10.00% | CB10: Base -6.67% | CC10: Base -3.33% | CD10: Base +0.00% | CE10: Base +3.33% | CF10: Base +6.67% | CG10: Base +10.00%
A11: 7 | B11: TRUE | C11: 0 | D11: Economic analysis for each pig | E11: ='Economic analysis for each pig'!$B$5 -> 1232 | F11: $B$5 | G11: Base + Percent: -10.00% to 10.00% | H11: -10.00% | I11: 10.00% | L11: 1232 | M11: 7 | N11: TRUE | O11: FALSE | P11: 1 | Q11: 0 | R11: 1 | S11: 0 | T11: Feed consume per sow/year (kg) | U11: 1232 | W11: 0 | X11: 0 | Y11: 0 | Z11: 1 | AA11: TRUE | AC11: -0.1 | AD11: -6.66666666666667E-02 | AE11: -3.33333333333333E-02 | AF11: 0 | AG11: 3.33333333333333E-02 | AH11: 6.66666666666667E-02 | AI11: 0.1 | BB11: 1108.8 | BC11: 1149.86666666667 | BD11: 1190.93333333333 | BE11: 1232 | BF11: 1273.06666666667 | BG11: 1314.13333333333 | BH11: 1355.2 | CA11: Base -10.00% | CB11: Base -6.67% | CC11: Base -3.33% | CD11: Base +0.00% | CE11: Base +3.33% | CF11: Base +6.67% | CG11: Base +10.00%
A12: 8 | B12: TRUE | C12: 0 | D12: Economic analysis for each pig | E12: ='Economic analysis for each pig'!$B$6 -> 162.87 | F12: $B$6 | G12: Base + Percent: -10.00% to 10.00% | H12: -10.00% | I12: 10.00% | L12: 162.87 | M12: 7 | N12: TRUE | O12: FALSE | P12: 1 | Q12: 0 | R12: 1 | S12: 0 | T12: Sow feed price/tonne (£) | U12: 162.87 | W12: 0 | X12: 0 | Y12: 0 | Z12: 1 | AA12: TRUE | AC12: -0.1 | AD12: -6.66666666666667E-02 | AE12: -3.33333333333333E-02 | AF12: 0 | AG12: 3.33333333333333E-02 | AH12: 6.66666666666667E-02 | AI12: 0.1 | BB12: 146.582995605469 | BC12: 152.011995442708 | BD12: 157.440995279948 | BE12: 162.869995117188 | BF12: 168.298994954427 | BG12: 173.727994791667 | BH12: 179.156994628906 | CA12: Base -10.00% | CB12: Base -6.67% | CC12: Base -3.33% | CD12: Base +0.00% | CE12: Base +3.33% | CF12: Base +6.67% | CG12: Base +10.00%
A13: 9 | B13: TRUE | C13: 0 | D13: Economic analysis for each pig | E13: ='Economic analysis for each pig'!$B$14 -> 4.56 | F13: $B$14 | G13: Base + Percent: -10.00% to 10.00% | H13: -10.00% | I13: 10.00% | L13: 4.56 | M13: 7 | N13: TRUE | O13: FALSE | P13: 1 | Q13: 0 | R13: 1 | S13: 0 | T13: Average number of parities | U13: 4.56 | W13: 0 | X13: 0 | Y13: 0 | Z13: 1 | AA13: TRUE | AC13: -0.1 | AD13: -6.66666666666667E-02 | AE13: -3.33333333333333E-02 | AF13: 0 | AG13: 3.33333333333333E-02 | AH13: 6.66666666666667E-02 | AI13: 0.1 | BB13: 4.10399994850159 | BC13: 4.25599994659424 | BD13: 4.40799994468689 | BE13: 4.55999994277954 | BF13: 4.71199994087219 | BG13: 4.86399993896484 | BH13: 5.0159999370575 | CA13: Base -10.00% | CB13: Base -6.67% | CC13: Base -3.33% | CD13: Base +0.00% | CE13: Base +3.33% | CF13: Base +6.67% | CG13: Base +10.00%
A14: 10 | B14: TRUE | C14: 0 | D14: Economic analysis for each pig | E14: ='Economic analysis for each pig'!$B$21 -> 225.85 | F14: $B$21 | G14: Base + Percent: -10.00% to 10.00% | H14: -10.00% | I14: 10.00% | L14: 225.85 | M14: 7 | N14: TRUE | O14: FALSE | P14: 1 | Q14: 0 | R14: 1 | S14: 0 | T14: Feed consume/pig | U14: 225.85 | W14: 0 | X14: 0 | Y14: 0 | Z14: 1 | AA14: TRUE | AC14: -0.1 | AD14: -6.66666666666667E-02 | AE14: -3.33333333333333E-02 | AF14: 0 | AG14: 3.33333333333333E-02 | AH14: 6.66666666666667E-02 | AI14: 0.1 | BB14: 203.265005493164 | BC14: 210.793339029948 | BD14: 218.321672566732 | BE14: 225.850006103516 | BF14: 233.378339640299 | BG14: 240.906673177083 | BH14: 248.435006713867 | CA14: Base -10.00% | CB14: Base -6.67% | CC14: Base -3.33% | CD14: Base +0.00% | CE14: Base +3.33% | CF14: Base +6.67% | CG14: Base +10.00%
A15: 11 | B15: TRUE | C15: 0 | D15: Economic analysis for each pig | E15: ='Economic analysis for each pig'!$B$22 -> 202.55 | F15: $B$22 | G15: Base + Percent: -10.00% to 10.00% | H15: -10.00% | I15: 10.00% | L15: 202.55 | M15: 7 | N15: TRUE | O15: FALSE | P15: 1 | Q15: 0 | R15: 1 | S15: 0 | T15: Feed price/tonne (£) | U15: 202.55 | W15: 0 | X15: 0 | Y15: 0 | Z15: 1 | AA15: TRUE | AC15: -0.1 | AD15: -6.66666666666667E-02 | AE15: -3.33333333333333E-02 | AF15: 0 | AG15: 3.33333333333333E-02 | AH15: 6.66666666666667E-02 | AI15: 0.1 | BB15: 182.295002746582 | BC15: 189.046669514974 | BD15: 195.798336283366 | BE15: 202.550003051758 | BF15: 209.30166982015 | BG15: 216.053336588542 | BH15: 222.805003356934 | CA15: Base -10.00% | CB15: Base -6.67% | CC15: Base -3.33% | CD15: Base +0.00% | CE15: Base +3.33% | CF15: Base +6.67% | CG15: Base +10.00%
A16: 12 | B16: TRUE | C16: 0 | D16: Economic analysis for each pig | E16: ='Economic analysis for each pig'!$B$13 -> 157.62 | F16: Economic analysis for each pig'!$B$13 | G16: Base + Percent: -10.00% to 10.00% | H16: -10.00% | I16: 10.00% | L16: 157.62 | M16: 7 | N16: TRUE | O16: FALSE | P16: 1 | Q16: 0 | R16: 1 | S16: 0 | T16: Cost of replacing a gilt | U16: 157.62 | W16: 0 | X16: 0 | Y16: 0 | Z16: 1 | AA16: TRUE | AC16: -0.1 | AD16: -6.66666666666667E-02 | AE16: -3.33333333333333E-02 | AF16: 0 | AG16: 3.33333333333333E-02 | AH16: 6.66666666666667E-02 | AI16: 0.1 | BB16: 141.857995605469 | BC16: 147.111995442708 | BD16: 152.365995279948 | BE16: 157.619995117188 | BF16: 162.873994954427 | BG16: 168.127994791667 | BH16: 173.381994628906 | CA16: Base -10.00% | CB16: Base -6.67% | CC16: Base -3.33% | CD16: Base +0.00% | CE16: Base +3.33% | CF16: Base +6.67% | CG16: Base +10.00%
A17: 13 | B17: TRUE | C17: 0 | D17: Economic analysis for each pig | E17: ='Economic analysis for each pig'!$B$14 -> 4.56 | F17: Economic analysis for each pig'!$B$14 | G17: Base + Percent: -10.00% to 10.00% | H17: -10.00% | I17: 10.00% | L17: 4.56 | M17: 7 | N17: TRUE | O17: FALSE | P17: 1 | Q17: 0 | R17: 1 | S17: 0 | T17: Average number of parities | U17: 4.56 | W17: 0 | X17: 0 | Y17: 0 | Z17: 1 | AA17: TRUE | AC17: -0.1 | AD17: -6.66666666666667E-02 | AE17: -3.33333333333333E-02 | AF17: 0 | AG17: 3.33333333333333E-02 | AH17: 6.66666666666667E-02 | AI17: 0.1 | BB17: 4.10399994850159 | BC17: 4.25599994659424 | BD17: 4.40799994468689 | BE17: 4.55999994277954 | BF17: 4.71199994087219 | BG17: 4.86399993896484 | BH17: 5.0159999370575 | CA17: Base -10.00% | CB17: Base -6.67% | CC17: Base -3.33% | CD17: Base +0.00% | CE17: Base +3.33% | CF17: Base +6.67% | CG17: Base +10.00%
A18: 14 | B18: TRUE | C18: 0 | D18: Economic analysis for each pig | E18: ='Economic analysis for each pig'!$B$21 -> 225.85 | F18: Economic analysis for each pig'!$B$21 | G18: Base + Percent: -10.00% to 10.00% | H18: -10.00% | I18: 10.00% | L18: 225.85 | M18: 7 | N18: TRUE | O18: FALSE | P18: 1 | Q18: 0 | R18: 1 | S18: 0 | T18: Feed consume/pig | U18: 225.85 | W18: 0 | X18: 0 | Y18: 0 | Z18: 1 | AA18: TRUE | AC18: -0.1 | AD18: -6.66666666666667E-02 | AE18: -3.33333333333333E-02 | AF18: 0 | AG18: 3.33333333333333E-02 | AH18: 6.66666666666667E-02 | AI18: 0.1 | BB18: 203.265005493164 | BC18: 210.793339029948 | BD18: 218.321672566732 | BE18: 225.850006103516 | BF18: 233.378339640299 | BG18: 240.906673177083 | BH18: 248.435006713867 | CA18: Base -10.00% | CB18: Base -6.67% | CC18: Base -3.33% | CD18: Base +0.00% | CE18: Base +3.33% | CF18: Base +6.67% | CG18: Base +10.00%
A19: 15 | B19: TRUE | C19: 0 | D19: Economic analysis for each pig | E19: ='Economic analysis for each pig'!$B$22 -> 202.55 | F19: Economic analysis for each pig'!$B$22 | G19: Base + Percent: -10.00% to 10.00% | H19: -10.00% | I19: 10.00% | L19: 202.55 | M19: 7 | N19: TRUE | O19: FALSE | P19: 1 | Q19: 0 | R19: 1 | S19: 0 | T19: Feed price/tonne (£) | U19: 202.55 | W19: 0 | X19: 0 | Y19: 0 | Z19: 1 | AA19: TRUE | AC19: -0.1 | AD19: -6.66666666666667E-02 | AE19: -3.33333333333333E-02 | AF19: 0 | AG19: 3.33333333333333E-02 | AH19: 6.66666666666667E-02 | AI19: 0.1 | BB19: 182.295002746582 | BC19: 189.046669514974 | BD19: 195.798336283366 | BE19: 202.550003051758 | BF19: 209.30166982015 | BG19: 216.053336588542 | BH19: 222.805003356934 | CA19: Base -10.00% | CB19: Base -6.67% | CC19: Base -3.33% | CD19: Base +0.00% | CE19: Base +3.33% | CF19: Base +6.67% | CG19: Base +10.00%
A20: 16 | B20: TRUE | C20: 0 | D20: Economic analysis for each pig | E20: ='Economic analysis for each pig'!$B$31 -> 1.87 | F20: Economic analysis for each pig'!$B$31 | G20: Base + Percent: -10.00% to 10.00% | H20: -10.00% | I20: 10.00% | L20: 1.87 | M20: 7 | N20: TRUE | O20: FALSE | P20: 1 | Q20: 0 | R20: 1 | S20: 0 | T20: Veterinary cost/pig (£) | U20: 1.87 | W20: 0 | X20: 0 | Y20: 0 | Z20: 1 | AA20: TRUE | AC20: -0.1 | AD20: -6.66666666666667E-02 | AE20: -3.33333333333333E-02 | AF20: 0 | AG20: 3.33333333333333E-02 | AH20: 6.66666666666667E-02 | AI20: 0.1 | BB20: 1.68300000429153 | BC20: 1.74533333778381 | BD20: 1.80766667127609 | BE20: 1.87000000476837 | BF20: 1.93233333826065 | BG20: 1.99466667175293 | BH20: 2.05700000524521 | CA20: Base -10.00% | CB20: Base -6.67% | CC20: Base -3.33% | CD20: Base +0.00% | CE20: Base +3.33% | CF20: Base +6.67% | CG20: Base +10.00%
A21: 17 | B21: TRUE | C21: 0 | D21: Economic analysis for each pig | E21: ='Economic analysis for each pig'!$B$32 -> 2.34 | F21: Economic analysis for each pig'!$B$32 | G21: Base + Percent: -10.00% to 10.00% | H21: -10.00% | I21: 10.00% | L21: 2.34 | M21: 7 | N21: TRUE | O21: FALSE | P21: 1 | Q21: 0 | R21: 1 | S21: 0 | T21: Transport cost/pig (£) | U21: 2.34 | W21: 0 | X21: 0 | Y21: 0 | Z21: 1 | AA21: TRUE | AC21: -0.1 | AD21: -6.66666666666667E-02 | AE21: -3.33333333333333E-02 | AF21: 0 | AG21: 3.33333333333333E-02 | AH21: 6.66666666666667E-02 | AI21: 0.1 | BB21: 2.10599992275238 | BC21: 2.18399991989136 | BD21: 2.26199991703033 | BE21: 2.33999991416931 | BF21: 2.41799991130829 | BG21: 2.49599990844727 | BH21: 2.57399990558624 | CA21: Base -10.00% | CB21: Base -6.67% | CC21: Base -3.33% | CD21: Base +0.00% | CE21: Base +3.33% | CF21: Base +6.67% | CG21: Base +10.00%
A22: 18 | B22: TRUE | C22: 0 | D22: Economic analysis for each pig | E22: ='Economic analysis for each pig'!$B$33 -> 2.12 | F22: Economic analysis for each pig'!$B$33 | G22: Base + Percent: -10.00% to 10.00% | H22: -10.00% | I22: 10.00% | L22: 2.12 | M22: 7 | N22: TRUE | O22: FALSE | P22: 1 | Q22: 0 | R22: 1 | S22: 0 | T22: Electricity and gas cost/pig (£) | U22: 2.12 | W22: 0 | X22: 0 | Y22: 0 | Z22: 1 | AA22: TRUE | AC22: -0.1 | AD22: -6.66666666666667E-02 | AE22: -3.33333333333333E-02 | AF22: 0 | AG22: 3.33333333333333E-02 | AH22: 6.66666666666667E-02 | AI22: 0.1 | BB22: 1.90799989700317 | BC22: 1.97866655985514 | BD22: 2.04933322270711 | BE22: 2.11999988555908 | BF22: 2.19066654841105 | BG22: 2.26133321126302 | BH22: 2.33199987411499 | CA22: Base -10.00% | CB22: Base -6.67% | CC22: Base -3.33% | CD22: Base +0.00% | CE22: Base +3.33% | CF22: Base +6.67% | CG22: Base +10.00%
A23: 19 | B23: TRUE | C23: 0 | D23: Economic analysis for each pig | E23: ='Economic analysis for each pig'!$B$34 -> 0.6 | F23: Economic analysis for each pig'!$B$34 | G23: Base + Percent: -10.00% to 10.00% | H23: -10.00% | I23: 10.00% | L23: 0.6 | M23: 7 | N23: TRUE | O23: FALSE | P23: 1 | Q23: 0 | R23: 1 | S23: 0 | T23: Water cost/pig (£) | U23: 0.6 | W23: 0 | X23: 0 | Y23: 0 | Z23: 1 | AA23: TRUE | AC23: -0.1 | AD23: -6.66666666666667E-02 | AE23: -3.33333333333333E-02 | AF23: 0 | AG23: 3.33333333333333E-02 | AH23: 6.66666666666667E-02 | AI23: 0.1 | BB23: 0.540000021457672 | BC23: 0.560000022252401 | BD23: 0.580000023047129 | BE23: 0.600000023841858 | BF23: 0.620000024636586 | BG23: 0.640000025431315 | BH23: 0.660000026226044 | CA23: Base -10.00% | CB23: Base -6.67% | CC23: Base -3.33% | CD23: Base +0.00% | CE23: Base +3.33% | CF23: Base +6.67% | CG23: Base +10.00%
A24: 20 | B24: TRUE | C24: 0 | D24: Economic analysis for each pig | E24: ='Economic analysis for each pig'!$B$36 -> 2.9 | F24: Economic analysis for each pig'!$B$36 | G24: Base + Percent: -10.00% to 10.00% | H24: -10.00% | I24: 10.00% | L24: 2.9 | M24: 7 | N24: TRUE | O24: FALSE | P24: 1 | Q24: 0 | R24: 1 | S24: 0 | T24: Miscellaneous/pig (£) | U24: 2.9 | W24: 0 | X24: 0 | Y24: 0 | Z24: 1 | AA24: TRUE | AC24: -0.1 | AD24: -6.66666666666667E-02 | AE24: -3.33333333333333E-02 | AF24: 0 | AG24: 3.33333333333333E-02 | AH24: 6.66666666666667E-02 | AI24: 0.1 | BB24: 2.61000008583069 | BC24: 2.70666675567627 | BD24: 2.80333342552185 | BE24: 2.90000009536743 | BF24: 2.99666676521301 | BG24: 3.09333343505859 | BH24: 3.19000010490417 | CA24: Base -10.00% | CB24: Base -6.67% | CC24: Base -3.33% | CD24: Base +0.00% | CE24: Base +3.33% | CF24: Base +6.67% | CG24: Base +10.00%

Sheet PMWS economic calculator
A5: PMWS calculator to assess how much the disease cost to your farm and what are the most cost-efficient strategies for your farm.
A7: This calculator is divided in three steps:
A8: Step 1 : Estimate how severely are you affected by the disease (PMWS severity calculator)
A9: Step 2: Estimate the cost of PMWS and PCV2 subclinical infection (PCV2SI) to your farm
A10: Step 3: Estimate the most-cost efficient strategy
A13: Step 1: Estimation of Post-weaning Multi-systemic Wasting Syndrome (PMWS) severity in your farm
A15: Please answer the following 9 questions (all questions require an estimate, otherwise the calculation cannot be carried out)
B17: Not affected (no cases present) | C17: Slightly affected (Few cases present and no increase in mortality) | D17: Moderately affected (cases observed regularly) | E17: Highly affected (High number of cases and increased mortality) | F17: PMWS ordinal score
A18: 1. Put an x in the column which best describes the level of PMWS in your weaners (pigs aged between weaning and 10 weeks) | E18: x | F18: =IF(B18="x",0,IF(C18="x",1,IF(D18="x",2,IF(E18="x",3,0)))) -> 3
A19: 2. Put an x in the column which best describes the level of PMWS in your growers (pigs aged between 11 and 14 weeks) | D19: x | F19: =IF(B19="x",0,IF(C19="x",1,IF(D19="x",2,IF(E19="x",3,0)))) -> 2
A20: 3. Put an x in the column which best describes the level of PMWS in your finishers (pigs aged 15 weeks or older) | C20: x | F20: 1
B22: Provide estimation of number of animals out of 100
A23: 4. From 100 weaners (pigs aged between weaning and 10 weeks) produced in your farms, how many are affected by PMWS? | B23: 15
A24: 5. From 100 growers (pigs aged between 11 to 14 weeks) produced in your farms, how many are affected by PMWS? | B24: 5
A25: 6. From 100 finishers (pigs aged 15 weeks or older) produced in your farms, how many are affected by PMWS? | B25: 5
B27: Give percentage
A28: 7. Provide an estimate of the overall post-weaning mortality in your farm | B28: 10
A29: 8. Provide an estimation on the percentage of pigs (excluding gilts and sows) in your farm infected with Porcine Circovirus type 2 (PCV2) | B29: 70 | D29: Don't know? Use the folloing prediction = | E29: =(0.2975673*EXP(0.0146702*B28*B43))*100 -> 39.45423273 | F29: Important note: This is an estimation of the likely value provided that PCV2 is present and is the cause of wasting in your farm
B31: Number of weeks | D31: *This parameter is only relevant to standarize the post-weaning mortality in the farm to a 22 weeks production cycle. For example, if your mortality is 7% and you send your pigs to slaughter at an average age of 25 weeks, then the standarize mortality for a 22 weeks period will be 6.16%.
A32: 9. What is the average age of your pigs at slaughter (in weeks)* | B32: 24
A34: Standarization of morbidity variables
A35: Qualitative Weaner morbidity | B35: =(F18-0.6833333)/0.7776644 -> 2.979005725
A36: Qualitative Grower morbidity | B36: =(F19-0.9416667)/0.8628255 -> 1.226590197
A37: Qualitative Finisher morbidity | B37: =(F20-0.7916667)/0.7435531 -> 0.2801861763
A38: Quantitative Weaner morbidity | B38: =(B23-2.448167)/5.104028 -> 2.459201439
A39: Quantitative Grower morbidity | B39: =(B24-2.93085)/5.596765 -> 0.3697046419
A40: Quantitative Finisher morbidity | B40: =(B25-1.76185)/3.182297 -> 1.017551159
A42: Estimation of Morbdity Factor 1 | B42: =LN((B35*0.22655)+(B38*0.27117)+(B36*0.32128)+(B39*0.30782)+(B37*0.10466)+(B40*0.079785)+3) -> 1.601435254
A43: MF1 standarized | B43: =(B42-1.056226)/0.2835422 -> 1.922850474
A45: Standarization of Post-weaning mortality
A47: Mortality adjusted for 22.33 week production cycle | B47: =(B28*22.33)/B32 -> 9.304166667
A48: Post-weaning mortality standarized | B48: =(B47-7.857083)/5.186543 -> 0.2790073594
A50: Standarization of prevalence of PCV2 infection | B50: =((B29/100)-0.3425545)/0.2049283 -> 1.744246646
A52: Your PMWS severity score is | B52: =LN((B43*0.6266)+(B48*0.5752)+(B50*0.5259)+3.48)*4.5 -> 7.881282578
A54: Interpretation of the PMWS severity score:
A56: If your PMWS severity score is <4 | B56: Non or Slightly affected by PMWS
A57: If your PMWS severity score between 4 and 6.5 | B57: Moderately affected by PMWS
A58: If your PMWS severity score is >6.5 | B58: Severely affected by PMWS
A62: Graph severity
A64: PMWS severity | B64: =B52 -> 7.881282578
A79: Step 2 : Calculation of cost of PMWS and PCV2 subclinical infection (PCV2SI) in your farm
A81: Enter your farm production data
B82: Enter value | D82: default value
A83: Days in feed (after weaning) that your healthy pigs remain in the farm until going to slaughter | B83: 140 | D83: 140
A84: Average weight of your pigs at weaning | B84: 8.1 | D84: 8.1
A85: Average weight of your pigs at slaughter | B85: 102.6 | D85: 102.6
A86: Average daily weight gain of your healthy pigs | B86: =(B85-B84)/B83 -> 0.675 | D86: Calculated from above figure
A87: Feed consumption from weaning to slaughter of one healthy pig | B87: 225.85 | D87: 225.85
A88: Feed consumption per sow per year | B88: 1232 | D88: 1232
A89: Average Litters per sow per year | B89: 2.25 | D89: 2.25
A90: Average piglets born alive per sow per litter | B90: 11.2 | D90: 11.2
A91: Average preweaning mortality (as a proportion) | B91: 0.1272 | D91: 0.1272
A92: Price of buying a replacement gilt | B92: ='Economic analysis for each pig'!B13 -> 157.62 | D92: 157.62
A93: Average number of working sows in your farm per year | B93: 250 | D93: 100
A94: Enter your economic data
A95: Average feed price per tonne of feed given to your growers | B95: 202.55 | D95: 202.55
A96: Average price per tonne of your sow feed | B96: 162.87 | D96: 162.87
A97: Veterinary cost per pig produced | B97: 1.87 | D97: 1.87
A98: Electricity and gas cost per pig produced | B98: 2.12 | D98: 2.12
A99: Water cost per pig produced | B99: 0.6 | D99: 0.6
A100: Straw and bedding cost per pig produced | B100: 0.43 | D100: 0.43
A101: Inspection, Levy and Insurance cost per pig produced | B101: 2.9 | D101: 2.9
A102: Transport cost per pig produced | B102: 2.34 | D102: 2.34
A103: Carcass disposal cost per grower pig dead on the farm | B103: 6 | D103: 6
A104: Labour cost per pig produced | B104: 10.84 | D104: 10.84
A105: Building cost per pig produced | B105: 3.47 | D105: 3.47
A106: Equipment cost per pig produced | B106: 3.51 | D106: 3.51
A107: Any other fix cost per pig produced | B107: 2.68 | D107: 2.68
A108: Price per deadweight kilogram of pig meat | B108: 1.39 | D108: 1.39
A111: The cost of PMWS and PCV2SI per sow per year | B111: ='Calculation of farm level cost'!B24*-1 -> 269.7697548
A113: The cost of PMWS and PCV2SI per year in your farm | B113: =B111*B93 -> 67442.4387
A123: Step 3: Calculation of the most cost-effective measure for the control of PMWS in your farm
A125: Enter your data on control measures
... 133 more rows

Sheet Epidemiological Model flow (hidden)
A1: PMWS Epidemiological MODEL
A3: Input parameter (no equation or derived from another box)
A4: Value with distribution for the stochastic model
A5: Output value to assess variablility after simultaions
A7: Parameters for the epidemiological model flow
A9: PMWS severity | B9: ='PMWS economic calculator'!B52 -> 7.881282578 | E9: Fix variables | G9: sd error
E10: PPS | F10: 0.37 | G10: 0.053656 | H10: Proportion of non-PMWS PCV2 infected pigs that remain healthy
A11: Post-weaning mortality of H (X2) | B11: =IF(B17<$F$11,B17,$F$11) -> 3.090688693 | E11: Total post-weaning mortality at severity of 2.79 | F11: =J36*EXP(F36*2.79) -> 3.090688693
A12: Post-weaning mortality attributable to PMWS pigs (X3) | B12: =IF(B16=B22,B17-B11,IF(B13*B22+B11>B17,B17-B11,B13*B22)) -> 5.63895909
A13: Fatality rate of PMWS pigs | B13: =$F$22*EXP($H$22*B22) -> 0.7645904718 | D13: =IF(B22*B13+F11>B17,B17-F11,B22*B13) -> 5.63895909
A14: Real Fatality rate of PMWS pigs | B14: =B12/B22 -> 0.7645904718
A15: Post-weaning mortality attributable to PCV2 subclinical pigs | B15: =IF(B17-B11-B12<0,0,B17-B11-B12) -> 6.431970024
A16: Percentage of PCV2 infected pigs | B16: =IF( $J$38*EXP($J$30*B9)*100>100,100,$J$38*EXP($J$30*B9)*100) -> 57.58656305
A17: Total post-weaning mortality | B17: =$J$36*EXP($J$28*B9) -> 15.16161781
A18: Mortality standarize | B18: =(B17-7.857083)/5.186543 -> 1.408362913
A19: PCV2 standardized | B19: =((B16/100)-0.3425545)/0.2049283 -> 1.138501273
A20: MF1 standardize | B20: =((EXP(B9/4.5))-B18*0.5752-B19*0.5259-3.48)/0.6266 -> 1.394532851
A21: MF1 | B21: =(B20*0.2835422)+1.056226 -> 1.451634913
A22: Percentage of PMWS pigs | B22: =IF(B16< $J$39*EXP($F$39*B21),B16,$J$39*EXP($F$39*B21)) -> 7.375136493 | E22: b0 FR | F22: 1.013654 | G22: b1 FR | H22: -0.0382334
A23: Proportion of non-PMWS PCV2 infected pigs that remain healthy | B23: =$F$10 -> 0.37
A24: Days in feed of H-S (t1) | B24: ='PMWS economic calculator'!B83 -> 140
A25: Average weight of H-S at slaughter | B25: ='PMWS economic calculator'!B85 -> 102.6 | E25: Stochasticitie to include variablity in highly affected farms
A26: Average weight of H-S at weaning | B26: ='PMWS economic calculator'!B84 -> 8.1
A27: Weight gain of H-S | B27: =B25-B26 -> 94.5 | F27: 95% CI variation | I27: coef | J27: Value
A28: ADG of H | B28: =B27/B24 -> 0.675 | E28: Post-weaning mortality (reg. coef.) | F28: =F36-G36 -> 0.0449706 | I28: =F36 -> 0.3123667 | J28: 0.31237
A29: % ADG reduction in Subclinical | B29: 16 | E29: morbidity (b1mb) | F29: =F37-G37 -> 0.0909033 | I29: =F37 -> 0.6253422
A30: ADG of a PCV2 subclinical pig | B30: =B28*(1-(B29/100)) -> 0.567 | E30: PCV2 prevalence (reg. coef.) | F30: =F38-G38 -> 0.0475963 | I30: =F38 -> 0.2244152 | J30: 0.22442
A31: Days in feed of a PCV2-S pig (T2) | B31: =B27/B30 -> 166.6666667
A32: % ADG reduc PMWS | B32: 26
A33: ADG of a PMWS pig | B33: =B28*(1-(B32/100)) -> 0.4995 | O33: Including farm 421
A34: Days at death of a PCV2-D | B34: 60
A35: Days in feed PMWS-D | B35: 60 | F35: mean | G35: low CI | H35: high CI | I35: sd error | J35: bo | K35: low bo | L35: high bo | M35: sd error | P35: mean | Q35: low CI | R35: high CI | S35: sd error | T35: bo | U35: low bo | V35: high bo | W35: sd error
A36: Recover day of PMWS-S | B36: =B35 -> 60 | E36: Mortality coef | F36: 0.3123667 | G36: 0.2673961 | H36: 0.3573373 | I36: 0.0226875 | J36: =1.292904 -> 1.292904 | K36: 0.8792509 | L36: 1.706557 | M36: 0.2086866 | O36: Mortality coef | P36: 0.3123667 | Q36: 0.2673961 | R36: 0.3573373 | S36: 0.0226875 | T36: 1.292904 | U36: 0.8792509 | V36: 1.706557 | W36: 0.2086866
A37: Weight at death of a PMWS-D (kg) | B37: =(B33*B35)+B26 -> 38.07 | E37: Morbidity | F37: 0.6253422 | G37: 0.5344389 | H37: 0.7162455 | I37: 0.0458604 | J37: 0.0710322 | K37: 0.0159339 | L37: 0.1261306 | O37: Morbidity | P37: 0.6253422 | Q37: 0.5344389 | R37: 0.7162455 | S37: 0.0458604 | T37: 0.0710322 | U37: 0.0159339 | V37: 0.1261306
A38: Days in feed of a PMWS-S pig (T3) | B38: =((B27-(B33*B35))/B30)+B36 -> 173.8095238 | E38: PCV2 PCR | F38: 0.2244152 | G38: 0.1768189 | H38: 0.2720115 | I38: 0.0240122 | J38: =0.0982148 -> 0.0982148 | K38: 0.0668655 | L38: 0.1295642 | M38: 0.015815 | O38: PCV2 PCR | P38: 0.2244152 | Q38: 0.1768189 | R38: 0.2720115 | S38: 0.0240122 | T38: 0.0982148 | U38: 0.0668655 | V38: 0.1295642 | W38: 0.015815
E39: Grower/MF1 | F39: =2.880221 -> 2.880221 | G39: 2.611417 | H39: 3.149026 | I39: 0.1356109 | J39: =0.1127125 -> 0.1127125 | K39: 0.0596738 | L39: 0.1657512 | M39: 0.026757 | O39: Grower/MF1 | P39: 2.880221 | Q39: 2.611417 | R39: 3.149026 | S39: 0.1356109 | T39: 0.1127125 | U39: 0.0596738 | V39: 0.1657512
A41: Calculations of different actors
A43: Number of PMWS-D | B43: =B12 -> 5.63895909
A44: Number of PMWS-S | B44: =IF(B14=B13,B22-B12,0) -> 1.736177402
A45: Number of PCV2-D | B45: =B15 -> 6.431970024
A46: Number of PCV2-S | B46: =IF((((B16-B22)*(1-B23))-B15)<0,0,(((B16-B22)*(1-B23))-B15)) -> 25.2012287
A47: Number of H-D | B47: =B11 -> 3.090688693
A48: Number of H-S | B48: =100-B43-B44-B45-B46-B47 -> 57.90097609
A53: Dinamic graph (deterministic)
A55: PMWS severity | B55: 0 | C55: 0.5 | D55: 1 | E55: 1.5 | F55: 2 | G55: 2.5 | H55: 3 | I55: 3.5 | J55: 4 | K55: 4.5 | L55: 5 | M55: 5.5 | N55: 6 | O55: 6.5 | P55: 7 | Q55: 7.5 | R55: 8 | S55: 8.5 | T55: 9 | U55: 9.5 | V55: 10
A56: PMWS-D | B56: =B453 ->  | C56: =B493 ->  | D56: =B533 ->  | E56: =B572 ->  | F56: =B612 ->  | G56: =B652 ->  | H56: =B692 ->  | I56: =B732 ->  | J56: =B772 ->  | K56: =B812 ->  | L56: =B852 ->  | M56: =B892 ->  | N56: =B932 ->  | O56: =B972 ->  | P56: =B1012 ->  | Q56: =B1052 ->  | R56: =B1093 ->  | S56: =B1134 ->  | T56: =B1174 ->  | U56: =B1214 ->  | V56: =B1253 -> 
A57: PMWS-S
A58: PCV2-D
A59: PCV2-S
A60: H-D
A61: H-S
A62: overall mortality (%) | B62: =B453+B455+B457 ->  | C62: =B493+B495+B497 ->  | D62: =B533+B535+B537 ->  | E62: =B572+B574+B576 ->  | F62: =B612+B614+B616 ->  | G62: =B652+B654+B656 ->  | H62: =B692+B694+B696 ->  | I62: =B732+B734+B736 ->  | J62: =B772+B774+B776 ->  | K62: =B812+B814+B816 ->  | L62: =B852+B854+B856 ->  | M62: =B892+B894+B896 ->  | N62: =B932+B934+B936 ->  | O62: =B972+B974+B976 ->  | P62: =B1012+B1014+B1016 ->  | Q62: =B1052+B1054+B1056 ->  | R62: =B1093+B1095+B1097 ->  | S62: =B1134+B1136+B1138 ->  | T62: =B1174+B1176+B1178 ->  | U62: =B1214+B1216+B1218 ->  | V62: =B1253+B1255+B1257 -> 
A63: overall PCV2 infected pigs (%) | B63: =B428 ->  | C63: =B468 ->  | D63: =B508 ->  | E63: =B547 ->  | F63: =B587 ->  | G63: =B627 ->  | H63: =B667 ->  | I63: =B707 ->  | J63: =B747 ->  | K63: =B787 ->  | L63: =B827 ->  | M63: =B867 ->  | N63: =B907 ->  | O63: =B947 ->  | P63: =B987 ->  | Q63: =B1027 ->  | R63: =B1068 ->  | S63: =B1109 ->  | T63: =B1149 ->  | U63: =B1189 ->  | V63: =B1228 -> 
A64: overall PMWS cases (%) | B64: =B434 ->  | C64: =B474 ->  | D64: =B514 ->  | E64: =B553 ->  | F64: =B593 ->  | G64: =B633 ->  | H64: =B673 ->  | I64: =B713 ->  | J64: =B753 ->  | K64: =B793 ->  | L64: =B833 ->  | M64: =B873 ->  | N64: =B913 ->  | O64: =B953 ->  | P64: =B993 ->  | Q64: =B1033 ->  | R64: =B1074 ->  | S64: =B1115 ->  | T64: =B1155 ->  | U64: =B1195 ->  | V64: =B1234 -> 
A65: Fatality rate | B65: =B425 ->  | C65: =B465 ->  | D65: =B505 ->  | E65: =B544 ->  | F65: =B584 ->  | G65: =B624 ->  | H65: =B664 ->  | I65: =B704 ->  | J65: =B744 ->  | K65: =B784 ->  | L65: =B824 ->  | M65: =B864 ->  | N65: =B904 ->  | O65: =B944 ->  | P65: =B984 ->  | Q65: =B1024 ->  | R65: =B1065 ->  | S65: =B1106 ->  | T65: =B1146 ->  | U65: =B1186 ->  | V65: =B1225 -> 
A66: Real fatality rate | B66: =B426 ->  | C66: =B466 ->  | D66: =B506 ->  | E66: =B545 ->  | F66: =B585 ->  | G66: =B625 ->  | H66: =B665 ->  | I66: =B705 ->  | J66: =B745 ->  | K66: =B785 ->  | L66: =B825 ->  | M66: =B865 ->  | N66: =B905 ->  | O66: =B945 ->  | P66: =B985 ->  | Q66: =B1025 ->  | R66: =B1066 ->  | S66: =B1107 ->  | T66: =B1147 ->  | U66: =B1187 ->  | V66: =B1226 -> 
A106: Stochastic model dinamic graph (all parametres constant except algorithm)
A108: PMWS severity | B108: 0 | C108: 0.5 | D108: 1 | E108: 1.5 | F108: 2 | G108: 2.5 | H108: 3 | I108: 3.5 | J108: 4 | K108: 4.5 | L108: 5 | M108: 5.5 | N108: 6 | O108: 6.5 | P108: 7 | Q108: 7.5 | R108: 8 | S108: 8.5 | T108: 9 | U108: 9.5 | V108: 10
A109: PMWS-D low 90% CI | B109: =D199 -> 0 | C109: =D209 -> 0 | D109: =D219 -> 0 | E109: =D229 -> 0 | F109: =D239 -> 0 | G109: =D249 -> 0 | H109: =D259 -> 0 | I109: =D269 -> 0.3301586 | J109: =D279 -> 0.8402879 | K109: =D289 -> 1.22742 | L109: =D299 -> 1.40977 | M109: =D309 -> 1.582898 | N109: =D319 -> 1.774123 | O109: =D329 -> 1.978824 | P109: =D339 -> 2.192742 | Q109: =D349 -> 2.386963 | R109: =D359 -> 2.568218 | S109: =D369 -> 2.799329 | T109: =D379 -> 3.108443 | U109: =D389 -> 3.555364 | V109: =D399 -> 3.582431
A110: PMWS-D mean | B110: =C199 -> 0 | C110: =C209 -> 0 | D110: =C219 -> 0 | E110: =C229 -> 0 | F110: =C239 -> 0 | G110: =C249 -> 0.002767302 | H110: =C259 -> 0.2303048 | I110: =C269 -> 0.7519694 | J110: =C279 -> 1.190693 | K110: =C289 -> 1.502555 | L110: =C299 -> 1.807905 | M110: =C309 -> 2.171702 | N110: =C319 -> 2.62631 | O110: =C329 -> 3.197881 | P110: =C339 -> 3.907756 | Q110: =C349 -> 4.763236 | R110: =C359 -> 5.735136 | S110: =C369 -> 6.692177 | T110: =C379 -> 7.476871 | U110: =C389 -> 8.311402 | V110: =C399 -> 9.560566
A111: PMWS-D high 90% CI | B111: =E199 -> 0 | C111: =E209 -> 0 | D111: =E219 -> 0 | E111: =E229 -> 0 | F111: =E239 -> 0 | G111: =E249 -> 0 | H111: =E259 -> 0.5679449 | I111: =E269 -> 1.091334 | J111: =E279 -> 1.39944 | K111: =E289 -> 1.752353 | L111: =E299 -> 2.195468 | M111: =E309 -> 2.763402 | N111: =E319 -> 3.510881 | O111: =E329 -> 4.486629 | P111: =E339 -> 5.720047 | Q111: =E349 -> 7.180836 | R111: =E359 -> 8.732283 | S111: =E369 -> 9.683809 | T111: =E379 -> 9.746551 | U111: =E389 -> 15.00235 | V111: =E399 -> 22.04482
A112: PMWS-S low 90% CI | B112: =D200 -> 0 | C112: =D210 -> 0 | D112: =D220 -> 0 | E112: =D230 -> 0 | F112: =D240 -> 0 | G112: =D250 -> 0 | H112: =D260 -> 0 | I112: =D270 -> 0 | J112: =D280 -> 0 | K112: =D290 -> 0 | L112: =D300 -> 0 | M112: =D310 -> 0 | N112: =D320 -> 0 | O112: =D330 -> 0.05912681 | P112: =D340 -> 0.175472 | Q112: =D350 -> 0.2140638 | R112: =D360 -> 0.2540967 | S112: =D370 -> 0.3110285 | T112: =D380 -> 0.3980868 | U112: =D390 -> 0.5493232 | V112: =D400 -> 0.7431954
A113: PMWS-S mean | B113: =C200 -> 0 | C113: =C210 -> 0 | D113: =C220 -> 0 | E113: =C230 -> 0 | F113: =C240 -> 0 | G113: =C250 -> 0 | H113: =C260 -> 2.361889e-05 | I113: =C270 -> 0.003908002 | J113: =C280 -> 0.02684174 | K113: =C290 -> 0.06156209 | L113: =C300 -> 0.1045685 | M113: =C310 -> 0.165083 | N113: =C320 -> 0.2669196 | O113: =C330 -> 0.4348921 | P113: =C340 -> 0.8483188 | Q113: =C350 -> 1.501674 | R113: =C360 -> 2.73439 | S113: =C370 -> 5.087011 | T113: =C380 -> 9.327309 | U113: =C390 -> 15.97343 | V113: =C400 -> 26.24117
A114: PMWS-S high 90% CI | B114: =E200 -> 0 | C114: =E210 -> 0 | D114: =E220 -> 0 | E114: =E230 -> 0 | F114: =E240 -> 0 | G114: =E250 -> 0 | H114: =E260 -> 0 | I114: =E270 -> 0.03090964 | J114: =E280 -> 0.05939155 | K114: =E290 -> 0.1020561 | L114: =E300 -> 0.1720116 | M114: =E310 -> 0.2932742 | N114: =E320 -> 0.5143576 | O114: =E330 -> 0.9128087 | P114: =E340 -> 1.999205 | Q114: =E350 -> 4.015741 | R114: =E360 -> 8.21178 | S114: =E370 -> 16.8856 | T114: =E380 -> 33.05216 | U114: =E390 -> 49.64493 | V114: =E400 -> 68.42462
A115: PCV2-D low 90% CI | B115: =D201 -> 0 | C115: =D211 -> 0 | D115: =D221 -> 0 | E115: =D231 -> 0 | F115: =D241 -> 0 | G115: =D251 -> 0 | H115: =D261 -> 0 | I115: =D271 -> 0 | J115: =D281 -> 0 | K115: =D291 -> 0 | L115: =D301 -> 0 | M115: =D311 -> 0.2038287 | N115: =D321 -> 0.4020295 | O115: =D331 -> 0.4850912 | P115: =D341 -> 0.4377776 | Q115: =D351 -> 0.3019139 | R115: =D361 -> 0.3748359 | S115: =D371 -> 1.382098 | T115: =D381 -> 3.149564 | U115: =D391 -> 0 | V115: =D401 -> 0
A116: PCV2-D mean | B116: =C201 -> 0 | C116: =C211 -> 0 | D116: =C221 -> 0 | E116: =C231 -> 0 | F116: =C241 -> 0 | G116: =C251 -> 0 | H116: =C261 -> 0.0001072904 | I116: =C271 -> 0.02588612 | J116: =C281 -> 0.244727 | K116: =C291 -> 0.7028806 | L116: =C301 -> 1.299222 | M116: =C311 -> 1.991425 | N116: =C321 -> 2.773668 | O116: =C331 -> 3.650929 | P116: =C341 -> 4.638381 | Q116: =C351 -> 5.771561 | R116: =C361 -> 7.129911 | S116: =C371 -> 8.903681 | T116: =C381 -> 11.31956 | U116: =C391 -> 14.23659 | V116: =C401 -> 17.3853
A117: PCV2-D high 90% CI | B117: =E201 -> 0 | C117: =E211 -> 0 | D117: =E221 -> 0 | E117: =E231 -> 0 | F117: =E241 -> 0 | G117: =E251 -> 0 | H117: =E261 -> 0 | I117: =E271 -> 0.2015223 | J117: =E281 -> 0.8896679 | K117: =E291 -> 1.711124 | L117: =E301 -> 2.689091 | M117: =E311 -> 3.859927 | N117: =E321 -> 5.261616 | O117: =E331 -> 6.950053 | P117: =E341 -> 8.98587 | Q117: =E351 -> 11.45353 | R117: =E361 -> 14.447 | S117: =E371 -> 18.10465 | T117: =E381 -> 22.48297 | U117: =E391 -> 27.70207 | V117: =E401 -> 33.95437
A118: PCV2-S low 90% CI | B118: =D202 -> 5.025337 | C118: =D212 -> 5.622403 | D118: =D222 -> 6.27174 | E118: =D232 -> 6.968839 | F118: =D242 -> 7.720767 | G118: =D252 -> 8.526327 | H118: =D262 -> 9.389599 | I118: =D272 -> 10.2949 | J118: =D282 -> 11.09154 | K118: =D292 -> 11.73171 | L118: =D302 -> 12.29318 | M118: =D312 -> 12.82309 | N118: =D322 -> 13.25184 | O118: =D332 -> 13.59885 | P118: =D342 -> 13.72727 | Q118: =D352 -> 13.48903 | R118: =D362 -> 12.26963 | S118: =D372 -> 9.04578 | T118: =D382 -> 0.9336992 | U118: =D392 -> 0 | V118: =D402 -> 0
A119: PCV2-S mean | B119: =C202 -> 5.84418 | C119: =C212 -> 6.549991 | D119: =C222 -> 7.33853 | E119: =C232 -> 8.219147 | F119: =C242 -> 9.202082 | G119: =C252 -> 10.29847 | H119: =C262 -> 11.52019 | I119: =C272 -> 12.85441 | J119: =C282 -> 14.14691 | K119: =C292 -> 15.36465 | L119: =C302 -> 16.62112 | M119: =C312 -> 17.96877 | N119: =C322 -> 19.41881 | O119: =C332 -> 20.9626 | P119: =C342 -> 22.56464 | Q119: =C352 -> 24.13815 | R119: =C362 -> 25.48498 | S119: =C372 -> 26.14033 | T119: =C382 -> 25.35707 | U119: =C392 -> 22.56386 | V119: =C402 -> 16.55845
A120: PCV2-S high 90% CI | B120: =E202 -> 6.662498 | C120: =E212 -> 7.476434 | D120: =E222 -> 8.422695 | E120: =E232 -> 9.51071 | F120: =E242 -> 10.75954 | G120: =E252 -> 12.21165 | H120: =E262 -> 13.82816 | I120: =E272 -> 15.67619 | J120: =E282 -> 17.53548 | K120: =E292 -> 19.41415 | L120: =E302 -> 21.51036 | M120: =E312 -> 23.87094 | N120: =E322 -> 26.5677 | O120: =E332 -> 29.60797 | P120: =E342 -> 32.9826 | Q120: =E352 -> 36.77232 | R120: =E362 -> 40.99981 | S120: =E372 -> 45.1763 | T120: =E382 -> 47.12355 | U120: =E392 -> 44.09031 | V120: =E402 -> 36.08043
A121: H-D low 90% CI | B121: =D203 -> 1.292904 | C121: =D213 -> 1.485707 | D121: =D223 -> 1.707261 | E121: =D233 -> 1.961854 | F121: =D243 -> 2.254412 | G121: =D253 -> 2.590599 | H121: =D363 -> 3.090689 | I121: =D273 -> 3.090689 | J121: =D283 -> 3.090689 | K121: =D293 -> 3.090689 | L121: =D303 -> 3.090689 | M121: =D313 -> 3.090689 | N121: =D323 -> 3.090689 | O121: =D333 -> 3.090689 | P121: =D343 -> 3.090689 | Q121: =D353 -> 3.090689 | R121: =D363 -> 3.090689 | S121: =D373 -> 3.090689 | T121: =D383 -> 3.090689 | U121: =D393 -> 3.090689 | V121: =D403 -> 3.090689
A122: H-D mean | B122: =C203 -> 1.292904 | C122: =C213 -> 1.511542 | D122: =C223 -> 1.767346 | E122: =C233 -> 2.066666 | F122: =C243 -> 2.416944 | G122: =C253 -> 2.82413 | H122: =C263 -> 3.076335 | I122: =C273 -> 3.090615 | J122: =C283 -> 3.090689 | K122: =C293 -> 3.090689 | L122: =C303 -> 3.090689 | M122: =C313 -> 3.090689 | N122: =C323 -> 3.090689 | O122: =C333 -> 3.090689 | P122: =C343 -> 3.090689 | Q122: =C353 -> 3.090689 | R122: =C363 -> 3.090689 | S122: =C373 -> 3.090689 | T122: =C383 -> 3.090689 | U122: =C393 -> 3.090689 | V122: =C403 -> 3.090689
A123: H-D high 90% CI | B123: =E203 -> 1.292904 | C123: =E213 -> 1.537653 | D123: =E223 -> 1.828734 | E123: =E233 -> 2.174917 | F123: =E243 -> 2.586632 | G123: =E253 -> 3.076287 | H123: =E263 -> 3.090689 | I123: =E273 -> 3.090689 | J123: =E283 -> 3.090689 | K123: =E293 -> 3.090689 | L123: =E303 -> 3.090689 | M123: =E313 -> 3.090689 | N123: =E323 -> 3.090689 | O123: =E333 -> 3.090689 | P123: =E343 -> 3.090689 | Q123: =E353 -> 3.090689 | R123: =E363 -> 3.090689 | S123: =E373 -> 3.090689 | T123: =E383 -> 3.090689 | U123: =E393 -> 3.090689 | V123: =E403 -> 3.090689
A124: H-S low 90% CI | B124: =D204 -> 92.04371 | C124: =D214 -> 91.00925 | D124: =D224 -> 89.81133 | E124: =D234 -> 88.42856 | F124: =D244 -> 86.82215 | G124: =D254 -> 84.96646 | H124: =D264 -> 82.83082 | I124: =D274 -> 80.43393 | J124: =D284 -> 77.92099 | K124: =D294 -> 75.25452 | L124: =D304 -> 72.26368 | M124: =D314 -> 68.86759 | N124: =D324 -> 65.00895 | O124: =D334 -> 60.54966 | P124: =D344 -> 55.44104 | Q124: =D354 -> 49.6095 | R124: =D364 -> 42.91081 | S124: =D374 -> 35.55853 | T124: =D384 -> 29.44422 | U124: =D394 -> 22.09148 | V124: =D404 -> 7.745334
A125: H-S mean | B125: =C204 -> 92.86292 | C125: =C214 -> 91.93847 | D125: =C224 -> 90.89413 | E125: =C234 -> 89.71419 | F125: =C244 -> 88.38097 | G125: =C254 -> 86.87463 | H125: =C264 -> 85.17303 | I125: =C274 -> 83.27322 | J125: =C284 -> 81.30014 | K125: =C294 -> 79.27766 | L125: =C304 -> 77.07649 | M125: =C314 -> 74.61233 | N125: =C324 -> 71.8236 | O125: =C334 -> 68.66301 | P125: =C344 -> 64.95022 | Q125: =C354 -> 60.73469 | R125: =C364 -> 55.82489 | S125: =C374 -> 50.08612 | T125: =C384 -> 43.4285 | U125: =C394 -> 35.82403 | V125: =C404 -> 27.16383
... 137 more rows

Sheet Economic analysis for each pig (hidden)
A1: PMWS ECONOMIC MODEL FOR EACH PIG
A3: Sow costs
A5: Feed consume per sow/year (kg) | B5: ='PMWS economic calculator'!B88 -> 1232
A6: Sow feed price/tonne (£) | B6: ='PMWS economic calculator'!B96 -> 162.87
A7: Litters/sow/year | B7: ='PMWS economic calculator'!B89 -> 2.25
A8: Piglets born alive/sow/litter | B8: ='PMWS economic calculator'!B90 -> 11.2
A9: Pre-weaning mortality | B9: ='PMWS economic calculator'!B91 -> 0.1272
A10: Piglets born alive/sow/year | B10: =B7*B8 -> 25.2
A11: Piglets weaned/sow/year | B11: =B10*(1-B9) -> 21.99456
A12: Sow feed cost/weaned pig/year | B12: =B5*(B6/1000)/B11 -> 9.122975863
A13: Cost of replacing a gilt | B13: 157.62
A14: Average number of parities | B14: 4.56
A15: Depreciation of a sow/parity | B15: =B13/B14 -> 34.56578947
A17: Healthy pig
A18: Weight at weaning (kg) | B18: ='Epidemiological Model flow'!B26 -> 8.1 | D18: Weight gain/pig | E18: =B19-B18 -> 94.5
A19: Liveweight at slaughter (kg) | B19: ='Economic analysis for each pig'!B18+'Economic analysis for each pig'!B20*'Epidemiological Model flow'!B28 -> 102.6 | D19: Average daily gain/pig (kg) | E19: =E18/B20 -> 0.675
A20: Days in feed | B20: 140
A21: Feed consume/pig | B21: ='PMWS economic calculator'!B87 -> 225.85
A22: Feed price/tonne (£) | B22: ='PMWS economic calculator'!B95 -> 202.55
A24: Feed consume/pig/day (kg) | B24: =B21/B20 -> 1.613214286
A25: feed conversion ratio | B25: =B24/E19 -> 2.38994709
A26: Feed cost exc. sows/pig (£) | B26: =(B22/1000)*B21 -> 45.7459175
A27: Feed cost excl. sows/pig/day (£) | B27: =B26/B20 -> 0.3267565536
A28: Feed cost incl sows/pig (£) | B28: =B26+B12 -> 54.86889336
A31: Veterinary cost/pig (£) | B31: ='PMWS economic calculator'!B97 -> 1.87
A32: Transport cost/pig (£) | B32: ='PMWS economic calculator'!B102 -> 2.34
A33: Electricity and gas cost/pig (£) | B33: ='PMWS economic calculator'!B98 -> 2.12
A34: Water cost/pig (£) | B34: ='PMWS economic calculator'!B99 -> 0.6
A35: Straw and bedding cost/pig (£) | B35: ='PMWS economic calculator'!B100 -> 0.43
A36: Miscellaneous/pig (£) | B36: ='PMWS economic calculator'!B101 -> 2.9
A37: Depreciation of sow/parity (£) | B37: =B15/(B8*(1-B9)) -> 3.536011919
A39: Labour cost/pig (£) | B39: ='PMWS economic calculator'!B104 -> 10.84
A40: Building cost/pig (£) | B40: ='PMWS economic calculator'!B105 -> 3.47
A41: Equipment cost/pig (£) | B41: ='PMWS economic calculator'!B106 -> 3.51
A42: Other fixed cost/pig (£) | B42: ='PMWS economic calculator'!B107 -> 2.68
A44: Ave. deadweight price/kg (£) | B44: 1.39
A45: Average Deadweight at slaughter (Kg) | B45: =B19*0.76 -> 77.976
A46: Revenue per pig (£) | B46: =B44*B45 -> 108.38664
D47: Healthy Gross marging | E47: =B46-(B31+B32+B33+B34+B35+B37+B28+B36) -> 39.72173472
D48: Healthy net marging | E48: =B46-B28-B31-B32-B33-B34-B35-B39-B40-B41-B42-B37-B36 -> 19.22173472
A51: PMWS-D (PMWS pigs that died) | G51: PMWS-D (Enterprise budget analysis)
A52: Loss of appetite (%) | B52: =E52 -> 18 | D52: Appetite loss | E52: 18
A53: FCR | B53: =B54/B55 -> 2.648319748
A54: Feed consume | B54: =B24*(1-(B52/100))*B56 -> 79.37014286
A55: Weight gain at death (kg) | B55: ='Epidemiological Model flow'!$B$37-'Epidemiological Model flow'!$B$26 -> 29.97 | D55: liveweight at death | E55: =B55+'Epidemiological Model flow'!B26 -> 38.07
A56: Days in feed of PMWS-D | B56: ='Epidemiological Model flow'!B35 -> 60
A57: Veterinary multicplication factor for PMWS-D | B57: =E57 -> 2.74 | D57: VMF | E57: 2.74
A58: Labour multiplication factor for PMWS-D | B58: 1
A59: Building (sick pen) multiplication factor for PMWS-D | B59: 1 | G59: Variable cost
G60: Miscellaneous
A61: Cost of feed/PMWS-D (£) | B61: =B54*(B22/1000) -> 16.07642244 | G61: Cost of feed/PMWS-D (£) | J61: =B61 -> 16.07642244
A62: Cost of sow feed/PMWS-D (£) | B62: =B12 -> 9.122975863 | G62: Cost of sow feed/PMWS-D (£) | J62: =B62 -> 9.122975863
G63: Veterinary cost /PMWS-D | J63: =B64 -> 5.1238
A64: Veterinary cost /PMWS-D | B64: =B57*B31 -> 5.1238 | D64: Extra Veterinary cost/PMWS-D | E64: =B64-B31 -> 3.2538 | G64: Electricity cost/PMWS-D | J64: =B65 -> 0.9085714286
A65: Electricity cost/PMWS-D | B65: =(B33/B20)*B56 -> 0.9085714286 | G65: water cost/PMWS-D | J65: =B66 -> 0.2571428571
A66: water cost/PMWS-D | B66: =(B34/B20)*B56 -> 0.2571428571 | G66: bedding cost/PMWS-D | J66: =B67 -> 0.1842857143
A67: bedding cost/PMWS-D | B67: =(B35/B20)*B56 -> 0.1842857143 | G67: Cost of disposing a PMWS-D | J67: =B68 -> 6
A68: Cost of disposing a PMWS-D | B68: ='PMWS economic calculator'!B103 -> 6 | G68: Sow depreciation (£) | J68: =B37 -> 3.536011919
A69: Labour cost/PMWS-D | B69: =B58*B39 -> 10.84 | D69: Extra labour cost/PMWS-D | E69: =B69-B39 -> 0
A70: LII/PMWS-D | G70: Fixed cost
G71: Labour cost/PMWS-D | J71: =B69 -> 10.84
A72: Value of feed saved/PMWS-D | B72: =B26-B61 -> 29.66949506 | G72: Building cost/pig (£) | J72: =B40 -> 3.47
A73: Value of electricity saved/PMWS-D | B73: =B33-B65 -> 1.211428571 | G73: Equipment cost/pig (£) | J73: =B41 -> 3.51
A74: Value of water saved / PMWS-D | B74: =B34-B66 -> 0.3428571429 | G74: Other fixed cost/pig (£) | J74: =B42 -> 2.68
A75: Value of bedding saved/PMWS-D | B75: =B35-B67 -> 0.2457142857
A76: Value of transport saved / PMWS-D | B76: =B32 -> 2.34
D77: Gross margin | E77: =SUM(B64:B68)+B61+B62+J68 -> 41.20921022 | G77: Gross margin | J77: =SUM(J61:J68) -> 41.20921022
A78: PMWS-D net margin | B78: =B72+B73+B74+B75+B76-E64-E69-B46-B68 -> -83.83094494 | D78: profit | E78: =J78 -> -61.70921022 | G78: PROFITS | J78: =(J61+J62+J63+J64+J65+J66+J67+J68+J71+J72+J73+J74)*-1 -> -61.70921022
A80: PMWS-S (PMWS pig that survived/recover) | G80: PMWS-S (Enterprise budjet analysis)
A81: Day in feed as PMWS | B81: ='Epidemiological Model flow'!$B$36 -> 60
A82: Days in feed as Subclinical | B82: ='Epidemiological Model flow'!B38-B81 -> 113.8095238
A83: extra days in the farm | B83: =B82+B81-B20 -> 33.80952381 | D83: Weight at death | E83: =B88+B82*'Epidemiological Model flow'!B30 -> 102.6 | G83: Revenue
A84: FCR pmws recovered pig | B84: =(B85+B86)/'Epidemiological Model flow'!B27 -> 2.585353425 | D84: Weigt gain | E84: =E83-'Epidemiological Model flow'!B26 -> 94.5 | G84: Carcass sold (£) | J84: =(B44*(E83*0.76))-B100 -> 101.56374
A85: Feed consume during clinical stage | B85: =B54 -> 79.37014286
A86: Feed consume during subclinical stage | B86: =B24*B82*(1-(B130/100)) -> 164.9457558 | G86: Variable costs
A87: Total feed consume | B87: =B86+B85 -> 244.3158987 | G87: Cost of feed/PMWS-S (£) | J87: =B92+B26 -> 49.48618528
A88: Weight of a PMWS pig at point of recovery | B88: =B55+'Epidemiological Model flow'!B26 -> 38.07 | G88: Cost of sow feed/PMWS-S (£) | J88: =J62 -> 9.122975863
A89: Extra feed by a PMWS recover pig | B89: =B87-B21 -> 18.46589869 | G89: Veterinary cost /PMWS-S | J89: =B93+B31 -> 6.643970068
G90: Miscellaneous / PMWS-S | J90: =B36 -> 2.9
G91: Electricity cost/PMWS-S | J91: =B94+B33 -> 2.631972789
A92: Extra cost of feeding PMWS recover pig | B92: =B89*(B22/1000) -> 3.740267779 | G92: water cost/PMWS-S | J92: =B95+B34 -> 0.7448979592
A93: Extra veterinary cost | B93: =(B64+(B31/B20)*B82)-B31 -> 4.773970068 | G93: bedding cost/PMWS-S | J93: =B96+B35 -> 0.5338435374
A94: Extra electricity cost | B94: =(B82+B81-B20)*(B33/B20) -> 0.5119727891 | G94: Transport cost/PMWS-S | J94: =B32 -> 2.34
A95: Extra water cost | B95: =(B34/B20)*(B81+B82-B20) -> 0.1448979592 | G95: Sow depreciation (£) | J95: =B37 -> 3.536011919
A96: Extra bedding cost | B96: =(B35/B20)*(B81+B82-B20) -> 0.1038435374 | G96: Fixed cost
A97: Extra Labour cost | B97: 0 | G97: Labour cost/PMWS-D | J97: =B39 -> 10.84
G98: Building cost/pig (£) | J98: =B40 -> 3.47
A99: Penalty PMWS-S (£/kg.) | B99: =E99 -> 0.0875 | D99: Carcass penalty (£/kg) | E99: 0.0875 | G99: Equipment cost/pig (£) | J99: =B41 -> 3.51
A100: Revenue forgone by quality loss (£) | B100: =B99*(E83*0.76) -> 6.8229 | G100: Other fixed cost/pig (£) | J100: =B42 -> 2.68
A101: Profits forgine by lost of production potential | B101: =E48*(B83/B20) -> 4.641983554
A102: revenue forgone by death below average | B102: =(B46-B100)-J84 -> 0
D103: gross margin | E103: =J84-SUM(J87:J95) -> 23.62388259 | G103: Gross margin | J103: =J84-SUM(J87:J95) -> 23.62388259
A104: PMWS-S net margin | B104: =(B100+B97+B96+B95+B94+B93+B92+B101+B102)*-1 -> -20.73983569 | D104: profit | E104: =J104 -> 3.123882585 | G104: PROFITS | J104: =J84-J87-J88-J89-J91-J92-J93-J94-J95-J97-J98-J99-J100-J90 -> 3.123882585
A106: PCV2-D (Subclinical pig that died) | G106: PCV2-D (Enterprise budget analysis)
A107: Days in feed | B107: ='Epidemiological Model flow'!B34 -> 60
A108: Feed consume | B108: =B107*B24*(1-(B130/100)) -> 86.95885035
A109: Percentage in feed consumption reduction | B109: =E109*100 -> 10.15984762 | E109: =1-(0.205905+0.844672*(0.424*(1-('Epidemiological Model flow'!B29/100))))/0.56405 -> 0.1015984762
G110: Variable costs
A111: Cost of feed (£) | B111: =B108*(B22/1000) -> 17.61351514 | G111: Cost of feed/PCV2-D (£) | J111: =B111 -> 17.61351514
A112: Veterinary cost | B112: =(B31/B20)*B107 -> 0.8014285714 | G112: Cost of sow feed/PCV2-D (£) | J112: =J62 -> 9.122975863
A113: Electricity cost | B113: =(B33/B20)*B107 -> 0.9085714286 | G113: Veterinary cost /PCV2-D | J113: =B112 -> 0.8014285714
A114: water cost | B114: =(B34/B20)*B107 -> 0.2571428571 | G114: Electricity cost/PCV2-D | J114: =B113 -> 0.9085714286
A115: bedding cost | B115: =(B35/B20)*B107 -> 0.1842857143 | G115: water cost/PCV2-D | J115: =B114 -> 0.2571428571
A116: Cost of disposing a carcass | B116: =B68 -> 6 | G116: bedding cost/PCV2-D | J116: =B115 -> 0.1842857143
A117: Labour cost | B117: 0 | G117: Carcass disposal cost/PCV2-D | J117: =B116 -> 6
G118: Sow depreciation (£) | J118: =J95 -> 3.536011919
A119: Value of feed saved | B119: =B26-B111 -> 28.13240236 | G119: Fixed cost
A120: veterinary cost saved | B120: =B31-B112 -> 1.068571429 | G120: Labour cost/PMWS-D | J120: =J97 -> 10.84
A121: Value of electricity saved | B121: =B33-B113 -> 1.211428571 | G121: Building cost/pig (£) | J121: =J98 -> 3.47
A122: Value of water saved | B122: =B34-B114 -> 0.3428571429 | G122: Equipment cost/pig (£) | J122: =J99 -> 3.51
A123: Value of bedding saved | B123: =B35-B115 -> 0.2457142857 | G123: Other fixed cost/pig (£) | J123: =J100 -> 2.68
A124: Value of transport saved | B124: =B32 -> 2.34
A125: Labour saved | B125: 0
D126: Gross margin | E126: =SUM(J111:J118) -> 38.42393149 | G126: gross margin | J126: =SUM(J111:J118) -> 38.42393149
A127: Pcv2-D net margin | B127: =B119+B120+B121+B122+B123+B124+B125-B46-B116 -> -81.04566621 | D127: profit | E127: =J127 -> -58.92393149 | G127: PROFITS | J127: =(J111+J112+J113+J114+J115+J116+J117+J118+J120+J121+J122+J123)*-1 -> -58.92393149
A129: PCV2-S (Subclinical pig that survive) | G129: PCV2-S (Enterprise budget analysis)
A130: Appetite loss (%) | B130: =B109 -> 10.15984762
A131: Day in feed | B131: ='Epidemiological Model flow'!B31 -> 166.6666667 | D131: Weight at death | E131: ='Epidemiological Model flow'!B26+('Epidemiological Model flow'!B30*'Economic analysis for each pig'!B131) -> 102.6 | G131: Revenue
A132: Extra days in feed | B132: =B131-B20 -> 26.66666667 | G132: Carcass sold | J132: =E131*0.76*B44 -> 108.38664
A133: FCR subclinical | B133: =B135/'Epidemiological Model flow'!$B$27 -> 2.556109652 | G133: Variable costs
A134: ADG subclinical | B134: ='Epidemiological Model flow'!$B$30 -> 0.567 | G134: Cost of feed/PMWS-S (£) | J134: =B139+B26 -> 48.92643094
A135: Feed consumed (kg) | B135: =B24*B131*(1-(B130/100)) -> 241.5523621 | G135: Cost of sow feed/PMWS-S (£) | J135: =J112 -> 9.122975863
A136: Extra feed consume (kg) | B136: =B135-B21 -> 15.70236209 | G136: Veterinary cost /PMWS-S | J136: =B140+B31 -> 2.226190476
G137: Miscellaneous/PCV2-S | J137: =J90 -> 2.9
G138: Electricity cost/PMWS-S | J138: ='Economic analysis for each pig'!B141+'Economic analysis for each pig'!B33 -> 2.523809524
A139: Extra cost of feeding PCV2 recover pig | B139: =B136*(B22/1000) -> 3.180513442 | G139: water cost/PMWS-S | J139: =B142+B34 -> 0.7142857143
A140: Extra veterinary cost | B140: =(B31/B20)*B132 -> 0.3561904762 | G140: bedding cost/PMWS-S | J140: =B143+B35 -> 0.5119047619
A141: Extra electricity cost | B141: =(B33/B20)*B132 -> 0.4038095238 | G141: Transport cost/PCV2-S | J141: =J94 -> 2.34
A142: Extra water cost | B142: =(B34/B20)*B132 -> 0.1142857143 | G142: Sow depreciation (£) | J142: =J118 -> 3.536011919
A143: Extra bedding cost | B143: =(B35/B20)*B132 -> 0.0819047619 | G143: Fixed cost
A144: Extra Labour cost | B144: 0 | G144: Labour cost/PMWS-D | J144: =J120 -> 10.84
G145: Building cost/pig (£) | J145: =J121 -> 3.47
A146: Penalty for SS | B146: 0 | G146: Equipment cost/pig (£) | J146: =J122 -> 3.51
A147: Revenue forgone due to loss in quality | B147: =B146*B46 -> 0 | G147: Other fixed cost/pig (£) | J147: =J123 -> 2.68
A148: Revenue forgone due to space misused | B148: =E48*(B132/B20) -> 3.661282803
A149: revenue forgone by death below average | B149: =(B46-B147)-J132 -> 0
D150: gross margin | E150: =J132-SUM(J134:J142) -> 35.5850308
A151: PCV2-S net margin | B151: =(B139+B140+B141+B142+B143+B144+B147+B148+B149)*-1 -> -7.797986722 | D151: profit | E151: =J151 -> 15.0850308 | G151: PROFITS | J151: =J132-J134-J135-J136-J138-J139-J140-J141-J142-J144-J145-J146-J147-J137 -> 15.0850308

Sheet Calculation of farm level cost (hidden)
A1: CALCULATION OF FARM LEVE COST
A3: Sow performance
A4: Number of sows | B4: 1
A5: Litters/sow/year | B5: ='Economic analysis for each pig'!B7 -> 2.25
A6: Born alive/sow/year | B6: ='Economic analysis for each pig'!B10 -> 25.2
A7: Weaned/sow/year | B7: ='Economic analysis for each pig'!B11 -> 21.99456
A9: Number of different types of pigs/sow/year
A11: Number of PMWS-D | B11: =(('Epidemiological Model flow'!$B$43)/100)*B7*B4 -> 1.24026424
A12: Number of PMWS-S | B12: =(('Epidemiological Model flow'!$B$44)/100)*B7*B4 -> 0.3818645805
A13: Number of SD | B13: =(('Epidemiological Model flow'!$B$45)/100)*B7*B4 -> 1.414683506
A14: Number of SS | B14: =(('Epidemiological Model flow'!B46)/100)*B7*B4 -> 5.542899368
A15: Number of H | B15: =(('Epidemiological Model flow'!B48)/100)*B4*B7 -> 12.73506493
A17: Cost of PCV2 and disease at farm level
A19: Cost of PMWS-D | B19: =('Economic analysis for each pig'!B78)*B11 -> -103.9725233 | D19: profits P-D | E19: =B11*'Economic analysis for each pig'!E78 -> -76.53572674
A20: Cost of PMWS-S | B20: =('Economic analysis for each pig'!B104)*B12 -> -7.919808654 | D20: profits P-S | E20: =B12*'Economic analysis for each pig'!E104 -> 1.192900113
A21: Cost of SD | B21: =('Economic analysis for each pig'!B127)*B13 -> -114.6539672 | D21: profits SD | E21: =B13*'Economic analysis for each pig'!E127 -> -83.358714
A22: Cost of SS | B22: =('Economic analysis for each pig'!B151)*B14 -> -43.22345567 | D22: profits SS | E22: =B14*'Economic analysis for each pig'!E151 -> 83.61480769
D23: profits HS | E23: =B15*'Economic analysis for each pig'!E48 -> 244.7900396
A24: Total cost | B24: =B19+B20+B21+B22 -> -269.7697548
A25: PMWS cost | B25: =B19+B20 -> -111.8923319
A26: Subclinical cost | B26: =B21+B22 -> -157.8774229
A27: PMWS cost % | B27: =(B25/B24)*100 -> 41.47697431
A28: Subclinical cost % | B28: =(B26/B24)*100 -> 58.52302569
A29: profits (exc. HD) | B29: =SUM(E19:E23) -> 169.7033067
A31: Dynamic model of cost (deterministic)
A32: cost/sow/year
A33: PMWS severity | B33: 0 | C33: 0.5 | D33: 1 | E33: 1.5 | F33: 2 | G33: 2.5 | H33: 3 | I33: 3.5 | J33: 4 | K33: 4.5 | L33: 5 | M33: 5.5 | N33: 6 | O33: 6.5 | P33: 7 | Q33: 7.5 | R33: 8 | S33: 8.5 | T33: 9 | U33: 9.5 | V33: 10
A34: PMWS-D cost | B34: =('Epidemiological Model flow'!B56/100)*'Economic analysis for each pig'!$B$11*'Economic analysis for each pig'!$B$78*-1 ->  | C34: =('Epidemiological Model flow'!C56/100)*'Economic analysis for each pig'!$B$11*'Economic analysis for each pig'!$B$78*-1 ->  | D34: =('Epidemiological Model flow'!D56/100)*'Economic analysis for each pig'!$B$11*'Economic analysis for each pig'!$B$78*-1 ->  | E34: =('Epidemiological Model flow'!E56/100)*'Economic analysis for each pig'!$B$11*'Economic analysis for each pig'!$B$78*-1 ->  | F34: =('Epidemiological Model flow'!F56/100)*'Economic analysis for each pig'!$B$11*'Economic analysis for each pig'!$B$78*-1 ->  | G34: =('Epidemiological Model flow'!G56/100)*'Economic analysis for each pig'!$B$11*'Economic analysis for each pig'!$B$78*-1 ->  | H34: =('Epidemiological Model flow'!H56/100)*'Economic analysis for each pig'!$B$11*'Economic analysis for each pig'!$B$78*-1 ->  | I34: =('Epidemiological Model flow'!I56/100)*'Economic analysis for each pig'!$B$11*'Economic analysis for each pig'!$B$78*-1 ->  | J34: =('Epidemiological Model flow'!J56/100)*'Economic analysis for each pig'!$B$11*'Economic analysis for each pig'!$B$78*-1 ->  | K34: =('Epidemiological Model flow'!K56/100)*'Economic analysis for each pig'!$B$11*'Economic analysis for each pig'!$B$78*-1 ->  | L34: =('Epidemiological Model flow'!L56/100)*'Economic analysis for each pig'!$B$11*'Economic analysis for each pig'!$B$78*-1 ->  | M34: =('Epidemiological Model flow'!M56/100)*'Economic analysis for each pig'!$B$11*'Economic analysis for each pig'!$B$78*-1 ->  | N34: =('Epidemiological Model flow'!N56/100)*'Economic analysis for each pig'!$B$11*'Economic analysis for each pig'!$B$78*-1 ->  | O34: =('Epidemiological Model flow'!O56/100)*'Economic analysis for each pig'!$B$11*'Economic analysis for each pig'!$B$78*-1 ->  | P34: =('Epidemiological Model flow'!P56/100)*'Economic analysis for each pig'!$B$11*'Economic analysis for each pig'!$B$78*-1 ->  | Q34: =('Epidemiological Model flow'!Q56/100)*'Economic analysis for each pig'!$B$11*'Economic analysis for each pig'!$B$78*-1 ->  | R34: =('Epidemiological Model flow'!R56/100)*'Economic analysis for each pig'!$B$11*'Economic analysis for each pig'!$B$78*-1 ->  | S34: =('Epidemiological Model flow'!S56/100)*'Economic analysis for each pig'!$B$11*'Economic analysis for each pig'!$B$78*-1 ->  | T34: =('Epidemiological Model flow'!T56/100)*'Economic analysis for each pig'!$B$11*'Economic analysis for each pig'!$B$78*-1 ->  | U34: =('Epidemiological Model flow'!U56/100)*'Economic analysis for each pig'!$B$11*'Economic analysis for each pig'!$B$78*-1 ->  | V34: =('Epidemiological Model flow'!V56/100)*'Economic analysis for each pig'!$B$11*'Economic analysis for each pig'!$B$78*-1 -> 
A35: PMWS-S cost | B35: =('Epidemiological Model flow'!B57/100)*'Economic analysis for each pig'!$B$11*'Economic analysis for each pig'!$B$104*-1 ->  | C35: =('Epidemiological Model flow'!C57/100)*'Economic analysis for each pig'!$B$11*'Economic analysis for each pig'!$B$104*-1 ->  | D35: =('Epidemiological Model flow'!D57/100)*'Economic analysis for each pig'!$B$11*'Economic analysis for each pig'!$B$104*-1 ->  | E35: =('Epidemiological Model flow'!E57/100)*'Economic analysis for each pig'!$B$11*'Economic analysis for each pig'!$B$104*-1 ->  | F35: =('Epidemiological Model flow'!F57/100)*'Economic analysis for each pig'!$B$11*'Economic analysis for each pig'!$B$104*-1 ->  | G35: =('Epidemiological Model flow'!G57/100)*'Economic analysis for each pig'!$B$11*'Economic analysis for each pig'!$B$104*-1 ->  | H35: =('Epidemiological Model flow'!H57/100)*'Economic analysis for each pig'!$B$11*'Economic analysis for each pig'!$B$104*-1 ->  | I35: =('Epidemiological Model flow'!I57/100)*'Economic analysis for each pig'!$B$11*'Economic analysis for each pig'!$B$104*-1 ->  | J35: =('Epidemiological Model flow'!J57/100)*'Economic analysis for each pig'!$B$11*'Economic analysis for each pig'!$B$104*-1 ->  | K35: =('Epidemiological Model flow'!K57/100)*'Economic analysis for each pig'!$B$11*'Economic analysis for each pig'!$B$104*-1 ->  | L35: =('Epidemiological Model flow'!L57/100)*'Economic analysis for each pig'!$B$11*'Economic analysis for each pig'!$B$104*-1 ->  | M35: =('Epidemiological Model flow'!M57/100)*'Economic analysis for each pig'!$B$11*'Economic analysis for each pig'!$B$104*-1 ->  | N35: =('Epidemiological Model flow'!N57/100)*'Economic analysis for each pig'!$B$11*'Economic analysis for each pig'!$B$104*-1 ->  | O35: =('Epidemiological Model flow'!O57/100)*'Economic analysis for each pig'!$B$11*'Economic analysis for each pig'!$B$104*-1 ->  | P35: =('Epidemiological Model flow'!P57/100)*'Economic analysis for each pig'!$B$11*'Economic analysis for each pig'!$B$104*-1 ->  | Q35: =('Epidemiological Model flow'!Q57/100)*'Economic analysis for each pig'!$B$11*'Economic analysis for each pig'!$B$104*-1 ->  | R35: =('Epidemiological Model flow'!R57/100)*'Economic analysis for each pig'!$B$11*'Economic analysis for each pig'!$B$104*-1 ->  | S35: =('Epidemiological Model flow'!S57/100)*'Economic analysis for each pig'!$B$11*'Economic analysis for each pig'!$B$104*-1 ->  | T35: =('Epidemiological Model flow'!T57/100)*'Economic analysis for each pig'!$B$11*'Economic analysis for each pig'!$B$104*-1 ->  | U35: =('Epidemiological Model flow'!U57/100)*'Economic analysis for each pig'!$B$11*'Economic analysis for each pig'!$B$104*-1 ->  | V35: =('Epidemiological Model flow'!V57/100)*'Economic analysis for each pig'!$B$11*'Economic analysis for each pig'!$B$104*-1 -> 
A36: PCV2-D cost | B36: =('Epidemiological Model flow'!B58/100)*'Economic analysis for each pig'!$B$11*'Economic analysis for each pig'!$B$127*-1 ->  | C36: =('Epidemiological Model flow'!C58/100)*'Economic analysis for each pig'!$B$11*'Economic analysis for each pig'!$B$127*-1 ->  | D36: =('Epidemiological Model flow'!D58/100)*'Economic analysis for each pig'!$B$11*'Economic analysis for each pig'!$B$127*-1 ->  | E36: =('Epidemiological Model flow'!E58/100)*'Economic analysis for each pig'!$B$11*'Economic analysis for each pig'!$B$127*-1 ->  | F36: =('Epidemiological Model flow'!F58/100)*'Economic analysis for each pig'!$B$11*'Economic analysis for each pig'!$B$127*-1 ->  | G36: =('Epidemiological Model flow'!G58/100)*'Economic analysis for each pig'!$B$11*'Economic analysis for each pig'!$B$127*-1 ->  | H36: =('Epidemiological Model flow'!H58/100)*'Economic analysis for each pig'!$B$11*'Economic analysis for each pig'!$B$127*-1 ->  | I36: =('Epidemiological Model flow'!I58/100)*'Economic analysis for each pig'!$B$11*'Economic analysis for each pig'!$B$127*-1 ->  | J36: =('Epidemiological Model flow'!J58/100)*'Economic analysis for each pig'!$B$11*'Economic analysis for each pig'!$B$127*-1 ->  | K36: =('Epidemiological Model flow'!K58/100)*'Economic analysis for each pig'!$B$11*'Economic analysis for each pig'!$B$127*-1 ->  | L36: =('Epidemiological Model flow'!L58/100)*'Economic analysis for each pig'!$B$11*'Economic analysis for each pig'!$B$127*-1 ->  | M36: =('Epidemiological Model flow'!M58/100)*'Economic analysis for each pig'!$B$11*'Economic analysis for each pig'!$B$127*-1 ->  | N36: =('Epidemiological Model flow'!N58/100)*'Economic analysis for each pig'!$B$11*'Economic analysis for each pig'!$B$127*-1 ->  | O36: =('Epidemiological Model flow'!O58/100)*'Economic analysis for each pig'!$B$11*'Economic analysis for each pig'!$B$127*-1 ->  | P36: =('Epidemiological Model flow'!P58/100)*'Economic analysis for each pig'!$B$11*'Economic analysis for each pig'!$B$127*-1 ->  | Q36: =('Epidemiological Model flow'!Q58/100)*'Economic analysis for each pig'!$B$11*'Economic analysis for each pig'!$B$127*-1 ->  | R36: =('Epidemiological Model flow'!R58/100)*'Economic analysis for each pig'!$B$11*'Economic analysis for each pig'!$B$127*-1 ->  | S36: =('Epidemiological Model flow'!S58/100)*'Economic analysis for each pig'!$B$11*'Economic analysis for each pig'!$B$127*-1 ->  | T36: =('Epidemiological Model flow'!T58/100)*'Economic analysis for each pig'!$B$11*'Economic analysis for each pig'!$B$127*-1 ->  | U36: =('Epidemiological Model flow'!U58/100)*'Economic analysis for each pig'!$B$11*'Economic analysis for each pig'!$B$127*-1 ->  | V36: =('Epidemiological Model flow'!V58/100)*'Economic analysis for each pig'!$B$11*'Economic analysis for each pig'!$B$127*-1 -> 
A37: PCV2-S cost | B37: =('Epidemiological Model flow'!B59/100)*'Economic analysis for each pig'!$B$11*'Economic analysis for each pig'!$B$151*-1 ->  | C37: =('Epidemiological Model flow'!C59/100)*'Economic analysis for each pig'!$B$11*'Economic analysis for each pig'!$B$151*-1 ->  | D37: =('Epidemiological Model flow'!D59/100)*'Economic analysis for each pig'!$B$11*'Economic analysis for each pig'!$B$151*-1 ->  | E37: =('Epidemiological Model flow'!E59/100)*'Economic analysis for each pig'!$B$11*'Economic analysis for each pig'!$B$151*-1 ->  | F37: =('Epidemiological Model flow'!F59/100)*'Economic analysis for each pig'!$B$11*'Economic analysis for each pig'!$B$151*-1 ->  | G37: =('Epidemiological Model flow'!G59/100)*'Economic analysis for each pig'!$B$11*'Economic analysis for each pig'!$B$151*-1 ->  | H37: =('Epidemiological Model flow'!H59/100)*'Economic analysis for each pig'!$B$11*'Economic analysis for each pig'!$B$151*-1 ->  | I37: =('Epidemiological Model flow'!I59/100)*'Economic analysis for each pig'!$B$11*'Economic analysis for each pig'!$B$151*-1 ->  | J37: =('Epidemiological Model flow'!J59/100)*'Economic analysis for each pig'!$B$11*'Economic analysis for each pig'!$B$151*-1 ->  | K37: =('Epidemiological Model flow'!K59/100)*'Economic analysis for each pig'!$B$11*'Economic analysis for each pig'!$B$151*-1 ->  | L37: =('Epidemiological Model flow'!L59/100)*'Economic analysis for each pig'!$B$11*'Economic analysis for each pig'!$B$151*-1 ->  | M37: =('Epidemiological Model flow'!M59/100)*'Economic analysis for each pig'!$B$11*'Economic analysis for each pig'!$B$151*-1 ->  | N37: =('Epidemiological Model flow'!N59/100)*'Economic analysis for each pig'!$B$11*'Economic analysis for each pig'!$B$151*-1 ->  | O37: =('Epidemiological Model flow'!O59/100)*'Economic analysis for each pig'!$B$11*'Economic analysis for each pig'!$B$151*-1 ->  | P37: =('Epidemiological Model flow'!P59/100)*'Economic analysis for each pig'!$B$11*'Economic analysis for each pig'!$B$151*-1 ->  | Q37: =('Epidemiological Model flow'!Q59/100)*'Economic analysis for each pig'!$B$11*'Economic analysis for each pig'!$B$151*-1 ->  | R37: =('Epidemiological Model flow'!R59/100)*'Economic analysis for each pig'!$B$11*'Economic analysis for each pig'!$B$151*-1 ->  | S37: =('Epidemiological Model flow'!S59/100)*'Economic analysis for each pig'!$B$11*'Economic analysis for each pig'!$B$151*-1 ->  | T37: =('Epidemiological Model flow'!T59/100)*'Economic analysis for each pig'!$B$11*'Economic analysis for each pig'!$B$151*-1 ->  | U37: =('Epidemiological Model flow'!U59/100)*'Economic analysis for each pig'!$B$11*'Economic analysis for each pig'!$B$151*-1 ->  | V37: =('Epidemiological Model flow'!V59/100)*'Economic analysis for each pig'!$B$11*'Economic analysis for each pig'!$B$151*-1 -> 
A38: Total PMWS + Subclincal cost | B38: =SUM(B34:B37) ->  | C38: =SUM(C34:C37) ->  | T38: =SUM(T34:T37) ->  | U38: =SUM(U34:U37) ->  | V38: =SUM(V34:V37) -> 
A39: PMWS-D + PMWS-S | B39: =B34+B35 ->  | C39: =C34+C35 ->  | T39: =T34+T35 ->  | U39: =U34+U35 ->  | V39: =V34+V35 -> 
A40: PCV2-D + PCV2-S | B40: =B36+B37 ->  | C40: =C36+C37 ->  | T40: =T36+T37 ->  | U40: =U36+U37 ->  | V40: =V36+V37 -> 
A41: PMWS cost % | B41: =((B34+B35)/B38)*100 ->  | C41: =((C34+C35)/C38)*100 ->  | T41: =((T34+T35)/T38)*100 ->  | U41: =((U34+U35)/U38)*100 ->  | V41: =((V34+V35)/V38)*100 -> 
A42: Subclinical cost % | B42: =((B36+B37)/B38)*100 ->  | C42: =((C36+C37)/C38)*100 ->  | T42: =((T36+T37)/T38)*100 ->  | U42: =((U36+U37)/U38)*100 ->  | V42: =((V36+V37)/V38)*100 -> 
A43: Income | B43: =('Epidemiological Model flow'!B61/100)*'Calculation of farm level cost'!$B$7*'Economic analysis for each pig'!$E$48 ->  | C43: =('Epidemiological Model flow'!C61/100)*'Calculation of farm level cost'!$B$7*'Economic analysis for each pig'!$E$48 ->  | D43: =('Epidemiological Model flow'!D61/100)*'Calculation of farm level cost'!$B$7*'Economic analysis for each pig'!$E$48 ->  | E43: =('Epidemiological Model flow'!E61/100)*'Calculation of farm level cost'!$B$7*'Economic analysis for each pig'!$E$48 ->  | F43: =('Epidemiological Model flow'!F61/100)*'Calculation of farm level cost'!$B$7*'Economic analysis for each pig'!$E$48 ->  | G43: =('Epidemiological Model flow'!G61/100)*'Calculation of farm level cost'!$B$7*'Economic analysis for each pig'!$E$48 ->  | H43: =('Epidemiological Model flow'!H61/100)*'Calculation of farm level cost'!$B$7*'Economic analysis for each pig'!$E$48 ->  | I43: =('Epidemiological Model flow'!I61/100)*'Calculation of farm level cost'!$B$7*'Economic analysis for each pig'!$E$48 ->  | J43: =('Epidemiological Model flow'!J61/100)*'Calculation of farm level cost'!$B$7*'Economic analysis for each pig'!$E$48 ->  | K43: =('Epidemiological Model flow'!K61/100)*'Calculation of farm level cost'!$B$7*'Economic analysis for each pig'!$E$48 ->  | L43: =('Epidemiological Model flow'!L61/100)*'Calculation of farm level cost'!$B$7*'Economic analysis for each pig'!$E$48 ->  | M43: =('Epidemiological Model flow'!M61/100)*'Calculation of farm level cost'!$B$7*'Economic analysis for each pig'!$E$48 ->  | N43: =('Epidemiological Model flow'!N61/100)*'Calculation of farm level cost'!$B$7*'Economic analysis for each pig'!$E$48 ->  | O43: =('Epidemiological Model flow'!O61/100)*'Calculation of farm level cost'!$B$7*'Economic analysis for each pig'!$E$48 ->  | P43: =('Epidemiological Model flow'!P61/100)*'Calculation of farm level cost'!$B$7*'Economic analysis for each pig'!$E$48 ->  | Q43: =('Epidemiological Model flow'!Q61/100)*'Calculation of farm level cost'!$B$7*'Economic analysis for each pig'!$E$48 ->  | R43: =('Epidemiological Model flow'!R61/100)*'Calculation of farm level cost'!$B$7*'Economic analysis for each pig'!$E$48 ->  | S43: =('Epidemiological Model flow'!S61/100)*'Calculation of farm level cost'!$B$7*'Economic analysis for each pig'!$E$48 ->  | T43: =('Epidemiological Model flow'!T61/100)*'Calculation of farm level cost'!$B$7*'Economic analysis for each pig'!$E$48 ->  | U43: =('Epidemiological Model flow'!U61/100)*'Calculation of farm level cost'!$B$7*'Economic analysis for each pig'!$E$48 ->  | V43: =('Epidemiological Model flow'!V61/100)*'Calculation of farm level cost'!$B$7*'Economic analysis for each pig'!$E$48 -> 
A44: PD profits | B44: =('Epidemiological Model flow'!B453/100)*'Calculation of farm level cost'!$B$7*'Economic analysis for each pig'!$E$78 ->  | C44: =('Epidemiological Model flow'!B493/100)*'Calculation of farm level cost'!$B$7*'Economic analysis for each pig'!$E$78 ->  | D44: =('Epidemiological Model flow'!B533/100)*'Calculation of farm level cost'!$B$7*'Economic analysis for each pig'!$E$78 ->  | E44: =('Epidemiological Model flow'!B572/100)*'Calculation of farm level cost'!$B$7*'Economic analysis for each pig'!$E$78 ->  | F44: =('Epidemiological Model flow'!B612/100)*'Calculation of farm level cost'!$B$7*'Economic analysis for each pig'!$E$78 ->  | G44: =('Epidemiological Model flow'!B652/100)*'Calculation of farm level cost'!$B$7*'Economic analysis for each pig'!$E$78 ->  | H44: =('Epidemiological Model flow'!B692/100)*'Calculation of farm level cost'!$B$7*'Economic analysis for each pig'!$E$78 ->  | I44: =('Epidemiological Model flow'!B732/100)*'Calculation of farm level cost'!$B$7*'Economic analysis for each pig'!$E$78 ->  | J44: =('Epidemiological Model flow'!B772/100)*'Calculation of farm level cost'!$B$7*'Economic analysis for each pig'!$E$78 ->  | K44: =('Epidemiological Model flow'!B812/100)*'Calculation of farm level cost'!$B$7*'Economic analysis for each pig'!$E$78 ->  | L44: =('Epidemiological Model flow'!B852/100)*'Calculation of farm level cost'!$B$7*'Economic analysis for each pig'!$E$78 ->  | M44: =('Epidemiological Model flow'!B892/100)*'Calculation of farm level cost'!$B$7*'Economic analysis for each pig'!$E$78 ->  | N44: =('Epidemiological Model flow'!B932/100)*'Calculation of farm level cost'!$B$7*'Economic analysis for each pig'!$E$78 ->  | O44: =('Epidemiological Model flow'!B972/100)*'Calculation of farm level cost'!$B$7*'Economic analysis for each pig'!$E$78 ->  | P44: =('Epidemiological Model flow'!B1012/100)*'Calculation of farm level cost'!$B$7*'Economic analysis for each pig'!$E$78 ->  | Q44: =('Epidemiological Model flow'!B1052/100)*'Calculation of farm level cost'!$B$7*'Economic analysis for each pig'!$E$78 ->  | R44: =('Epidemiological Model flow'!B1093/100)*'Calculation of farm level cost'!$B$7*'Economic analysis for each pig'!$E$78 ->  | S44: =('Epidemiological Model flow'!B1134/100)*'Calculation of farm level cost'!$B$7*'Economic analysis for each pig'!$E$78 ->  | T44: =('Epidemiological Model flow'!B1174/100)*'Calculation of farm level cost'!$B$7*'Economic analysis for each pig'!$E$78 ->  | U44: =('Epidemiological Model flow'!B1214/100)*'Calculation of farm level cost'!$B$7*'Economic analysis for each pig'!$E$78 ->  | V44: =('Epidemiological Model flow'!B1253/100)*'Calculation of farm level cost'!$B$7*'Economic analysis for each pig'!$E$78 -> 
A45: PS profits | B45: =('Epidemiological Model flow'!B454/100)*'Calculation of farm level cost'!$B$7*'Economic analysis for each pig'!$E$104 ->  | C45: =('Epidemiological Model flow'!B494/100)*'Calculation of farm level cost'!$B$7*'Economic analysis for each pig'!$E$104 ->  | D45: =('Epidemiological Model flow'!B534/100)*'Calculation of farm level cost'!$B$7*'Economic analysis for each pig'!$E$104 ->  | E45: =('Epidemiological Model flow'!B573/100)*'Calculation of farm level cost'!$B$7*'Economic analysis for each pig'!$E$104 ->  | F45: =('Epidemiological Model flow'!B613/100)*'Calculation of farm level cost'!$B$7*'Economic analysis for each pig'!$E$104 ->  | G45: =('Epidemiological Model flow'!B653/100)*'Calculation of farm level cost'!$B$7*'Economic analysis for each pig'!$E$104 ->  | H45: =('Epidemiological Model flow'!B693/100)*'Calculation of farm level cost'!$B$7*'Economic analysis for each pig'!$E$104 ->  | I45: =('Epidemiological Model flow'!B733/100)*'Calculation of farm level cost'!$B$7*'Economic analysis for each pig'!$E$104 ->  | J45: =('Epidemiological Model flow'!B773/100)*'Calculation of farm level cost'!$B$7*'Economic analysis for each pig'!$E$104 ->  | K45: =('Epidemiological Model flow'!B813/100)*'Calculation of farm level cost'!$B$7*'Economic analysis for each pig'!$E$104 ->  | L45: =('Epidemiological Model flow'!B853/100)*'Calculation of farm level cost'!$B$7*'Economic analysis for each pig'!$E$104 ->  | M45: =('Epidemiological Model flow'!B893/100)*'Calculation of farm level cost'!$B$7*'Economic analysis for each pig'!$E$104 ->  | N45: =('Epidemiological Model flow'!B933/100)*'Calculation of farm level cost'!$B$7*'Economic analysis for each pig'!$E$104 ->  | O45: =('Epidemiological Model flow'!B973/100)*'Calculation of farm level cost'!$B$7*'Economic analysis for each pig'!$E$104 ->  | P45: =('Epidemiological Model flow'!B1013/100)*'Calculation of farm level cost'!$B$7*'Economic analysis for each pig'!$E$104 ->  | Q45: =('Epidemiological Model flow'!B1053/100)*'Calculation of farm level cost'!$B$7*'Economic analysis for each pig'!$E$104 ->  | R45: =('Epidemiological Model flow'!B1094/100)*'Calculation of farm level cost'!$B$7*'Economic analysis for each pig'!$E$104 ->  | S45: =('Epidemiological Model flow'!B1135/100)*'Calculation of farm level cost'!$B$7*'Economic analysis for each pig'!$E$104 ->  | T45: =('Epidemiological Model flow'!B1175/100)*'Calculation of farm level cost'!$B$7*'Economic analysis for each pig'!$E$104 ->  | U45: =('Epidemiological Model flow'!B1215/100)*'Calculation of farm level cost'!$B$7*'Economic analysis for each pig'!$E$104 ->  | V45: =('Epidemiological Model flow'!B1254/100)*'Calculation of farm level cost'!$B$7*'Economic analysis for each pig'!$E$104 -> 
A46: SD prfits | B46: =('Epidemiological Model flow'!B455/100)*'Calculation of farm level cost'!$B$7*'Economic analysis for each pig'!$E$127 ->  | C46: =('Epidemiological Model flow'!B495/100)*'Calculation of farm level cost'!$B$7*'Economic analysis for each pig'!$E$127 ->  | D46: =('Epidemiological Model flow'!B535/100)*'Calculation of farm level cost'!$B$7*'Economic analysis for each pig'!$E$127 ->  | E46: =('Epidemiological Model flow'!B574/100)*'Calculation of farm level cost'!$B$7*'Economic analysis for each pig'!$E$127 ->  | F46: =('Epidemiological Model flow'!B614/100)*'Calculation of farm level cost'!$B$7*'Economic analysis for each pig'!$E$127 ->  | G46: =('Epidemiological Model flow'!B654/100)*'Calculation of farm level cost'!$B$7*'Economic analysis for each pig'!$E$127 ->  | H46: =('Epidemiological Model flow'!B694/100)*'Calculation of farm level cost'!$B$7*'Economic analysis for each pig'!$E$127 ->  | I46: =('Epidemiological Model flow'!B734/100)*'Calculation of farm level cost'!$B$7*'Economic analysis for each pig'!$E$127 ->  | J46: =('Epidemiological Model flow'!B774/100)*'Calculation of farm level cost'!$B$7*'Economic analysis for each pig'!$E$127 ->  | K46: =('Epidemiological Model flow'!B814/100)*'Calculation of farm level cost'!$B$7*'Economic analysis for each pig'!$E$127 ->  | L46: =('Epidemiological Model flow'!B854/100)*'Calculation of farm level cost'!$B$7*'Economic analysis for each pig'!$E$127 ->  | M46: =('Epidemiological Model flow'!B894/100)*'Calculation of farm level cost'!$B$7*'Economic analysis for each pig'!$E$127 ->  | N46: =('Epidemiological Model flow'!B934/100)*'Calculation of farm level cost'!$B$7*'Economic analysis for each pig'!$E$127 ->  | O46: =('Epidemiological Model flow'!B974/100)*'Calculation of farm level cost'!$B$7*'Economic analysis for each pig'!$E$127 ->  | P46: =('Epidemiological Model flow'!B1014/100)*'Calculation of farm level cost'!$B$7*'Economic analysis for each pig'!$E$127 ->  | Q46: =('Epidemiological Model flow'!B1054/100)*'Calculation of farm level cost'!$B$7*'Economic analysis for each pig'!$E$127 ->  | R46: =('Epidemiological Model flow'!B1095/100)*'Calculation of farm level cost'!$B$7*'Economic analysis for each pig'!$E$127 ->  | S46: =('Epidemiological Model flow'!B1136/100)*'Calculation of farm level cost'!$B$7*'Economic analysis for each pig'!$E$127 ->  | T46: =('Epidemiological Model flow'!B1176/100)*'Calculation of farm level cost'!$B$7*'Economic analysis for each pig'!$E$127 ->  | U46: =('Epidemiological Model flow'!B1216/100)*'Calculation of farm level cost'!$B$7*'Economic analysis for each pig'!$E$127 ->  | V46: =('Epidemiological Model flow'!B1255/100)*'Calculation of farm level cost'!$B$7*'Economic analysis for each pig'!$E$127 -> 
A47: SS profits | B47: =('Epidemiological Model flow'!B456/100)*'Calculation of farm level cost'!$B$7*'Economic analysis for each pig'!$E$151 ->  | C47: =('Epidemiological Model flow'!B496/100)*'Calculation of farm level cost'!$B$7*'Economic analysis for each pig'!$E$151 ->  | D47: =('Epidemiological Model flow'!B536/100)*'Calculation of farm level cost'!$B$7*'Economic analysis for each pig'!$E$151 ->  | E47: =('Epidemiological Model flow'!B575/100)*'Calculation of farm level cost'!$B$7*'Economic analysis for each pig'!$E$151 ->  | F47: =('Epidemiological Model flow'!B615/100)*'Calculation of farm level cost'!$B$7*'Economic analysis for each pig'!$E$151 ->  | G47: =('Epidemiological Model flow'!B655/100)*'Calculation of farm level cost'!$B$7*'Economic analysis for each pig'!$E$151 ->  | H47: =('Epidemiological Model flow'!B695/100)*'Calculation of farm level cost'!$B$7*'Economic analysis for each pig'!$E$151 ->  | I47: =('Epidemiological Model flow'!B735/100)*'Calculation of farm level cost'!$B$7*'Economic analysis for each pig'!$E$151 ->  | J47: =('Epidemiological Model flow'!B775/100)*'Calculation of farm level cost'!$B$7*'Economic analysis for each pig'!$E$151 ->  | K47: =('Epidemiological Model flow'!B815/100)*'Calculation of farm level cost'!$B$7*'Economic analysis for each pig'!$E$151 ->  | L47: =('Epidemiological Model flow'!B855/100)*'Calculation of farm level cost'!$B$7*'Economic analysis for each pig'!$E$151 ->  | M47: =('Epidemiological Model flow'!B895/100)*'Calculation of farm level cost'!$B$7*'Economic analysis for each pig'!$E$151 ->  | N47: =('Epidemiological Model flow'!B935/100)*'Calculation of farm level cost'!$B$7*'Economic analysis for each pig'!$E$151 ->  | O47: =('Epidemiological Model flow'!B975/100)*'Calculation of farm level cost'!$B$7*'Economic analysis for each pig'!$E$151 ->  | P47: =('Epidemiological Model flow'!B1015/100)*'Calculation of farm level cost'!$B$7*'Economic analysis for each pig'!$E$151 ->  | Q47: =('Epidemiological Model flow'!B1055/100)*'Calculation of farm level cost'!$B$7*'Economic analysis for each pig'!$E$151 ->  | R47: =('Epidemiological Model flow'!B1096/100)*'Calculation of farm level cost'!$B$7*'Economic analysis for each pig'!$E$151 ->  | S47: =('Epidemiological Model flow'!B1137/100)*'Calculation of farm level cost'!$B$7*'Economic analysis for each pig'!$E$151 ->  | T47: =('Epidemiological Model flow'!B1177/100)*'Calculation of farm level cost'!$B$7*'Economic analysis for each pig'!$E$151 ->  | U47: =('Epidemiological Model flow'!B1217/100)*'Calculation of farm level cost'!$B$7*'Economic analysis for each pig'!$E$151 ->  | V47: =('Epidemiological Model flow'!B1256/100)*'Calculation of farm level cost'!$B$7*'Economic analysis for each pig'!$E$151 -> 
A48: HS profits | B48: =('Epidemiological Model flow'!B458/100)*'Calculation of farm level cost'!$B$7*'Economic analysis for each pig'!$E$48 ->  | C48: =('Epidemiological Model flow'!B498/100)*'Calculation of farm level cost'!$B$7*'Economic analysis for each pig'!$E$48 ->  | D48: =('Epidemiological Model flow'!B538/100)*'Calculation of farm level cost'!$B$7*'Economic analysis for each pig'!$E$48 ->  | E48: =('Epidemiological Model flow'!B577/100)*'Calculation of farm level cost'!$B$7*'Economic analysis for each pig'!$E$48 ->  | F48: =('Epidemiological Model flow'!B617/100)*'Calculation of farm level cost'!$B$7*'Economic analysis for each pig'!$E$48 ->  | G48: =('Epidemiological Model flow'!B657/100)*'Calculation of farm level cost'!$B$7*'Economic analysis for each pig'!$E$48 ->  | H48: =('Epidemiological Model flow'!B697/100)*'Calculation of farm level cost'!$B$7*'Economic analysis for each pig'!$E$48 ->  | I48: =('Epidemiological Model flow'!B737/100)*'Calculation of farm level cost'!$B$7*'Economic analysis for each pig'!$E$48 ->  | J48: =('Epidemiological Model flow'!B777/100)*'Calculation of farm level cost'!$B$7*'Economic analysis for each pig'!$E$48 ->  | K48: =('Epidemiological Model flow'!B817/100)*'Calculation of farm level cost'!$B$7*'Economic analysis for each pig'!$E$48 ->  | L48: =('Epidemiological Model flow'!B857/100)*'Calculation of farm level cost'!$B$7*'Economic analysis for each pig'!$E$48 ->  | M48: =('Epidemiological Model flow'!B897/100)*'Calculation of farm level cost'!$B$7*'Economic analysis for each pig'!$E$48 ->  | N48: =('Epidemiological Model flow'!B937/100)*'Calculation of farm level cost'!$B$7*'Economic analysis for each pig'!$E$48 ->  | O48: =('Epidemiological Model flow'!B977/100)*'Calculation of farm level cost'!$B$7*'Economic analysis for each pig'!$E$48 ->  | P48: =('Epidemiological Model flow'!B1017/100)*'Calculation of farm level cost'!$B$7*'Economic analysis for each pig'!$E$48 ->  | Q48: =('Epidemiological Model flow'!B1057/100)*'Calculation of farm level cost'!$B$7*'Economic analysis for each pig'!$E$48 ->  | R48: =('Epidemiological Model flow'!B1098/100)*'Calculation of farm level cost'!$B$7*'Economic analysis for each pig'!$E$48 ->  | S48: =('Epidemiological Model flow'!B1139/100)*'Calculation of farm level cost'!$B$7*'Economic analysis for each pig'!$E$48 ->  | T48: =('Epidemiological Model flow'!B1179/100)*'Calculation of farm level cost'!$B$7*'Economic analysis for each pig'!$E$48 ->  | U48: =('Epidemiological Model flow'!B1219/100)*'Calculation of farm level cost'!$B$7*'Economic analysis for each pig'!$E$48 ->  | V48: =('Epidemiological Model flow'!B1258/100)*'Calculation of farm level cost'!$B$7*'Economic analysis for each pig'!$E$48 -> 
A49: Total profits | B49: =SUM(B44:B48) ->  | C49: =SUM(C44:C48) -> 
A69: Dynamic model (stochastic) - components not link by % change
A71: PMWS severity | B71: 0 | C71: 0.5 | D71: 1 | E71: 1.5 | F71: 2 | G71: 2.5 | H71: 3 | I71: 3.5 | J71: 4 | K71: 4.5 | L71: 5 | M71: 5.5 | N71: 6 | O71: 6.5 | P71: 7 | Q71: 7.5 | R71: 8 | S71: 8.5 | T71: 9 | U71: 9.5 | V71: 10
A72: Total cost low 90% CI | B72: =C134 -> 4.653108 | C72: =C135 -> 5.214066 | D72: =C136 -> 5.830752 | E72: =C137 -> 6.555752 | F72: =C138 -> 7.347388 | G72: =C139 -> 8.255221 | H72: =C140 -> 12.96238 | I72: =C141 -> 23.4267 | J72: =C142 -> 35.94808 | K72: =C143 -> 50.52556 | L72: =C144 -> 66.62048 | M72: =C145 -> 85.36565 | N72: =C146 -> 107.0485 | O72: =C147 -> 131.6757 | P72: =C148 -> 163.4705 | Q72: =C149 -> 200.6761 | R72: =C150 -> 246.1058 | S72: =C151 -> 304.0251 | T72: =C152 -> 375.9915 | U72: =C153 -> 463.4333 | V72: =C154 -> 576.9668
A73: Total PMWS cost mode | B73: =B134 -> 18.38453 | C73: =B135 -> 20.60324 | D73: =B136 -> 23.08179 | E73: =B137 -> 25.84954 | F73: =B138 -> 28.93861 | G73: =B139 -> 32.43494 | H73: =B140 -> 40.47134 | I73: =B141 -> 54.78636 | J73: =B142 -> 71.1607 | K73: =B143 -> 89.493 | L73: =B144 -> 110.4534 | M73: =B145 -> 134.6694 | N73: =B146 -> 162.8073 | O73: =B147 -> 195.5617 | P73: =B148 -> 234.578 | Q73: =B149 -> 280.329 | R73: =B150 -> 335.1634 | S73: =B151 -> 401.9573 | T73: =B152 -> 484.2517 | U73: =B153 -> 584.7237 | V73: =B154 -> 708.6855
A74: total cost high 90% CI | B74: =D134 -> 34.27411 | C74: =D135 -> 38.49048 | D74: =D136 -> 43.23039 | E74: =D137 -> 48.43497 | F74: =D138 -> 54.37146 | G74: =D139 -> 60.88024 | H74: =D140 -> 73.08126 | I74: =D141 -> 91.74176 | J74: =D142 -> 112.1363 | K74: =D143 -> 134.9779 | L74: =D144 -> 160.4981 | M74: =D145 -> 190.82 | N74: =D146 -> 226.3766 | O74: =D147 -> 267.603 | P74: =D148 -> 315.1064 | Q74: =D149 -> 372.1024 | R74: =D150 -> 438.3924 | S74: =D151 -> 515.0783 | T74: =D152 -> 604.6963 | U74: =D153 -> 715.6379 | V74: =D154 -> 861.904
A75: PMWS cost low 90% CI | B75: =C155 -> 0 | C75: =C156 -> 0 | D75: =C157 -> 0 | E75: =C158 -> 0 | F75: =C159 -> 0 | G75: =C160 -> 0 | H75: =C161 -> 0 | I75: =C162 -> 6.085737 | J75: =C163 -> 15.49064 | K75: =C164 -> 22.84916 | L75: =C165 -> 26.35181 | M75: =C166 -> 29.70445 | N75: =C167 -> 33.28841 | O75: =C168 -> 37.25093 | P75: =C169 -> 41.36433 | Q75: =C170 -> 45.28496 | R75: =C171 -> 48.88427 | S75: =C172 -> 53.32533 | T75: =C173 -> 59.70902 | U75: =C174 -> 68.71694 | V75: =C175 -> 78.96197
A76: PMWS cost mean | B76: =B155 -> 0 | C76: =B156 -> 0 | D76: =B157 -> 0 | E76: =B158 -> 0 | F76: =B159 -> 0 | G76: =B160 -> 0.05102391 | H76: =B161 -> 4.246629 | I76: =B162 -> 13.88865 | J76: =B163 -> 22.11456 | K76: =B164 -> 28.07055 | L76: =B165 -> 33.9568 | M76: =B166 -> 41.02444 | N76: =B167 -> 50.01265 | O76: =B168 -> 61.55105 | P76: =B169 -> 77.11528 | Q76: =B170 -> 96.79112 | R76: =B171 -> 122.0733 | S76: =B172 -> 153.7695 | T76: =B173 -> 193.5041 | U76: =B174 -> 248.3892 | V76: =B175 -> 332.3214
A77: PMWS cost high 90% CI | B77: =D155 -> 0 | C77: =D156 -> 0 | D77: =D157 -> 0 | E77: =D158 -> 0 | F77: =D159 -> 0 | G77: =D160 -> 0 | H77: =D161 -> 10.48831 | I77: =D162 -> 20.22314 | J77: =D163 -> 26.1195 | K77: =D164 -> 32.87259 | L77: =D165 -> 41.40796 | M77: =D166 -> 52.52168 | N77: =D167 -> 67.47887 | O77: =D168 -> 87.39553 | P77: =D169 -> 118.1287 | Q77: =D170 -> 157.4118 | R77: =D171 -> 210.9708 | S77: =D172 -> 280.2878 | T77: =D173 -> 373.7718 | U77: =D174 -> 541.4755 | V77: =D175 -> 722.5046
A78: Subclinical cost low 90% CI | B78: =C176 -> 4.653108 | C78: =C177 -> 5.214066 | D78: =C178 -> 5.830752 | E78: =C179 -> 6.555752 | F78: =C180 -> 7.347388 | G78: =C181 -> 8.24081 | H78: =C182 -> 9.162434 | I78: =C183 -> 10.40772 | J78: =C184 -> 14.55305 | K78: =C185 -> 21.45716 | L78: =C186 -> 29.77379 | M78: =C187 -> 39.02277 | N78: =C188 -> 47.65722 | O78: =C189 -> 54.83761 | P78: =C190 -> 60.0295 | Q78: =C191 -> 62.97415 | R78: =C192 -> 64.19595 | S78: =C193 -> 73.43398 | T78: =C194 -> 105.0494 | U78: =C195 -> 0 | V78: =C196 -> 0
A79: Subclinical cost mean | B79: =B176 -> 18.38453 | C79: =B177 -> 20.60324 | D79: =B178 -> 23.08179 | E79: =B179 -> 25.84954 | F79: =B180 -> 28.93861 | G79: =B181 -> 32.38392 | H79: =B182 -> 36.22472 | I79: =B183 -> 40.89771 | J79: =B184 -> 49.04614 | K79: =B185 -> 61.42246 | L79: =B186 -> 76.49661 | M79: =B187 -> 93.64494 | N79: =B188 -> 112.7946 | O79: =B189 -> 134.0106 | P79: =B190 -> 157.4627 | Q79: =B191 -> 183.5379 | R79: =B192 -> 213.09 | S79: =B193 -> 248.1878 | T79: =B194 -> 290.7476 | U79: =B195 -> 336.3345 | V79: =B196 -> 376.3642
A80: Subclinical cost high 90% CI | B80: =D176 -> 34.27411 | C80: =D177 -> 38.49048 | D80: =D178 -> 43.23039 | E80: =D179 -> 48.43497 | F80: =D180 -> 54.37146 | G80: =D181 -> 60.83987 | H80: =D182 -> 68.2208 | I80: =D183 -> 77.18465 | J80: =D184 -> 90.54365 | K80: =D185 -> 107.9827 | L80: =D186 -> 130.4409 | M80: =D187 -> 156.1577 | N80: =D188 -> 187.0371 | O80: =D189 -> 222.6646 | P80: =D190 -> 264.9892 | Q80: =D191 -> 315.6182 | R80: =D192 -> 376.3632 | S80: =D193 -> 446.9204 | T80: =D194 -> 522.5349 | U80: =D195 -> 608.0714 | V80: =D196 -> 711.1526
A81: Profits low 90% | B81: =C197 -> 390.7584 | C81: =C198 -> 386.5478 | D81: =C199 -> 381.8725 | E81: =C200 -> 376.589 | F81: =C201 -> 370.4897 | G81: =C202 -> 363.7203 | H81: =C203 -> 352.4629 | I81: =C204 -> 336.0863 | J81: =C205 -> 317.6759 | K81: =C206 -> 297.5724 | L81: =C207 -> 274.1264 | M81: =C208 -> 246.7831 | N81: =C209 -> 214.6929 | O81: =C210 -> 177.3051 | P81: =C211 -> 132.7663 | Q81: =C212 -> 80.47845 | R81: =C213 -> 18.79847 | S81: =C214 -> -53.58799 | T81: =C215 -> -138.0865 | U81: =C216 -> -245.2073 | V81: =C217 -> -378.1825
A82: profits mode | B82: =B197 -> 406.1409 | C82: =B198 -> 403.8428 | D82: =B199 -> 401.2267 | E82: =B200 -> 398.2475 | F82: =B201 -> 394.854 | G82: =B202 -> 390.9502 | H82: =B203 -> 383.4554 | I82: =B204 -> 371.0319 | J82: =B205 -> 356.6534 | K82: =B206 -> 340.3143 | L82: =B207 -> 321.4879 | M82: =B208 -> 299.6355 | N82: =B209 -> 274.1513 | O82: =B210 -> 244.3815 | P82: =B211 -> 208.8879 | Q82: =B212 -> 167.1142 | R82: =B213 -> 116.9351 | S82: =B214 -> 55.63856 | T82: =B215 -> -20.19536 | U82: =B216 -> -113.2168 | V82: =B217 -> -228.5714
A83: Profits high 90% | B83: =D197 -> 417.7887 | C83: =D198 -> 416.887 | D83: =D199 -> 415.8241 | E83: =D200 -> 414.6127 | F83: =D201 -> 413.162 | G83: =D202 -> 411.498 | H83: =D203 -> 407.2724 | I83: =D204 -> 398.3012 | J83: =D205 -> 387.7 | K83: =D206 -> 375.1651 | L83: =D207 -> 361.0168 | M83: =D208 -> 344.5132 | N83: =D209 -> 325.4717 | O83: =D210 -> 303.3881 | P83: =D211 -> 275.7707 | Q83: =D212 -> 243.5894 | R83: =D213 -> 203.1389 | S83: =D214 -> 152.7666 | T83: =D215 -> 90.19586 | U83: =D216 -> 12.1786 | V83: =D217 -> -93.90186
A116: Duplication of deteminsitic cost table to be used for the stochastic simulations
A118: PMWS severity | B118: 0 | C118: 0.5 | D118: 1 | E118: 1.5 | F118: 2 | G118: 2.5 | H118: 3 | I118: 3.5 | J118: 4 | K118: 4.5 | L118: 5 | M118: 5.5 | N118: 6 | O118: 6.5 | P118: 7 | Q118: 7.5 | R118: 8 | S118: 8.5 | T118: 9 | U118: 9.5 | V118: 10
A119: PMWS-D cost | B119: =B34 ->  | C119: =C34 -> 
A120: PMWS-S cost | B120: =B35 -> 
A121: PCV2-D cost | B121: =B36 -> 
A122: PCV2-S cost | B122: =B37 -> 
A123: Total cost | B123: =_xll.RiskOutput("Total cost0") + B38 ->  | C123: =_xll.RiskOutput("Total cost0.5") + C38 ->  | D123: =_xll.RiskOutput("Total cost1") + D38 ->  | E123: =_xll.RiskOutput("Total cost1.5") + E38 ->  | F123: =_xll.RiskOutput("Total cost2") + F38 ->  | G123: =_xll.RiskOutput() + G38 ->  | H123: =_xll.RiskOutput() + H38 ->  | I123: =_xll.RiskOutput() + I38 ->  | J123: =_xll.RiskOutput() + J38 ->  | K123: =_xll.RiskOutput() + K38 ->  | L123: =_xll.RiskOutput() + L38 ->  | M123: =_xll.RiskOutput() + M38 ->  | N123: =_xll.RiskOutput() + N38 ->  | O123: =_xll.RiskOutput() + O38 ->  | P123: =_xll.RiskOutput() + P38 ->  | Q123: =_xll.RiskOutput() + Q38 ->  | R123: =_xll.RiskOutput() + R38 ->  | S123: =_xll.RiskOutput() + S38 ->  | T123: =_xll.RiskOutput() + T38 ->  | U123: =_xll.RiskOutput() + U38 ->  | V123: =_xll.RiskOutput() + V38 -> 
A124: PMWS cost | B124: =_xll.RiskOutput() + B39 ->  | C124: =_xll.RiskOutput() + C39 ->  | D124: =_xll.RiskOutput() + D39 ->  | E124: =_xll.RiskOutput() + E39 ->  | F124: =_xll.RiskOutput() + F39 ->  | G124: =_xll.RiskOutput() + G39 ->  | H124: =_xll.RiskOutput() + H39 ->  | I124: =_xll.RiskOutput() + I39 ->  | J124: =_xll.RiskOutput() + J39 ->  | K124: =_xll.RiskOutput() + K39 ->  | L124: =_xll.RiskOutput() + L39 ->  | M124: =_xll.RiskOutput() + M39 ->  | N124: =_xll.RiskOutput() + N39 ->  | O124: =_xll.RiskOutput() + O39 ->  | P124: =_xll.RiskOutput() + P39 ->  | Q124: =_xll.RiskOutput() + Q39 ->  | R124: =_xll.RiskOutput() + R39 ->  | S124: =_xll.RiskOutput() + S39 ->  | T124: =_xll.RiskOutput() + T39 ->  | U124: =_xll.RiskOutput() + U39 ->  | V124: =_xll.RiskOutput() + V39 -> 
A125: Subclinical cost | B125: =_xll.RiskOutput() + B40 ->  | C125: =_xll.RiskOutput() + C40 ->  | D125: =_xll.RiskOutput() + D40 ->  | E125: =_xll.RiskOutput() + E40 ->  | F125: =_xll.RiskOutput() + F40 ->  | G125: =_xll.RiskOutput() + G40 ->  | H125: =_xll.RiskOutput() + H40 ->  | I125: =_xll.RiskOutput() + I40 ->  | J125: =_xll.RiskOutput() + J40 ->  | K125: =_xll.RiskOutput() + K40 ->  | L125: =_xll.RiskOutput() + L40 ->  | M125: =_xll.RiskOutput() + M40 ->  | N125: =_xll.RiskOutput() + N40 ->  | O125: =_xll.RiskOutput() + O40 ->  | P125: =_xll.RiskOutput() + P40 ->  | Q125: =_xll.RiskOutput() + Q40 ->  | R125: =_xll.RiskOutput() + R40 ->  | S125: =_xll.RiskOutput() + S40 ->  | T125: =_xll.RiskOutput() + T40 ->  | U125: =_xll.RiskOutput() + U40 ->  | V125: =_xll.RiskOutput() + V40 -> 
A126: PMWS cost % | B126: =B41 -> 
A127: Subclinical cost % | B127: =B42 -> 
A128: Income | B128: =B43 -> 
A129: profits | B129: =_xll.RiskOutput("profits0") + B49 ->  | C129: =_xll.RiskOutput("profits0.5") + C49 ->  | D129: =_xll.RiskOutput("profits / profits HS1") + D49 ->  | E129: =_xll.RiskOutput("profits1.5") + E49 ->  | F129: =_xll.RiskOutput("profits2") + F49 ->  | G129: =_xll.RiskOutput() + G49 ->  | H129: =_xll.RiskOutput() + H49 ->  | I129: =_xll.RiskOutput() + I49 ->  | J129: =_xll.RiskOutput() + J49 ->  | K129: =_xll.RiskOutput() + K49 ->  | L129: =_xll.RiskOutput() + L49 ->  | M129: =_xll.RiskOutput() + M49 ->  | N129: =_xll.RiskOutput() + N49 ->  | O129: =_xll.RiskOutput() + O49 ->  | P129: =_xll.RiskOutput() + P49 ->  | Q129: =_xll.RiskOutput() + Q49 ->  | R129: =_xll.RiskOutput() + R49 ->  | S129: =_xll.RiskOutput() + S49 ->  | T129: =_xll.RiskOutput() + T49 ->  | U129: =_xll.RiskOutput() + U49 ->  | V129: =_xll.RiskOutput() + V49 -> 
A132: Results from simulations
B133: mean | C133: low CI | D133: high CI | E133: severity
A134: Total cost0 | B134: 18.38453 | C134: 4.653108 | D134: 34.27411 | E134: 0
A135: Total cost0.5 | B135: 20.60324 | C135: 5.214066 | D135: 38.49048 | E135: =E134+0.5 -> 0.5
A136: Total cost1 | B136: 23.08179 | C136: 5.830752 | D136: 43.23039 | E136: =E135+0.5 -> 1
A137: Total cost1.5 | B137: 25.84954 | C137: 6.555752 | D137: 48.43497 | E137: 1.5
A138: Total cost2 | B138: 28.93861 | C138: 7.347388 | D138: 54.37146 | E138: 2
A139: Total cost | B139: 32.43494 | C139: 8.255221 | D139: 60.88024 | E139: 2.5
A140: Total cost | B140: 40.47134 | C140: 12.96238 | D140: 73.08126 | E140: 3
A141: Total cost | B141: 54.78636 | C141: 23.4267 | D141: 91.74176 | E141: 3.5
A142: Total cost | B142: 71.1607 | C142: 35.94808 | D142: 112.1363 | E142: 4
A143: Total cost | B143: 89.493 | C143: 50.52556 | D143: 134.9779 | E143: 4.5
A144: Total cost | B144: 110.4534 | C144: 66.62048 | D144: 160.4981 | E144: 5
A145: Total cost | B145: 134.6694 | C145: 85.36565 | D145: 190.82 | E145: 5.5
A146: Total cost | B146: 162.8073 | C146: 107.0485 | D146: 226.3766 | E146: 6
A147: Total cost | B147: 195.5617 | C147: 131.6757 | D147: 267.603 | E147: 6.5
A148: Total cost | B148: 234.578 | C148: 163.4705 | D148: 315.1064 | E148: 7
A149: Total cost | B149: 280.329 | C149: 200.6761 | D149: 372.1024 | E149: 7.5
A150: Total cost | B150: 335.1634 | C150: 246.1058 | D150: 438.3924 | E150: 8
A151: Total cost | B151: 401.9573 | C151: 304.0251 | D151: 515.0783 | E151: 8.5
A152: Total cost | B152: 484.2517 | C152: 375.9915 | D152: 604.6963 | E152: 9
A153: Total cost | B153: 584.7237 | C153: 463.4333 | D153: 715.6379 | E153: 9.5
A154: Total cost | B154: 708.6855 | C154: 576.9668 | D154: 861.904 | E154: 10
A155: PMWS cost | B155: 0 | C155: 0 | D155: 0 | E155: 0
A156: PMWS cost | B156: 0 | C156: 0 | D156: 0 | E156: 0.5
A157: PMWS cost / profits HS | B157: 0 | C157: 0 | D157: 0 | E157: 1
A158: PMWS cost | B158: 0 | C158: 0 | D158: 0 | E158: 1.5
A159: PMWS cost | B159: 0 | C159: 0 | D159: 0 | E159: 2
A160: PMWS cost | B160: 0.05102391 | C160: 0 | D160: 0 | E160: 2.5
A161: PMWS cost | B161: 4.246629 | C161: 0 | D161: 10.48831 | E161: 3
A162: PMWS cost | B162: 13.88865 | C162: 6.085737 | D162: 20.22314 | E162: 3.5
A163: PMWS cost | B163: 22.11456 | C163: 15.49064 | D163: 26.1195 | E163: 4
A164: PMWS cost | B164: 28.07055 | C164: 22.84916 | D164: 32.87259 | E164: 4.5
A165: PMWS cost | B165: 33.9568 | C165: 26.35181 | D165: 41.40796 | E165: 5
A166: PMWS cost | B166: 41.02444 | C166: 29.70445 | D166: 52.52168 | E166: 5.5
A167: PMWS cost | B167: 50.01265 | C167: 33.28841 | D167: 67.47887 | E167: 6
A168: PMWS cost | B168: 61.55105 | C168: 37.25093 | D168: 87.39553 | E168: 6.5
A169: PMWS cost | B169: 77.11528 | C169: 41.36433 | D169: 118.1287 | E169: 7
A170: PMWS cost | B170: 96.79112 | C170: 45.28496 | D170: 157.4118 | E170: 7.5
A171: PMWS cost | B171: 122.0733 | C171: 48.88427 | D171: 210.9708 | E171: 8
A172: PMWS cost | B172: 153.7695 | C172: 53.32533 | D172: 280.2878 | E172: 8.5
A173: PMWS cost | B173: 193.5041 | C173: 59.70902 | D173: 373.7718 | E173: 9
A174: PMWS cost | B174: 248.3892 | C174: 68.71694 | D174: 541.4755 | E174: 9.5
A175: PMWS cost | B175: 332.3214 | C175: 78.96197 | D175: 722.5046 | E175: 10
A176: Subclinical cost | B176: 18.38453 | C176: 4.653108 | D176: 34.27411 | E176: 0
A177: Subclinical cost | B177: 20.60324 | C177: 5.214066 | D177: 38.49048 | E177: 0.5
A178: Subclinical cost / profits HS | B178: 23.08179 | C178: 5.830752 | D178: 43.23039 | E178: 1
A179: Subclinical cost | B179: 25.84954 | C179: 6.555752 | D179: 48.43497 | E179: 1.5
A180: Subclinical cost | B180: 28.93861 | C180: 7.347388 | D180: 54.37146 | E180: 2
A181: Subclinical cost | B181: 32.38392 | C181: 8.24081 | D181: 60.83987 | E181: 2.5
A182: Subclinical cost | B182: 36.22472 | C182: 9.162434 | D182: 68.2208 | E182: 3
A183: Subclinical cost | B183: 40.89771 | C183: 10.40772 | D183: 77.18465 | E183: 3.5
A184: Subclinical cost | B184: 49.04614 | C184: 14.55305 | D184: 90.54365 | E184: 4
A185: Subclinical cost | B185: 61.42246 | C185: 21.45716 | D185: 107.9827 | E185: 4.5
A186: Subclinical cost | B186: 76.49661 | C186: 29.77379 | D186: 130.4409 | E186: 5
A187: Subclinical cost | B187: 93.64494 | C187: 39.02277 | D187: 156.1577 | E187: 5.5
A188: Subclinical cost | B188: 112.7946 | C188: 47.65722 | D188: 187.0371 | E188: 6
A189: Subclinical cost | B189: 134.0106 | C189: 54.83761 | D189: 222.6646 | E189: 6.5
A190: Subclinical cost | B190: 157.4627 | C190: 60.0295 | D190: 264.9892 | E190: 7
A191: Subclinical cost | B191: 183.5379 | C191: 62.97415 | D191: 315.6182 | E191: 7.5
A192: Subclinical cost | B192: 213.09 | C192: 64.19595 | D192: 376.3632 | E192: 8
A193: Subclinical cost | B193: 248.1878 | C193: 73.43398 | D193: 446.9204 | E193: 8.5
A194: Subclinical cost | B194: 290.7476 | C194: 105.0494 | D194: 522.5349 | E194: 9
A195: Subclinical cost | B195: 336.3345 | C195: 0 | D195: 608.0714 | E195: 9.5
A196: Subclinical cost | B196: 376.3642 | C196: 0 | D196: 711.1526 | E196: 10
A197: profits0 | B197: 406.1409 | C197: 390.7584 | D197: 417.7887 | E197: 0
A198: profits0.5 | B198: 403.8428 | C198: 386.5478 | D198: 416.887 | E198: 0.5
A199: profits / profits HS1 | B199: 401.2267 | C199: 381.8725 | D199: 415.8241 | E199: 1
A200: profits1.5 | B200: 398.2475 | C200: 376.589 | D200: 414.6127 | E200: =E199+0.5 -> 1.5
A201: profits2 | B201: 394.854 | C201: 370.4897 | D201: 413.162 | E201: 2
A202: profits | B202: 390.9502 | C202: 363.7203 | D202: 411.498 | E202: 2.5
A203: profits | B203: 383.4554 | C203: 352.4629 | D203: 407.2724 | E203: 3
A204: profits | B204: 371.0319 | C204: 336.0863 | D204: 398.3012 | E204: 3.5
A205: profits | B205: 356.6534 | C205: 317.6759 | D205: 387.7 | E205: 4
A206: profits | B206: 340.3143 | C206: 297.5724 | D206: 375.1651 | E206: 4.5
A207: profits | B207: 321.4879 | C207: 274.1264 | D207: 361.0168 | E207: 5
A208: profits | B208: 299.6355 | C208: 246.7831 | D208: 344.5132 | E208: 5.5
A209: profits | B209: 274.1513 | C209: 214.6929 | D209: 325.4717 | E209: 6
A210: profits | B210: 244.3815 | C210: 177.3051 | D210: 303.3881 | E210: 6.5
A211: profits | B211: 208.8879 | C211: 132.7663 | D211: 275.7707 | E211: 7
A212: profits | B212: 167.1142 | C212: 80.47845 | D212: 243.5894 | E212: 7.5
A213: profits | B213: 116.9351 | C213: 18.79847 | D213: 203.1389 | E213: 8
A214: profits | B214: 55.63856 | C214: -53.58799 | D214: 152.7666 | E214: 8.5
A215: profits | B215: -20.19536 | C215: -138.0865 | D215: 90.19586 | E215: 9
A216: profits | B216: -113.2168 | C216: -245.2073 | D216: 12.1786 | E216: 9.5
A217: profits | B217: -228.5714 | C217: -378.1825 | D217: -93.90186 | E217: 10
A225: Calculation of cost with different DAPP levels
A228: DAPP=1.20
A229: Total PMWS cost | B229: 14.40624451 | C229: 16.144611 | D229: 18.08373841 | E229: 20.24560123 | F229: 22.6541176 | G229: 25.3351188 | H229: 31.49740294 | I229: 43.27608954 | J229: 56.85965997 | K229: 71.19901064 | L229: 87.79529124 | M229: 107.0346596 | N229: 129.3847174 | O229: 155.4213024 | P229: 185.8696735 | Q229: 221.6695505 | R229: 264.0785808 | S229: 314.8330416 | T229: 376.3793844 | U229: 452.1542319 | V229: 546.7923742
A230: Clinical PMWS cost | B230: 0 | C230: 0 | D230: 0 | E230: 0 | F230: 0 | G230: 0 | H230: 3.181200335 | I230: 11.64968534 | J230: 20.32657439 | K230: 23.86530222 | L230: 28.35973922 | M230: 34.11073007 | N230: 41.51600003 | O230: 51.09318269 | P230: 63.49691149 | Q230: 79.51443108 | R230: 100.011492 | S230: 125.7898423 | T230: 157.3364656 | U230: 194.5608436 | V230: 236.9211058
A231: Subclinical PMWS cost | B231: 14.40624451 | C231: 16.144611 | D231: 18.08373841 | E231: 20.24560123 | F231: 22.6541176 | G231: 25.3351188 | H231: 28.31620261 | I231: 31.6264042 | J231: 36.53308558 | K231: 47.33370842 | L231: 59.43555202 | M231: 72.92392957 | N231: 87.86871735 | O231: 104.3281197 | P231: 122.372762 | Q231: 142.1551194 | R231: 164.0670888 | S231: 189.0431993 | T231: 219.0429188 | U231: 257.5933883 | V231: 309.8712684
A232: Total profits | B232: 82.32386577 | C232: 80.47595562 | D232: 78.40326438 | E232: 76.07905005 | F232: 73.47371639 | G232: 70.55466831 | H232: 64.44228404 | I232: 53.21509461 | J232: 40.2576577 | K232: 26.56966202 | L232: 10.72322987 | M232: -7.651995103 | N232: -29.0049938 | O232: -53.88954851 | P232: -83.00463169 | Q232: -117.2584065 | R232: -157.8703244 | S232: -206.530027 | T232: -265.6265583 | U232: -338.5254556 | V232: -429.7734156
A233: DAPP=1.25
A234: Total PMWS cost | B234: 15.31491246 | C234: 17.16292571 | D234: 19.22436278 | E234: 21.52258421 | F234: 24.08301676 | G234: 26.93312101 | H234: 33.46314706 | I234: 45.92902199 | J234: 60.29770725 | K234: 75.46772695 | L234: 93.02298699 | M234: 113.3706257 | N234: 137.0030771 | O234: 164.5257829 | P234: 196.6996293 | Q234: 234.5077414 | R234: 279.2614489 | S234: 332.7645426 | T234: 397.5496756 | U234: 477.1642972 | V234: 576.3841311
A235: Clinical PMWS cost | B235: 0 | C235: 0 | D235: 0 | E235: 0 | F235: 0 | G235: 0 | H235: 3.360911602 | I235: 12.30779533 | J235: 21.46908723 | K235: 25.20505157 | L235: 29.94923616 | M235: 36.01852638 | N235: 43.83146758 | O235: 53.93204726 | P235: 67.00676087 | Q235: 83.87819583 | R235: 105.4447601 | S235: 132.5249775 | T235: 165.5848912 | U235: 204.4512794 | V235: 248.4391614
A236: Subclinical PMWS cost | B236: 15.31491246 | C236: 17.16292571 | D236: 19.22436278 | E236: 21.52258421 | F236: 24.08301676 | G236: 26.93312101 | H236: 30.10223546 | I236: 33.62122666 | J236: 38.82862002 | K236: 50.26267538 | L236: 63.07375082 | M236: 77.35209927 | N236: 93.17160949 | O236: 110.5937356 | P236: 129.6928685 | Q236: 150.6295456 | R236: 173.8166888 | S236: 200.2395651 | T236: 231.9647844 | U236: 272.7130178 | V236: 327.9449697
A237: Total profits | B237: 166.8106205 | C237: 164.7563561 | D237: 162.4434421 | E237: 159.8395418 | F237: 156.9085374 | G237: 153.6102334 | H237: 147.0561508 | I237: 135.3145018 | J237: 121.7574655 | K237: 107.3845017 | L237: 90.73916828 | M237: 71.43181014 | N237: 48.99071046 | O237: 22.83518794 | P237: -7.765752053 | Q237: -43.75873305 | R237: -86.40995602 | S237: -137.4667212 | T237: -199.3902036 | U237: -275.636809 | V237: -370.8664296
A238: DAPP=1.30
A239: Total PMWS cost | B239: 16.22358042 | C239: 18.18124042 | D239: 20.36498716 | E239: 22.7995672 | F239: 25.51191593 | G239: 28.53112322 | H239: 35.42889118 | I239: 48.58195444 | J239: 63.73575453 | K239: 79.73644325 | L239: 98.25068274 | M239: 119.7065917 | N239: 144.6214368 | O239: 173.6302633 | P239: 207.5295852 | Q239: 247.3459324 | R239: 294.444317 | S239: 350.6960435 | T239: 418.7199668 | U239: 502.1743626 | V239: 605.975888
A240: Clinical PMWS cost | B240: 0 | C240: 0 | D240: 0 | E240: 0 | F240: 0 | G240: 0 | H240: 3.54062287 | I240: 12.96590532 | J240: 22.61160007 | K240: 26.54480092 | L240: 31.5387331 | M240: 37.92632269 | N240: 46.14693513 | O240: 56.77091182 | P240: 70.51661024 | Q240: 88.24196057 | R240: 110.8780282 | S240: 139.2601127 | T240: 173.8333168 | U240: 214.3417153 | V240: 259.957217
A241: Subclinical PMWS cost | B241: 16.22358042 | C241: 18.18124042 | D241: 20.36498716 | E241: 22.7995672 | F241: 25.51191593 | G241: 28.53112322 | H241: 31.88826831 | I241: 35.61604912 | J241: 41.12415446 | K241: 53.19164233 | L241: 66.71194963 | M241: 81.78026897 | N241: 98.47450162 | O241: 116.8593515 | P241: 137.0129749 | Q241: 159.1039718 | R241: 183.5662888 | S241: 211.4359308 | T241: 244.8866499 | U241: 287.8326473 | V241: 346.0186709
A242: Total profits | B242: 251.2973752 | C242: 249.0367565 | D242: 246.4836199 | E242: 243.6000335 | F242: 240.3433584 | G242: 236.6657984 | H242: 229.6700177 | I242: 217.413909 | J242: 203.2572733 | K242: 188.1993414 | L242: 170.7551067 | M242: 150.5156154 | N242: 126.9864147 | O242: 99.5599244 | P242: 67.47312759 | Q242: 29.74094041 | R242: -14.94958765 | S242: -68.40341544 | T242: -133.1538489 | U242: -212.7481624 | V242: -311.9594436
A243: DAPP=1.35
A244: Total PMWS cost | B244: 17.13224838 | C244: 19.19955513 | D244: 21.50561153 | E244: 24.07655018 | F244: 26.94081509 | G244: 30.12912544 | H244: 37.3946353 | I244: 51.23488688 | J244: 67.17380181 | K244: 84.00515955 | L244: 103.4783785 | M244: 126.0425577 | N244: 152.2397964 | O244: 182.7347438 | P244: 218.359541 | Q244: 260.1841233 | R244: 309.6271851 | S244: 368.6275444 | T244: 439.890258 | U244: 527.1844279 | V244: 635.5676448
A245: Clinical PMWS cost | B245: 0 | C245: 0 | D245: 0 | E245: 0 | F245: 0 | G245: 0 | H245: 3.720334137 | I245: 13.62401531 | J245: 23.75411291 | K245: 27.88455027 | L245: 33.12823005 | M245: 39.83411901 | N245: 48.46240269 | O245: 59.60977639 | P245: 74.02645962 | Q245: 92.60572532 | R245: 116.3112962 | S245: 145.9952479 | T245: 182.0817425 | U245: 224.2321511 | V245: 271.4752726
A246: Subclinical PMWS cost | B246: 17.13224838 | C246: 19.19955513 | D246: 21.50561153 | E246: 24.07655018 | F246: 26.94081509 | G246: 30.12912544 | H246: 33.67430116 | I246: 37.61087157 | J246: 43.4196889 | K246: 56.12060928 | L246: 70.35014844 | M246: 86.20843868 | N246: 103.7773938 | O246: 123.1249674 | P246: 144.3330814 | Q246: 167.578398 | R246: 193.3158888 | S246: 222.6322965 | T246: 257.8085155 | U246: 302.9522768 | V246: 364.0923722
A247: Total profits | B247: 335.7841298 | C247: 333.317157 | D247: 330.5237976 | E247: 327.3605252 | F247: 323.7781794 | G247: 319.7213635 | H247: 312.2838845 | I247: 299.5133161 | J247: 284.7570811 | K247: 269.0141811 | L247: 250.7710451 | M247: 229.5994206 | N247: 204.982119 | O247: 176.2846609 | P247: 142.7120072 | Q247: 103.2406139 | R247: 56.51078072 | S247: 0.6598903227 | T247: -66.91749417 | U247: -149.8595159 | V247: -253.0524576
A248: DAPP=1.40
A249: Total PMWS cost | B249: 18.04091633 | C249: 20.21786984 | D249: 22.64623591 | E249: 25.35353317 | F249: 28.36971426 | G249: 31.72712765 | H249: 39.36037942 | I249: 53.88781933 | J249: 70.61184909 | K249: 88.27387586 | L249: 108.7060742 | M249: 132.3785237 | N249: 159.8581561 | O249: 191.8392243 | P249: 229.1894968 | Q249: 273.0223142 | R249: 324.8100532 | S249: 386.5590454 | T249: 461.0605492 | U249: 552.1944933 | V249: 665.1594017
A250: Clinical PMWS cost | B250: 0 | C250: 0 | D250: 0 | E250: 0 | F250: 0 | G250: 0 | H250: 3.900045405 | I250: 14.2821253 | J250: 24.89662576 | K250: 29.22429962 | L250: 34.71772699 | M250: 41.74191532 | N250: 50.77787024 | O250: 62.44864095 | P250: 77.53630899 | Q250: 96.96949006 | R250: 121.7445643 | S250: 152.7303831 | T250: 190.3301681 | U250: 234.122587 | V250: 282.9933283
A251: Subclinical PMWS cost | B251: 18.04091633 | C251: 20.21786984 | D251: 22.64623591 | E251: 25.35353317 | F251: 28.36971426 | G251: 31.72712765 | H251: 35.46033401 | I251: 39.60569403 | J251: 45.71522333 | K251: 59.04957624 | L251: 73.98834725 | M251: 90.63660838 | N251: 109.0802859 | O251: 129.3905833 | P251: 151.6531878 | Q251: 176.0528242 | R251: 203.0654888 | S251: 233.8286622 | T251: 270.7303811 | U251: 318.0719063 | V251: 382.1660735
A252: Total profits | B252: 420.2708845 | C252: 417.5975574 | D252: 414.5639754 | E252: 411.121017 | F252: 407.2130004 | G252: 402.7769285 | H252: 394.8977513 | I252: 381.6127233 | J252: 366.2568889 | K252: 349.8290208 | L252: 330.7869835 | M252: 308.6832259 | N252: 282.9778232 | O252: 253.0093973 | P252: 217.9508869 | Q252: 176.7402873 | R252: 127.9711491 | S252: 69.72319608 | T252: -0.6811394657 | U252: -86.97086926 | V252: -194.1454716
A253: DAPP=1.45
A254: Total PMWS cost | B254: 18.94959434 | C254: 21.23619546 | D254: 23.78687223 | E254: 26.63052935 | F254: 29.79862813 | G254: 33.32514643 | H254: 41.3261424 | I254: 56.54077349 | J254: 74.04987629 | K254: 92.54256772 | L254: 113.9337396 | M254: 138.7144512 | N254: 167.4764656 | O254: 200.9436375 | P254: 240.0193602 | Q254: 285.8603742 | R254: 339.9927303 | S254: 404.4902612 | T254: 482.2304073 | U254: 577.2038972 | V254: 694.7501578
A255: Clinical PMWS cost | B255: 0 | C255: 0 | D255: 0 | E255: 0 | F255: 0 | G255: 0 | H255: 4.079756671 | I255: 14.94023528 | J255: 26.0389118 | K255: 30.5637845 | L255: 36.30691241 | M255: 43.6493412 | N255: 53.09289371 | O255: 65.28696989 | P255: 81.04551056 | Q255: 101.3324731 | R255: 127.1768978 | S255: 159.4644217 | T255: 198.5773446 | U255: 244.0116523 | V255: 294.5099209
A256: Subclinical PMWS cost | B256: 18.94959434 | C256: 21.23619546 | D256: 23.78687223 | E256: 26.63052935 | F256: 29.79862813 | G256: 33.32514643 | H256: 37.24638573 | I256: 41.60053821 | J256: 48.01096449 | K256: 61.97878323 | L256: 77.62682723 | M256: 95.06510995 | N256: 114.3835719 | O256: 135.6566676 | P256: 158.9738496 | Q256: 184.5279011 | R256: 212.8158325 | S256: 245.0258395 | T256: 283.6530627 | U256: 333.1922449 | V256: 400.2402369
A257: Total profits | B257: 508.4852965 | C257: 506.0554226 | D257: 503.2833729 | E257: 500.1201168 | F257: 496.5096402 | G257: 492.3880291 | H257: 484.8385175 | I257: 471.8955538 | J257: 456.8600782 | K257: 440.4697453 | L257: 421.4226053 | M257: 399.2601478 | N257: 373.4301099 | O257: 343.2576282 | P257: 307.9014997 | Q257: 266.2857843 | R257: 216.9916681 | S257: 158.0900973 | T257: 86.90116561 | U257: -0.2960161305 | V257: -108.4765469

Sheet Cost at National level (hidden)
A1: COST AT NATIONAL LEVEL | B1: severity | C1: N of sows | D1: Mean Total cost/sow | E1: farm cost
B2: 0.01 | C2: 70 | D2: =B166 -> -10.04645906 | E2: =C2*D2 -> -703.2521342 | G2: 166
B3: 0.83 | C3: 271 | D3: =B213 -> -12.10694103 | E3: =C3*D3 -> -3280.981018 | G3: =G2+47 -> 213
B4: 1.49 | C4: 40 | D4: =B260 -> -14.05473181 | E4: -562.1892724 | G4: =G3+47 -> 260
B5: 1.73 | C5: 70 | D5: =B307 -> -14.83493309 | E5: -1038.445316 | G5: 307
B6: 1.8 | C6: 110 | D6: =B354 -> -15.07019967 | E6: -1657.721964 | G6: 354
B7: 1.87 | C7: 50 | D7: =B401 -> -15.30903617 | E7: -765.4518085 | G7: 401
B8: 2.1 | C8: 1050 | D8: =B448 -> -16.11954297 | E8: -16925.52012 | G8: 448
B9: 2.35 | C9: 160 | D9: =B495 -> -17.04697106 | E9: -2727.51537 | G9: 495
B10: 2.4 | C10: 520 | D10: =B542 -> -17.23846404 | E10: -8964.001299 | G10: 542
B11: 2.5 | C11: 1280 | D11: =B589 -> -17.62761275 | E11: -22563.34432 | G11: 589
B12: 2.52 | C12: 250 | D12: =B636 -> -17.70643923 | E12: -4426.609808 | G12: 636
B13: 2.81 | C13: 100 | D13: =B683 -> -19.24539916 | E13: -1924.539916 | G13: 683
B14: 2.87 | C14: 550 | D14: =B730 -> -20.58386166 | E14: -11321.12391 | G14: 730
B15: 3.13 | C15: 600 | D15: =B777 -> -26.66374913 | E15: -15998.24948 | G15: 777
B16: 3.19 | C16: 230 | D16: =B824 -> -28.13384504 | E16: -6470.784359 | G16: 824
B17: 3.24 | C17: 600 | D17: =B871 -> -29.3788375 | E17: -17627.3025 | G17: 871
B18: 3.43 | C18: 830 | D18: =B918 -> -34.27985151 | E18: -28452.27675 | G18: 918
B19: 3.43 | C19: 420 | D19: =B965 -> -34.27985151 | E19: -14397.53763 | G19: 965
B20: 3.5 | C20: 80 | D20: =B1012 -> -36.1554532 | E20: -2892.436256 | G20: 1012
B21: 3.58 | C21: 328 | D21: =B1059 -> -38.34668868 | E21: -12577.71389 | G21: 1059
B22: 3.58 | C22: 100 | D22: =B1106 -> -38.34668868 | E22: -3834.668868 | G22: 1106
B23: 3.76 | C23: 1850 | D23: =B1153 -> -43.46909343 | E23: -80417.82284 | G23: 1153
B24: 3.81 | C24: 900 | D24: =B1200 -> -44.94064849 | E24: -40446.58364 | G24: 1200
B25: 3.83 | C25: 170 | D25: =B1247 -> -45.53534118 | E25: -7741.008001 | G25: 1247
B26: 3.88 | C26: 60 | D26: =B1294 -> -47.03742887 | E26: -2822.245732 | G26: 1294
B27: 3.92 | C27: 250 | D27: =B1341 -> -54.1793113 | E27: -13544.82782 | G27: 1341
B28: 3.94 | C28: 280 | D28: =B1388 -> -54.87316069 | E28: -15364.48499 | G28: 1388
B29: 4.41 | C29: 190 | D29: =B1435 -> -72.43356041 | E29: -13762.37648 | G29: 1435
B30: 4.44 | C30: 274 | D30: =B1482 -> -73.64059108 | E30: -20177.52196 | G30: 1482
B31: 4.46 | C31: 1550 | D31: =B1529 -> -74.45132853 | E31: -115399.5592 | G31: 1529
B32: 4.56 | C32: 160 | D32: =B1576 -> -78.57873196 | E32: -12572.59711 | G32: 1576
B33: 4.58 | C33: 335 | D33: =B1623 -> -79.41916618 | E33: -26605.42067 | G33: 1623
B34: 4.62 | C34: 500 | D34: =B1670 -> -81.11523177 | E34: -40557.61588 | G34: 1670
B35: 4.64 | C35: 180 | D35: =B1717 -> -81.97092487 | E35: -14754.76648 | G35: 1717
B36: 4.65 | C36: 232 | D36: =B1764 -> -82.40070009 | E36: -19116.96242 | G36: 1764
B37: 4.67 | C37: 715 | D37: =B1811 -> -83.26412742 | E37: -59533.85111 | G37: 1811
B38: 4.75 | C38: 194 | D38: =B1858 -> -86.77010788 | E38: -16833.40093 | G38: 1858
B39: 4.85 | C39: 360 | D39: =B1905 -> -91.27260034 | E39: -32858.13612 | G39: 1905
B40: 4.89 | C40: 150 | D40: =B1952 -> -93.11177448 | E40: -13966.76617 | G40: 1952
B41: 4.95 | C41: 400 | D41: =B1999 -> -95.91227371 | E41: -38364.90948 | G41: 1999
B42: 4.96 | C42: 670 | D42: =B2046 -> -96.38394737 | E42: -64577.24474 | G42: 2046
B43: 4.99 | C43: 300 | D43: =B2093 -> -97.8074947 | E43: -29342.24841 | G43: 2093
B44: 5.03 | C44: 500 | D44: =B2140 -> -99.72561404 | E44: -49862.80702 | G44: 2140
B45: 5.12 | C45: 81 | D45: =B2187 -> -104.1265548 | E45: -8434.250942 | G45: 2187
B46: 5.15 | C46: 155 | D46: =B2234 -> -105.6201681 | E46: -16371.12606 | G46: 2234
B47: 5.22 | C47: 200 | D47: =B2281 -> -109.158053 | E47: -21831.61059 | G47: 2281
B48: 5.27 | C48: 330 | D48: =B2328 -> -111.7310488 | E48: -36871.2461 | G48: 2328
B49: 5.29 | C49: 2000 | D49: =B2375 -> -112.7711173 | E49: -225542.2346 | G49: 2375
B50: 5.31 | C50: 483 | D50: =B2422 -> -113.8174537 | E50: -54973.83015 | G50: 2422
B51: 5.32 | C51: 228 | D51: =B2469 -> -114.3429843 | E51: -26070.20042 | G51: 2469
B52: 5.39 | C52: 450 | D52: =B2516 -> -100.4036059 | E52: -45181.62263 | G52: 2516
B53: 5.41 | C53: 120 | D53: =B2563 -> -119.144491 | E53: -14297.33892 | G53: 2563
B54: 5.42 | C54: 70 | D54: =B2610 -> -119.6860505 | E54: -8378.023538 | G54: 2610
B55: 5.46 | C55: 320 | D55: =B2657 -> -121.868634 | E55: -38997.96288 | G55: 2657
B56: 5.46 | C56: 464 | D56: =B2704 -> -121.868634 | E56: -56547.04618 | G56: 2704
B57: 5.49 | C57: 318 | D57: =B2751 -> -123.5228727 | E57: -39280.27351 | G57: 2751
B58: 5.51 | C58: 330 | D58: =B2798 -> -124.6340117 | E58: -41129.22387 | G58: 2798
B59: 5.51 | C59: 280 | D59: =B2845 -> -124.6340117 | E59: -34897.52328 | G59: 2845
B60: 5.52 | C60: 238 | D60: =B2892 -> -125.1920903 | E60: -29795.71748 | G60: 2892
B61: 5.53 | C61: 242 | D61: =B2939 -> -125.7518482 | E61: -30431.94727 | G61: 2939
B62: 5.54 | C62: 594 | D62: =B2986 -> -126.3132906 | E62: -75030.09462 | G62: 2986
B63: 5.66 | C63: 1130 | D63: =B3033 -> -133.1838461 | E63: -150497.7461 | G63: 3033
B64: 5.68 | C64: 268 | D64: =B3080 -> -134.3532164 | E64: -36006.66199 | G64: 3080
B65: 5.7 | C65: 250 | D65: =B3127 -> -135.5296346 | E65: -33882.40866 | G65: 3127
B66: 5.78 | C66: 200 | D66: =B3174 -> -140.3066378 | E66: -28061.32756 | G66: 3174
B67: 5.79 | C67: 280 | D67: =B3221 -> -140.9118763 | E67: =C67*D67 -> -39455.32536 | G67: 3221
B68: 5.8 | C68: 300 | D68: =B3268 -> -141.5189357 | E68: -42455.68071 | G68: =G67+47 -> 3268
B69: 5.81 | C69: 510 | D69: =B3315 -> -142.1278215 | E69: -72485.18895 | G69: 3315
B70: 5.88 | C70: 144 | D70: =B3362 -> -146.4416208 | E70: -21087.59339 | G70: 3362
B71: 5.96 | C71: 163 | D71: =B3409 -> -151.4840202 | E71: -24691.8953 | G71: 3409
B72: 6 | C72: 84 | D72: =B3456 -> -154.0510112 | E72: -12940.28494 | G72: 3456
B73: 6.01 | C73: 340 | D73: =B3503 -> -154.6975905 | E73: -52597.18076 | G73: 3503
B74: 6.12 | C74: 850 | D74: =B3550 -> -161.9395514 | E74: -137648.6187 | G74: 3550
B75: 6.17 | C75: 120 | D75: =B3597 -> -165.3112184 | E75: -19837.3462 | G75: 3597
B76: 6.18 | C76: 563 | D76: =B3644 -> -165.9916425 | E76: -93453.29471 | G76: 3644
B77: 6.24 | C77: 650 | D77: =B3691 -> -170.1173271 | E77: -110576.2626 | G77: 3691
B78: 6.27 | C78: 336 | D78: =B3738 -> -172.2081753 | E78: -57861.94689 | G78: 3738
B79: 6.29 | C79: 40 | D79: =B3785 -> -173.6125586 | E79: -6944.502342 | G79: 3785
B80: 6.32 | C80: 800 | D80: =B3832 -> -175.7349835 | E80: -140587.9868 | G80: 3832
B81: 6.36 | C81: 676 | D81: =B3879 -> -178.5947309 | E81: -120730.0381 | G81: 3879
B82: 6.37 | C82: 700 | D82: =B3926 -> -179.3150392 | E82: -125520.5275 | G82: 3926
B83: 6.37 | C83: 470 | D83: =B3973 -> -179.3150392 | E83: -84278.06844 | G83: 3973
B84: 6.46 | C84: 650 | D84: =B4020 -> -185.895825 | E84: -120832.2863 | G84: 4020
B85: 6.49 | C85: 900 | D85: =B4067 -> -188.129121 | E85: -169316.2089 | G85: 4067
B86: 6.62 | C86: 730 | D86: =B4114 -> -198.0417148 | E86: -144570.4518 | G86: 4114
B87: 6.78 | C87: 214 | D87: =B4161 -> -210.7823406 | E87: -45107.42088 | G87: 4161
B88: 6.78 | C88: 71 | D88: =B4208 -> -210.7823406 | E88: -14965.54618 | G88: 4208
B89: 6.86 | C89: 850 | D89: =B4255 -> -217.3842835 | E89: -184776.641 | G89: 4255
B90: 7 | C90: 279 | D90: =B4302 -> -229.322702 | E90: -63981.03387 | G90: 4302
B91: 7.03 | C91: 636 | D91: =B4349 -> -231.9461779 | E91: -147517.7691 | G91: 4349
B92: 7.09 | C92: 464 | D92: =B4396 -> -197.3465402 | E92: -91568.79465 | G92: 4396
B93: 7.11 | C93: 110 | D93: =B4443 -> -198.8016404 | E93: -21868.18044 | G93: 4443
B94: 7.19 | C94: 70 | D94: =B4490 -> -246.3388571 | E94: -17243.72 | G94: 4490
B95: 7.25 | C95: 180 | D95: =B4537 -> -251.914114 | E95: -45344.54053 | G95: 4537
B96: 7.31 | C96: 290 | D96: =B4584 -> -257.5889079 | E96: -74700.78329 | G96: 4584
B97: 7.36 | C97: 160 | D97: =B4631 -> -262.3950808 | E97: -41983.21292 | G97: 4631
B98: 7.44 | C98: 430 | D98: =B4678 -> -270.2333205 | E98: -116200.3278 | G98: 4678
B99: 7.57 | C99: 230 | D99: =B4725 -> -283.3686673 | E99: -65174.79349 | G99: 4725
B100: 7.64 | C100: 120 | D100: =B4772 -> -290.6506019 | E100: -34878.07223 | G100: 4772
B101: 7.69 | C101: 380 | D101: =B4819 -> -295.9434342 | E101: -112458.505 | G101: 4819
B102: 7.7 | C102: 226 | D102: =B4866 -> -297.0112421 | E102: -67124.54071 | G102: 4866
B103: 7.76 | C103: 240 | D103: =B4913 -> -303.4834005 | E103: -72836.01613 | G103: 4913
B104: 7.79 | C104: 425 | D104: =B4960 -> -306.7617976 | E104: -130373.764 | G104: 4960
B105: 7.8 | C105: 229 | D105: =B5007 -> -307.860915 | E105: -70500.14954 | G105: 5007
B106: 7.9 | C106: 200 | D106: =B5054 -> -319.0277268 | E106: -63805.54536 | G106: 5054
B107: 8.05 | C107: 272 | D107: =B5101 -> -336.3885099 | E107: -91497.6747 | G107: 5101
B108: 8.06 | C108: 490 | D108: =B5148 -> -337.5724444 | E108: -165410.4978 | G108: 5148
B109: 8.2 | C109: 330 | D109: =B5195 -> -354.5033742 | E109: -116986.1135 | G109: 5195
B110: 9.97 | C110: 90 | D110: =B5242 -> -631.7796093 | E110: -56860.16483 | G110: 5242
B112: Total | C112: =SUM(C2:C110) -> 42972 | D112: =SUM(D2:D110) -> -14953.4568 | E112: =SUM(E2:E110) -> -5471278.737
B115: National number of sows | E115: 421000
B116: Sample fraction | E116: =C112/E115 -> 0.1020712589
B118: PMWS national cost | E118: =(E112*100)/(E116*100) -> -53602539.99
A122: Calculation of cost for each farm in the cross-sectional study
A125: PMWS severity | B125: 0.01
... 153 more rows

Sheet 3-weekly batch model (hidden)
A1: 3-WEEKLY BATCH SYSTEM FARM DYNAMIC MODEL
A3: Farm parameters
A4: Sow cycle (days) | B4: =115+5+28 -> 148
A5: Optimum litters /sow/ year | B5: =365/B4 -> 2.466216216
A6: Return rates for 2.3 litters/sow/year | B6: =1-('Calculation of farm level cost'!B5/B5) -> 0.08767123288
A7: litters/sow/year | B7: ='Calculation of farm level cost'!B5 -> 2.25
A8: piglets weaned/sow/litter | B8: ='Economic analysis for each pig'!B8*(1-'Economic analysis for each pig'!B9) -> 9.77536
A9: Total number of sows | B9: ='Control measure entry'!B6 -> 250
A10: Sows/batch | B10: =B9/7 -> 35.71428571
A11: Sows conceiving | B11: =B10*(1-B6) -> 32.58317025
A12: Pigs weaned /batch | B12: =B11*B8 -> 318.5122192
A13: Interest rate | B13: ='Control measure entry'!B5 -> 0.035
A14: Age at weaning (days) | B14: 28
A15: Weight at weaning (kg.) | B15: ='Epidemiological Model flow'!B26 -> 8.1
A16: Age at finishing | B16: ='Epidemiological Model flow'!B24+'3-weekly batch model'!B14 -> 168
A17: Liveweight at finishing (kg.) | B17: ='Epidemiological Model flow'!B25 -> 102.6
A18: ADG of a H-S (kg.) | B18: ='Epidemiological Model flow'!B28 -> 0.675
A19: interest rate | B19: ='Control measure entry'!B5 -> 0.035
A21: Pigs produced per batch from day 0
B22: Year 1 | C22: Year 2 | D22: Year 3 | E22: Year 4 | F22: Year 5
A23: days | B23: 365 | C23: =B23+365 -> 730 | D23: =C23+365 -> 1095 | E23: =D23+365 -> 1460 | F23: =E23+365 -> 1825
A24: Number of batches | B24: =B23/21 -> 17.38095238 | C24: =(C23/21) -> 34.76190476 | D24: =D23/21 -> 52.14285714 | E24: =E23/21 -> 69.52380952 | F24: =F23/21 -> 86.9047619
A25: Number of pigs finished | B25: =B24*$B$11*$B$8 -> 5536.045714 | C25: =C24*$B$11*$B$8 -> 11072.09143 | D25: =D24*$B$11*$B$8 -> 16608.13714 | E25: =E24*$B$11*$B$8 -> 22144.18286 | F25: =F24*$B$11*$B$8 -> 27680.22857
A26: Number of pigs finished/sow | B26: =B25/$B$9 -> 22.14418286 | C26: =C25/$B$9 -> 44.28836571 | D26: =D25/$B$9 -> 66.43254857 | E26: =E25/$B$9 -> 88.57673143 | F26: =F25/$B$9 -> 110.7209143
A28: Batches on the farm at day 0
A30: Batches | B30: Sow day | C30: Finisher day | D30: kg of finisger (liveweight)
A31: 1 | B31: 0 | C31: -115 | D31: 0
A32: 2 | B32: =B31+21 -> 21 | C32: =C31+21 -> -94 | D32: 0
A33: 3 | B33: =B32+21 -> 42 | C33: =C32+21 -> -73 | D33: 0
A34: 4 | B34: 63 | C34: -52 | D34: 0
A35: 5 | B35: 84 | C35: -31 | D35: 0
A36: 6 | B36: 105 | C36: -10 | D36: 0
A37: 7 | B37: 126 | C37: 11 | D37: =('Epidemiological Model flow'!B26/B14)*C37 -> 3.182142857
A38: 8 | B38: 147 | C38: 32 | D38: =$B$15+($B$18*(C38-$B$14)) -> 10.8
A39: 9 | B39: 168 | C39: 53 | D39: =$B$15+($B$18*(C39-$B$14)) -> 24.975
A40: 10 | B40: 189 | C40: 74 | D40: 39.15
A41: 11 | B41: 210 | C41: 95 | D41: 53.325
A42: 12 | B42: 231 | C42: 116 | D42: 67.5
A43: 13 | B43: 252 | C43: 137 | D43: 81.675
A44: 14 | B44: 273 | C44: 158 | D44: 95.85
A47: Model flow in 5 years time
B48: Year 1 | C48: Year 2 | D48: Year 3 | E48: Year 4 | F48: Year 5
A49: Batches sold | B49: =SUM(B56:R56) -> 17 | C49: =SUM(S56:AJ56) -> 18 | D49: =SUM(AK56:BA56) -> 17 | E49: =SUM(BB56:BR56) -> 17 | F49: =SUM(BS56:CK56) -> 18
A50: Batches weaned | B50: =SUM(B57:R57) -> 16 | C50: =SUM(S57:AJ57) -> 18 | D50: =SUM(AK57:BA57) -> 17 | E50: =SUM(BB57:BR57) -> 17 | F50: =SUM(BS57:CK57) -> 19
A55: Days | B55: =B16-C44 -> 10 | C55: =B55+21 -> 31 | D55: =C55+21 -> 52 | E55: 73 | F55: 94 | G55: 115 | H55: 136 | I55: 157 | J55: 178 | K55: 199 | L55: 220 | M55: 241 | N55: 262 | O55: 283 | P55: 304 | Q55: 325 | R55: 346 | S55: 367 | T55: 388 | U55: 409 | V55: 430 | W55: 451 | X55: 472 | Y55: 493 | Z55: 514 | AA55: 535 | AB55: 556 | AC55: 577 | AD55: 598 | AE55: 619 | AF55: 640 | AG55: 661 | AH55: 682 | AI55: 703 | AJ55: 724 | AK55: 745 | AL55: 766 | AM55: 787 | AN55: 808 | AO55: 829 | AP55: 850 | AQ55: 871 | AR55: 892 | AS55: 913 | AT55: 934 | AU55: 955 | AV55: 976 | AW55: 997 | AX55: 1018 | AY55: 1039 | AZ55: 1060 | BA55: 1081 | BB55: 1102 | BC55: 1123 | BD55: 1144 | BE55: 1165 | BF55: 1186 | BG55: 1207 | BH55: 1228 | BI55: 1249 | BJ55: =BI55+21 -> 1270 | BK55: 1291 | BL55: 1312 | BM55: 1333 | BN55: 1354 | BO55: 1375 | BP55: =BO55+21 -> 1396 | BQ55: 1417 | BR55: 1438 | BS55: 1459 | BT55: 1480 | BU55: 1501 | BV55: 1522 | BW55: 1543 | BX55: 1564 | BY55: 1585 | BZ55: 1606 | CA55: 1627 | CB55: 1648 | CC55: 1669 | CD55: =CC55+21 -> 1690 | CE55: =CD55+21 -> 1711 | CF55: 1732 | CG55: 1753 | CH55: 1774 | CI55: 1795 | CJ55: 1816 | CK55: 1825 | CL55: TOTAL
A56: Batches sold | B56: 1 | C56: =B56 -> 1 | D56: =C56 -> 1 | E56: 1 | F56: 1 | G56: 1 | H56: 1 | I56: 1 | J56: 1 | K56: 1 | L56: 1 | M56: 1 | N56: 1 | O56: 1 | P56: 1 | Q56: 1 | R56: 1 | S56: 1 | T56: 1 | U56: 1 | V56: 1 | W56: 1 | X56: 1 | Y56: 1 | Z56: 1 | AA56: 1 | AB56: 1 | AC56: 1 | AD56: 1 | AE56: 1 | AF56: 1 | AG56: 1 | AH56: 1 | AI56: 1 | AJ56: 1 | AK56: 1 | AL56: 1 | AM56: 1 | AN56: 1 | AO56: 1 | AP56: 1 | AQ56: 1 | AR56: 1 | AS56: 1 | AT56: 1 | AU56: 1 | AV56: 1 | AW56: 1 | AX56: 1 | AY56: 1 | AZ56: 1 | BA56: 1 | BB56: 1 | BC56: 1 | BD56: 1 | BE56: 1 | BF56: 1 | BG56: 1 | BH56: 1 | BI56: 1 | BJ56: 1 | BK56: 1 | BL56: 1 | BM56: 1 | BN56: 1 | BO56: 1 | BP56: =BO56 -> 1 | BQ56: 1 | BR56: 1 | BS56: 1 | BT56: 1 | BU56: 1 | BV56: 1 | BW56: 1 | BX56: 1 | BY56: 1 | BZ56: 1 | CA56: 1 | CB56: 1 | CC56: 1 | CD56: 1 | CE56: 1 | CF56: 1 | CG56: 1 | CH56: 1 | CI56: 1 | CJ56: 1 | CK56: 0 | CL56: =SUM(B56:CJ56) -> 87
A57: Batches weaned | B57: 0 | C57: 1 | D57: 1 | E57: 1 | F57: 1 | G57: 1 | H57: 1 | I57: 1 | J57: 1 | K57: 1 | L57: 1 | M57: 1 | N57: 1 | O57: 1 | P57: 1 | Q57: 1 | R57: 1 | S57: 1 | T57: 1 | U57: 1 | V57: 1 | W57: 1 | X57: 1 | Y57: 1 | Z57: 1 | AA57: 1 | AB57: 1 | AC57: 1 | AD57: 1 | AE57: 1 | AF57: 1 | AG57: 1 | AH57: 1 | AI57: 1 | AJ57: 1 | AK57: 1 | AL57: 1 | AM57: 1 | AN57: 1 | AO57: 1 | AP57: 1 | AQ57: 1 | AR57: 1 | AS57: 1 | AT57: 1 | AU57: 1 | AV57: 1 | AW57: 1 | AX57: 1 | AY57: 1 | AZ57: 1 | BA57: 1 | BB57: 1 | BC57: 1 | BD57: 1 | BE57: 1 | BF57: 1 | BG57: 1 | BH57: 1 | BI57: 1 | BJ57: 1 | BK57: 1 | BL57: 1 | BM57: 1 | BN57: 1 | BO57: 1 | BP57: 1 | BQ57: 1 | BR57: 1 | BS57: 1 | BT57: 1 | BU57: 1 | BV57: 1 | BW57: 1 | BX57: 1 | BY57: 1 | BZ57: 1 | CA57: 1 | CB57: 1 | CC57: 1 | CD57: 1 | CE57: 1 | CF57: 1 | CG57: 1 | CH57: 1 | CI57: 1 | CJ57: 1 | CK57: 1 | CL57: =SUM(B57:CK57) -> 87
A60: Reducing PMWS severity - basic structure of an investment appraisal
A62: if effective on new weaned bacthes! - batches 8 to 14 do not get PMWS reduced
A64: Difference in type of pigs between batches
A66: PMWS severity | B66: 2.79 | C66: ='Epidemiological Model flow'!H55 -> 3 | D66: ='Epidemiological Model flow'!I55 -> 3.5 | E66: ='Epidemiological Model flow'!J55 -> 4 | F66: ='Epidemiological Model flow'!K55 -> 4.5 | G66: ='Epidemiological Model flow'!L55 -> 5 | H66: ='Epidemiological Model flow'!M55 -> 5.5 | I66: ='Epidemiological Model flow'!N55 -> 6 | J66: ='Epidemiological Model flow'!O55 -> 6.5 | K66: ='Epidemiological Model flow'!P55 -> 7 | L66: ='Epidemiological Model flow'!Q55 -> 7.5 | M66: ='Epidemiological Model flow'!R55 -> 8 | N66: ='Epidemiological Model flow'!S55 -> 8.5 | O66: ='Epidemiological Model flow'!T55 -> 9 | P66: ='Epidemiological Model flow'!U55 -> 9.5 | Q66: ='Epidemiological Model flow'!V55 -> 10
A67: H-S | B67: ='Epidemiological Model flow'!B1303/100 -> 0.859457446 | C67: ='Epidemiological Model flow'!H61/100 ->  | D67: ='Epidemiological Model flow'!I61/100 ->  | E67: ='Epidemiological Model flow'!J61/100 ->  | F67: ='Epidemiological Model flow'!K61/100 ->  | G67: ='Epidemiological Model flow'!L61/100 ->  | H67: ='Epidemiological Model flow'!M61/100 ->  | I67: ='Epidemiological Model flow'!N61/100 ->  | J67: ='Epidemiological Model flow'!O61/100 ->  | K67: ='Epidemiological Model flow'!P61/100 ->  | L67: ='Epidemiological Model flow'!Q61/100 ->  | M67: ='Epidemiological Model flow'!R61/100 ->  | N67: ='Epidemiological Model flow'!S61/100 ->  | O67: ='Epidemiological Model flow'!T61/100 ->  | P67: ='Epidemiological Model flow'!U61/100 ->  | Q67: ='Epidemiological Model flow'!V61/100 -> 
A68: PMWS-D | B68: ='Epidemiological Model flow'!B1298/100 -> 2.845610179e-07 | C68: ='Epidemiological Model flow'!H56/100 ->  | D68: ='Epidemiological Model flow'!I56/100 ->  | E68: ='Epidemiological Model flow'!J56/100 ->  | F68: ='Epidemiological Model flow'!K56/100 ->  | G68: ='Epidemiological Model flow'!L56/100 ->  | H68: ='Epidemiological Model flow'!M56/100 ->  | I68: ='Epidemiological Model flow'!N56/100 ->  | J68: ='Epidemiological Model flow'!O56/100 ->  | K68: ='Epidemiological Model flow'!P56/100 ->  | L68: ='Epidemiological Model flow'!Q56/100 ->  | M68: ='Epidemiological Model flow'!R56/100 ->  | N68: ='Epidemiological Model flow'!S56/100 ->  | O68: ='Epidemiological Model flow'!T56/100 ->  | P68: ='Epidemiological Model flow'!U56/100 ->  | Q68: ='Epidemiological Model flow'!V56/100 -> 
A69: PMWS-S | B69: ='Epidemiological Model flow'!B1299/100 -> 0 | C69: ='Epidemiological Model flow'!H57/100 ->  | D69: ='Epidemiological Model flow'!I57/100 ->  | E69: ='Epidemiological Model flow'!J57/100 ->  | F69: ='Epidemiological Model flow'!K57/100 ->  | G69: ='Epidemiological Model flow'!L57/100 ->  | H69: ='Epidemiological Model flow'!M57/100 ->  | I69: ='Epidemiological Model flow'!N57/100 ->  | J69: ='Epidemiological Model flow'!O57/100 ->  | K69: ='Epidemiological Model flow'!P57/100 ->  | L69: ='Epidemiological Model flow'!Q57/100 ->  | M69: ='Epidemiological Model flow'!R57/100 ->  | N69: ='Epidemiological Model flow'!S57/100 ->  | O69: ='Epidemiological Model flow'!T57/100 ->  | P69: ='Epidemiological Model flow'!U57/100 ->  | Q69: ='Epidemiological Model flow'!V57/100 -> 
A70: PCV2-D | B70: ='Epidemiological Model flow'!B1300/100 -> 0 | C70: ='Epidemiological Model flow'!H58/100 ->  | D70: ='Epidemiological Model flow'!I58/100 ->  | E70: ='Epidemiological Model flow'!J58/100 ->  | F70: ='Epidemiological Model flow'!K58/100 ->  | G70: ='Epidemiological Model flow'!L58/100 ->  | H70: ='Epidemiological Model flow'!M58/100 ->  | I70: ='Epidemiological Model flow'!N58/100 ->  | J70: ='Epidemiological Model flow'!O58/100 ->  | K70: ='Epidemiological Model flow'!P58/100 ->  | L70: ='Epidemiological Model flow'!Q58/100 ->  | M70: ='Epidemiological Model flow'!R58/100 ->  | N70: ='Epidemiological Model flow'!S58/100 ->  | O70: ='Epidemiological Model flow'!T58/100 ->  | P70: ='Epidemiological Model flow'!U58/100 ->  | Q70: ='Epidemiological Model flow'!V58/100 -> 
A71: PCV2-S | B71: ='Epidemiological Model flow'!B1301/100 -> 0.1096353825 | C71: ='Epidemiological Model flow'!H59/100 ->  | D71: ='Epidemiological Model flow'!I59/100 ->  | E71: ='Epidemiological Model flow'!J59/100 ->  | F71: ='Epidemiological Model flow'!K59/100 ->  | G71: ='Epidemiological Model flow'!L59/100 ->  | H71: ='Epidemiological Model flow'!M59/100 ->  | I71: ='Epidemiological Model flow'!N59/100 ->  | J71: ='Epidemiological Model flow'!O59/100 ->  | K71: ='Epidemiological Model flow'!P59/100 ->  | L71: ='Epidemiological Model flow'!Q59/100 ->  | M71: ='Epidemiological Model flow'!R59/100 ->  | N71: ='Epidemiological Model flow'!S59/100 ->  | O71: ='Epidemiological Model flow'!T59/100 ->  | P71: ='Epidemiological Model flow'!U59/100 ->  | Q71: ='Epidemiological Model flow'!V59/100 -> 
A73: Diff at each severity (prop/sow) | B73: =B66 -> 2.79 | C73: =C66 -> 3 | D73: =D66 -> 3.5 | E73: 4 | F73: 4.5 | G73: 5 | H73: 5.5 | I73: 6 | J73: 6.5 | K73: 7 | L73: 7.5 | M73: 8 | N73: 8.5 | O73: 9 | P73: 9.5 | Q73: 10
A74: diff H-S | B74: =B67-B67 -> 0 | C74: =C67-B67 ->  | D74: =D67-$B$67 -> 
A75: diff PMWS-D | B75: =B68-$B$68 -> 0 | C75: =C68-$B$68 -> 
A76: diff PMWS-S | B76: =B69-$B$69 -> 0 | C76: =C69-$B$69 -> 
A77: diff PCV2-D | B77: =B70-$B$70 -> 0 | C77: =C70-$B$70 -> 
A78: diff PCV2-S | B78: =B71-$B$71 -> 0 | C78: =C71-$B$71 -> 
A81: Investment appraisal structure/batch
A83: PMWS SEVERITY | B83: =B73 -> 2.79 | C83: =C73 -> 3 | D83: =D73 -> 3.5 | E83: 4 | F83: 4.5 | G83: 5 | H83: 5.5 | I83: 6 | J83: 6.5 | K83: 7 | L83: 7.5 | M83: 8 | N83: 8.5 | O83: 9 | P83: 9.5 | Q83: 10
A84: New costs
A85: Extra feed cost for new H-S | C85: ='Economic analysis for each pig'!$B$26*('3-weekly batch model'!$B$12*'3-weekly batch model'!C74) ->  | D85: ='Economic analysis for each pig'!$B$26*('3-weekly batch model'!$B$12*'3-weekly batch model'!D74) ->  | E85: ='Economic analysis for each pig'!$B$26*('3-weekly batch model'!$B$12*'3-weekly batch model'!E74) ->  | F85: ='Economic analysis for each pig'!$B$26*('3-weekly batch model'!$B$12*'3-weekly batch model'!F74) ->  | G85: ='Economic analysis for each pig'!$B$26*('3-weekly batch model'!$B$12*'3-weekly batch model'!G74) ->  | H85: ='Economic analysis for each pig'!$B$26*('3-weekly batch model'!$B$12*'3-weekly batch model'!H74) ->  | I85: ='Economic analysis for each pig'!$B$26*('3-weekly batch model'!$B$12*'3-weekly batch model'!I74) ->  | J85: ='Economic analysis for each pig'!$B$26*('3-weekly batch model'!$B$12*'3-weekly batch model'!J74) ->  | K85: ='Economic analysis for each pig'!$B$26*('3-weekly batch model'!$B$12*'3-weekly batch model'!K74) ->  | L85: ='Economic analysis for each pig'!$B$26*('3-weekly batch model'!$B$12*'3-weekly batch model'!L74) ->  | M85: ='Economic analysis for each pig'!$B$26*('3-weekly batch model'!$B$12*'3-weekly batch model'!M74) ->  | N85: ='Economic analysis for each pig'!$B$26*('3-weekly batch model'!$B$12*'3-weekly batch model'!N74) ->  | O85: ='Economic analysis for each pig'!$B$26*('3-weekly batch model'!$B$12*'3-weekly batch model'!O74) ->  | P85: ='Economic analysis for each pig'!$B$26*('3-weekly batch model'!$B$12*'3-weekly batch model'!P74) ->  | Q85: ='Economic analysis for each pig'!$B$26*('3-weekly batch model'!$B$12*'3-weekly batch model'!Q74) -> 
A86: Extra veterinary cost for new H-S | C86: ='Economic analysis for each pig'!$B$31*'3-weekly batch model'!$B$12*'3-weekly batch model'!C74 ->  | D86: ='Economic analysis for each pig'!$B$31*'3-weekly batch model'!$B$12*'3-weekly batch model'!D74 ->  | E86: ='Economic analysis for each pig'!$B$31*'3-weekly batch model'!$B$12*'3-weekly batch model'!E74 ->  | F86: ='Economic analysis for each pig'!$B$31*'3-weekly batch model'!$B$12*'3-weekly batch model'!F74 ->  | G86: ='Economic analysis for each pig'!$B$31*'3-weekly batch model'!$B$12*'3-weekly batch model'!G74 ->  | H86: ='Economic analysis for each pig'!$B$31*'3-weekly batch model'!$B$12*'3-weekly batch model'!H74 ->  | I86: ='Economic analysis for each pig'!$B$31*'3-weekly batch model'!$B$12*'3-weekly batch model'!I74 ->  | J86: ='Economic analysis for each pig'!$B$31*'3-weekly batch model'!$B$12*'3-weekly batch model'!J74 ->  | K86: ='Economic analysis for each pig'!$B$31*'3-weekly batch model'!$B$12*'3-weekly batch model'!K74 ->  | L86: ='Economic analysis for each pig'!$B$31*'3-weekly batch model'!$B$12*'3-weekly batch model'!L74 ->  | M86: ='Economic analysis for each pig'!$B$31*'3-weekly batch model'!$B$12*'3-weekly batch model'!M74 ->  | N86: ='Economic analysis for each pig'!$B$31*'3-weekly batch model'!$B$12*'3-weekly batch model'!N74 ->  | O86: ='Economic analysis for each pig'!$B$31*'3-weekly batch model'!$B$12*'3-weekly batch model'!O74 ->  | P86: ='Economic analysis for each pig'!$B$31*'3-weekly batch model'!$B$12*'3-weekly batch model'!P74 ->  | Q86: ='Economic analysis for each pig'!$B$31*'3-weekly batch model'!$B$12*'3-weekly batch model'!Q74 -> 
A87: Extra Electricity cost for new H-S | C87: ='Economic analysis for each pig'!$B$33*'3-weekly batch model'!$B$12*'3-weekly batch model'!C74 ->  | D87: ='Economic analysis for each pig'!$B$33*'3-weekly batch model'!$B$12*'3-weekly batch model'!D74 ->  | E87: ='Economic analysis for each pig'!$B$33*'3-weekly batch model'!$B$12*'3-weekly batch model'!E74 ->  | F87: ='Economic analysis for each pig'!$B$33*'3-weekly batch model'!$B$12*'3-weekly batch model'!F74 ->  | G87: ='Economic analysis for each pig'!$B$33*'3-weekly batch model'!$B$12*'3-weekly batch model'!G74 ->  | H87: ='Economic analysis for each pig'!$B$33*'3-weekly batch model'!$B$12*'3-weekly batch model'!H74 ->  | I87: ='Economic analysis for each pig'!$B$33*'3-weekly batch model'!$B$12*'3-weekly batch model'!I74 ->  | J87: ='Economic analysis for each pig'!$B$33*'3-weekly batch model'!$B$12*'3-weekly batch model'!J74 ->  | K87: ='Economic analysis for each pig'!$B$33*'3-weekly batch model'!$B$12*'3-weekly batch model'!K74 ->  | L87: ='Economic analysis for each pig'!$B$33*'3-weekly batch model'!$B$12*'3-weekly batch model'!L74 ->  | M87: ='Economic analysis for each pig'!$B$33*'3-weekly batch model'!$B$12*'3-weekly batch model'!M74 ->  | N87: ='Economic analysis for each pig'!$B$33*'3-weekly batch model'!$B$12*'3-weekly batch model'!N74 ->  | O87: ='Economic analysis for each pig'!$B$33*'3-weekly batch model'!$B$12*'3-weekly batch model'!O74 ->  | P87: ='Economic analysis for each pig'!$B$33*'3-weekly batch model'!$B$12*'3-weekly batch model'!P74 ->  | Q87: ='Economic analysis for each pig'!$B$33*'3-weekly batch model'!$B$12*'3-weekly batch model'!Q74 -> 
A88: Extra Water cost for new H-S | C88: ='Economic analysis for each pig'!$B$34*'3-weekly batch model'!$B$12*'3-weekly batch model'!C74 ->  | D88: ='Economic analysis for each pig'!$B$34*'3-weekly batch model'!$B$12*'3-weekly batch model'!D74 ->  | E88: ='Economic analysis for each pig'!$B$34*'3-weekly batch model'!$B$12*'3-weekly batch model'!E74 ->  | F88: ='Economic analysis for each pig'!$B$34*'3-weekly batch model'!$B$12*'3-weekly batch model'!F74 ->  | G88: ='Economic analysis for each pig'!$B$34*'3-weekly batch model'!$B$12*'3-weekly batch model'!G74 ->  | H88: ='Economic analysis for each pig'!$B$34*'3-weekly batch model'!$B$12*'3-weekly batch model'!H74 ->  | I88: ='Economic analysis for each pig'!$B$34*'3-weekly batch model'!$B$12*'3-weekly batch model'!I74 ->  | J88: ='Economic analysis for each pig'!$B$34*'3-weekly batch model'!$B$12*'3-weekly batch model'!J74 ->  | K88: ='Economic analysis for each pig'!$B$34*'3-weekly batch model'!$B$12*'3-weekly batch model'!K74 ->  | L88: ='Economic analysis for each pig'!$B$34*'3-weekly batch model'!$B$12*'3-weekly batch model'!L74 ->  | M88: ='Economic analysis for each pig'!$B$34*'3-weekly batch model'!$B$12*'3-weekly batch model'!M74 ->  | N88: ='Economic analysis for each pig'!$B$34*'3-weekly batch model'!$B$12*'3-weekly batch model'!N74 ->  | O88: ='Economic analysis for each pig'!$B$34*'3-weekly batch model'!$B$12*'3-weekly batch model'!O74 ->  | P88: ='Economic analysis for each pig'!$B$34*'3-weekly batch model'!$B$12*'3-weekly batch model'!P74 ->  | Q88: ='Economic analysis for each pig'!$B$34*'3-weekly batch model'!$B$12*'3-weekly batch model'!Q74 -> 
A89: Extra Straw & bedding cost for new H-S | C89: ='Economic analysis for each pig'!$B$35*'3-weekly batch model'!$B$12*'3-weekly batch model'!C74 ->  | D89: ='Economic analysis for each pig'!$B$35*'3-weekly batch model'!$B$12*'3-weekly batch model'!D74 ->  | E89: ='Economic analysis for each pig'!$B$35*'3-weekly batch model'!$B$12*'3-weekly batch model'!E74 ->  | F89: ='Economic analysis for each pig'!$B$35*'3-weekly batch model'!$B$12*'3-weekly batch model'!F74 ->  | G89: ='Economic analysis for each pig'!$B$35*'3-weekly batch model'!$B$12*'3-weekly batch model'!G74 ->  | H89: ='Economic analysis for each pig'!$B$35*'3-weekly batch model'!$B$12*'3-weekly batch model'!H74 ->  | I89: ='Economic analysis for each pig'!$B$35*'3-weekly batch model'!$B$12*'3-weekly batch model'!I74 ->  | J89: ='Economic analysis for each pig'!$B$35*'3-weekly batch model'!$B$12*'3-weekly batch model'!J74 ->  | K89: ='Economic analysis for each pig'!$B$35*'3-weekly batch model'!$B$12*'3-weekly batch model'!K74 ->  | L89: ='Economic analysis for each pig'!$B$35*'3-weekly batch model'!$B$12*'3-weekly batch model'!L74 ->  | M89: ='Economic analysis for each pig'!$B$35*'3-weekly batch model'!$B$12*'3-weekly batch model'!M74 ->  | N89: ='Economic analysis for each pig'!$B$35*'3-weekly batch model'!$B$12*'3-weekly batch model'!N74 ->  | O89: ='Economic analysis for each pig'!$B$35*'3-weekly batch model'!$B$12*'3-weekly batch model'!O74 ->  | P89: ='Economic analysis for each pig'!$B$35*'3-weekly batch model'!$B$12*'3-weekly batch model'!P74 ->  | Q89: ='Economic analysis for each pig'!$B$35*'3-weekly batch model'!$B$12*'3-weekly batch model'!Q74 -> 
A90: Extra transport cost for new H-S | C90: ='Economic analysis for each pig'!$B$32*'3-weekly batch model'!$B$12*'3-weekly batch model'!C74 ->  | D90: ='Economic analysis for each pig'!$B$32*'3-weekly batch model'!$B$12*'3-weekly batch model'!D74 ->  | E90: ='Economic analysis for each pig'!$B$32*'3-weekly batch model'!$B$12*'3-weekly batch model'!E74 ->  | F90: ='Economic analysis for each pig'!$B$32*'3-weekly batch model'!$B$12*'3-weekly batch model'!F74 ->  | G90: ='Economic analysis for each pig'!$B$32*'3-weekly batch model'!$B$12*'3-weekly batch model'!G74 ->  | H90: ='Economic analysis for each pig'!$B$32*'3-weekly batch model'!$B$12*'3-weekly batch model'!H74 ->  | I90: ='Economic analysis for each pig'!$B$32*'3-weekly batch model'!$B$12*'3-weekly batch model'!I74 ->  | J90: ='Economic analysis for each pig'!$B$32*'3-weekly batch model'!$B$12*'3-weekly batch model'!J74 ->  | K90: ='Economic analysis for each pig'!$B$32*'3-weekly batch model'!$B$12*'3-weekly batch model'!K74 ->  | L90: ='Economic analysis for each pig'!$B$32*'3-weekly batch model'!$B$12*'3-weekly batch model'!L74 ->  | M90: ='Economic analysis for each pig'!$B$32*'3-weekly batch model'!$B$12*'3-weekly batch model'!M74 ->  | N90: ='Economic analysis for each pig'!$B$32*'3-weekly batch model'!$B$12*'3-weekly batch model'!N74 ->  | O90: ='Economic analysis for each pig'!$B$32*'3-weekly batch model'!$B$12*'3-weekly batch model'!O74 ->  | P90: ='Economic analysis for each pig'!$B$32*'3-weekly batch model'!$B$12*'3-weekly batch model'!P74 ->  | Q90: ='Economic analysis for each pig'!$B$32*'3-weekly batch model'!$B$12*'3-weekly batch model'!Q74 -> 
A92: Revenue forgone
A93: Revenue from PMWS-S carcass | C93: ='Economic analysis for each pig'!$J$84*'3-weekly batch model'!$B$12*'3-weekly batch model'!C76*-1 ->  | D93: ='Economic analysis for each pig'!$J$84*'3-weekly batch model'!$B$12*'3-weekly batch model'!D76*-1 ->  | E93: ='Economic analysis for each pig'!$J$84*'3-weekly batch model'!$B$12*'3-weekly batch model'!E76*-1 ->  | F93: ='Economic analysis for each pig'!$J$84*'3-weekly batch model'!$B$12*'3-weekly batch model'!F76*-1 ->  | G93: ='Economic analysis for each pig'!$J$84*'3-weekly batch model'!$B$12*'3-weekly batch model'!G76*-1 ->  | H93: ='Economic analysis for each pig'!$J$84*'3-weekly batch model'!$B$12*'3-weekly batch model'!H76*-1 ->  | I93: ='Economic analysis for each pig'!$J$84*'3-weekly batch model'!$B$12*'3-weekly batch model'!I76*-1 ->  | J93: ='Economic analysis for each pig'!$J$84*'3-weekly batch model'!$B$12*'3-weekly batch model'!J76*-1 ->  | K93: ='Economic analysis for each pig'!$J$84*'3-weekly batch model'!$B$12*'3-weekly batch model'!K76*-1 ->  | L93: ='Economic analysis for each pig'!$J$84*'3-weekly batch model'!$B$12*'3-weekly batch model'!L76*-1 ->  | M93: ='Economic analysis for each pig'!$J$84*'3-weekly batch model'!$B$12*'3-weekly batch model'!M76*-1 ->  | N93: ='Economic analysis for each pig'!$J$84*'3-weekly batch model'!$B$12*'3-weekly batch model'!N76*-1 ->  | O93: ='Economic analysis for each pig'!$J$84*'3-weekly batch model'!$B$12*'3-weekly batch model'!O76*-1 ->  | P93: ='Economic analysis for each pig'!$J$84*'3-weekly batch model'!$B$12*'3-weekly batch model'!P76*-1 ->  | Q93: ='Economic analysis for each pig'!$J$84*'3-weekly batch model'!$B$12*'3-weekly batch model'!Q76*-1 -> 
A94: Revenue from PCV2-S carcass | C94: ='Economic analysis for each pig'!$J$132*'3-weekly batch model'!$B$12*'3-weekly batch model'!C78*-1 ->  | D94: ='Economic analysis for each pig'!$J$132*'3-weekly batch model'!$B$12*'3-weekly batch model'!D78*-1 ->  | E94: ='Economic analysis for each pig'!$J$132*'3-weekly batch model'!$B$12*'3-weekly batch model'!E78*-1 ->  | F94: ='Economic analysis for each pig'!$J$132*'3-weekly batch model'!$B$12*'3-weekly batch model'!F78*-1 ->  | G94: ='Economic analysis for each pig'!$J$132*'3-weekly batch model'!$B$12*'3-weekly batch model'!G78*-1 ->  | H94: ='Economic analysis for each pig'!$J$132*'3-weekly batch model'!$B$12*'3-weekly batch model'!H78*-1 ->  | I94: ='Economic analysis for each pig'!$J$132*'3-weekly batch model'!$B$12*'3-weekly batch model'!I78*-1 ->  | J94: ='Economic analysis for each pig'!$J$132*'3-weekly batch model'!$B$12*'3-weekly batch model'!J78*-1 ->  | K94: ='Economic analysis for each pig'!$J$132*'3-weekly batch model'!$B$12*'3-weekly batch model'!K78*-1 ->  | L94: ='Economic analysis for each pig'!$J$132*'3-weekly batch model'!$B$12*'3-weekly batch model'!L78*-1 ->  | M94: ='Economic analysis for each pig'!$J$132*'3-weekly batch model'!$B$12*'3-weekly batch model'!M78*-1 ->  | N94: ='Economic analysis for each pig'!$J$132*'3-weekly batch model'!$B$12*'3-weekly batch model'!N78*-1 ->  | O94: ='Economic analysis for each pig'!$J$132*'3-weekly batch model'!$B$12*'3-weekly batch model'!O78*-1 ->  | P94: ='Economic analysis for each pig'!$J$132*'3-weekly batch model'!$B$12*'3-weekly batch model'!P78*-1 ->  | Q94: ='Economic analysis for each pig'!$J$132*'3-weekly batch model'!$B$12*'3-weekly batch model'!Q78*-1 -> 
A96: Cost saved
A97: Feed saved on PMWS-D | C97: ='Economic analysis for each pig'!$B$61*'3-weekly batch model'!$B$12*'3-weekly batch model'!C75 ->  | D97: ='Economic analysis for each pig'!$B$61*'3-weekly batch model'!$B$12*'3-weekly batch model'!D75 ->  | E97: ='Economic analysis for each pig'!$B$61*'3-weekly batch model'!$B$12*'3-weekly batch model'!E75 ->  | F97: ='Economic analysis for each pig'!$B$61*'3-weekly batch model'!$B$12*'3-weekly batch model'!F75 ->  | G97: ='Economic analysis for each pig'!$B$61*'3-weekly batch model'!$B$12*'3-weekly batch model'!G75 ->  | H97: ='Economic analysis for each pig'!$B$61*'3-weekly batch model'!$B$12*'3-weekly batch model'!H75 ->  | I97: ='Economic analysis for each pig'!$B$61*'3-weekly batch model'!$B$12*'3-weekly batch model'!I75 ->  | J97: ='Economic analysis for each pig'!$B$61*'3-weekly batch model'!$B$12*'3-weekly batch model'!J75 ->  | K97: ='Economic analysis for each pig'!$B$61*'3-weekly batch model'!$B$12*'3-weekly batch model'!K75 ->  | L97: ='Economic analysis for each pig'!$B$61*'3-weekly batch model'!$B$12*'3-weekly batch model'!L75 ->  | M97: ='Economic analysis for each pig'!$B$61*'3-weekly batch model'!$B$12*'3-weekly batch model'!M75 ->  | N97: ='Economic analysis for each pig'!$B$61*'3-weekly batch model'!$B$12*'3-weekly batch model'!N75 ->  | O97: ='Economic analysis for each pig'!$B$61*'3-weekly batch model'!$B$12*'3-weekly batch model'!O75 ->  | P97: ='Economic analysis for each pig'!$B$61*'3-weekly batch model'!$B$12*'3-weekly batch model'!P75 ->  | Q97: ='Economic analysis for each pig'!$B$61*'3-weekly batch model'!$B$12*'3-weekly batch model'!Q75 -> 
A98: Feed saved on PMWS-S | C98: ='Economic analysis for each pig'!$J$87*'3-weekly batch model'!$B$12*'3-weekly batch model'!C76 ->  | D98: ='Economic analysis for each pig'!$J$87*'3-weekly batch model'!$B$12*'3-weekly batch model'!D76 ->  | E98: ='Economic analysis for each pig'!$J$87*'3-weekly batch model'!$B$12*'3-weekly batch model'!E76 ->  | F98: ='Economic analysis for each pig'!$J$87*'3-weekly batch model'!$B$12*'3-weekly batch model'!F76 ->  | G98: ='Economic analysis for each pig'!$J$87*'3-weekly batch model'!$B$12*'3-weekly batch model'!G76 ->  | H98: ='Economic analysis for each pig'!$J$87*'3-weekly batch model'!$B$12*'3-weekly batch model'!H76 ->  | I98: ='Economic analysis for each pig'!$J$87*'3-weekly batch model'!$B$12*'3-weekly batch model'!I76 ->  | J98: ='Economic analysis for each pig'!$J$87*'3-weekly batch model'!$B$12*'3-weekly batch model'!J76 ->  | K98: ='Economic analysis for each pig'!$J$87*'3-weekly batch model'!$B$12*'3-weekly batch model'!K76 ->  | L98: ='Economic analysis for each pig'!$J$87*'3-weekly batch model'!$B$12*'3-weekly batch model'!L76 ->  | M98: ='Economic analysis for each pig'!$J$87*'3-weekly batch model'!$B$12*'3-weekly batch model'!M76 ->  | N98: ='Economic analysis for each pig'!$J$87*'3-weekly batch model'!$B$12*'3-weekly batch model'!N76 ->  | O98: ='Economic analysis for each pig'!$J$87*'3-weekly batch model'!$B$12*'3-weekly batch model'!O76 ->  | P98: ='Economic analysis for each pig'!$J$87*'3-weekly batch model'!$B$12*'3-weekly batch model'!P76 ->  | Q98: ='Economic analysis for each pig'!$J$87*'3-weekly batch model'!$B$12*'3-weekly batch model'!Q76 -> 
A99: Feed saved on PCV2-D | C99: ='Economic analysis for each pig'!$J$111*'3-weekly batch model'!$B$12*'3-weekly batch model'!C77 ->  | D99: ='Economic analysis for each pig'!$J$111*'3-weekly batch model'!$B$12*'3-weekly batch model'!D77 ->  | E99: ='Economic analysis for each pig'!$J$111*'3-weekly batch model'!$B$12*'3-weekly batch model'!E77 ->  | F99: ='Economic analysis for each pig'!$J$111*'3-weekly batch model'!$B$12*'3-weekly batch model'!F77 ->  | G99: ='Economic analysis for each pig'!$J$111*'3-weekly batch model'!$B$12*'3-weekly batch model'!G77 ->  | H99: ='Economic analysis for each pig'!$J$111*'3-weekly batch model'!$B$12*'3-weekly batch model'!H77 ->  | I99: ='Economic analysis for each pig'!$J$111*'3-weekly batch model'!$B$12*'3-weekly batch model'!I77 ->  | J99: ='Economic analysis for each pig'!$J$111*'3-weekly batch model'!$B$12*'3-weekly batch model'!J77 ->  | K99: ='Economic analysis for each pig'!$J$111*'3-weekly batch model'!$B$12*'3-weekly batch model'!K77 ->  | L99: ='Economic analysis for each pig'!$J$111*'3-weekly batch model'!$B$12*'3-weekly batch model'!L77 ->  | M99: ='Economic analysis for each pig'!$J$111*'3-weekly batch model'!$B$12*'3-weekly batch model'!M77 ->  | N99: ='Economic analysis for each pig'!$J$111*'3-weekly batch model'!$B$12*'3-weekly batch model'!N77 ->  | O99: ='Economic analysis for each pig'!$J$111*'3-weekly batch model'!$B$12*'3-weekly batch model'!O77 ->  | P99: ='Economic analysis for each pig'!$J$111*'3-weekly batch model'!$B$12*'3-weekly batch model'!P77 ->  | Q99: ='Economic analysis for each pig'!$J$111*'3-weekly batch model'!$B$12*'3-weekly batch model'!Q77 -> 
A100: feed saved on PCV2-S | C100: ='Economic analysis for each pig'!$J$134*'3-weekly batch model'!$B$12*'3-weekly batch model'!C78 ->  | D100: ='Economic analysis for each pig'!$J$134*'3-weekly batch model'!$B$12*'3-weekly batch model'!D78 ->  | E100: ='Economic analysis for each pig'!$J$134*'3-weekly batch model'!$B$12*'3-weekly batch model'!E78 ->  | F100: ='Economic analysis for each pig'!$J$134*'3-weekly batch model'!$B$12*'3-weekly batch model'!F78 ->  | G100: ='Economic analysis for each pig'!$J$134*'3-weekly batch model'!$B$12*'3-weekly batch model'!G78 ->  | H100: ='Economic analysis for each pig'!$J$134*'3-weekly batch model'!$B$12*'3-weekly batch model'!H78 ->  | I100: ='Economic analysis for each pig'!$J$134*'3-weekly batch model'!$B$12*'3-weekly batch model'!I78 ->  | J100: ='Economic analysis for each pig'!$J$134*'3-weekly batch model'!$B$12*'3-weekly batch model'!J78 ->  | K100: ='Economic analysis for each pig'!$J$134*'3-weekly batch model'!$B$12*'3-weekly batch model'!K78 ->  | L100: ='Economic analysis for each pig'!$J$134*'3-weekly batch model'!$B$12*'3-weekly batch model'!L78 ->  | M100: ='Economic analysis for each pig'!$J$134*'3-weekly batch model'!$B$12*'3-weekly batch model'!M78 ->  | N100: ='Economic analysis for each pig'!$J$134*'3-weekly batch model'!$B$12*'3-weekly batch model'!N78 ->  | O100: ='Economic analysis for each pig'!$J$134*'3-weekly batch model'!$B$12*'3-weekly batch model'!O78 ->  | P100: ='Economic analysis for each pig'!$J$134*'3-weekly batch model'!$B$12*'3-weekly batch model'!P78 ->  | Q100: ='Economic analysis for each pig'!$J$134*'3-weekly batch model'!$B$12*'3-weekly batch model'!Q78 -> 
A101: Vet saved on PMWS-D | C101: ='Economic analysis for each pig'!$J$63*'3-weekly batch model'!$B$12*'3-weekly batch model'!C75 ->  | D101: ='Economic analysis for each pig'!$J$63*'3-weekly batch model'!$B$12*'3-weekly batch model'!D75 ->  | E101: ='Economic analysis for each pig'!$J$63*'3-weekly batch model'!$B$12*'3-weekly batch model'!E75 ->  | F101: ='Economic analysis for each pig'!$J$63*'3-weekly batch model'!$B$12*'3-weekly batch model'!F75 ->  | G101: ='Economic analysis for each pig'!$J$63*'3-weekly batch model'!$B$12*'3-weekly batch model'!G75 ->  | H101: ='Economic analysis for each pig'!$J$63*'3-weekly batch model'!$B$12*'3-weekly batch model'!H75 ->  | I101: ='Economic analysis for each pig'!$J$63*'3-weekly batch model'!$B$12*'3-weekly batch model'!I75 ->  | J101: ='Economic analysis for each pig'!$J$63*'3-weekly batch model'!$B$12*'3-weekly batch model'!J75 ->  | K101: ='Economic analysis for each pig'!$J$63*'3-weekly batch model'!$B$12*'3-weekly batch model'!K75 ->  | L101: ='Economic analysis for each pig'!$J$63*'3-weekly batch model'!$B$12*'3-weekly batch model'!L75 ->  | M101: ='Economic analysis for each pig'!$J$63*'3-weekly batch model'!$B$12*'3-weekly batch model'!M75 ->  | N101: ='Economic analysis for each pig'!$J$63*'3-weekly batch model'!$B$12*'3-weekly batch model'!N75 ->  | O101: ='Economic analysis for each pig'!$J$63*'3-weekly batch model'!$B$12*'3-weekly batch model'!O75 ->  | P101: ='Economic analysis for each pig'!$J$63*'3-weekly batch model'!$B$12*'3-weekly batch model'!P75 ->  | Q101: ='Economic analysis for each pig'!$J$63*'3-weekly batch model'!$B$12*'3-weekly batch model'!Q75 -> 
A102: Vet saved on PMWS-S | C102: ='Economic analysis for each pig'!$J$89*'3-weekly batch model'!$B$12*'3-weekly batch model'!C76 ->  | D102: ='Economic analysis for each pig'!$J$89*'3-weekly batch model'!$B$12*'3-weekly batch model'!D76 ->  | E102: ='Economic analysis for each pig'!$J$89*'3-weekly batch model'!$B$12*'3-weekly batch model'!E76 ->  | F102: ='Economic analysis for each pig'!$J$89*'3-weekly batch model'!$B$12*'3-weekly batch model'!F76 ->  | G102: ='Economic analysis for each pig'!$J$89*'3-weekly batch model'!$B$12*'3-weekly batch model'!G76 ->  | H102: ='Economic analysis for each pig'!$J$89*'3-weekly batch model'!$B$12*'3-weekly batch model'!H76 ->  | I102: ='Economic analysis for each pig'!$J$89*'3-weekly batch model'!$B$12*'3-weekly batch model'!I76 ->  | J102: ='Economic analysis for each pig'!$J$89*'3-weekly batch model'!$B$12*'3-weekly batch model'!J76 ->  | K102: ='Economic analysis for each pig'!$J$89*'3-weekly batch model'!$B$12*'3-weekly batch model'!K76 ->  | L102: ='Economic analysis for each pig'!$J$89*'3-weekly batch model'!$B$12*'3-weekly batch model'!L76 ->  | M102: ='Economic analysis for each pig'!$J$89*'3-weekly batch model'!$B$12*'3-weekly batch model'!M76 ->  | N102: ='Economic analysis for each pig'!$J$89*'3-weekly batch model'!$B$12*'3-weekly batch model'!N76 ->  | O102: ='Economic analysis for each pig'!$J$89*'3-weekly batch model'!$B$12*'3-weekly batch model'!O76 ->  | P102: ='Economic analysis for each pig'!$J$89*'3-weekly batch model'!$B$12*'3-weekly batch model'!P76 ->  | Q102: ='Economic analysis for each pig'!$J$89*'3-weekly batch model'!$B$12*'3-weekly batch model'!Q76 -> 
A103: vet saved on PCV2-D | C103: ='Economic analysis for each pig'!$J$113*'3-weekly batch model'!$B$12*'3-weekly batch model'!C77 ->  | D103: ='Economic analysis for each pig'!$J$113*'3-weekly batch model'!$B$12*'3-weekly batch model'!D77 ->  | E103: ='Economic analysis for each pig'!$J$113*'3-weekly batch model'!$B$12*'3-weekly batch model'!E77 ->  | F103: ='Economic analysis for each pig'!$J$113*'3-weekly batch model'!$B$12*'3-weekly batch model'!F77 ->  | G103: ='Economic analysis for each pig'!$J$113*'3-weekly batch model'!$B$12*'3-weekly batch model'!G77 ->  | H103: ='Economic analysis for each pig'!$J$113*'3-weekly batch model'!$B$12*'3-weekly batch model'!H77 ->  | I103: ='Economic analysis for each pig'!$J$113*'3-weekly batch model'!$B$12*'3-weekly batch model'!I77 ->  | J103: ='Economic analysis for each pig'!$J$113*'3-weekly batch model'!$B$12*'3-weekly batch model'!J77 ->  | K103: ='Economic analysis for each pig'!$J$113*'3-weekly batch model'!$B$12*'3-weekly batch model'!K77 ->  | L103: ='Economic analysis for each pig'!$J$113*'3-weekly batch model'!$B$12*'3-weekly batch model'!L77 ->  | M103: ='Economic analysis for each pig'!$J$113*'3-weekly batch model'!$B$12*'3-weekly batch model'!M77 ->  | N103: ='Economic analysis for each pig'!$J$113*'3-weekly batch model'!$B$12*'3-weekly batch model'!N77 ->  | O103: ='Economic analysis for each pig'!$J$113*'3-weekly batch model'!$B$12*'3-weekly batch model'!O77 ->  | P103: ='Economic analysis for each pig'!$J$113*'3-weekly batch model'!$B$12*'3-weekly batch model'!P77 ->  | Q103: ='Economic analysis for each pig'!$J$113*'3-weekly batch model'!$B$12*'3-weekly batch model'!Q77 -> 
A104: Vet saved on PCV2-S | C104: ='Economic analysis for each pig'!$J$136*'3-weekly batch model'!$B$12*'3-weekly batch model'!C78 ->  | D104: ='Economic analysis for each pig'!$J$136*'3-weekly batch model'!$B$12*'3-weekly batch model'!D78 ->  | E104: ='Economic analysis for each pig'!$J$136*'3-weekly batch model'!$B$12*'3-weekly batch model'!E78 ->  | F104: ='Economic analysis for each pig'!$J$136*'3-weekly batch model'!$B$12*'3-weekly batch model'!F78 ->  | G104: ='Economic analysis for each pig'!$J$136*'3-weekly batch model'!$B$12*'3-weekly batch model'!G78 ->  | H104: ='Economic analysis for each pig'!$J$136*'3-weekly batch model'!$B$12*'3-weekly batch model'!H78 ->  | I104: ='Economic analysis for each pig'!$J$136*'3-weekly batch model'!$B$12*'3-weekly batch model'!I78 ->  | J104: ='Economic analysis for each pig'!$J$136*'3-weekly batch model'!$B$12*'3-weekly batch model'!J78 ->  | K104: ='Economic analysis for each pig'!$J$136*'3-weekly batch model'!$B$12*'3-weekly batch model'!K78 ->  | L104: ='Economic analysis for each pig'!$J$136*'3-weekly batch model'!$B$12*'3-weekly batch model'!L78 ->  | M104: ='Economic analysis for each pig'!$J$136*'3-weekly batch model'!$B$12*'3-weekly batch model'!M78 ->  | N104: ='Economic analysis for each pig'!$J$136*'3-weekly batch model'!$B$12*'3-weekly batch model'!N78 ->  | O104: ='Economic analysis for each pig'!$J$136*'3-weekly batch model'!$B$12*'3-weekly batch model'!O78 ->  | P104: ='Economic analysis for each pig'!$J$136*'3-weekly batch model'!$B$12*'3-weekly batch model'!P78 ->  | Q104: ='Economic analysis for each pig'!$J$136*'3-weekly batch model'!$B$12*'3-weekly batch model'!Q78 -> 
A105: Electricity saved on PMWS-D | C105: ='Economic analysis for each pig'!$J$64*'3-weekly batch model'!$B$12*'3-weekly batch model'!C75 ->  | D105: ='Economic analysis for each pig'!$J$64*'3-weekly batch model'!$B$12*'3-weekly batch model'!D75 ->  | E105: ='Economic analysis for each pig'!$J$64*'3-weekly batch model'!$B$12*'3-weekly batch model'!E75 ->  | F105: ='Economic analysis for each pig'!$J$64*'3-weekly batch model'!$B$12*'3-weekly batch model'!F75 ->  | G105: ='Economic analysis for each pig'!$J$64*'3-weekly batch model'!$B$12*'3-weekly batch model'!G75 ->  | H105: ='Economic analysis for each pig'!$J$64*'3-weekly batch model'!$B$12*'3-weekly batch model'!H75 ->  | I105: ='Economic analysis for each pig'!$J$64*'3-weekly batch model'!$B$12*'3-weekly batch model'!I75 ->  | J105: ='Economic analysis for each pig'!$J$64*'3-weekly batch model'!$B$12*'3-weekly batch model'!J75 ->  | K105: ='Economic analysis for each pig'!$J$64*'3-weekly batch model'!$B$12*'3-weekly batch model'!K75 ->  | L105: ='Economic analysis for each pig'!$J$64*'3-weekly batch model'!$B$12*'3-weekly batch model'!L75 ->  | M105: ='Economic analysis for each pig'!$J$64*'3-weekly batch model'!$B$12*'3-weekly batch model'!M75 ->  | N105: ='Economic analysis for each pig'!$J$64*'3-weekly batch model'!$B$12*'3-weekly batch model'!N75 ->  | O105: ='Economic analysis for each pig'!$J$64*'3-weekly batch model'!$B$12*'3-weekly batch model'!O75 ->  | P105: ='Economic analysis for each pig'!$J$64*'3-weekly batch model'!$B$12*'3-weekly batch model'!P75 ->  | Q105: ='Economic analysis for each pig'!$J$64*'3-weekly batch model'!$B$12*'3-weekly batch model'!Q75 -> 
A106: Electricy saved on PMWS-S | C106: ='Economic analysis for each pig'!$J$91*'3-weekly batch model'!$B$12*'3-weekly batch model'!C76 ->  | D106: ='Economic analysis for each pig'!$J$91*'3-weekly batch model'!$B$12*'3-weekly batch model'!D76 ->  | E106: ='Economic analysis for each pig'!$J$91*'3-weekly batch model'!$B$12*'3-weekly batch model'!E76 ->  | F106: ='Economic analysis for each pig'!$J$91*'3-weekly batch model'!$B$12*'3-weekly batch model'!F76 ->  | G106: ='Economic analysis for each pig'!$J$91*'3-weekly batch model'!$B$12*'3-weekly batch model'!G76 ->  | H106: ='Economic analysis for each pig'!$J$91*'3-weekly batch model'!$B$12*'3-weekly batch model'!H76 ->  | I106: ='Economic analysis for each pig'!$J$91*'3-weekly batch model'!$B$12*'3-weekly batch model'!I76 ->  | J106: ='Economic analysis for each pig'!$J$91*'3-weekly batch model'!$B$12*'3-weekly batch model'!J76 ->  | K106: ='Economic analysis for each pig'!$J$91*'3-weekly batch model'!$B$12*'3-weekly batch model'!K76 ->  | L106: ='Economic analysis for each pig'!$J$91*'3-weekly batch model'!$B$12*'3-weekly batch model'!L76 ->  | M106: ='Economic analysis for each pig'!$J$91*'3-weekly batch model'!$B$12*'3-weekly batch model'!M76 ->  | N106: ='Economic analysis for each pig'!$J$91*'3-weekly batch model'!$B$12*'3-weekly batch model'!N76 ->  | O106: ='Economic analysis for each pig'!$J$91*'3-weekly batch model'!$B$12*'3-weekly batch model'!O76 ->  | P106: ='Economic analysis for each pig'!$J$91*'3-weekly batch model'!$B$12*'3-weekly batch model'!P76 ->  | Q106: ='Economic analysis for each pig'!$J$91*'3-weekly batch model'!$B$12*'3-weekly batch model'!Q76 -> 
A107: Electricity saved on PCV2-D | C107: ='Economic analysis for each pig'!$J$114*'3-weekly batch model'!$B$12*'3-weekly batch model'!C77 ->  | D107: ='Economic analysis for each pig'!$J$114*'3-weekly batch model'!$B$12*'3-weekly batch model'!D77 ->  | E107: ='Economic analysis for each pig'!$J$114*'3-weekly batch model'!$B$12*'3-weekly batch model'!E77 ->  | F107: ='Economic analysis for each pig'!$J$114*'3-weekly batch model'!$B$12*'3-weekly batch model'!F77 ->  | G107: ='Economic analysis for each pig'!$J$114*'3-weekly batch model'!$B$12*'3-weekly batch model'!G77 ->  | H107: ='Economic analysis for each pig'!$J$114*'3-weekly batch model'!$B$12*'3-weekly batch model'!H77 ->  | I107: ='Economic analysis for each pig'!$J$114*'3-weekly batch model'!$B$12*'3-weekly batch model'!I77 ->  | J107: ='Economic analysis for each pig'!$J$114*'3-weekly batch model'!$B$12*'3-weekly batch model'!J77 ->  | K107: ='Economic analysis for each pig'!$J$114*'3-weekly batch model'!$B$12*'3-weekly batch model'!K77 ->  | L107: ='Economic analysis for each pig'!$J$114*'3-weekly batch model'!$B$12*'3-weekly batch model'!L77 ->  | M107: ='Economic analysis for each pig'!$J$114*'3-weekly batch model'!$B$12*'3-weekly batch model'!M77 ->  | N107: ='Economic analysis for each pig'!$J$114*'3-weekly batch model'!$B$12*'3-weekly batch model'!N77 ->  | O107: ='Economic analysis for each pig'!$J$114*'3-weekly batch model'!$B$12*'3-weekly batch model'!O77 ->  | P107: ='Economic analysis for each pig'!$J$114*'3-weekly batch model'!$B$12*'3-weekly batch model'!P77 ->  | Q107: ='Economic analysis for each pig'!$J$114*'3-weekly batch model'!$B$12*'3-weekly batch model'!Q77 -> 
A108: Electricity saved on PCV2-S | C108: ='Economic analysis for each pig'!$J$138*'3-weekly batch model'!$B$12*'3-weekly batch model'!C78 ->  | D108: ='Economic analysis for each pig'!$J$138*'3-weekly batch model'!$B$12*'3-weekly batch model'!D78 ->  | E108: ='Economic analysis for each pig'!$J$138*'3-weekly batch model'!$B$12*'3-weekly batch model'!E78 ->  | F108: ='Economic analysis for each pig'!$J$138*'3-weekly batch model'!$B$12*'3-weekly batch model'!F78 ->  | G108: ='Economic analysis for each pig'!$J$138*'3-weekly batch model'!$B$12*'3-weekly batch model'!G78 ->  | H108: ='Economic analysis for each pig'!$J$138*'3-weekly batch model'!$B$12*'3-weekly batch model'!H78 ->  | I108: ='Economic analysis for each pig'!$J$138*'3-weekly batch model'!$B$12*'3-weekly batch model'!I78 ->  | J108: ='Economic analysis for each pig'!$J$138*'3-weekly batch model'!$B$12*'3-weekly batch model'!J78 ->  | K108: ='Economic analysis for each pig'!$J$138*'3-weekly batch model'!$B$12*'3-weekly batch model'!K78 ->  | L108: ='Economic analysis for each pig'!$J$138*'3-weekly batch model'!$B$12*'3-weekly batch model'!L78 ->  | M108: ='Economic analysis for each pig'!$J$138*'3-weekly batch model'!$B$12*'3-weekly batch model'!M78 ->  | N108: ='Economic analysis for each pig'!$J$138*'3-weekly batch model'!$B$12*'3-weekly batch model'!N78 ->  | O108: ='Economic analysis for each pig'!$J$138*'3-weekly batch model'!$B$12*'3-weekly batch model'!O78 ->  | P108: ='Economic analysis for each pig'!$J$138*'3-weekly batch model'!$B$12*'3-weekly batch model'!P78 ->  | Q108: ='Economic analysis for each pig'!$J$138*'3-weekly batch model'!$B$12*'3-weekly batch model'!Q78 -> 
A109: Water saved on PMWS-D | C109: ='Economic analysis for each pig'!$J$65*'3-weekly batch model'!$B$12*'3-weekly batch model'!C75 ->  | D109: ='Economic analysis for each pig'!$J$65*'3-weekly batch model'!$B$12*'3-weekly batch model'!D75 ->  | E109: ='Economic analysis for each pig'!$J$65*'3-weekly batch model'!$B$12*'3-weekly batch model'!E75 ->  | F109: ='Economic analysis for each pig'!$J$65*'3-weekly batch model'!$B$12*'3-weekly batch model'!F75 ->  | G109: ='Economic analysis for each pig'!$J$65*'3-weekly batch model'!$B$12*'3-weekly batch model'!G75 ->  | H109: ='Economic analysis for each pig'!$J$65*'3-weekly batch model'!$B$12*'3-weekly batch model'!H75 ->  | I109: ='Economic analysis for each pig'!$J$65*'3-weekly batch model'!$B$12*'3-weekly batch model'!I75 ->  | J109: ='Economic analysis for each pig'!$J$65*'3-weekly batch model'!$B$12*'3-weekly batch model'!J75 ->  | K109: ='Economic analysis for each pig'!$J$65*'3-weekly batch model'!$B$12*'3-weekly batch model'!K75 ->  | L109: ='Economic analysis for each pig'!$J$65*'3-weekly batch model'!$B$12*'3-weekly batch model'!L75 ->  | M109: ='Economic analysis for each pig'!$J$65*'3-weekly batch model'!$B$12*'3-weekly batch model'!M75 ->  | N109: ='Economic analysis for each pig'!$J$65*'3-weekly batch model'!$B$12*'3-weekly batch model'!N75 ->  | O109: ='Economic analysis for each pig'!$J$65*'3-weekly batch model'!$B$12*'3-weekly batch model'!O75 ->  | P109: ='Economic analysis for each pig'!$J$65*'3-weekly batch model'!$B$12*'3-weekly batch model'!P75 ->  | Q109: ='Economic analysis for each pig'!$J$65*'3-weekly batch model'!$B$12*'3-weekly batch model'!Q75 -> 
A110: Water saved on PMWS-S | C110: ='Economic analysis for each pig'!$J$92*'3-weekly batch model'!$B$12*'3-weekly batch model'!C76 ->  | D110: ='Economic analysis for each pig'!$J$92*'3-weekly batch model'!$B$12*'3-weekly batch model'!D76 ->  | E110: ='Economic analysis for each pig'!$J$92*'3-weekly batch model'!$B$12*'3-weekly batch model'!E76 ->  | F110: ='Economic analysis for each pig'!$J$92*'3-weekly batch model'!$B$12*'3-weekly batch model'!F76 ->  | G110: ='Economic analysis for each pig'!$J$92*'3-weekly batch model'!$B$12*'3-weekly batch model'!G76 ->  | H110: ='Economic analysis for each pig'!$J$92*'3-weekly batch model'!$B$12*'3-weekly batch model'!H76 ->  | I110: ='Economic analysis for each pig'!$J$92*'3-weekly batch model'!$B$12*'3-weekly batch model'!I76 ->  | J110: ='Economic analysis for each pig'!$J$92*'3-weekly batch model'!$B$12*'3-weekly batch model'!J76 ->  | K110: ='Economic analysis for each pig'!$J$92*'3-weekly batch model'!$B$12*'3-weekly batch model'!K76 ->  | L110: ='Economic analysis for each pig'!$J$92*'3-weekly batch model'!$B$12*'3-weekly batch model'!L76 ->  | M110: ='Economic analysis for each pig'!$J$92*'3-weekly batch model'!$B$12*'3-weekly batch model'!M76 ->  | N110: ='Economic analysis for each pig'!$J$92*'3-weekly batch model'!$B$12*'3-weekly batch model'!N76 ->  | O110: ='Economic analysis for each pig'!$J$92*'3-weekly batch model'!$B$12*'3-weekly batch model'!O76 ->  | P110: ='Economic analysis for each pig'!$J$92*'3-weekly batch model'!$B$12*'3-weekly batch model'!P76 ->  | Q110: ='Economic analysis for each pig'!$J$92*'3-weekly batch model'!$B$12*'3-weekly batch model'!Q76 -> 
A111: Water saved on PCV2-D | C111: ='Economic analysis for each pig'!$J$114*'3-weekly batch model'!$B$12*'3-weekly batch model'!C77 ->  | D111: ='Economic analysis for each pig'!$J$114*'3-weekly batch model'!$B$12*'3-weekly batch model'!D77 ->  | E111: ='Economic analysis for each pig'!$J$114*'3-weekly batch model'!$B$12*'3-weekly batch model'!E77 ->  | F111: ='Economic analysis for each pig'!$J$114*'3-weekly batch model'!$B$12*'3-weekly batch model'!F77 ->  | G111: ='Economic analysis for each pig'!$J$114*'3-weekly batch model'!$B$12*'3-weekly batch model'!G77 ->  | H111: ='Economic analysis for each pig'!$J$114*'3-weekly batch model'!$B$12*'3-weekly batch model'!H77 ->  | I111: ='Economic analysis for each pig'!$J$114*'3-weekly batch model'!$B$12*'3-weekly batch model'!I77 ->  | J111: ='Economic analysis for each pig'!$J$114*'3-weekly batch model'!$B$12*'3-weekly batch model'!J77 ->  | K111: ='Economic analysis for each pig'!$J$114*'3-weekly batch model'!$B$12*'3-weekly batch model'!K77 ->  | L111: ='Economic analysis for each pig'!$J$114*'3-weekly batch model'!$B$12*'3-weekly batch model'!L77 ->  | M111: ='Economic analysis for each pig'!$J$114*'3-weekly batch model'!$B$12*'3-weekly batch model'!M77 ->  | N111: ='Economic analysis for each pig'!$J$114*'3-weekly batch model'!$B$12*'3-weekly batch model'!N77 ->  | O111: ='Economic analysis for each pig'!$J$114*'3-weekly batch model'!$B$12*'3-weekly batch model'!O77 ->  | P111: ='Economic analysis for each pig'!$J$114*'3-weekly batch model'!$B$12*'3-weekly batch model'!P77 ->  | Q111: ='Economic analysis for each pig'!$J$114*'3-weekly batch model'!$B$12*'3-weekly batch model'!Q77 -> 
A112: Water saved on PCV2-S | C112: ='Economic analysis for each pig'!$J$138*'3-weekly batch model'!$B$12*'3-weekly batch model'!C78 ->  | D112: ='Economic analysis for each pig'!$J$138*'3-weekly batch model'!$B$12*'3-weekly batch model'!D78 ->  | E112: ='Economic analysis for each pig'!$J$138*'3-weekly batch model'!$B$12*'3-weekly batch model'!E78 ->  | F112: ='Economic analysis for each pig'!$J$138*'3-weekly batch model'!$B$12*'3-weekly batch model'!F78 ->  | G112: ='Economic analysis for each pig'!$J$138*'3-weekly batch model'!$B$12*'3-weekly batch model'!G78 ->  | H112: ='Economic analysis for each pig'!$J$138*'3-weekly batch model'!$B$12*'3-weekly batch model'!H78 ->  | I112: ='Economic analysis for each pig'!$J$138*'3-weekly batch model'!$B$12*'3-weekly batch model'!I78 ->  | J112: ='Economic analysis for each pig'!$J$138*'3-weekly batch model'!$B$12*'3-weekly batch model'!J78 ->  | K112: ='Economic analysis for each pig'!$J$138*'3-weekly batch model'!$B$12*'3-weekly batch model'!K78 ->  | L112: ='Economic analysis for each pig'!$J$138*'3-weekly batch model'!$B$12*'3-weekly batch model'!L78 ->  | M112: ='Economic analysis for each pig'!$J$138*'3-weekly batch model'!$B$12*'3-weekly batch model'!M78 ->  | N112: ='Economic analysis for each pig'!$J$138*'3-weekly batch model'!$B$12*'3-weekly batch model'!N78 ->  | O112: ='Economic analysis for each pig'!$J$138*'3-weekly batch model'!$B$12*'3-weekly batch model'!O78 ->  | P112: ='Economic analysis for each pig'!$J$138*'3-weekly batch model'!$B$12*'3-weekly batch model'!P78 ->  | Q112: ='Economic analysis for each pig'!$J$138*'3-weekly batch model'!$B$12*'3-weekly batch model'!Q78 -> 
A113: S&B saved on PMWS-D | C113: ='Economic analysis for each pig'!$J$66*'3-weekly batch model'!$B$12*'3-weekly batch model'!C75 ->  | D113: ='Economic analysis for each pig'!$J$66*'3-weekly batch model'!$B$12*'3-weekly batch model'!D75 ->  | E113: ='Economic analysis for each pig'!$J$66*'3-weekly batch model'!$B$12*'3-weekly batch model'!E75 ->  | F113: ='Economic analysis for each pig'!$J$66*'3-weekly batch model'!$B$12*'3-weekly batch model'!F75 ->  | G113: ='Economic analysis for each pig'!$J$66*'3-weekly batch model'!$B$12*'3-weekly batch model'!G75 ->  | H113: ='Economic analysis for each pig'!$J$66*'3-weekly batch model'!$B$12*'3-weekly batch model'!H75 ->  | I113: ='Economic analysis for each pig'!$J$66*'3-weekly batch model'!$B$12*'3-weekly batch model'!I75 ->  | J113: ='Economic analysis for each pig'!$J$66*'3-weekly batch model'!$B$12*'3-weekly batch model'!J75 ->  | K113: ='Economic analysis for each pig'!$J$66*'3-weekly batch model'!$B$12*'3-weekly batch model'!K75 ->  | L113: ='Economic analysis for each pig'!$J$66*'3-weekly batch model'!$B$12*'3-weekly batch model'!L75 ->  | M113: ='Economic analysis for each pig'!$J$66*'3-weekly batch model'!$B$12*'3-weekly batch model'!M75 ->  | N113: ='Economic analysis for each pig'!$J$66*'3-weekly batch model'!$B$12*'3-weekly batch model'!N75 ->  | O113: ='Economic analysis for each pig'!$J$66*'3-weekly batch model'!$B$12*'3-weekly batch model'!O75 ->  | P113: ='Economic analysis for each pig'!$J$66*'3-weekly batch model'!$B$12*'3-weekly batch model'!P75 ->  | Q113: ='Economic analysis for each pig'!$J$66*'3-weekly batch model'!$B$12*'3-weekly batch model'!Q75 -> 
A114: S&B saved on PMWS-S | C114: ='Economic analysis for each pig'!$J$93*'3-weekly batch model'!$B$12*C76 ->  | D114: ='Economic analysis for each pig'!$J$93*'3-weekly batch model'!$B$12*D76 ->  | E114: ='Economic analysis for each pig'!$J$93*'3-weekly batch model'!$B$12*E76 ->  | F114: ='Economic analysis for each pig'!$J$93*'3-weekly batch model'!$B$12*F76 ->  | G114: ='Economic analysis for each pig'!$J$93*'3-weekly batch model'!$B$12*G76 ->  | H114: ='Economic analysis for each pig'!$J$93*'3-weekly batch model'!$B$12*H76 ->  | I114: ='Economic analysis for each pig'!$J$93*'3-weekly batch model'!$B$12*I76 ->  | J114: ='Economic analysis for each pig'!$J$93*'3-weekly batch model'!$B$12*J76 ->  | K114: ='Economic analysis for each pig'!$J$93*'3-weekly batch model'!$B$12*K76 ->  | L114: ='Economic analysis for each pig'!$J$93*'3-weekly batch model'!$B$12*L76 ->  | M114: ='Economic analysis for each pig'!$J$93*'3-weekly batch model'!$B$12*M76 ->  | N114: ='Economic analysis for each pig'!$J$93*'3-weekly batch model'!$B$12*N76 ->  | O114: ='Economic analysis for each pig'!$J$93*'3-weekly batch model'!$B$12*O76 ->  | P114: ='Economic analysis for each pig'!$J$93*'3-weekly batch model'!$B$12*P76 ->  | Q114: ='Economic analysis for each pig'!$J$93*'3-weekly batch model'!$B$12*Q76 -> 
A115: S&B saved on PCV2-D | C115: ='Economic analysis for each pig'!$J$116*'3-weekly batch model'!$B$12*C77 ->  | D115: ='Economic analysis for each pig'!$J$116*'3-weekly batch model'!$B$12*D77 ->  | E115: ='Economic analysis for each pig'!$J$116*'3-weekly batch model'!$B$12*E77 ->  | F115: ='Economic analysis for each pig'!$J$116*'3-weekly batch model'!$B$12*F77 ->  | G115: ='Economic analysis for each pig'!$J$116*'3-weekly batch model'!$B$12*G77 ->  | H115: ='Economic analysis for each pig'!$J$116*'3-weekly batch model'!$B$12*H77 ->  | I115: ='Economic analysis for each pig'!$J$116*'3-weekly batch model'!$B$12*I77 ->  | J115: ='Economic analysis for each pig'!$J$116*'3-weekly batch model'!$B$12*J77 ->  | K115: ='Economic analysis for each pig'!$J$116*'3-weekly batch model'!$B$12*K77 ->  | L115: ='Economic analysis for each pig'!$J$116*'3-weekly batch model'!$B$12*L77 ->  | M115: ='Economic analysis for each pig'!$J$116*'3-weekly batch model'!$B$12*M77 ->  | N115: ='Economic analysis for each pig'!$J$116*'3-weekly batch model'!$B$12*N77 ->  | O115: ='Economic analysis for each pig'!$J$116*'3-weekly batch model'!$B$12*O77 ->  | P115: ='Economic analysis for each pig'!$J$116*'3-weekly batch model'!$B$12*P77 ->  | Q115: ='Economic analysis for each pig'!$J$116*'3-weekly batch model'!$B$12*Q77 -> 
A116: S&B saved on PCV2-S | C116: ='Economic analysis for each pig'!$J$140*'3-weekly batch model'!$B$12*C78 ->  | D116: ='Economic analysis for each pig'!$J$140*'3-weekly batch model'!$B$12*D78 ->  | E116: ='Economic analysis for each pig'!$J$140*'3-weekly batch model'!$B$12*E78 ->  | F116: ='Economic analysis for each pig'!$J$140*'3-weekly batch model'!$B$12*F78 ->  | G116: ='Economic analysis for each pig'!$J$140*'3-weekly batch model'!$B$12*G78 ->  | H116: ='Economic analysis for each pig'!$J$140*'3-weekly batch model'!$B$12*H78 ->  | I116: ='Economic analysis for each pig'!$J$140*'3-weekly batch model'!$B$12*I78 ->  | J116: ='Economic analysis for each pig'!$J$140*'3-weekly batch model'!$B$12*J78 ->  | K116: ='Economic analysis for each pig'!$J$140*'3-weekly batch model'!$B$12*K78 ->  | L116: ='Economic analysis for each pig'!$J$140*'3-weekly batch model'!$B$12*L78 ->  | M116: ='Economic analysis for each pig'!$J$140*'3-weekly batch model'!$B$12*M78 ->  | N116: ='Economic analysis for each pig'!$J$140*'3-weekly batch model'!$B$12*N78 ->  | O116: ='Economic analysis for each pig'!$J$140*'3-weekly batch model'!$B$12*O78 ->  | P116: ='Economic analysis for each pig'!$J$140*'3-weekly batch model'!$B$12*P78 ->  | Q116: ='Economic analysis for each pig'!$J$140*'3-weekly batch model'!$B$12*Q78 -> 
A117: transport saved on PMWS-S | C117: ='Economic analysis for each pig'!$J$94*'3-weekly batch model'!$B$12*C76 ->  | D117: ='Economic analysis for each pig'!$J$94*'3-weekly batch model'!$B$12*D76 ->  | E117: ='Economic analysis for each pig'!$J$94*'3-weekly batch model'!$B$12*E76 ->  | F117: ='Economic analysis for each pig'!$J$94*'3-weekly batch model'!$B$12*F76 ->  | G117: ='Economic analysis for each pig'!$J$94*'3-weekly batch model'!$B$12*G76 ->  | H117: ='Economic analysis for each pig'!$J$94*'3-weekly batch model'!$B$12*H76 ->  | I117: ='Economic analysis for each pig'!$J$94*'3-weekly batch model'!$B$12*I76 ->  | J117: ='Economic analysis for each pig'!$J$94*'3-weekly batch model'!$B$12*J76 ->  | K117: ='Economic analysis for each pig'!$J$94*'3-weekly batch model'!$B$12*K76 ->  | L117: ='Economic analysis for each pig'!$J$94*'3-weekly batch model'!$B$12*L76 ->  | M117: ='Economic analysis for each pig'!$J$94*'3-weekly batch model'!$B$12*M76 ->  | N117: ='Economic analysis for each pig'!$J$94*'3-weekly batch model'!$B$12*N76 ->  | O117: ='Economic analysis for each pig'!$J$94*'3-weekly batch model'!$B$12*O76 ->  | P117: ='Economic analysis for each pig'!$J$94*'3-weekly batch model'!$B$12*P76 ->  | Q117: ='Economic analysis for each pig'!$J$94*'3-weekly batch model'!$B$12*Q76 -> 
A118: transport saved on PCV2-S | C118: ='Economic analysis for each pig'!$J$141*'3-weekly batch model'!$B$12*C78 ->  | D118: ='Economic analysis for each pig'!$J$141*'3-weekly batch model'!$B$12*D78 ->  | E118: ='Economic analysis for each pig'!$J$141*'3-weekly batch model'!$B$12*E78 ->  | F118: ='Economic analysis for each pig'!$J$141*'3-weekly batch model'!$B$12*F78 ->  | G118: ='Economic analysis for each pig'!$J$141*'3-weekly batch model'!$B$12*G78 ->  | H118: ='Economic analysis for each pig'!$J$141*'3-weekly batch model'!$B$12*H78 ->  | I118: ='Economic analysis for each pig'!$J$141*'3-weekly batch model'!$B$12*I78 ->  | J118: ='Economic analysis for each pig'!$J$141*'3-weekly batch model'!$B$12*J78 ->  | K118: ='Economic analysis for each pig'!$J$141*'3-weekly batch model'!$B$12*K78 ->  | L118: ='Economic analysis for each pig'!$J$141*'3-weekly batch model'!$B$12*L78 ->  | M118: ='Economic analysis for each pig'!$J$141*'3-weekly batch model'!$B$12*M78 ->  | N118: ='Economic analysis for each pig'!$J$141*'3-weekly batch model'!$B$12*N78 ->  | O118: ='Economic analysis for each pig'!$J$141*'3-weekly batch model'!$B$12*O78 ->  | P118: ='Economic analysis for each pig'!$J$141*'3-weekly batch model'!$B$12*P78 ->  | Q118: ='Economic analysis for each pig'!$J$141*'3-weekly batch model'!$B$12*Q78 -> 
A119: Cost saved on carcass disposal on PMWS-D | C119: ='Economic analysis for each pig'!$B$68*'3-weekly batch model'!$B$12*C75 ->  | D119: ='Economic analysis for each pig'!$B$68*'3-weekly batch model'!$B$12*D75 ->  | E119: ='Economic analysis for each pig'!$B$68*'3-weekly batch model'!$B$12*E75 ->  | F119: ='Economic analysis for each pig'!$B$68*'3-weekly batch model'!$B$12*F75 ->  | G119: ='Economic analysis for each pig'!$B$68*'3-weekly batch model'!$B$12*G75 ->  | H119: ='Economic analysis for each pig'!$B$68*'3-weekly batch model'!$B$12*H75 ->  | I119: ='Economic analysis for each pig'!$B$68*'3-weekly batch model'!$B$12*I75 ->  | J119: ='Economic analysis for each pig'!$B$68*'3-weekly batch model'!$B$12*J75 ->  | K119: ='Economic analysis for each pig'!$B$68*'3-weekly batch model'!$B$12*K75 ->  | L119: ='Economic analysis for each pig'!$B$68*'3-weekly batch model'!$B$12*L75 ->  | M119: ='Economic analysis for each pig'!$B$68*'3-weekly batch model'!$B$12*M75 ->  | N119: ='Economic analysis for each pig'!$B$68*'3-weekly batch model'!$B$12*N75 ->  | O119: ='Economic analysis for each pig'!$B$68*'3-weekly batch model'!$B$12*O75 ->  | P119: ='Economic analysis for each pig'!$B$68*'3-weekly batch model'!$B$12*P75 ->  | Q119: ='Economic analysis for each pig'!$B$68*'3-weekly batch model'!$B$12*Q75 -> 
A120: Cost saved on carcass disposal on PCV2-D | C120: ='Economic analysis for each pig'!$B$116*'3-weekly batch model'!$B$12*C77 ->  | D120: ='Economic analysis for each pig'!$B$116*'3-weekly batch model'!$B$12*D77 ->  | E120: ='Economic analysis for each pig'!$B$116*'3-weekly batch model'!$B$12*E77 ->  | F120: ='Economic analysis for each pig'!$B$116*'3-weekly batch model'!$B$12*F77 ->  | G120: ='Economic analysis for each pig'!$B$116*'3-weekly batch model'!$B$12*G77 ->  | H120: ='Economic analysis for each pig'!$B$116*'3-weekly batch model'!$B$12*H77 ->  | I120: ='Economic analysis for each pig'!$B$116*'3-weekly batch model'!$B$12*I77 ->  | J120: ='Economic analysis for each pig'!$B$116*'3-weekly batch model'!$B$12*J77 ->  | K120: ='Economic analysis for each pig'!$B$116*'3-weekly batch model'!$B$12*K77 ->  | L120: ='Economic analysis for each pig'!$B$116*'3-weekly batch model'!$B$12*L77 ->  | M120: ='Economic analysis for each pig'!$B$116*'3-weekly batch model'!$B$12*M77 ->  | N120: ='Economic analysis for each pig'!$B$116*'3-weekly batch model'!$B$12*N77 ->  | O120: ='Economic analysis for each pig'!$B$116*'3-weekly batch model'!$B$12*O77 ->  | P120: ='Economic analysis for each pig'!$B$116*'3-weekly batch model'!$B$12*P77 ->  | Q120: ='Economic analysis for each pig'!$B$116*'3-weekly batch model'!$B$12*Q77 -> 
A122: New revenue
A123: Carcass sold of new H-S | C123: ='Economic analysis for each pig'!$B$46*'3-weekly batch model'!$B$12*'3-weekly batch model'!C74*-1 ->  | D123: ='Economic analysis for each pig'!$B$46*'3-weekly batch model'!$B$12*'3-weekly batch model'!D74*-1 ->  | E123: ='Economic analysis for each pig'!$B$46*'3-weekly batch model'!$B$12*'3-weekly batch model'!E74*-1 ->  | F123: ='Economic analysis for each pig'!$B$46*'3-weekly batch model'!$B$12*'3-weekly batch model'!F74*-1 ->  | G123: ='Economic analysis for each pig'!$B$46*'3-weekly batch model'!$B$12*'3-weekly batch model'!G74*-1 ->  | H123: ='Economic analysis for each pig'!$B$46*'3-weekly batch model'!$B$12*'3-weekly batch model'!H74*-1 ->  | I123: ='Economic analysis for each pig'!$B$46*'3-weekly batch model'!$B$12*'3-weekly batch model'!I74*-1 ->  | J123: ='Economic analysis for each pig'!$B$46*'3-weekly batch model'!$B$12*'3-weekly batch model'!J74*-1 ->  | K123: ='Economic analysis for each pig'!$B$46*'3-weekly batch model'!$B$12*'3-weekly batch model'!K74*-1 ->  | L123: ='Economic analysis for each pig'!$B$46*'3-weekly batch model'!$B$12*'3-weekly batch model'!L74*-1 ->  | M123: ='Economic analysis for each pig'!$B$46*'3-weekly batch model'!$B$12*'3-weekly batch model'!M74*-1 ->  | N123: ='Economic analysis for each pig'!$B$46*'3-weekly batch model'!$B$12*'3-weekly batch model'!N74*-1 ->  | O123: ='Economic analysis for each pig'!$B$46*'3-weekly batch model'!$B$12*'3-weekly batch model'!O74*-1 ->  | P123: ='Economic analysis for each pig'!$B$46*'3-weekly batch model'!$B$12*'3-weekly batch model'!P74*-1 ->  | Q123: ='Economic analysis for each pig'!$B$46*'3-weekly batch model'!$B$12*'3-weekly batch model'!Q74*-1 -> 
A125: Total | C125: =SUM(C85:C123) ->  | D125: =SUM(D85:D123) -> 
A127: total cost | C127: =-SUM(C85:C94) ->  | D127: =-SUM(D85:D94) -> 
A128: total benefits | C128: =SUM(C97:C123) ->  | D128: =SUM(D97:D123) -> 

Sheet Control measure entry (hidden)
A1: Control measures data entry
A4: Farm parameters
A5: Interest rate | B5: 0.035
A6: Total number of sows | B6: ='PMWS economic calculator'!B93 -> 250
A8: Intervention parameters
A9: For PCV2 vaccination | B9: CM1
A10: cost of PCV2 vaccination per pig weaned | B10: ='PMWS economic calculator'!B128 -> 1.4088
A11: for reduction on stocking density: | B11: CM2
A12: Percentage reduction on pigs | B12: ='PMWS economic calculator'!B131/100 -> 0.1
A13: Days in feed at which weaners are sold | B13: 0
A14: For increase on diets: | B14: CM3
A15: percentage increase in feed | B15: ='PMWS economic calculator'!B134/100 -> 0.05
A16: For increase on biosecurity measures: | B16: CM4
A17: Cost of requiring visitors to be pig clean | B17: ='PMWS economic calculator'!B138 -> 0
A18: Proportion of pig places needed | B18: 0.025
A19: Cost of creating a new SP properly isolated/pig | B19: ='PMWS economic calculator'!B140 -> 131.7
A20: percentage of succesful services | B20: 0.8047
A21: Cost of purchasing a dose of AI | B21: ='PMWS economic calculator'!B142 -> 6
A22: Porportion of gilts purchased on a farm | B22: 0.4
A23: Number of boars purchased per 100 sows | B23: 1
A24: Breeding boar feed consumption per day | B24: 5.7
A25: Cost of purchasing a gilt | B25: ='Economic analysis for each pig'!B13 -> 157.62
A26: Cost of purchasing a gilt of 146 days of age | B26: ='PMWS economic calculator'!B148 -> 127.85 | C26: weaners sold days in feed | D26: 118 | E26: gilts extra days in feed | F26: =180-146 -> 34
A27: Cost of purchasing a gilt of 104 days of age | B27: ='PMWS economic calculator'!B149 -> 91.07 | C27: weaners sold days in feed | D27: 76 | E27: gilts extra days in feed | F27: =180-104 -> 76 | G27: gilts days in feed when slaughter | H27: ='3-weekly batch model'!B16-104 -> 64
A28: Cost of purchasing a gilt of 84 days of age | B28: =(B25/180)*84 -> 73.556 | C28: weaners sold days in feed | D28: 55 | E28: gilts extra days in feed | F28: =180-83 -> 97 | G28: gilts days in feed when slaughter | H28: ='3-weekly batch model'!B16-83 -> 85
A29: Number of 146 days old gilts purchased | B29: 6
A30: Number of 104 days old gilts purchased | B30: 4
A31: Number of 84 days old gilts purchased | B31: 0
A32: proportion breeding default in young gilts | B32: 0.25
A33: Cost of purchasing a boar | B33: ='PMWS economic calculator'!B143 -> 649.99
A34: Price per sow (£) | B34: ='PMWS economic calculator'!B146 -> 162.58
A35: Price per boar at abattoir (£) | B35: ='PMWS economic calculator'!B144 -> 81.29
A36: For depop/repop | B36: CM5
A37: Cleaning and desinfection / sow | B37: ='PMWS economic calculator'!B152 -> 4.29
A38: Extra labour cost / sow | B38: 33.57
A39: Maintenance / sow | B39: 0
A40: Other cost / sow | B40: 0
A45: Side enterprise budget analyses for bio measures
A46: Pigs (146 days)
A48: days in feed | B48: =D26 -> 118
A49: Weight sold | B49: =('Epidemiological Model flow'!$B$26+('Epidemiological Model flow'!$B$28*B48))*0.76 -> 66.69
A50: Liveweight price/kg | B50: ='Economic analysis for each pig'!$B$44 -> 1.39
A52: Revenue | B52: =B49*B50 -> 92.6991
A53: Revenue forgone
A55: Sow feed cost | B55: ='Economic analysis for each pig'!$B$12 -> 9.122975863
A56: Feed cost | B56: =B48*'Economic analysis for each pig'!$B$24*('Economic analysis for each pig'!$B$22/1000) -> 38.55727332
A57: Vet cost | B57: =('Economic analysis for each pig'!$B$31/'Economic analysis for each pig'!$B$20)*B48 -> 1.576142857
A58: Transport cost | B58: ='Economic analysis for each pig'!$B$32 -> 2.34
A59: Electricity | B59: =('Economic analysis for each pig'!$B$33/'Economic analysis for each pig'!$B$20)*B48 -> 1.786857143
A60: Water | B60: =('Economic analysis for each pig'!$B$34/'Economic analysis for each pig'!$B$20)*B48 -> 0.5057142857
A61: Straw/bedding | B61: =('Economic analysis for each pig'!$B$35/'Economic analysis for each pig'!$B$20)*B48 -> 0.3624285714
A62: Miscellaneous | B62: ='Economic analysis for each pig'!$B$36 -> 2.9
A63: Total cost | B63: =SUM(B55:B62) -> 57.15139204
A64: Net | B64: =B52-B63-'Economic analysis for each pig'!$B$39-'Economic analysis for each pig'!$B$40-'Economic analysis for each pig'!$B$60-'Economic analysis for each pig'!$B$42 -> 18.55770796
A67: Pigs (104 days)
A69: days in feed | B69: =D27 -> 76
A70: Weight sold | B70: =('Epidemiological Model flow'!$B$26+('Epidemiological Model flow'!$B$28*B69))*0.76 -> 45.144
A71: Liveweight price/kg | B71: ='Economic analysis for each pig'!$B$44 -> 1.39
A73: Revenue | B73: =B70*B71 -> 62.75016
A74: Revenue forgone
A76: Sow feed cost | B76: ='Economic analysis for each pig'!$B$12 -> 9.122975863
A77: Feed cost | B77: =B69*'Economic analysis for each pig'!$B$24*('Economic analysis for each pig'!$B$22/1000) -> 24.83349807
A78: Vet cost | B78: =('Economic analysis for each pig'!$B$31/'Economic analysis for each pig'!$B$20)*B69 -> 1.015142857
A79: Transport cost | B79: ='Economic analysis for each pig'!$B$32 -> 2.34
A80: Electricity | B80: =('Economic analysis for each pig'!$B$33/'Economic analysis for each pig'!$B$20)*B69 -> 1.150857143
A81: Water | B81: =('Economic analysis for each pig'!$B$34/'Economic analysis for each pig'!$B$20)*B69 -> 0.3257142857
A82: Straw/bedding | B82: =('Economic analysis for each pig'!$B$35/'Economic analysis for each pig'!$B$20)*B69 -> 0.2334285714
A83: Miscellaneuous | B83: =B62 -> 2.9
A84: Total cost | B84: =SUM(B76:B83) -> 41.92161679
A85: Net | B85: =B73-B84-'Economic analysis for each pig'!$B$39-'Economic analysis for each pig'!$B$40-'Economic analysis for each pig'!$B$80-'Economic analysis for each pig'!$B$42 -> 3.838543208
A87: Pigs (83 days)
A89: days in feed | B89: =D28 -> 55
A90: Weight sold | B90: =('Epidemiological Model flow'!$B$26+('Epidemiological Model flow'!$B$28*B89))*0.76 -> 34.371
A91: Liveweight price/kg | B91: =B50 -> 1.39
A93: Revenue | B93: =B90*B91 -> 47.77569
A94: Revenue forgone
A96: Sow feed cost | B96: ='Economic analysis for each pig'!$B$12 -> 9.122975863
A97: Feed cost | B97: =B89*'Economic analysis for each pig'!$B$24*('Economic analysis for each pig'!$B$22/1000) -> 17.97161045
A98: Vet cost | B98: =('Economic analysis for each pig'!$B$31/'Economic analysis for each pig'!$B$20)*B89 -> 0.7346428571
A99: Transport cost | B99: ='Economic analysis for each pig'!$B$32 -> 2.34
A100: Electricity | B100: =('Economic analysis for each pig'!$B$33/'Economic analysis for each pig'!$B$20)*B89 -> 0.8328571429
A101: Water | B101: =('Economic analysis for each pig'!$B$34/'Economic analysis for each pig'!$B$20)*B89 -> 0.2357142857
A102: Straw/bedding | B102: =('Economic analysis for each pig'!$B$35/'Economic analysis for each pig'!$B$20)*B89 -> 0.1689285714
A103: Miscellaneuous | B103: =B83 -> 2.9
A104: Total cost | B104: =SUM(B96:B103) -> 34.30672917
A105: Net | B105: =B93-B104-'Economic analysis for each pig'!$B$39-'Economic analysis for each pig'!$B$40-'Economic analysis for each pig'!$B$99-'Economic analysis for each pig'!$B$42 -> -3.608539167
A108: Gilts (146 days) to breeding
A110: days in feed | B110: =F26 -> 34
A112: Feed cost | B112: =B110*'Economic analysis for each pig'!$B$24*('Economic analysis for each pig'!$B$6/1000) -> 8.933303164
A113: Vet cost | B113: =('Economic analysis for each pig'!$B$31/'Economic analysis for each pig'!$B$20)*B110 -> 0.4541428571
A114: Electricity | B114: =('Economic analysis for each pig'!$B$33/'Economic analysis for each pig'!$B$20)*B110 -> 0.5148571429
A115: Water | B115: =('Economic analysis for each pig'!$B$34/'Economic analysis for each pig'!$B$20)*B110 -> 0.1457142857
A116: Straw/bedding | B116: =('Economic analysis for each pig'!$B$35/'Economic analysis for each pig'!$B$20)*B110 -> 0.1044285714
A117: Total cost | B117: =SUM(B112:B116) -> 10.15244602
A120: Gilts (104 days) to breeding | D120: Gilts (104 days) to slaughter
A122: days in feed | B122: =F27 -> 76 | D122: =H27 -> 64
A124: Feed cost | B124: =B122*'Economic analysis for each pig'!$B$24*('Economic analysis for each pig'!$B$6/1000) -> 19.96856001 | D124: =D122*'Economic analysis for each pig'!$B$24*('Economic analysis for each pig'!$B$6/1000) -> 16.81562949
A125: Vet cost | B125: =('Economic analysis for each pig'!$B$31/'Economic analysis for each pig'!$B$20)*B122 -> 1.015142857 | D125: =('Economic analysis for each pig'!$B$31/'Economic analysis for each pig'!$B$20)*D122 -> 0.8548571429
A126: Electricity | B126: =('Economic analysis for each pig'!$B$33/'Economic analysis for each pig'!$B$20)*B122 -> 1.150857143 | D126: =('Economic analysis for each pig'!$B$33/'Economic analysis for each pig'!$B$20)*D122 -> 0.9691428571
A127: Water | B127: =('Economic analysis for each pig'!$B$34/'Economic analysis for each pig'!$B$20)*B122 -> 0.3257142857 | D127: =('Economic analysis for each pig'!$B$34/'Economic analysis for each pig'!$B$20)*D122 -> 0.2742857143
A128: Straw/bedding | B128: =('Economic analysis for each pig'!$B$35/'Economic analysis for each pig'!$B$20)*B122 -> 0.2334285714 | D128: =('Economic analysis for each pig'!$B$35/'Economic analysis for each pig'!$B$20)*D122 -> 0.1965714286
A129: Total cost | B129: =SUM(B124:B128) -> 22.69370287 | D129: =SUM(D124:D128) -> 19.11048663
A132: Gilts (84 days) to breeding | D132: Gilts (83 days) to slaughter
A134: days in feed | B134: =F28 -> 97 | D134: =H28 -> 85
A136: Feed cost | B136: =B134*'Economic analysis for each pig'!$B$24*('Economic analysis for each pig'!$B$6/1000) -> 25.48618844 | D136: =D134*'Economic analysis for each pig'!$B$24*('Economic analysis for each pig'!$B$6/1000) -> 22.33325791
A137: Vet cost | B137: =('Economic analysis for each pig'!$B$31/'Economic analysis for each pig'!$B$20)*B134 -> 1.295642857 | D137: =('Economic analysis for each pig'!$B$31/'Economic analysis for each pig'!$B$20)*D134 -> 1.135357143
A138: Electricity | B138: =('Economic analysis for each pig'!$B$33/'Economic analysis for each pig'!$B$20)*B134 -> 1.468857143 | D138: =('Economic analysis for each pig'!$B$33/'Economic analysis for each pig'!$B$20)*D134 -> 1.287142857
A139: Water | B139: =('Economic analysis for each pig'!$B$34/'Economic analysis for each pig'!$B$20)*B134 -> 0.4157142857 | D139: =('Economic analysis for each pig'!$B$34/'Economic analysis for each pig'!$B$20)*D134 -> 0.3642857143
A140: Straw/bedding | B140: =('Economic analysis for each pig'!$B$35/'Economic analysis for each pig'!$B$20)*B134 -> 0.2979285714 | D140: =('Economic analysis for each pig'!$B$35/'Economic analysis for each pig'!$B$20)*D134 -> 0.2610714286
A141: Total cost | B141: =SUM(B136:B140) -> 28.9643313 | D141: =SUM(D136:D140) -> 25.38111505
A144: Boar
A146: Feed saved on boar/year | B146: =B24*365*'Economic analysis for each pig'!B22/1000 -> 421.405275
A147: Electricity saved/year | B147: =('Economic analysis for each pig'!B33/'Economic analysis for each pig'!B20)*365 -> 5.527142857
A148: Water saved/year | B148: =('Economic analysis for each pig'!B34/'Economic analysis for each pig'!B20)*365 -> 1.564285714
A149: Straw saved/year | B149: =('Economic analysis for each pig'!B35/'Economic analysis for each pig'!B20)*365 -> 1.121071429
A150: Cost of purchase boar saved | B150: =B33-B34 -> 487.41
A151: Total saved on boar | B151: =SUM(B146:B150) -> 917.027775

Sheet Investment appraisal (hidden)
A1: INVESTMENT APPRAISAL (set vac cost to 0 for the loss-expenditure frontier)
A3: Farm parameters
A4: Sow cycle (days) | B4: ='3-weekly batch model'!$B$4 -> 148
A5: Optimum litters /sow/ year | B5: =365/B4 -> 2.466216216
A6: Return rates for 2.25 litters/sow/year | B6: =1-('Calculation of farm level cost'!$B$5/B5) -> 0.08767123288
A7: litters/sow/year | B7: ='Calculation of farm level cost'!$B$5 -> 2.25
A8: piglets weaned/sow/litter | B8: ='Economic analysis for each pig'!$B$8*(1-'Economic analysis for each pig'!$B$9) -> 9.77536
A9: Total number of sows | B9: ='Control measure entry'!$B$6 -> 250
A10: Sows/batch | B10: =B9/7 -> 35.71428571
A11: Sows conceiving | B11: =B10*(1-B6) -> 32.58317025
A12: Pigs weaned /batch | B12: =B11*B8 -> 318.5122192
A13: Interest rate | B13: ='3-weekly batch model'!$B$19 -> 0.035
A14: Age at weaning (days) | B14: ='3-weekly batch model'!$B$14 -> 28
A15: Weight at weaning (kg.) | B15: ='Epidemiological Model flow'!$B$26 -> 8.1
A16: Age at finishing | B16: ='Epidemiological Model flow'!$B$24+'3-weekly batch model'!$B$14 -> 168
A17: Liveweight at finishing (kg.) | B17: ='Epidemiological Model flow'!$B$25 -> 102.6
A18: ADG of a H-S (kg.) | B18: ='Epidemiological Model flow'!$B$28 -> 0.675
A19: interest rate | B19: =B13 -> 0.035
A21: Intervention parameters
A22: For PCV2 vaccination
A23: Applying PCV2 vaccination strategy | B23: 1
A24: cost of PCV2 vaccination per pig weaned | B24: =IF(B23=1,-1*'Control measure entry'!B10,0) -> -1.4088
A25: for reduction on stocking density:
A26: Applying reduction in SD strategy | B26: 0
A27: Percentage reduction on pigs | B27: ='Control measure entry'!$B$12 -> 0.1
A28: number of pigs weaned/batch that will be finished | B28: =IF(B26=0,B12,(B12)*(1-B27)) -> 318.5122192
A29: number of pigs weaned/batch that will be sold at weaner stage | B29: =B12-B28 -> 0
A30: Days in feed at which weaners are sold | B30: ='Control measure entry'!$B$13 -> 0
A31: Price per sow (£) | B31: ='Control measure entry'!$B$34 -> 162.58
A32: For increase on diets:
A33: Applying increase in diets strategy | B33: 0
A34: percentage increase in feed | B34: ='Control measure entry'!$B$15 -> 0.05
A35: Final condition | B35: =IF(B33=1,B34,0) -> 0
A36: For increase on biosecurity measures:
A37: Applying biosecurity strategy | B37: 1
A38: Cost of requiring visitors to be pig clean | B38: =IF(B37=1,'Control measure entry'!B17,0) -> 0
A39: Proportion of pig places needed | B39: ='Control measure entry'!B18 -> 0.025
A40: Number of pigs for SP (maximum) | B40: =B28*B39*7 -> 55.73963836
A41: Cost of creating a new SP properly isolated/pig | B41: ='Control measure entry'!B19 -> 131.7
A42: cost of sick pen in the farm | B42: =IF(B37=0,0,B40*B41) -> 7340.910372
A43: percentage of succesful services | B43: ='Control measure entry'!B20 -> 0.8047
A44: Number of AI needed per batch | B44: =2*B10 -> 71.42857143
A45: Cost of purchasing a dose of AI | B45: ='Control measure entry'!B21 -> 6
A46: Cost of purchasing AI /batch | B46: =IF(B37=1,B45*B44,0) -> 428.5714286
A47: Porportion of gilts purchased on a farm | B47: ='Control measure entry'!$B$22 -> 0.4
A48: Number of boars purchased | B48: =IF(B37=1,('Control measure entry'!$B$23/B9)*100,0) -> 0.4
A49: boar feed consumption/day | B49: ='Control measure entry'!$B$24 -> 5.7
A50: Cost of purchasing a gilt | B50: =IF(B37=1,'Control measure entry'!B25,0) -> 157.62
A51: Cost of purchasing a boar | B51: =IF(B37=1,'Control measure entry'!B33,0) -> 649.99
A52: Cost of purchasing a gilt of 146 days of age | B52: ='Control measure entry'!$B$26 -> 127.85
A53: Cost of purchasing a gilt of 104 days of age | B53: ='Control measure entry'!$B$27 -> 91.07
A54: Cost of purchasing a gilt of 84 days of age | B54: ='Control measure entry'!$B$28 -> 73.556
A55: Total number of sows to be replaced in 6 month | B55: =(B47/2)*B9 -> 50
A56: percentage breeding default in young gilts | B56: ='Control measure entry'!$B$32 -> 0.25
A57: Number of 146 days old gilts purchased | B57: =IF($B$37=1,'Control measure entry'!B29,0) -> 6
A58: Number of 104 days old gilts purchased | B58: =IF($B$37=1,'Control measure entry'!B30,0) -> 4
A59: Number of 84 days old gilts purchased | B59: =IF($B$37=1,'Control measure entry'!B31,0) -> 0
A60: Cost saved by buying 146 days old gilts | B60: =(B50-B52)*B57 -> 178.62
A61: Cost saved by buying 104 days old gilts | B61: =(B50-B53)*(B58*(1-B56)) -> 199.65
A62: Cost saved by buying 84 days old gilts | B62: =(B50-B54)*(B59*(1-B56)) -> 0
A64: For depop/repop
A65: Applying depop/repop strategy (yes=1, no=0) | B65: 0 | C65: CM5
A66: Farrow to finish (1) or Multi-site farm (2) or depop at day 0 (3) | B66: 0
A67: Cleaning and desinfection / sow | B67: =IF(B65=0,0,'Control measure entry'!B37) -> 0
A68: Extra labour cost / sow | B68: =IF(B65=0,0,'Control measure entry'!B38) -> 0
A69: Maintenance / sow | B69: =IF(B65=0,0,'Control measure entry'!B39) -> 0
A70: Other cost / sow | B70: =IF(B65=0,0,'Control measure entry'!B40) -> 0
A71: Cost of buy a high health M. hyo free gilt | B71: =IF(B65=0,0,'Economic analysis for each pig'!B13*1) -> 0
A72: Min weight at depop | B72: 30
A73: number of pigs weaned/batch that will be sold at weaner stage | B73: 63
A75: Pigs produced per batch from day 0
B76: Year 1 | C76: Year 2 | D76: Year 3 | E76: Year 4 | F76: Year 5
A77: days | B77: 365 | C77: =B77+365 -> 730 | D77: =C77+365 -> 1095 | E77: =D77+365 -> 1460 | F77: =E77+365 -> 1825
A78: Number of batches | B78: =B77/21 -> 17.38095238 | C78: =(C77/21) -> 34.76190476 | D78: =D77/21 -> 52.14285714 | E78: =E77/21 -> 69.52380952 | F78: =F77/21 -> 86.9047619
A79: Number of pigs finished | B79: =B78*$B$11*$B$8 -> 5536.045714 | C79: =C78*$B$11*$B$8 -> 11072.09143 | D79: =D78*$B$11*$B$8 -> 16608.13714 | E79: =E78*$B$11*$B$8 -> 22144.18286 | F79: =F78*$B$11*$B$8 -> 27680.22857
A80: Number of pigs finished/sow | B80: =B79/$B$9 -> 22.14418286 | C80: =C79/$B$9 -> 44.28836571 | D80: =D79/$B$9 -> 66.43254857 | E80: =E79/$B$9 -> 88.57673143 | F80: =F79/$B$9 -> 110.7209143
A82: Batches on the farm at day 0 | F82: Batches on the farm at depopulation day (output) | K82: Batches on a MS farm at depopulation day (192) | Q82: Batches on a FF farm at depopulation day (178)
A84: Batches | B84: Sow day | C84: Finisher day | D84: kg of finisher | F84: Finisher day | G84: Finisher kg. | K84: Finisher day | L84: Finisher kg. | M84: PMWS late bacth (day) | Q84: Finisher day | R84: Finisher kg. | S84: PMWS late bacth (day)
A85: 1 | B85: 0 | C85: -115 | D85: 0 | F85: =IF($B$66=1,Q85,IF(B66=3,C94,K85)) -> 77 | G85: =$B$15+(F85-$B$14)*$B$18 -> 41.175 | K85: 77 | L85: =$B$15+(K85-$B$14)*$B$18 -> 41.175 | Q85: =IF($B$65=1,63,171) -> 171 | R85: =$B$15+(Q85-$B$14)*$B$18 -> 104.625
A86: 2 | B86: =B85+21 -> 21 | C86: =C85+21 -> -94 | D86: 0 | F86: =IF($B$66=1,Q86,IF(B66=3,C95,K86)) -> 171 | G86: =$B$15+(F86-$B$14)*$B$18 -> 104.625 | K86: =IF($B$65=0,171,K85+21) -> 171 | L86: =$B$15+(K86-$B$14)*$B$18 -> 104.625 | Q86: =IF($B$65=0,171,Q85+21) -> 171 | R86: =$B$15+(Q86-$B$14)*$B$18 -> 104.625
A87: 3 | B87: =B86+21 -> 42 | C87: -73 | D87: 0 | F87: =IF($B$66=1,Q87,IF(B66=3,C96,K87)) -> 171 | G87: 104.625 | K87: =IF($B$65=0,171,K86+21) -> 171 | L87: 104.625 | Q87: =IF($B$65=0,171,Q86+21) -> 171 | R87: 104.625
A88: 4 | B88: 63 | C88: -52 | D88: 0 | F88: =IF($B$66=1,Q88,IF(B66=3,C97,K88)) -> 171 | G88: 104.625 | K88: =IF($B$65=0,171,K87+21) -> 171 | L88: 104.625 | Q88: =IF($B$65=0,171,Q87+21) -> 171 | R88: 104.625
A89: 5 | B89: 84 | C89: -31 | D89: 0 | F89: =IF($B$66=1,Q89,IF(B66=3,C98,K89)) -> 168 | G89: 102.6 | K89: 168 | L89: 102.6 | Q89: =IF($B$65=0,171,Q88+21) -> 171 | R89: 104.625
A90: 6 | B90: 105 | C90: -10 | D90: 0 | F90: =IF($B$66=1,Q90,K90) -> 168 | G90: =$B$15+(F90-$B$14)*$B$18 -> 102.6 | K90: 168 | L90: 102.6 | Q90: =IF($B$65=0,171,Q89+21) -> 171 | R90: 104.625
A91: 7 | B91: 126 | C91: 11 | D91: =('Epidemiological Model flow'!B26/B14)*C91 -> 3.182142857 | F91: 168 | G91: 102.6 | K91: 168 | L91: 102.6 | Q91: =Q90 -> 171 | R91: 104.625
A92: 8 | B92: 147 | C92: 32 | D92: =$B$15+($B$18*(C92-$B$14)) -> 10.8 | F92: 168 | G92: 102.6 | K92: 168 | L92: 102.6 | Q92: =Q91 -> 171 | R92: 104.625
A93: 9 | B93: 168 | C93: 53 | D93: =$B$15+($B$18*(C93-$B$14)) -> 24.975 | F93: 168 | G93: 102.6 | K93: 168 | L93: 102.6 | Q93: 171 | R93: 104.625
A94: 10 | B94: 189 | C94: 74 | D94: 39.15 | F94: 168 | G94: 102.6 | K94: 168 | L94: 102.6 | Q94: 171 | R94: 104.625
A95: 11 | B95: 210 | C95: =C94+21 -> 95 | D95: 53.325 | F95: 168 | G95: 102.6 | K95: 168 | L95: 102.6 | Q95: 171 | R95: 104.625
A96: 12 | B96: 231 | C96: 116 | D96: 67.5 | F96: 168 | G96: 102.6 | K96: 168 | L96: 102.6 | Q96: 171 | R96: 104.625
A97: 13 | B97: 252 | C97: 137 | D97: 81.675 | F97: 168 | G97: 102.6 | K97: 168 | L97: 102.6 | Q97: 171 | R97: 104.625
A98: 14 | B98: 273 | C98: 158 | D98: 95.85 | F98: 168 | G98: 102.6 | K98: 168 | L98: 102.6 | Q98: 171 | R98: 104.625
E99: Slow PMWS batch | F99: =IF(B66=1,Q90+21,IF(B66=2,K88+21,C98+21)) -> 179
A101: Model flow in 5 years time
B102: Year 1 | C102: Year 2 | D102: Year 3 | E102: Year 4 | F102: Year 5 | G102: Total
A103: Batches sold (no DPRP) | B103: =SUM(B114:R114) -> 17 | C103: =SUM(S114:AJ114) -> 18 | D103: =SUM(AK114:BA114) -> 17 | E103: =SUM(BB114:BT114) -> 19 | F103: =SUM(BU114:CK114) -> 16 | G103: =SUM(B103:F103) -> 87
A104: Batches weaned (no DPRP) | B104: =SUM(B115:R115) -> 16 | C104: =SUM(S115:AJ115) -> 18 | D104: =SUM(AK115:BA115) -> 17 | E104: =SUM(BB115:BT115) -> 19 | F104: =SUM(BU115:CK115) -> 17 | G104: 87
A105: Old batches sold | B105: =SUM(B116:R116) -> 7 | C105: =SUM(S116:AJ116) -> 0 | D105: =SUM(AK116:BA116) -> 0 | E105: =SUM(BB116:BT116) -> 0 | F105: =SUM(BU116:CK116) -> 0 | G105: 7
A106: Unfinsihed bacthes sold | B106: =SUM(B117:R117) -> 0 | C106: =SUM(S117:AJ117) -> 0 | D106: =SUM(AK117:BA117) -> 0 | E106: =SUM(BB117:BT117) -> 0 | F106: =SUM(BU117:CK117) -> 0 | G106: 0
A107: New batches sold | B107: =SUM(B118:R118) -> 10 | C107: =SUM(S118:AJ118) -> 18 | D107: =SUM(AK118:BA118) -> 17 | E107: =SUM(BB118:BT118) -> 19 | F107: =SUM(BU118:CK118) -> 16 | G107: 80
A108: new batches weaned | B108: =SUM(B121:R121) -> 16 | C108: =SUM(S121:AJ121) -> 18 | D108: =SUM(AK121:BA121) -> 17 | E108: =SUM(BB121:BT121) -> 19 | F108: =SUM(BU121:CK121) -> 17 | G108: 87
A109: Sow batches inseminated | B109: =SUM(B123:R123) -> 17 | C109: =SUM(S123:AJ123) -> 18 | D109: =SUM(AK123:BA123) -> 17 | E109: =SUM(BB123:BT123) -> 19 | F109: =SUM(BU123:CK123) -> 17 | G109: =SUM(B109:F109) -> 88
A110: batches of weaners sold if SD | B110: =SUM(B124:R124) -> 16 | C110: =SUM(S124:AJ124) -> 18 | D110: =SUM(AK124:BA124) -> 17 | E110: =SUM(BB124:BT124) -> 19 | F110: =SUM(BU124:CK124) -> 17 | G110: =SUM(B110:F110) -> 87
A111: Sow batches inseminated with AI if depop | B111: =SUM(B125:R125) -> 0 | C111: =SUM(S125:AJ125) -> 0 | D111: =SUM(AK125:BA125) -> 0 | E111: =SUM(BB125:BT125) -> 0 | F111: =SUM(BU125:CK125) -> 0 | G111: 0
A113: Days | B113: =B16-C98 -> 10 | C113: =B113+21 -> 31 | D113: =C113+21 -> 52 | E113: 73 | F113: 94 | G113: 115 | H113: 136 | I113: 157 | J113: 178 | K113: 199 | L113: 220 | M113: 241 | N113: 262 | O113: 283 | P113: 304 | Q113: 325 | R113: 346 | S113: 367 | T113: 388 | U113: 409 | V113: 430 | W113: 451 | X113: 472 | Y113: 493 | Z113: 514 | AA113: 535 | AB113: 556 | AC113: 577 | AD113: 598 | AE113: 619 | AF113: 640 | AG113: 661 | AH113: 682 | AI113: 703 | AJ113: 724 | AK113: 745 | AL113: 766 | AM113: 787 | AN113: 808 | AO113: 829 | AP113: 850 | AQ113: 871 | AR113: 892 | AS113: 913 | AT113: 934 | AU113: 955 | AV113: 976 | AW113: 997 | AX113: 1018 | AY113: 1039 | AZ113: 1060 | BA113: 1081 | BB113: 1102 | BC113: 1123 | BD113: 1144 | BE113: 1165 | BF113: 1186 | BG113: 1207 | BH113: 1228 | BI113: 1249 | BJ113: =BI113+21 -> 1270 | BK113: 1291 | BL113: 1312 | BM113: 1333 | BN113: 1354 | BO113: 1375 | BP113: =BO113+21 -> 1396 | BQ113: 1417 | BR113: 1438 | BS113: 1459 | BT113: 1480 | BU113: 1501 | BV113: 1522 | BW113: 1543 | BX113: 1564 | BY113: 1585 | BZ113: 1606 | CA113: 1627 | CB113: 1648 | CC113: 1669 | CD113: =CC113+21 -> 1690 | CE113: =CD113+21 -> 1711 | CF113: 1732 | CG113: 1753 | CH113: 1774 | CI113: 1795 | CJ113: 1816 | CK113: 1825 | CL113: TOTAL
A114: Batches sold (no DPRP) | B114: 1 | C114: =B114 -> 1 | D114: =C114 -> 1 | E114: 1 | F114: 1 | G114: 1 | H114: 1 | I114: 1 | J114: 1 | K114: 1 | L114: 1 | M114: 1 | N114: 1 | O114: 1 | P114: 1 | Q114: 1 | R114: 1 | S114: 1 | T114: 1 | U114: 1 | V114: 1 | W114: 1 | X114: 1 | Y114: 1 | Z114: 1 | AA114: 1 | AB114: 1 | AC114: 1 | AD114: 1 | AE114: 1 | AF114: 1 | AG114: 1 | AH114: 1 | AI114: 1 | AJ114: 1 | AK114: 1 | AL114: 1 | AM114: 1 | AN114: 1 | AO114: 1 | AP114: 1 | AQ114: 1 | AR114: 1 | AS114: 1 | AT114: 1 | AU114: 1 | AV114: 1 | AW114: 1 | AX114: 1 | AY114: 1 | AZ114: 1 | BA114: 1 | BB114: 1 | BC114: 1 | BD114: 1 | BE114: 1 | BF114: 1 | BG114: 1 | BH114: 1 | BI114: 1 | BJ114: 1 | BK114: 1 | BL114: 1 | BM114: 1 | BN114: 1 | BO114: 1 | BP114: =BO114 -> 1 | BQ114: 1 | BR114: 1 | BS114: 1 | BT114: 1 | BU114: 1 | BV114: 1 | BW114: 1 | BX114: 1 | BY114: 1 | BZ114: 1 | CA114: 1 | CB114: 1 | CC114: 1 | CD114: 1 | CE114: 1 | CF114: 1 | CG114: 1 | CH114: 1 | CI114: 1 | CJ114: 1 | CK114: 0 | CL114: =SUM(B114:CJ114) -> 87
A115: Batches weaned (no DPRP) | B115: 0 | C115: 1 | D115: 1 | E115: 1 | F115: 1 | G115: 1 | H115: 1 | I115: 1 | J115: 1 | K115: 1 | L115: 1 | M115: 1 | N115: 1 | O115: 1 | P115: 1 | Q115: 1 | R115: 1 | S115: 1 | T115: 1 | U115: 1 | V115: 1 | W115: 1 | X115: 1 | Y115: 1 | Z115: 1 | AA115: 1 | AB115: 1 | AC115: 1 | AD115: 1 | AE115: 1 | AF115: 1 | AG115: 1 | AH115: 1 | AI115: 1 | AJ115: 1 | AK115: 1 | AL115: 1 | AM115: 1 | AN115: 1 | AO115: 1 | AP115: 1 | AQ115: 1 | AR115: 1 | AS115: 1 | AT115: 1 | AU115: 1 | AV115: 1 | AW115: 1 | AX115: 1 | AY115: 1 | AZ115: 1 | BA115: 1 | BB115: 1 | BC115: 1 | BD115: 1 | BE115: 1 | BF115: 1 | BG115: 1 | BH115: 1 | BI115: 1 | BJ115: 1 | BK115: 1 | BL115: 1 | BM115: 1 | BN115: 1 | BO115: 1 | BP115: 1 | BQ115: 1 | BR115: 1 | BS115: 1 | BT115: 1 | BU115: 1 | BV115: 1 | BW115: 1 | BX115: 1 | BY115: 1 | BZ115: 1 | CA115: 1 | CB115: 1 | CC115: 1 | CD115: 1 | CE115: 1 | CF115: 1 | CG115: 1 | CH115: 1 | CI115: 1 | CJ115: 1 | CK115: 1 | CL115: =SUM(B115:CK115) -> 87
A116: Old batches sold | B116: =IF($B$65=0,IF(B118=0,1,0),IF($B$66=3,0,1)) -> 1 | C116: =IF($B$65=0,IF(C118=0,1,0),IF($B$66=3,0,1)) -> 1 | D116: 1 | E116: 1 | F116: 1 | G116: 1 | H116: 1 | I116: 0 | J116: 0 | K116: =IF($B$65=0,IF(K118=0,1,0),IF(B66=3,0,IF(B66=1,0,1))) -> 0 | L116: =IF($B$65=1,0,IF(L118=0,1,0)) -> 0 | M116: =IF($B$65=1,0,IF(M118=0,1,0)) -> 0 | N116: 0 | O116: 0 | P116: 0 | Q116: 0 | R116: 0 | S116: 0 | T116: 0 | U116: 0 | V116: 0 | W116: 0 | X116: 0 | Y116: 0 | Z116: 0 | AA116: 0 | AB116: 0 | AC116: 0 | AD116: 0 | AE116: 0 | AF116: 0 | AG116: 0 | AH116: 0 | AI116: 0 | AJ116: 0 | AK116: 0 | AL116: 0 | AM116: 0 | AN116: 0 | AO116: 0 | AP116: 0 | AQ116: 0 | AR116: 0 | AS116: 0 | AT116: 0 | AU116: 0 | AV116: 0 | AW116: 0 | AX116: 0 | AY116: 0 | AZ116: 0 | BA116: 0 | BB116: 0 | BC116: 0 | BD116: 0 | BE116: 0 | BF116: 0 | BG116: 0 | BH116: 0 | BI116: 0 | BJ116: 0 | BK116: 0 | BL116: 0 | BM116: 0 | BN116: 0 | BO116: 0 | BP116: 0 | BQ116: 0 | BR116: 0 | BS116: 0 | BT116: 0 | BU116: 0 | BV116: 0 | BW116: 0 | BX116: =IF($B$65=1,0,IF(BX118=0,1,0)) -> 0 | BY116: 0 | BZ116: 0 | CA116: 0 | CB116: 0 | CC116: 0 | CD116: 0 | CE116: 0 | CF116: 0 | CG116: 0 | CH116: 0 | CI116: 0 | CJ116: 0 | CK116: 0 | CL116: =SUM(B116:CK116) -> 7
A117: Unfinished bacthes sold | B117: =IF(B65=0,0,IF(B66=3,5,0)) -> 0 | C117: 0 | D117: 0 | E117: 0 | F117: 0 | G117: 0 | H117: 0 | I117: 0 | J117: =IF(B65=0,0,IF(B66=1,5,0)) -> 0 | K117: =IF(B65=0,0,IF(B66=2,4,0)) -> 0 | L117: 0 | M117: 0 | N117: 0 | O117: 0 | P117: 0 | Q117: 0 | R117: 0 | S117: 0 | T117: 0 | U117: 0 | V117: 0 | W117: 0 | X117: 0 | Y117: 0 | Z117: 0 | AA117: 0 | AB117: 0 | AC117: 0 | AD117: 0 | AE117: 0 | AF117: 0 | AG117: 0 | AH117: 0 | AI117: 0 | AJ117: 0 | AK117: 0 | AL117: 0 | AM117: 0 | AN117: 0 | AO117: 0 | AP117: 0 | AQ117: 0 | AR117: 0 | AS117: 0 | AT117: 0 | AU117: 0 | AV117: 0 | AW117: 0 | AX117: 0 | AY117: 0 | AZ117: 0 | BA117: 0 | BB117: 0 | BC117: 0 | BD117: 0 | BE117: 0 | BF117: 0 | BG117: 0 | BH117: 0 | BI117: 0 | BJ117: 0 | BK117: 0 | BL117: 0 | BM117: 0 | BN117: 0 | BO117: 0 | BP117: 0 | BQ117: 0 | BR117: 0 | BS117: 0 | BT117: 0 | BU117: 0 | BV117: 0 | BW117: 0 | BX117: 0 | BY117: 0 | BZ117: 0 | CA117: 0 | CB117: 0 | CC117: 0 | CD117: 0 | CE117: 0 | CF117: 0 | CG117: 0 | CH117: 0 | CI117: 0 | CJ117: 0 | CK117: 0 | CL117: 0
A118: New batches sold | B118: 0 | C118: 0 | D118: 0 | E118: 0 | F118: 0 | G118: 0 | H118: 0 | I118: =IF($B$65=1,0,IF($I$120=1,1,0)) -> 1 | J118: 1 | K118: 1 | L118: 1 | M118: 1 | N118: 1 | O118: =IF($B$65=1,IF(B66=3,1,0),IF($I$120=1,1,0)) -> 1 | P118: =IF($B$65=1,IF($B$66=3,1,0),IF($I$120=1,1,0)) -> 1 | Q118: 1 | R118: 1 | S118: 1 | T118: 1 | U118: 1 | V118: =IF($B$65=1,1,IF($I$120=1,1,0)) -> 1 | W118: 1 | X118: 1 | Y118: 1 | Z118: 1 | AA118: 1 | AB118: 1 | AC118: 1 | AD118: 1 | AE118: 1 | AF118: 1 | AG118: 1 | AH118: 1 | AI118: 1 | AJ118: 1 | AK118: 1 | AL118: 1 | AM118: 1 | AN118: 1 | AO118: 1 | AP118: 1 | AQ118: 1 | AR118: 1 | AS118: 1 | AT118: 1 | AU118: 1 | AV118: 1 | AW118: 1 | AX118: 1 | AY118: 1 | AZ118: 1 | BA118: 1 | BB118: =IF($B$65=1,1,IF($I$120=1,1,0)) -> 1 | BC118: 1 | BD118: 1 | BE118: 1 | BF118: 1 | BG118: 1 | BH118: 1 | BI118: 1 | BJ118: 1 | BK118: 1 | BL118: 1 | BM118: 1 | BN118: 1 | BO118: 1 | BP118: 1 | BQ118: 1 | BR118: 1 | BS118: 1 | BT118: 1 | BU118: 1 | BV118: 1 | BW118: 1 | BX118: 1 | BY118: 1 | BZ118: 1 | CA118: 1 | CB118: 1 | CC118: 1 | CD118: 1 | CE118: 1 | CF118: 1 | CG118: 1 | CH118: 1 | CI118: 1 | CJ118: 1 | CK118: 0 | CL118: =SUM(B118:CK118) -> 80
A119: Total batches | B119: =B116+B117+B118 -> 1 | C119: =C116+C117+C118 -> 1 | D119: 1 | E119: 1 | F119: 1 | G119: 1 | H119: 1 | I119: 1 | J119: 1 | K119: 1 | L119: 1 | M119: 1 | N119: 1 | O119: 1 | P119: 1 | Q119: 1 | R119: 1 | S119: 1 | T119: 1 | U119: 1 | V119: 1 | W119: 1 | X119: 1 | Y119: 1 | Z119: 1 | AA119: 1 | AB119: 1 | AC119: 1 | AD119: 1 | AE119: 1 | AF119: 1 | AG119: 1 | AH119: 1 | AI119: 1 | AJ119: 1 | AK119: 1 | AL119: 1 | AM119: 1 | AN119: 1 | AO119: 1 | AP119: 1 | AQ119: 1 | AR119: 1 | AS119: 1 | AT119: 1 | AU119: 1 | AV119: 1 | AW119: 1 | AX119: 1 | AY119: 1 | AZ119: 1 | BA119: 1 | BB119: 1 | BC119: 1 | BD119: 1 | BE119: 1 | BF119: 1 | BG119: 1 | BH119: 1 | BI119: 1 | BJ119: 1 | BK119: 1 | BL119: 1 | BM119: 1 | BN119: 1 | BO119: =BO116+BO117+BO118 -> 1 | BP119: 1 | BQ119: 1 | BR119: 1 | BS119: 1 | BT119: 1 | BU119: 1 | BV119: 1 | BW119: 1 | BX119: 1 | BY119: 1 | BZ119: 1 | CA119: 1 | CB119: 1 | CC119: 1 | CD119: 1 | CE119: 1 | CF119: 1 | CG119: 1 | CH119: 1 | CI119: 1 | CJ119: 1 | CK119: 0 | CL119: 87
A120: New batches sold if vac or diet or bio only | B120: 0 | C120: 0 | D120: 0 | E120: 0 | F120: 0 | G120: 0 | H120: 0 | I120: =IF($B$23=1,1,IF($B$33=1,1,IF($B$37=1,1,IF($B$26=1,1,0)))) -> 1 | J120: 1 | K120: 1 | L120: 1 | M120: 1 | N120: 1 | O120: 1 | P120: 1 | Q120: 1 | R120: 1 | S120: 1 | T120: 1 | U120: 1 | V120: 1 | W120: 1 | X120: 1 | Y120: 1 | Z120: 1 | AA120: 1 | AB120: 1 | AC120: 1 | AD120: 1 | AE120: 1 | AF120: 1 | AG120: 1 | AH120: 1 | AI120: 1 | AJ120: 1 | AK120: 1 | AL120: 1 | AM120: 1 | AN120: 1 | AO120: =IF($B$23=1,1,IF($B$33=1,1,IF($B$37=1,1,IF($B$26=1,1,0)))) -> 1 | AP120: 1 | AQ120: 1 | AR120: 1 | AS120: 1 | AT120: 1 | AU120: 1 | AV120: 1 | AW120: 1 | AX120: 1 | AY120: 1 | AZ120: 1 | BA120: 1 | BB120: 1 | BC120: 1 | BD120: 1 | BE120: 1 | BF120: 1 | BG120: 1 | BH120: 1 | BI120: 1 | BJ120: 1 | BK120: 1 | BL120: 1 | BM120: 1 | BN120: 1 | BO120: 1 | BP120: 1 | BQ120: 1 | BR120: 1 | BS120: 1 | BT120: 1 | BU120: =IF($B$23=1,1,IF($B$33=1,1,IF($B$37=1,1,IF($B$26=1,1,0)))) -> 1 | BV120: 1 | BW120: 1 | BX120: 1 | BY120: 1 | BZ120: 1 | CA120: 1 | CB120: 1 | CC120: 1 | CD120: 1 | CE120: 1 | CF120: 1 | CG120: 1 | CH120: 1 | CI120: 1 | CJ120: 1 | CK120: 1 | CL120: 81
A121: New batches weaned | B121: 0 | C121: =IF($B$65=1,0,IF($B$26=1,0,C122)) -> 1 | D121: 1 | E121: 1 | F121: 1 | G121: 1 | H121: 1 | I121: =IF($B$65=1,0,IF($B$26=1,1,I122)) -> 1 | J121: =IF($B$65=1,0,IF($B$26=1,1,J122)) -> 1 | K121: =IF($B$65=1,0,IF($B$26=1,1,K122)) -> 1 | L121: =IF($B$65=1,0,IF($B$26=1,1,L122)) -> 1 | M121: =IF($B$65=0,IF($B$26=1,1,M122),IF($B$66=1,0,1)) -> 1 | N121: =IF($B$65=0,IF($B$26=1,1,N122),IF($B$66=1,0,1)) -> 1 | O121: =IF($B$65=1,1,IF($B$26=1,1,O122)) -> 1 | P121: 1 | Q121: 1 | R121: 1 | S121: 1 | T121: 1 | U121: 1 | V121: 1 | W121: 1 | X121: 1 | Y121: 1 | Z121: 1 | AA121: 1 | AB121: 1 | AC121: 1 | AD121: 1 | AE121: 1 | AF121: 1 | AG121: 1 | AH121: 1 | AI121: 1 | AJ121: 1 | AK121: 1 | AL121: 1 | AM121: 1 | AN121: 1 | AO121: 1 | AP121: 1 | AQ121: 1 | AR121: 1 | AS121: 1 | AT121: 1 | AU121: =IF($B$65=1,1,IF($B$26=1,1,AU122)) -> 1 | AV121: 1 | AW121: 1 | AX121: 1 | AY121: 1 | AZ121: 1 | BA121: 1 | BB121: 1 | BC121: 1 | BD121: 1 | BE121: 1 | BF121: 1 | BG121: 1 | BH121: 1 | BI121: 1 | BJ121: 1 | BK121: 1 | BL121: 1 | BM121: 1 | BN121: 1 | BO121: 1 | BP121: 1 | BQ121: 1 | BR121: 1 | BS121: 1 | BT121: 1 | BU121: 1 | BV121: 1 | BW121: 1 | BX121: 1 | BY121: 1 | BZ121: 1 | CA121: =IF($B$65=1,1,IF($B$26=1,1,CA122)) -> 1 | CB121: 1 | CC121: 1 | CD121: 1 | CE121: 1 | CF121: 1 | CG121: 1 | CH121: 1 | CI121: 1 | CJ121: 1 | CK121: 1 | CL121: 87
A122: new batches weaned if vac or diet or bio or SD | B122: 0 | C122: =IF($B$23=1,1,IF($B$33=1,1,IF($B$37=1,1,IF($B$26=1,1,0)))) -> 1 | D122: 1 | E122: 1 | F122: 1 | G122: 1 | H122: 1 | I122: 1 | J122: 1 | K122: 1 | L122: 1 | M122: 1 | N122: 1 | O122: 1 | P122: 1 | Q122: 1 | R122: 1 | S122: 1 | T122: 1 | U122: 1 | V122: 1 | W122: 1 | X122: 1 | Y122: 1 | Z122: 1 | AA122: 1 | AB122: 1 | AC122: 1 | AD122: 1 | AE122: 1 | AF122: 1 | AG122: 1 | AH122: 1 | AI122: =IF($B$23=1,1,IF($B$33=1,1,IF($B$37=1,1,IF($B$26=1,1,0)))) -> 1 | AJ122: 1 | AK122: 1 | AL122: 1 | AM122: 1 | AN122: 1 | AO122: 1 | AP122: 1 | AQ122: 1 | AR122: 1 | AS122: 1 | AT122: 1 | AU122: 1 | AV122: 1 | AW122: 1 | AX122: 1 | AY122: 1 | AZ122: 1 | BA122: 1 | BB122: 1 | BC122: 1 | BD122: 1 | BE122: 1 | BF122: 1 | BG122: 1 | BH122: 1 | BI122: 1 | BJ122: 1 | BK122: 1 | BL122: 1 | BM122: 1 | BN122: 1 | BO122: =IF($B$23=1,1,IF($B$33=1,1,IF($B$37=1,1,IF($B$26=1,1,0)))) -> 1 | BP122: 1 | BQ122: 1 | BR122: 1 | BS122: 1 | BT122: 1 | BU122: 1 | BV122: 1 | BW122: 1 | BX122: 1 | BY122: 1 | BZ122: 1 | CA122: 1 | CB122: 1 | CC122: 1 | CD122: 1 | CE122: 1 | CF122: 1 | CG122: 1 | CH122: 1 | CI122: 1 | CJ122: 1 | CK122: 1 | CL122: 87
A123: Sow batches inseminated since start of the model | B123: 1 | C123: 1 | D123: 1 | E123: 1 | F123: 1 | G123: 1 | H123: 1 | I123: 1 | J123: 1 | K123: 1 | L123: 1 | M123: 1 | N123: 1 | O123: 1 | P123: 1 | Q123: 1 | R123: 1 | S123: 1 | T123: 1 | U123: 1 | V123: 1 | W123: 1 | X123: 1 | Y123: 1 | Z123: 1 | AA123: 1 | AB123: 1 | AC123: 1 | AD123: 1 | AE123: 1 | AF123: 1 | AG123: 1 | AH123: 1 | AI123: 1 | AJ123: 1 | AK123: 1 | AL123: 1 | AM123: 1 | AN123: 1 | AO123: 1 | AP123: 1 | AQ123: 1 | AR123: 1 | AS123: 1 | AT123: 1 | AU123: 1 | AV123: 1 | AW123: 1 | AX123: 1 | AY123: 1 | AZ123: 1 | BA123: 1 | BB123: 1 | BC123: 1 | BD123: 1 | BE123: 1 | BF123: 1 | BG123: 1 | BH123: 1 | BI123: 1 | BJ123: 1 | BK123: 1 | BL123: 1 | BM123: 1 | BN123: 1 | BO123: 1 | BP123: 1 | BQ123: 1 | BR123: 1 | BS123: 1 | BT123: 1 | BU123: 1 | BV123: 1 | BW123: 1 | BX123: 1 | BY123: 1 | BZ123: 1 | CA123: 1 | CB123: 1 | CC123: 1 | CD123: 1 | CE123: 1 | CF123: 1 | CG123: 1 | CH123: 1 | CI123: 1 | CJ123: 1 | CK123: 1 | CL123: 88
A124: Batches of weaners sold if SD | B124: 0 | C124: 1 | D124: 1 | E124: 1 | F124: 1 | G124: 1 | H124: 1 | I124: 1 | J124: 1 | K124: 1 | L124: 1 | M124: 1 | N124: 1 | O124: 1 | P124: 1 | Q124: 1 | R124: 1 | S124: 1 | T124: 1 | U124: 1 | V124: 1 | W124: 1 | X124: 1 | Y124: 1 | Z124: 1 | AA124: 1 | AB124: 1 | AC124: 1 | AD124: 1 | AE124: 1 | AF124: 1 | AG124: 1 | AH124: 1 | AI124: 1 | AJ124: 1 | AK124: 1 | AL124: 1 | AM124: 1 | AN124: 1 | AO124: 1 | AP124: 1 | AQ124: 1 | AR124: 1 | AS124: 1 | AT124: 1 | AU124: 1 | AV124: 1 | AW124: 1 | AX124: 1 | AY124: 1 | AZ124: 1 | BA124: 1 | BB124: 1 | BC124: 1 | BD124: 1 | BE124: 1 | BF124: 1 | BG124: 1 | BH124: 1 | BI124: 1 | BJ124: 1 | BK124: 1 | BL124: 1 | BM124: 1 | BN124: 1 | BO124: 1 | BP124: 1 | BQ124: 1 | BR124: 1 | BS124: 1 | BT124: 1 | BU124: 1 | BV124: 1 | BW124: 1 | BX124: 1 | BY124: 1 | BZ124: 1 | CA124: 1 | CB124: 1 | CC124: 1 | CD124: 1 | CE124: 1 | CF124: 1 | CG124: 1 | CH124: 1 | CI124: 1 | CJ124: 1 | CK124: 1 | CL124: 87
A125: Sow batches inseminated with AI if depop | B125: =IF($B$66=3,1,0) -> 0 | C125: =IF($B$66=3,1,0) -> 0 | D125: 0 | E125: 0 | F125: 0 | G125: =IF($B$66=3,1,IF($B$66=2,1,0)) -> 0 | H125: =IF($B$66=3,1,IF($B$66=2,1,0)) -> 0 | I125: =IF($B$65=1,1,0) -> 0 | J125: =IF($B$65=1,1,0) -> 0 | K125: 0 | L125: 0 | M125: 0 | N125: 0 | O125: 0 | P125: 0 | Q125: 0 | R125: 0 | S125: 0 | T125: 0 | U125: 0 | V125: 0 | W125: 0 | X125: 0 | Y125: 0 | Z125: 0 | AA125: 0 | AB125: 0 | AC125: 0 | AD125: 0 | AE125: 0 | AF125: 0 | AG125: 0 | AH125: 0 | AI125: 0 | AJ125: 0 | AK125: 0 | AL125: 0 | AM125: 0 | AN125: 0 | AO125: 0 | AP125: 0 | AQ125: 0 | AR125: 0 | AS125: 0 | AT125: 0 | AU125: 0 | AV125: 0 | AW125: 0 | AX125: 0 | AY125: 0 | AZ125: 0 | BA125: 0 | BB125: 0 | BC125: 0 | BD125: 0 | BE125: 0 | BF125: 0 | BG125: 0 | BH125: 0 | BI125: 0 | BJ125: 0 | BK125: 0 | BL125: 0 | BM125: 0 | BN125: 0 | BO125: 0 | BP125: 0 | BQ125: 0 | BR125: 0 | BS125: 0 | BT125: 0 | BU125: 0 | BV125: =IF($B$65=1,1,0) -> 0 | BW125: 0 | BX125: 0 | BY125: 0 | BZ125: 0 | CA125: 0 | CB125: 0 | CC125: 0 | CD125: 0 | CE125: 0 | CF125: 0 | CG125: 0 | CH125: 0 | CI125: 0 | CJ125: 0 | CK125: 0 | CL125: 0
... 130 more rows

Sheet Cash flow analysis (hidden)
A1: Cash flow analysis
A3: Farm parameters
A4: Sow cycle (days) | B4: ='3-weekly batch model'!B4 -> 148
A5: Optimum litters /sow/ year | B5: =365/B4 -> 2.466216216
A6: Return rates for 2.3 litters/sow/year | B6: =1-('Calculation of farm level cost'!B5/B5) -> 0.08767123288
A7: litters/sow/year | B7: ='Calculation of farm level cost'!B5 -> 2.25
A8: piglets weaned/sow/litter | B8: ='Economic analysis for each pig'!B8*(1-'Economic analysis for each pig'!B9) -> 9.77536
A9: Total number of sows | B9: ='3-weekly batch model'!B9 -> 250
A10: Sows/batch | B10: =B9/7 -> 35.71428571
A11: Sows conceiving | B11: =B10*(1-B6) -> 32.58317025
A12: Pigs weaned /batch | B12: =B11*B8 -> 318.5122192
A13: Interest rate | B13: ='3-weekly batch model'!B19 -> 0.035
A14: Age at weaning (days) | B14: ='3-weekly batch model'!B14 -> 28
A15: Weight at weaning (kg.) | B15: ='Epidemiological Model flow'!B26 -> 8.1
A16: Age at finishing | B16: ='Epidemiological Model flow'!B24+'3-weekly batch model'!B14 -> 168
A17: Liveweight at finishing (kg.) | B17: ='Epidemiological Model flow'!B25 -> 102.6
A18: ADG of a H-S (kg.) | B18: ='Epidemiological Model flow'!B28 -> 0.675
A19: interest rate | B19: =B13 -> 0.035
A21: Intervention parameters
A22: For PCV2 vaccination
A23: Applying PCV2 vaccination strategy | B23: 0
A24: cost of PCV2 vaccination per pig weaned | B24: =IF(B23=1,'Control measure entry'!B10,0) -> 0
A25: for reduction on stocking density:
A26: Applying reduction in SD strategy | B26: 0
A27: Percentage reduction on pigs | B27: ='Control measure entry'!B12 -> 0.1
A28: number of pigs weaned/batch that will be finished | B28: =IF(B26=0,B12,(B12)*(1-B27)) -> 318.5122192
A29: number of pigs weaned/batch that will be sold at weaner stage | B29: =B12-B28 -> 0
A30: Days in feed at which weaners are sold | B30: ='Control measure entry'!B13 -> 0
A31: Price per sow (£) | B31: ='Control measure entry'!B34 -> 162.58
A32: For increase on diets:
A33: Applying increase in diets strategy | B33: 0
A34: percentage increase in feed | B34: ='Control measure entry'!B15 -> 0.05
A35: Final conidtion | B35: =IF(B33=1,B34,0) -> 0
A36: For increase on biosecurity measures:
A37: Applying biosecurity strategy | B37: 0
A38: Cost of requiring visitors to be pig clean | B38: =IF(B37=1,'Control measure entry'!B17,0) -> 0
A39: Proportion of pig places needed | B39: ='Control measure entry'!B18 -> 0.025
A40: Number of pigs for SP (maximum) | B40: =B28*B39*7 -> 55.73963836
A41: Cost of creating a new SP properly isolated/pig | B41: ='Control measure entry'!B19 -> 131.7
A42: cost of sick pen in the farm | B42: =IF(B37=0,0,B40*B41) -> 0
A43: percentage of succesful services | B43: ='Control measure entry'!B20 -> 0.8047
A44: Number of AI needed per batch | B44: =B10+(B10*(1-B43)) -> 42.68928571
A45: Cost of purchasing a dose of AI | B45: ='Control measure entry'!B21 -> 6
A46: Cost of purchasing AI | B46: =IF(B37=1,B45*B44,0) -> 0
A47: Proportion of gilts purchased on the farm | B47: ='Control measure entry'!B22 -> 0.4
A48: Number of boars purchased | B48: ='Control measure entry'!B23 -> 1
A49: Cost of purchasing a gilt | B49: =IF(B37=1,'Control measure entry'!B25,0) -> 0
A50: Cost of purchasing a boar | B50: =IF(B37=1,'Control measure entry'!B33,0) -> 0
A51: For depop/repop
A52: Applying depop/repop strategy (yes=1, no=0) | B52: 0 | C52: CM5
A53: Farrow to finish (1) or Multi-site farm (2) or depop at day 0 (3) | B53: 0
A54: Cleaning and desinfection / sow | B54: =IF(B52=0,0,'Control measure entry'!B37) -> 0
A55: Extra labour cost / sow | B55: =IF(B52=0,0,'Control measure entry'!B38) -> 0
A56: Maintenance / sow | B56: =IF(B52=0,0,'Control measure entry'!B39) -> 0
A57: Other cost / sow | B57: =IF(B52=0,0,'Control measure entry'!B40) -> 0
A58: Cost of buy a high health M. hyo free gilt | B58: =IF(B52=0,0,'Economic analysis for each pig'!B13*1) -> 0
A59: Min weight at depop | B59: 30
A60: Day at depop | B60: 63
A62: Pigs produced per batch from day 0
B63: Year 1 | C63: Year 2 | D63: Year 3 | E63: Year 4 | F63: Year 5
A64: days | B64: 365 | C64: =B64+365 -> 730 | D64: =C64+365 -> 1095 | E64: =D64+365 -> 1460 | F64: =E64+365 -> 1825
A65: Number of batches | B65: =B64/21 -> 17.38095238 | C65: =(C64/21) -> 34.76190476 | D65: =D64/21 -> 52.14285714 | E65: =E64/21 -> 69.52380952 | F65: =F64/21 -> 86.9047619
A66: Number of pigs finished | B66: =B65*$B$11*$B$8 -> 5536.045714 | C66: =C65*$B$11*$B$8 -> 11072.09143 | D66: =D65*$B$11*$B$8 -> 16608.13714 | E66: =E65*$B$11*$B$8 -> 22144.18286 | F66: =F65*$B$11*$B$8 -> 27680.22857
A67: Number of pigs finished/sow | B67: =B66/$B$9 -> 22.14418286 | C67: =C66/$B$9 -> 44.28836571 | D67: =D66/$B$9 -> 66.43254857 | E67: =E66/$B$9 -> 88.57673143 | F67: =F66/$B$9 -> 110.7209143
A69: Batches on the farm at day 0 | F69: Batches on the farm at depopulation day (output) | K69: Batches on a MS farm at depopulation day (192) | Q69: Batches on a FF farm at depopulation day (178)
A71: Batches | B71: Sow day | C71: Finisher day | D71: kg of finisher | F71: Finisher day | G71: Finisher kg. | K71: Finisher day | L71: Finisher kg. | M71: PMWS late bacth (day) | Q71: Finisher day | R71: Finisher kg. | S71: PMWS late bacth (day)
A72: 1 | B72: 0 | C72: -115 | D72: 0 | F72: =IF($B$53=1,Q72,IF(B53=3,C81,K72)) -> 77 | G72: =$B$15+(F72-$B$14)*$B$18 -> 41.175 | K72: 77 | L72: =$B$15+(K72-$B$14)*$B$18 -> 41.175 | Q72: =IF($B$52=1,63,171) -> 171 | R72: =$B$15+(Q72-$B$14)*$B$18 -> 104.625
A73: 2 | B73: =B72+21 -> 21 | C73: =C72+21 -> -94 | D73: 0 | F73: =IF($B$53=1,Q73,IF(B53=3,C82,K73)) -> 171 | G73: =$B$15+(F73-$B$14)*$B$18 -> 104.625 | K73: =IF($B$52=0,171,K72+21) -> 171 | L73: =$B$15+(K73-$B$14)*$B$18 -> 104.625 | Q73: =IF($B$52=0,171,Q72+21) -> 171 | R73: =$B$15+(Q73-$B$14)*$B$18 -> 104.625
A74: 3 | B74: =B73+21 -> 42 | C74: -73 | D74: 0 | F74: =IF($B$53=1,Q74,IF(B53=3,C83,K74)) -> 171 | G74: 104.625 | K74: =IF($B$52=0,171,K73+21) -> 171 | L74: 104.625 | Q74: =IF($B$52=0,171,Q73+21) -> 171 | R74: 104.625
A75: 4 | B75: 63 | C75: -52 | D75: 0 | F75: =IF($B$53=1,Q75,IF(B53=3,C84,K75)) -> 171 | G75: 104.625 | K75: =IF($B$52=0,171,K74+21) -> 171 | L75: 104.625 | Q75: =IF($B$52=0,171,Q74+21) -> 171 | R75: 104.625
A76: 5 | B76: 84 | C76: -31 | D76: 0 | F76: =IF($B$53=1,Q76,IF(B53=3,C85,K76)) -> 168 | G76: 102.6 | K76: 168 | L76: 102.6 | Q76: =IF($B$52=0,171,Q75+21) -> 171 | R76: 104.625
A77: 6 | B77: 105 | C77: -10 | D77: 0 | F77: =IF($B$53=1,Q77,K77) -> 168 | G77: =$B$15+(F77-$B$14)*$B$18 -> 102.6 | K77: 168 | L77: 102.6 | Q77: =IF($B$52=0,171,Q76+21) -> 171 | R77: 104.625
A78: 7 | B78: 126 | C78: 11 | D78: =('Epidemiological Model flow'!B26/B14)*C78 -> 3.182142857 | F78: 168 | G78: 102.6 | K78: 168 | L78: 102.6 | Q78: =Q77 -> 171 | R78: 104.625
A79: 8 | B79: 147 | C79: 32 | D79: =$B$15+($B$18*(C79-$B$14)) -> 10.8 | F79: 168 | G79: 102.6 | K79: 168 | L79: 102.6 | Q79: =Q78 -> 171 | R79: 104.625
A80: 9 | B80: 168 | C80: 53 | D80: =$B$15+($B$18*(C80-$B$14)) -> 24.975 | F80: 168 | G80: 102.6 | K80: 168 | L80: 102.6 | Q80: 171 | R80: 104.625
A81: 10 | B81: 189 | C81: 74 | D81: 39.15 | F81: 168 | G81: 102.6 | K81: 168 | L81: 102.6 | Q81: 171 | R81: 104.625
A82: 11 | B82: 210 | C82: 95 | D82: 53.325 | F82: 168 | G82: 102.6 | K82: 168 | L82: 102.6 | Q82: 171 | R82: 104.625
A83: 12 | B83: 231 | C83: 116 | D83: 67.5 | F83: 168 | G83: 102.6 | K83: 168 | L83: 102.6 | Q83: 171 | R83: 104.625
A84: 13 | B84: 252 | C84: 137 | D84: 81.675 | F84: 168 | G84: 102.6 | K84: 168 | L84: 102.6 | Q84: 171 | R84: 104.625
A85: 14 | B85: 273 | C85: 158 | D85: 95.85 | F85: 168 | G85: 102.6 | K85: 168 | L85: 102.6 | Q85: 171 | R85: 104.625
E86: Slow PMWS batch | F86: =IF(B53=1,Q77+21,IF(B53=2,K75+21,C85+21)) -> 179
A88: Model flow in 5 years time
B89: Year 1 | C89: Year 2 | D89: Year 3 | E89: Year 4 | F89: Year 5 | G89: total
A90: Batches sold (no DPRP) | B90: =SUM(B100:R100) -> 17 | C90: =SUM(S100:AJ100) -> 18 | D90: =SUM(AK100:BA100) -> 17 | E90: =SUM(BB100:BR100) -> 17 | F90: =SUM(BS100:CK100) -> 18 | G90: =SUM(B90:F90) -> 87
A91: Batches weaned (no DPRP) | B91: =SUM(B101:R101) -> 16 | C91: =SUM(S101:AJ101) -> 18 | D91: =SUM(AK101:BA101) -> 17 | E91: =SUM(BB101:BR101) -> 17 | F91: =SUM(BS101:CK101) -> 19 | G91: 87
A92: Old batches sold | B92: =SUM(B102:R102) -> 17 | C92: =SUM(S102:AJ102) -> 18 | D92: =SUM(AK102:BA102) -> 17 | E92: =SUM(BB102:BR102) -> 17 | F92: =SUM(BS102:CK102) -> 18 | G92: 87
A93: Unfinsihed bacthes sold | B93: =SUM(B103:R103) -> 0 | C93: =SUM(S103:AJ103) -> 0 | D93: =SUM(AK103:BA103) -> 0 | E93: =SUM(BB103:BR103) -> 0 | F93: =SUM(BS103:CK103) -> 0 | G93: 0
A94: New batches sold | B94: =SUM(B104:R104) -> 0 | C94: =SUM(S104:AJ104) -> 0 | D94: =SUM(AK104:BA104) -> 0 | E94: =SUM(BB104:BR104) -> 0 | F94: =SUM(BS104:CK104) -> 0 | G94: 0
A95: new batches weaned | B95: =SUM(B107:R107) -> 0 | C95: =SUM(S107:AJ107) -> 0 | D95: =SUM(AK107:BA107) -> 0 | E95: =SUM(BB107:BR107) -> 0 | F95: =SUM(BS107:CK107) -> 0 | G95: 0
A96: Sow batches inseminated | B96: =SUM(B109:R109) -> 17 | C96: =SUM(S109:AJ109) -> 18 | D96: =SUM(AK109:BA109) -> 17 | E96: =SUM(BB109:BR109) -> 17 | F96: =SUM(BS109:CK109) -> 19 | G96: 88
A97: batches of weaners sold if SD | B97: =SUM(B110:R110) -> 16 | C97: =SUM(S110:AJ110) -> 18 | D97: =SUM(AK110:BA110) -> 17 | E97: =SUM(BB110:BR110) -> 17 | F97: =SUM(BS110:CK110) -> 19 | G97: 87
A99: Days | B99: =B16-C85 -> 10 | C99: =B99+21 -> 31 | D99: =C99+21 -> 52 | E99: 73 | F99: 94 | G99: 115 | H99: 136 | I99: 157 | J99: 178 | K99: 199 | L99: 220 | M99: 241 | N99: 262 | O99: 283 | P99: 304 | Q99: 325 | R99: 346 | S99: 367 | T99: 388 | U99: 409 | V99: 430 | W99: 451 | X99: 472 | Y99: 493 | Z99: 514 | AA99: 535 | AB99: 556 | AC99: 577 | AD99: 598 | AE99: 619 | AF99: 640 | AG99: 661 | AH99: 682 | AI99: 703 | AJ99: 724 | AK99: 745 | AL99: 766 | AM99: 787 | AN99: 808 | AO99: 829 | AP99: 850 | AQ99: 871 | AR99: 892 | AS99: 913 | AT99: 934 | AU99: 955 | AV99: 976 | AW99: 997 | AX99: 1018 | AY99: 1039 | AZ99: 1060 | BA99: 1081 | BB99: 1102 | BC99: 1123 | BD99: 1144 | BE99: 1165 | BF99: 1186 | BG99: 1207 | BH99: 1228 | BI99: 1249 | BJ99: =BI99+21 -> 1270 | BK99: 1291 | BL99: 1312 | BM99: 1333 | BN99: 1354 | BO99: 1375 | BP99: =BO99+21 -> 1396 | BQ99: 1417 | BR99: 1438 | BS99: 1459 | BT99: 1480 | BU99: 1501 | BV99: 1522 | BW99: 1543 | BX99: 1564 | BY99: 1585 | BZ99: 1606 | CA99: 1627 | CB99: 1648 | CC99: 1669 | CD99: =CC99+21 -> 1690 | CE99: =CD99+21 -> 1711 | CF99: 1732 | CG99: 1753 | CH99: 1774 | CI99: 1795 | CJ99: 1816 | CK99: 1825 | CL99: TOTAL | CM99: TOTAL
A100: Batches sold (no DPRP) | B100: 1 | C100: =B100 -> 1 | D100: =C100 -> 1 | E100: 1 | F100: 1 | G100: 1 | H100: 1 | I100: 1 | J100: 1 | K100: 1 | L100: 1 | M100: 1 | N100: 1 | O100: 1 | P100: 1 | Q100: 1 | R100: 1 | S100: 1 | T100: 1 | U100: 1 | V100: 1 | W100: 1 | X100: 1 | Y100: 1 | Z100: 1 | AA100: 1 | AB100: 1 | AC100: 1 | AD100: 1 | AE100: 1 | AF100: 1 | AG100: 1 | AH100: 1 | AI100: 1 | AJ100: 1 | AK100: 1 | AL100: 1 | AM100: 1 | AN100: 1 | AO100: 1 | AP100: 1 | AQ100: 1 | AR100: 1 | AS100: 1 | AT100: 1 | AU100: 1 | AV100: 1 | AW100: 1 | AX100: 1 | AY100: 1 | AZ100: 1 | BA100: 1 | BB100: 1 | BC100: 1 | BD100: 1 | BE100: 1 | BF100: 1 | BG100: 1 | BH100: 1 | BI100: 1 | BJ100: 1 | BK100: 1 | BL100: 1 | BM100: 1 | BN100: 1 | BO100: 1 | BP100: =BO100 -> 1 | BQ100: 1 | BR100: 1 | BS100: 1 | BT100: 1 | BU100: 1 | BV100: 1 | BW100: 1 | BX100: 1 | BY100: 1 | BZ100: 1 | CA100: 1 | CB100: 1 | CC100: 1 | CD100: 1 | CE100: 1 | CF100: 1 | CG100: 1 | CH100: 1 | CI100: 1 | CJ100: 1 | CK100: 0 | CL100: =SUM(B100:CJ100) -> 87 | CM100: =CL100 -> 87
A101: Batches weaned (no DPRP) | B101: 0 | C101: 1 | D101: 1 | E101: 1 | F101: 1 | G101: 1 | H101: 1 | I101: 1 | J101: 1 | K101: 1 | L101: 1 | M101: 1 | N101: 1 | O101: 1 | P101: 1 | Q101: 1 | R101: 1 | S101: 1 | T101: 1 | U101: 1 | V101: 1 | W101: 1 | X101: 1 | Y101: 1 | Z101: 1 | AA101: 1 | AB101: 1 | AC101: 1 | AD101: 1 | AE101: 1 | AF101: 1 | AG101: 1 | AH101: 1 | AI101: 1 | AJ101: 1 | AK101: 1 | AL101: 1 | AM101: 1 | AN101: 1 | AO101: 1 | AP101: 1 | AQ101: 1 | AR101: 1 | AS101: 1 | AT101: 1 | AU101: 1 | AV101: 1 | AW101: 1 | AX101: 1 | AY101: 1 | AZ101: 1 | BA101: 1 | BB101: 1 | BC101: 1 | BD101: 1 | BE101: 1 | BF101: 1 | BG101: 1 | BH101: 1 | BI101: 1 | BJ101: 1 | BK101: 1 | BL101: 1 | BM101: 1 | BN101: 1 | BO101: 1 | BP101: 1 | BQ101: 1 | BR101: 1 | BS101: 1 | BT101: 1 | BU101: 1 | BV101: 1 | BW101: 1 | BX101: 1 | BY101: 1 | BZ101: 1 | CA101: 1 | CB101: 1 | CC101: 1 | CD101: 1 | CE101: 1 | CF101: 1 | CG101: 1 | CH101: 1 | CI101: 1 | CJ101: 1 | CK101: 1 | CL101: =SUM(B101:CK101) -> 87 | CM101: =CL101 -> 87
A102: Old batches sold | B102: =IF($B$52=0,IF(B104=0,1,0),IF($B$53=3,0,1)) -> 1 | C102: =IF($B$52=0,IF(C104=0,1,0),IF($B$53=3,0,1)) -> 1 | D102: 1 | E102: 1 | F102: 1 | G102: 1 | H102: 1 | I102: 1 | J102: 1 | K102: =IF($B$52=0,IF(K104=0,1,0),IF(B53=3,0,IF(B53=1,0,1))) -> 1 | L102: =IF($B$52=1,0,IF(L104=0,1,0)) -> 1 | M102: =IF($B$52=1,0,IF(M104=0,1,0)) -> 1 | N102: 1 | O102: 1 | P102: 1 | Q102: 1 | R102: 1 | S102: 1 | T102: 1 | U102: 1 | V102: 1 | W102: 1 | X102: 1 | Y102: 1 | Z102: 1 | AA102: 1 | AB102: 1 | AC102: 1 | AD102: 1 | AE102: 1 | AF102: 1 | AG102: 1 | AH102: 1 | AI102: 1 | AJ102: 1 | AK102: 1 | AL102: 1 | AM102: 1 | AN102: 1 | AO102: 1 | AP102: 1 | AQ102: 1 | AR102: 1 | AS102: 1 | AT102: 1 | AU102: 1 | AV102: 1 | AW102: 1 | AX102: 1 | AY102: 1 | AZ102: 1 | BA102: 1 | BB102: 1 | BC102: 1 | BD102: 1 | BE102: 1 | BF102: 1 | BG102: 1 | BH102: 1 | BI102: 1 | BJ102: 1 | BK102: 1 | BL102: 1 | BM102: 1 | BN102: 1 | BO102: 1 | BP102: 1 | BQ102: 1 | BR102: 1 | BS102: 1 | BT102: 1 | BU102: 1 | BV102: 1 | BW102: 1 | BX102: 1 | BY102: =IF($B$52=1,0,IF(BY104=0,1,0)) -> 1 | BZ102: 1 | CA102: 1 | CB102: 1 | CC102: 1 | CD102: 1 | CE102: 1 | CF102: 1 | CG102: 1 | CH102: 1 | CI102: 1 | CJ102: 1 | CK102: 0 | CL102: =SUM(B102:CK102) -> 87 | CM102: 87
A103: Unfinished bacthes sold | B103: =IF(B52=0,0,IF(B53=3,5,0)) -> 0 | C103: 0 | D103: 0 | E103: 0 | F103: 0 | G103: 0 | H103: 0 | I103: 0 | J103: =IF(B52=0,0,IF(B53=1,5,0)) -> 0 | K103: =IF(B52=0,0,IF(B53=2,4,0)) -> 0 | L103: 0 | M103: 0 | N103: 0 | O103: 0 | P103: 0 | Q103: 0 | R103: 0 | S103: 0 | T103: 0 | U103: 0 | V103: 0 | W103: 0 | X103: 0 | Y103: 0 | Z103: 0 | AA103: 0 | AB103: 0 | AC103: 0 | AD103: 0 | AE103: 0 | AF103: 0 | AG103: 0 | AH103: 0 | AI103: 0 | AJ103: 0 | AK103: 0 | AL103: 0 | AM103: 0 | AN103: 0 | AO103: 0 | AP103: 0 | AQ103: 0 | AR103: 0 | AS103: 0 | AT103: 0 | AU103: 0 | AV103: 0 | AW103: 0 | AX103: 0 | AY103: 0 | AZ103: 0 | BA103: 0 | BB103: 0 | BC103: 0 | BD103: 0 | BE103: 0 | BF103: 0 | BG103: 0 | BH103: 0 | BI103: 0 | BJ103: 0 | BK103: 0 | BL103: 0 | BM103: 0 | BN103: 0 | BO103: 0 | BP103: 0 | BQ103: 0 | BR103: 0 | BS103: 0 | BT103: 0 | BU103: 0 | BV103: 0 | BW103: 0 | BX103: 0 | BY103: 0 | BZ103: 0 | CA103: 0 | CB103: 0 | CC103: 0 | CD103: 0 | CE103: 0 | CF103: 0 | CG103: 0 | CH103: 0 | CI103: 0 | CJ103: 0 | CK103: 0 | CL103: 0 | CM103: 0
A104: New batches sold | B104: 0 | C104: 0 | D104: 0 | E104: 0 | F104: 0 | G104: 0 | H104: 0 | I104: =IF($B$52=1,0,IF($I$106=1,1,0)) -> 0 | J104: =IF($B$52=1,0,IF($I$106=1,1,0)) -> 0 | K104: 0 | L104: 0 | M104: 0 | N104: 0 | O104: =IF($B$52=1,IF(B53=3,1,0),IF($I$106=1,1,0)) -> 0 | P104: =IF($B$52=1,IF($B$53=3,1,0),IF($I$106=1,1,0)) -> 0 | Q104: =IF($B$52=1,IF($B$53=3,1,0),IF($I$106=1,1,0)) -> 0 | R104: =IF($B$52=1,IF($B$53=3,1,0),IF($I$106=1,1,0)) -> 0 | S104: 0 | T104: 0 | U104: 0 | V104: =IF($B$52=1,1,IF($I$106=1,1,0)) -> 0 | W104: =IF($B$52=1,1,IF($I$106=1,1,0)) -> 0 | X104: 0 | Y104: 0 | Z104: 0 | AA104: 0 | AB104: 0 | AC104: 0 | AD104: 0 | AE104: 0 | AF104: 0 | AG104: 0 | AH104: 0 | AI104: 0 | AJ104: 0 | AK104: 0 | AL104: 0 | AM104: 0 | AN104: 0 | AO104: 0 | AP104: 0 | AQ104: 0 | AR104: 0 | AS104: 0 | AT104: 0 | AU104: 0 | AV104: 0 | AW104: 0 | AX104: 0 | AY104: 0 | AZ104: 0 | BA104: 0 | BB104: 0 | BC104: 0 | BD104: 0 | BE104: 0 | BF104: 0 | BG104: 0 | BH104: 0 | BI104: 0 | BJ104: 0 | BK104: 0 | BL104: 0 | BM104: 0 | BN104: 0 | BO104: 0 | BP104: 0 | BQ104: 0 | BR104: 0 | BS104: 0 | BT104: 0 | BU104: 0 | BV104: 0 | BW104: 0 | BX104: 0 | BY104: 0 | BZ104: 0 | CA104: 0 | CB104: 0 | CC104: 0 | CD104: 0 | CE104: 0 | CF104: 0 | CG104: 0 | CH104: 0 | CI104: =IF($B$52=1,1,IF($I$106=1,1,0)) -> 0 | CJ104: 0 | CK104: 0 | CL104: =SUM(B104:CK104) -> 0 | CM104: 0
A105: Total batches | B105: =B102+B103+B104 -> 1 | C105: =C102+C103+C104 -> 1 | D105: 1 | E105: 1 | F105: 1 | G105: 1 | H105: 1 | I105: 1 | J105: 1 | K105: 1 | L105: 1 | M105: 1 | N105: 1 | O105: 1 | P105: 1 | Q105: 1 | R105: 1 | S105: 1 | T105: 1 | U105: 1 | V105: 1 | W105: 1 | X105: 1 | Y105: 1 | Z105: 1 | AA105: 1 | AB105: 1 | AC105: 1 | AD105: 1 | AE105: 1 | AF105: 1 | AG105: 1 | AH105: 1 | AI105: 1 | AJ105: 1 | AK105: 1 | AL105: 1 | AM105: 1 | AN105: 1 | AO105: 1 | AP105: 1 | AQ105: 1 | AR105: 1 | AS105: 1 | AT105: 1 | AU105: 1 | AV105: 1 | AW105: 1 | AX105: 1 | AY105: 1 | AZ105: 1 | BA105: 1 | BB105: 1 | BC105: 1 | BD105: 1 | BE105: 1 | BF105: 1 | BG105: 1 | BH105: 1 | BI105: 1 | BJ105: 1 | BK105: 1 | BL105: 1 | BM105: 1 | BN105: 1 | BO105: =BO102+BO103+BO104 -> 1 | BP105: 1 | BQ105: 1 | BR105: 1 | BS105: 1 | BT105: 1 | BU105: 1 | BV105: 1 | BW105: 1 | BX105: 1 | BY105: 1 | BZ105: 1 | CA105: 1 | CB105: 1 | CC105: 1 | CD105: 1 | CE105: 1 | CF105: 1 | CG105: 1 | CH105: 1 | CI105: 1 | CJ105: 1 | CK105: 0 | CL105: 87 | CM105: 87
A106: New batches sold if vac or diet or bio only | B106: 0 | C106: 0 | D106: 0 | E106: 0 | F106: 0 | G106: 0 | H106: 0 | I106: =IF($B$23=1,1,IF($B$33=1,1,IF($B$37=1,1,IF($B$26=1,1,0)))) -> 0 | J106: 0 | K106: 0 | L106: 0 | M106: 0 | N106: 0 | O106: 0 | P106: 0 | Q106: 0 | R106: 0 | S106: 0 | T106: 0 | U106: 0 | V106: 0 | W106: 0 | X106: 0 | Y106: 0 | Z106: 0 | AA106: 0 | AB106: 0 | AC106: 0 | AD106: 0 | AE106: 0 | AF106: 0 | AG106: 0 | AH106: 0 | AI106: 0 | AJ106: 0 | AK106: 0 | AL106: 0 | AM106: 0 | AN106: 0 | AO106: =IF($B$23=1,1,IF($B$33=1,1,IF($B$37=1,1,IF($B$26=1,1,0)))) -> 0 | AP106: 0 | AQ106: 0 | AR106: 0 | AS106: 0 | AT106: 0 | AU106: 0 | AV106: 0 | AW106: 0 | AX106: 0 | AY106: 0 | AZ106: 0 | BA106: 0 | BB106: 0 | BC106: 0 | BD106: 0 | BE106: 0 | BF106: 0 | BG106: 0 | BH106: 0 | BI106: 0 | BJ106: 0 | BK106: 0 | BL106: 0 | BM106: 0 | BN106: 0 | BO106: 0 | BP106: 0 | BQ106: 0 | BR106: 0 | BS106: 0 | BT106: 0 | BU106: =IF($B$23=1,1,IF($B$33=1,1,IF($B$37=1,1,IF($B$26=1,1,0)))) -> 0 | BV106: 0 | BW106: 0 | BX106: 0 | BY106: 0 | BZ106: 0 | CA106: 0 | CB106: 0 | CC106: 0 | CD106: 0 | CE106: 0 | CF106: 0 | CG106: 0 | CH106: 0 | CI106: 0 | CJ106: 0 | CK106: 0 | CL106: 0 | CM106: 0
A107: New batches weaned | B107: 0 | C107: =IF($B$52=1,0,IF($B$26=1,0,C108)) -> 0 | D107: 0 | E107: 0 | F107: 0 | G107: 0 | H107: 0 | I107: =IF($B$52=1,0,IF($B$26=1,1,I108)) -> 0 | J107: =IF($B$52=1,0,IF($B$26=1,1,J108)) -> 0 | K107: =IF($B$52=1,0,IF($B$26=1,1,K108)) -> 0 | L107: =IF($B$52=1,0,IF($B$26=1,1,L108)) -> 0 | M107: =IF($B$52=0,IF($B$26=1,1,M108),IF($B$53=1,0,1)) -> 0 | N107: =IF($B$52=0,IF($B$26=1,1,N108),IF($B$53=1,0,1)) -> 0 | O107: =IF($B$52=1,1,IF($B$26=1,1,O108)) -> 0 | P107: 0 | Q107: 0 | R107: 0 | S107: 0 | T107: 0 | U107: 0 | V107: 0 | W107: 0 | X107: 0 | Y107: 0 | Z107: 0 | AA107: 0 | AB107: 0 | AC107: 0 | AD107: 0 | AE107: 0 | AF107: 0 | AG107: 0 | AH107: 0 | AI107: 0 | AJ107: 0 | AK107: 0 | AL107: 0 | AM107: 0 | AN107: 0 | AO107: 0 | AP107: 0 | AQ107: 0 | AR107: 0 | AS107: 0 | AT107: 0 | AU107: =IF($B$52=1,1,IF($B$26=1,1,AU108)) -> 0 | AV107: 0 | AW107: 0 | AX107: 0 | AY107: 0 | AZ107: 0 | BA107: 0 | BB107: 0 | BC107: 0 | BD107: 0 | BE107: 0 | BF107: 0 | BG107: 0 | BH107: 0 | BI107: 0 | BJ107: 0 | BK107: 0 | BL107: 0 | BM107: 0 | BN107: 0 | BO107: 0 | BP107: 0 | BQ107: 0 | BR107: 0 | BS107: 0 | BT107: 0 | BU107: 0 | BV107: 0 | BW107: 0 | BX107: 0 | BY107: 0 | BZ107: 0 | CA107: =IF($B$52=1,1,IF($B$26=1,1,CA108)) -> 0 | CB107: 0 | CC107: 0 | CD107: 0 | CE107: 0 | CF107: 0 | CG107: 0 | CH107: 0 | CI107: 0 | CJ107: 0 | CK107: 0 | CL107: 0 | CM107: 0
A108: new batches weaned if vac or diet or bio or SD | B108: 0 | C108: =IF($B$23=1,1,IF($B$33=1,1,IF($B$37=1,1,IF($B$26=1,1,0)))) -> 0 | D108: 0 | E108: 0 | F108: 0 | G108: 0 | H108: 0 | I108: 0 | J108: 0 | K108: 0 | L108: 0 | M108: 0 | N108: 0 | O108: 0 | P108: 0 | Q108: 0 | R108: 0 | S108: 0 | T108: 0 | U108: 0 | V108: 0 | W108: 0 | X108: 0 | Y108: 0 | Z108: 0 | AA108: 0 | AB108: 0 | AC108: 0 | AD108: 0 | AE108: 0 | AF108: 0 | AG108: 0 | AH108: 0 | AI108: =IF($B$23=1,1,IF($B$33=1,1,IF($B$37=1,1,IF($B$26=1,1,0)))) -> 0 | AJ108: 0 | AK108: 0 | AL108: 0 | AM108: 0 | AN108: 0 | AO108: 0 | AP108: 0 | AQ108: 0 | AR108: 0 | AS108: 0 | AT108: 0 | AU108: 0 | AV108: 0 | AW108: 0 | AX108: 0 | AY108: 0 | AZ108: 0 | BA108: 0 | BB108: 0 | BC108: 0 | BD108: 0 | BE108: 0 | BF108: 0 | BG108: 0 | BH108: 0 | BI108: 0 | BJ108: 0 | BK108: 0 | BL108: 0 | BM108: 0 | BN108: 0 | BO108: =IF($B$23=1,1,IF($B$33=1,1,IF($B$37=1,1,IF($B$26=1,1,0)))) -> 0 | BP108: 0 | BQ108: 0 | BR108: 0 | BS108: 0 | BT108: 0 | BU108: 0 | BV108: 0 | BW108: 0 | BX108: 0 | BY108: 0 | BZ108: 0 | CA108: 0 | CB108: 0 | CC108: 0 | CD108: 0 | CE108: 0 | CF108: 0 | CG108: 0 | CH108: 0 | CI108: 0 | CJ108: 0 | CK108: 0 | CL108: 0 | CM108: 0
A109: Sow batches inseminated since start of the model | B109: 1 | C109: 1 | D109: 1 | E109: 1 | F109: 1 | G109: 1 | H109: 1 | I109: 1 | J109: 1 | K109: 1 | L109: 1 | M109: 1 | N109: 1 | O109: 1 | P109: 1 | Q109: 1 | R109: 1 | S109: 1 | T109: 1 | U109: 1 | V109: 1 | W109: 1 | X109: 1 | Y109: 1 | Z109: 1 | AA109: 1 | AB109: 1 | AC109: 1 | AD109: 1 | AE109: 1 | AF109: 1 | AG109: 1 | AH109: 1 | AI109: 1 | AJ109: 1 | AK109: 1 | AL109: 1 | AM109: 1 | AN109: 1 | AO109: 1 | AP109: 1 | AQ109: 1 | AR109: 1 | AS109: 1 | AT109: 1 | AU109: 1 | AV109: 1 | AW109: 1 | AX109: 1 | AY109: 1 | AZ109: 1 | BA109: 1 | BB109: 1 | BC109: 1 | BD109: 1 | BE109: 1 | BF109: 1 | BG109: 1 | BH109: 1 | BI109: 1 | BJ109: 1 | BK109: 1 | BL109: 1 | BM109: 1 | BN109: 1 | BO109: 1 | BP109: 1 | BQ109: 1 | BR109: 1 | BS109: 1 | BT109: 1 | BU109: 1 | BV109: 1 | BW109: 1 | BX109: 1 | BY109: 1 | BZ109: 1 | CA109: 1 | CB109: 1 | CC109: 1 | CD109: 1 | CE109: 1 | CF109: 1 | CG109: 1 | CH109: 1 | CI109: 1 | CJ109: 1 | CK109: 1 | CL109: 88 | CM109: 88
A110: Batches of weaners sold if SD | B110: 0 | C110: 1 | D110: 1 | E110: 1 | F110: 1 | G110: 1 | H110: 1 | I110: 1 | J110: 1 | K110: 1 | L110: 1 | M110: 1 | N110: 1 | O110: 1 | P110: 1 | Q110: 1 | R110: 1 | S110: 1 | T110: 1 | U110: 1 | V110: 1 | W110: 1 | X110: 1 | Y110: 1 | Z110: 1 | AA110: 1 | AB110: 1 | AC110: 1 | AD110: 1 | AE110: 1 | AF110: 1 | AG110: 1 | AH110: 1 | AI110: 1 | AJ110: 1 | AK110: 1 | AL110: 1 | AM110: 1 | AN110: 1 | AO110: 1 | AP110: 1 | AQ110: 1 | AR110: 1 | AS110: 1 | AT110: 1 | AU110: 1 | AV110: 1 | AW110: 1 | AX110: 1 | AY110: 1 | AZ110: 1 | BA110: 1 | BB110: 1 | BC110: 1 | BD110: 1 | BE110: 1 | BF110: 1 | BG110: 1 | BH110: 1 | BI110: 1 | BJ110: 1 | BK110: 1 | BL110: 1 | BM110: 1 | BN110: 1 | BO110: 1 | BP110: 1 | BQ110: 1 | BR110: 1 | BS110: 1 | BT110: 1 | BU110: 1 | BV110: 1 | BW110: 1 | BX110: 1 | BY110: 1 | BZ110: 1 | CA110: 1 | CB110: 1 | CC110: 1 | CD110: 1 | CE110: 1 | CF110: 1 | CG110: 1 | CH110: 1 | CI110: 1 | CJ110: 1 | CK110: 1 | CL110: 87 | CM110: 87
... 104 more rows

Sheet Loss-expenditure frontier (hidden)
B1: Extra cost | C1: Extra benefits | D1: Prob | E1: Extra cost | F1: Extra benefits*prob | G1: Revenue no intervention | H1: Difference | K1: stochastic cost | L1: stochastic diff
A2: Vac + Bios | B2: ='1+4'!R366 ->  | C2: ='1+4'!R367 ->  | D2: 0.81 | E2: =_xll.RiskOutput(,,1)+(B2*-1)*D2 ->  | F2: =D2*C2 ->  | G2: ='Investment appraisal'!$R$367 ->  | H2: =_xll.RiskOutput(,,1)+G2-F2 ->  | K2: 229168.8 | L2: 67492.74
A3: Vac | B3: ='1'!R366 ->  | C3: ='1'!R367 ->  | D3: 0.76 | E3: =_xll.RiskOutput(,,2)+(B3*-1)*D3 ->  | F3: =D3*C3 ->  | G3: ='Investment appraisal'!$R$367 ->  | H3: =_xll.RiskOutput(,,2)+G3-F3 ->  | K3: 202336.7 | L3: 88958.6
A4: Bios + Stock | B4: ='4+2'!R366 ->  | C4: ='4+2'!R367 ->  | D4: 0.793 | E4: =_xll.RiskOutput(,,3)+(B4*-1)*D4 ->  | G4: ='Investment appraisal'!$R$367 ->  | H4: =_xll.RiskOutput(,,3)+G4-F4 ->  | K4: 195877.8 | L4: 132096
A5: Bios + Diet | B5: ='4+3'!R366 ->  | C5: ='4+3'!R367 ->  | D5: 0.681 | E5: =_xll.RiskOutput(,,4)+(B5*-1)*D5 ->  | G5: ='Investment appraisal'!$R$367 ->  | H5: =_xll.RiskOutput(,,4)+G5-F5 ->  | K5: 197175.3 | L5: 113316.8
A6: Vac + Bios + Diets | B6: ='1+3+4'!R366 ->  | C6: ='1+3+4'!R367 ->  | D6: 0.923 | E6: =_xll.RiskOutput(,,5)+(B6*-1)*D6 ->  | G6: ='Investment appraisal'!$R$367 ->  | H6: =_xll.RiskOutput(,,5)+G6-F6 ->  | K6: 280242.8 | L6: 27352.32
A7: Vac + Bios + Stock | B7: ='1+4+2'!R366 ->  | C7: ='1+4+2'!R367 ->  | D7: 0.95 | E7: =_xll.RiskOutput(,,6)+(B7*-1)*D7 ->  | G7: ='Investment appraisal'!$R$367 ->  | H7: =_xll.RiskOutput(,,6)+G7-F7 ->  | K7: 245810.1 | L7: 81768.24
A8: Bios + Diet + Stock | B8: ='4+3+2'!R366 ->  | C8: ='4+3+2'!R367 ->  | D8: 0.969 | E8: =_xll.RiskOutput(,,7)+(B8*-1)*D8 ->  | G8: ='Investment appraisal'!$R$367 ->  | H8: =_xll.RiskOutput(,,7)+G8-F8 ->  | K8: 229880.6 | L8: 77205.55
A9: Vac + Diets | B9: ='1+3'!R366 ->  | C9: ='1+3'!R367 ->  | D9: 0.76 | E9: =_xll.RiskOutput(,,8)+(B9*-1)*D9 ->  | G9: ='Investment appraisal'!$R$367 ->  | H9: =_xll.RiskOutput(,,8)+G9-F9 ->  | K9: 218066.6 | L9: 88958.6
A10: Vac + Stock | B10: ='1+2'!R366 ->  | C10: ='1+2'!R367 ->  | D10: 0.76 | E10: =_xll.RiskOutput(,,9)+(B10*-1)*D10 ->  | G10: ='Investment appraisal'!$R$367 ->  | H10: =_xll.RiskOutput(,,9)+G10-F10 ->  | K10: 184177.8 | L10: 145669.5
A11: Bios + Diet + DPRP2 | B11: ='4+5.1'!R366 ->  | C11: ='4+5.1'!R367 ->  | D11: 0.902 | E11: =_xll.RiskOutput(,,10)+(B11*-1)*D11 ->  | G11: ='Investment appraisal'!$R$367 ->  | H11: =_xll.RiskOutput(,,10)+G11-F11 ->  | K11: 295931.9 | L11: 21090.26
A12: Bios + Stock + DPRP2 | B12: ='4+2+5.1'!R366 ->  | C12: ='4+2+5.1'!R367 ->  | D12: 0.943 | E12: =_xll.RiskOutput(,,11)+(B12*-1)*D12 ->  | G12: ='Investment appraisal'!$R$367 ->  | H12: =_xll.RiskOutput(,,11)+G12-F12 ->  | K12: 284494.4 | L12: 63828.08
A13: Vac + Bios + DPRP2 | B13: ='1+4+5.2'!R366 ->  | C13: ='1+4+5.2'!R367 ->  | D13: 0.887 | E13: =_xll.RiskOutput(,,12)+(B13*-1)*D13 ->  | G13: ='Investment appraisal'!$R$367 ->  | H13: =_xll.RiskOutput(,,12)+G13-F13 ->  | K13: 296556.3 | L13: 34811.08
A14: Vac + Bios + Diet + Stock | B14: ='1+4+3+2'!R366 ->  | C14: ='1+4+3+2'!R367 ->  | D14: 0.993 | E14: =_xll.RiskOutput(,,13)+(B14*-1)*D14 ->  | G14: ='Investment appraisal'!$R$367 ->  | H14: =_xll.RiskOutput(,,13)+G14-F14 ->  | K14: 247231 | L14: 69232.09
A15: Bios + DPRP2 | B15: ='4+5.2'!R366 ->  | C15: ='4+5.2'!R367 ->  | D15: 0.531 | E15: =_xll.RiskOutput(,,14)+(B15*-1)*D15 ->  | G15: ='Investment appraisal'!$R$367 ->  | H15: =_xll.RiskOutput(,,14)+G15-F15 ->  | K15: 170975 | L15: 154524.1
A16: Vac + Diet + Stock | B16: ='1+3+2'!R366 ->  | C16: ='1+3+2'!R367 ->  | D16: 0.79 | E16: =_xll.RiskOutput(,,15)+(B16*-1)*D16 ->  | G16: ='Investment appraisal'!$R$367 ->  | H16: =_xll.RiskOutput(,,15)+G16-F16 ->  | K16: 183726.8 | L16: 136841.3
A17: Bios + Diet + Stock + DPRP2 | B17: ='4+3+2+5.2'!R366 ->  | C17: ='4+3+2+5.2'!R367 ->  | D17: 0.993 | E17: =_xll.RiskOutput(,,16)+(B17*-1)*D17 ->  | G17: ='Investment appraisal'!$R$367 ->  | H17: =_xll.RiskOutput(,,16)+G17-F17 ->  | K17: 288734.6 | L17: 51356.07
A18: Vac + Bios + Stock + DPRP2 | B18: ='1+4+2+5.2'!R366 ->  | C18: ='1+4+2+5.2'!R367 ->  | D18: 0.986 | E18: =_xll.RiskOutput(,,17)+(B18*-1)*D18 ->  | G18: ='Investment appraisal'!$R$367 ->  | H18: =_xll.RiskOutput(,,17)+G18-F18 ->  | K18: 301021.1 | L18: 49618.62
A19: Vac + Bios + Diet + DPRP2 | B19: ='1+3+2+5.2'!R366 ->  | C19: ='1+3+2+5.2'!R367 ->  | D19: 0.976 | E19: =_xll.RiskOutput(,,18)+(B19*-1)*D19 ->  | G19: ='Investment appraisal'!$R$367 ->  | H19: =_xll.RiskOutput(,,18)+G19-F19 ->  | K19: 278850.5 | L19: 57362.11
A20: Diet + Stock | B20: ='3+2'!R366 ->  | C20: ='3+2'!R367 ->  | D20: 0.126 | E20: =_xll.RiskOutput(,,19)+(B20*-1)*D20 ->  | G20: ='Investment appraisal'!$R$367 ->  | H20: =_xll.RiskOutput(,,19)+G20-F20 ->  | K20: 27824.16 | L20: 308129.3
A21: Vac + Bios + Diet + Stock + DPRP2 | B21: ='1+4+3+2+5.2'!R366 ->  | C21: ='1+4+3+2+5.2'!R367 ->  | D21: 1 | E21: =_xll.RiskOutput(,,20)+(B21*-1)*D21 ->  | G21: ='Investment appraisal'!$R$367 ->  | H21: =_xll.RiskOutput(,,20)+G21-F21 ->  | K21: 301884.6 | L21: 45664.46
A22: Stock | B22: ='2'!R366 ->  | C22: ='2'!R367 ->  | D22: 0.002 | E22: =_xll.RiskOutput(,,21)+(B22*-1)*D22 ->  | G22: ='Investment appraisal'!$R$367 ->  | H22: =_xll.RiskOutput(,,21)+G22-F22 ->  | K22: 461.2008 | L22: 354665.4
A23: Diet | B23: ='3'!R366 ->  | C23: ='3'!R367 ->  | D23: 0.001 | E23: =_xll.RiskOutput(,,22)+(B23*-1)*D23 ->  | G23: ='Investment appraisal'!$R$367 ->  | H23: =_xll.RiskOutput(,,22)+G23-F23 ->  | K23: 272.846 | L23: 354874.6
A32: Mode | B32: 95% CI | C32: CI | D32: Mode | E32: 96% CI | F32: CI | G32: severity
A33: -9579.776 | B33: -11187.41 | C33: -7340.213 | D33: -19911.16 | E33: -22958.31 | F33: -16792.26 | G33: 3
A34: -5104.946 | B34: -7273.196 | C34: -3254.242 | D34: -16042.4 | E34: -18629.79 | F34: -12574.15 | G34: =G33+0.5 -> 3.5
A35: -626.3281 | B35: -3390.767 | C35: 2318.724 | D35: -9748.55 | E35: -14185.32 | F35: -7162.428 | G35: =G34+0.5 -> 4
A36: 4096.791 | B36: 734.1107 | C36: 9100.802 | D36: -5415.731 | E36: -9386.966 | F36: -326.7695 | G36: 4.5
A37: 10760.21 | B37: 5268.667 | C37: 17160.25 | D37: 1468.126 | E37: -4052.242 | F37: 8025.735 | G37: 5
A38: 18479.85 | B38: 10343.73 | C38: 26605.92 | D38: 8597.911 | E38: 1776.346 | F38: 18046.01 | G38: 5.5
A39: 26716.54 | B39: 16092.54 | C39: 37621.92 | D39: 18782.72 | E39: 8283.812 | F39: 29775.48 | G39: 6
A40: 37335.9 | B40: 22799.66 | C40: 50637.41 | D40: 28283.73 | E40: 15882.93 | F40: 43687.74 | G40: 6.5
A41: 41980.37 | B41: 31439.7 | C41: 65867.73 | D41: 37794.46 | E41: 25744.9 | F41: 60067.39 | G41: 7
A42: 60527.35 | B42: 41333.38 | C42: 83762.57 | D42: 49797.75 | E42: 37039.72 | F42: 79140.86 | G42: 7.5
A43: 70843.08 | B43: 53298.99 | C43: 104691.2 | D43: 70404.85 | E43: 50860.93 | F43: 101740.1 | G43: 8
A44: 93242.74 | B44: 68574.16 | C44: 129731.1 | D44: 96034.23 | E44: 68144.05 | F44: 127859.5 | G44: 8.5
A45: 122439.6 | B45: 87313.16 | C45: 160903.6 | D45: 121745.6 | E45: 88941.83 | F45: 160045.8 | G45: 9
A46: 151560.4 | B46: 110429.2 | C46: 199647 | D46: 151434.3 | E46: 114902.3 | F46: 201140.5 | G46: 9.5
A47: 176673.3 | B47: 139208.9 | C47: 247796 | D47: 185518.6 | E47: 147452.4 | F47: 253049.4 | G47: 10

Sheet Scenario analysis (hidden)
A1: Expected value
A5: Combination of control measures
E6: PMWS severity
A7: ID intervention | B7: Control measures | D7: 3 | E7: =D7+0.5 -> 3.5 | F7: =E7+0.5 -> 4 | G7: 4.5 | H7: 5 | I7: 5.5 | J7: 6 | K7: 6.5 | L7: 7 | M7: 7.5 | N7: 8 | O7: 8.5 | P7: 9 | Q7: 9.5 | R7: =Q7+0.5 -> 10 | S7: 5.46 | T7: 7.52
A8: 1 | B8: vac | C8: IA profits | D8: ='1'!B365 ->  | E8: ='1'!C365 ->  | F8: ='1'!D365 ->  | G8: ='1'!E365 ->  | H8: ='1'!F365 ->  | I8: ='1'!G365 ->  | J8: ='1'!H365 ->  | K8: ='1'!I365 ->  | L8: ='1'!J365 ->  | M8: ='1'!K365 ->  | N8: ='1'!L365 ->  | O8: ='1'!M365 ->  | P8: ='1'!N365 ->  | Q8: ='1'!O365 ->  | R8: ='1'!P365 ->  | S8: ='1'!Q365 -> 204055.8179 | T8: ='1'!R365 -> 
C9: CBA profits | D9: ='1'!B368 ->  | E9: ='1'!C368 ->  | F9: ='1'!D368 ->  | G9: ='1'!E368 ->  | H9: ='1'!F368 ->  | I9: ='1'!G368 ->  | J9: ='1'!H368 ->  | K9: ='1'!I368 ->  | L9: ='1'!J368 ->  | M9: ='1'!K368 ->  | N9: ='1'!L368 ->  | O9: ='1'!M368 ->  | P9: ='1'!N368 ->  | Q9: ='1'!O368 ->  | R9: ='1'!P368 ->  | S9: =_xll.RiskOutput(,"CBRvac",1) + '1'!Q368 ->  | T9: =_xll.RiskOutput(,"CBRvac",2) + '1'!R368 -> 
A10: =A8+1 -> 2 | B10: diet | C10: IA profits | D10: ='3'!B365 ->  | E10: ='3'!C365 ->  | F10: ='3'!D365 ->  | G10: ='3'!E365 ->  | H10: ='3'!F365 ->  | I10: ='3'!G365 ->  | J10: ='3'!H365 ->  | K10: ='3'!I365 ->  | L10: ='3'!J365 ->  | M10: ='3'!K365 ->  | N10: ='3'!L365 ->  | O10: ='3'!M365 ->  | P10: ='3'!N365 ->  | Q10: ='3'!O365 ->  | R10: ='3'!P365 ->  | S10: ='3'!Q365 -> 188155.3059 | T10: ='3'!R365 -> 
C11: CBA profits | D11: ='3'!B368 ->  | E11: ='3'!C368 ->  | F11: ='3'!D368 ->  | G11: ='3'!E368 ->  | H11: ='3'!F368 ->  | I11: ='3'!G368 ->  | J11: ='3'!H368 ->  | K11: ='3'!I368 ->  | L11: ='3'!J368 ->  | M11: ='3'!K368 ->  | N11: ='3'!L368 ->  | O11: ='3'!M368 ->  | P11: ='3'!N368 ->  | Q11: ='3'!O368 ->  | R11: ='3'!P368 ->  | S11: =_xll.RiskOutput(,"CBRdiet",1) + '3'!Q368 ->  | T11: =_xll.RiskOutput(,"CBRdiet",2) + '3'!R368 -> 
A12: =A10+1 -> 3 | B12: stock | C12: IA profits | D12: ='2'!B365 ->  | E12: ='2'!C365 ->  | F12: ='2'!D365 ->  | G12: ='2'!E365 ->  | H12: ='2'!F365 ->  | I12: ='2'!G365 ->  | J12: ='2'!H365 ->  | K12: ='2'!I365 ->  | L12: ='2'!J365 ->  | M12: ='2'!K365 ->  | N12: ='2'!L365 ->  | O12: ='2'!M365 ->  | P12: ='2'!N365 ->  | Q12: ='2'!O365 ->  | R12: ='2'!P365 ->  | S12: ='2'!Q365 -> 144814.8878 | T12: ='2'!R365 -> 
C13: CBA profits | D13: ='2'!B368 ->  | E13: ='2'!C368 ->  | F13: ='2'!D368 ->  | G13: ='2'!E368 ->  | H13: ='2'!F368 ->  | I13: ='2'!G368 ->  | J13: ='2'!H368 ->  | K13: ='2'!I368 ->  | L13: ='2'!J368 ->  | M13: ='2'!K368 ->  | N13: ='2'!L368 ->  | O13: ='2'!M368 ->  | P13: ='2'!N368 ->  | Q13: ='2'!O368 ->  | R13: ='2'!P368 ->  | S13: =_xll.RiskOutput(,"CBRstock",1) + '2'!Q368 ->  | T13: =_xll.RiskOutput(,"CBRstock",2) + '2'!R368 -> 
A14: =A12+1 -> 4 | B14: DPRP1 | C14: IA profits | D14: ='5.1'!B365 ->  | E14: ='5.1'!C365 ->  | F14: ='5.1'!D365 ->  | G14: ='5.1'!E365 ->  | H14: ='5.1'!F365 ->  | I14: ='5.1'!G365 ->  | J14: ='5.1'!H365 ->  | K14: ='5.1'!I365 ->  | L14: ='5.1'!J365 ->  | M14: ='5.1'!K365 ->  | N14: ='5.1'!L365 ->  | O14: ='5.1'!M365 ->  | P14: ='5.1'!N365 ->  | Q14: ='5.1'!O365 ->  | R14: ='5.1'!P365 ->  | S14: ='5.1'!Q365 -> 146098.7941 | T14: ='5.1'!R365 -> 
C15: CBA profits | D15: ='5.1'!B368 ->  | E15: ='5.1'!C368 ->  | F15: ='5.1'!D368 ->  | G15: ='5.1'!E368 ->  | H15: ='5.1'!F368 ->  | I15: ='5.1'!G368 ->  | J15: ='5.1'!H368 ->  | K15: ='5.1'!I368 ->  | L15: ='5.1'!J368 ->  | M15: ='5.1'!K368 ->  | N15: ='5.1'!L368 ->  | O15: ='5.1'!M368 ->  | P15: ='5.1'!N368 ->  | Q15: ='5.1'!O368 ->  | R15: ='5.1'!P368 ->  | S15: =_xll.RiskOutput(,"CBR DPRP1",1) + '5.1'!Q368 ->  | T15: =_xll.RiskOutput(,"CBR DPRP1",2) + '5.1'!R368 -> 
A16: =A14+1 -> 5 | B16: DPRP2 | C16: IA profits | D16: ='5.2'!B365 ->  | E16: ='5.2'!C365 ->  | F16: ='5.2'!D365 ->  | G16: ='5.2'!E365 ->  | H16: ='5.2'!F365 ->  | I16: ='5.2'!G365 ->  | J16: ='5.2'!H365 ->  | K16: ='5.2'!I365 ->  | L16: ='5.2'!J365 ->  | M16: ='5.2'!K365 ->  | N16: ='5.2'!L365 ->  | O16: ='5.2'!M365 ->  | P16: ='5.2'!N365 ->  | Q16: ='5.2'!O365 ->  | R16: ='5.2'!P365 ->  | S16: ='5.2'!Q365 -> 152374.494 | T16: ='5.2'!R365 -> 
C17: CBA profits | D17: ='5.2'!B368 ->  | E17: ='5.2'!C368 ->  | F17: ='5.2'!D368 ->  | G17: ='5.2'!E368 ->  | H17: ='5.2'!F368 ->  | I17: ='5.2'!G368 ->  | J17: ='5.2'!H368 ->  | K17: ='5.2'!I368 ->  | L17: ='5.2'!J368 ->  | M17: ='5.2'!K368 ->  | N17: ='5.2'!L368 ->  | O17: ='5.2'!M368 ->  | P17: ='5.2'!N368 ->  | Q17: ='5.2'!O368 ->  | R17: ='5.2'!P368 ->  | S17: =_xll.RiskOutput(,"CBRdprp2",1) + '5.2'!Q368 ->  | T17: =_xll.RiskOutput(,"CBRdprp2",2) + '5.2'!R368 -> 
A18: =A16+1 -> 6 | B18: DPRP3 | C18: IA profits | D18: ='5.3'!B365 ->  | E18: ='5.3'!C365 ->  | F18: ='5.3'!D365 ->  | G18: ='5.3'!E365 ->  | H18: ='5.3'!F365 ->  | I18: ='5.3'!G365 ->  | J18: ='5.3'!H365 ->  | K18: ='5.3'!I365 ->  | L18: ='5.3'!J365 ->  | M18: ='5.3'!K365 ->  | N18: ='5.3'!L365 ->  | O18: ='5.3'!M365 ->  | P18: ='5.3'!N365 ->  | Q18: ='5.3'!O365 ->  | R18: ='5.3'!P365 ->  | S18: ='5.3'!Q365 -> 80161.09099 | T18: ='5.3'!R365 -> 
C19: CBA profits | D19: ='5.3'!B368 ->  | E19: ='5.3'!C368 ->  | F19: ='5.3'!D368 ->  | G19: ='5.3'!E368 ->  | H19: ='5.3'!F368 ->  | I19: ='5.3'!G368 ->  | J19: ='5.3'!H368 ->  | K19: ='5.3'!I368 ->  | L19: ='5.3'!J368 ->  | M19: ='5.3'!K368 ->  | N19: ='5.3'!L368 ->  | O19: ='5.3'!M368 ->  | P19: ='5.3'!N368 ->  | Q19: ='5.3'!O368 ->  | R19: ='5.3'!P368 ->  | S19: =_xll.RiskOutput(,"CBRdprp3",1) + '5.3'!Q368 ->  | T19: =_xll.RiskOutput(,"CBRdprp3",2) + '5.3'!R368 -> 
A20: =A18+1 -> 7 | B20: vac+ diet | C20: IA profits | D20: ='1+3'!B365 ->  | E20: ='1+3'!C365 ->  | F20: ='1+3'!D365 ->  | G20: ='1+3'!E365 ->  | H20: ='1+3'!F365 ->  | I20: ='1+3'!G365 ->  | J20: ='1+3'!H365 ->  | K20: ='1+3'!I365 ->  | L20: ='1+3'!J365 ->  | M20: ='1+3'!K365 ->  | N20: ='1+3'!L365 ->  | O20: ='1+3'!M365 ->  | P20: ='1+3'!N365 ->  | Q20: ='1+3'!O365 ->  | R20: ='1+3'!P365 ->  | S20: ='1+3'!Q365 -> 152945.9955 | T20: ='1+3'!R365 -> 
C21: CBA profits | D21: ='1+3'!B368 ->  | E21: ='1+3'!C368 ->  | F21: ='1+3'!D368 ->  | G21: ='1+3'!E368 ->  | H21: ='1+3'!F368 ->  | I21: ='1+3'!G368 ->  | J21: ='1+3'!H368 ->  | K21: ='1+3'!I368 ->  | L21: ='1+3'!J368 ->  | M21: ='1+3'!K368 ->  | N21: ='1+3'!L368 ->  | O21: ='1+3'!M368 ->  | P21: ='1+3'!N368 ->  | Q21: ='1+3'!O368 ->  | R21: ='1+3'!P368 ->  | S21: =_xll.RiskOutput(,"CBRvacdiet",1) + '1+3'!Q368 ->  | T21: =_xll.RiskOutput(,"CBRvacdiet",2) + '1+3'!R368 -> 
A22: =A20+1 -> 8 | B22: vac + stock | C22: IA profits | D22: ='1+2'!B365 ->  | E22: ='1+2'!C365 ->  | F22: ='1+2'!D365 ->  | G22: ='1+2'!E365 ->  | H22: ='1+2'!F365 ->  | I22: ='1+2'!G365 ->  | J22: ='1+2'!H365 ->  | K22: ='1+2'!I365 ->  | L22: ='1+2'!J365 ->  | M22: ='1+2'!K365 ->  | N22: ='1+2'!L365 ->  | O22: ='1+2'!M365 ->  | P22: ='1+2'!N365 ->  | Q22: ='1+2'!O365 ->  | R22: ='1+2'!P365 ->  | S22: ='1+2'!Q365 -> 115467.6563 | T22: ='1+2'!R365 -> 
C23: CBA profits | D23: ='1+2'!B368 ->  | E23: ='1+2'!C368 ->  | F23: ='1+2'!D368 ->  | G23: ='1+2'!E368 ->  | H23: ='1+2'!F368 ->  | I23: ='1+2'!G368 ->  | J23: ='1+2'!H368 ->  | K23: ='1+2'!I368 ->  | L23: ='1+2'!J368 ->  | M23: ='1+2'!K368 ->  | N23: ='1+2'!L368 ->  | O23: ='1+2'!M368 ->  | P23: ='1+2'!N368 ->  | Q23: ='1+2'!O368 ->  | R23: ='1+2'!P368 ->  | S23: =_xll.RiskOutput(,"CBRvacstock",1) + '1+2'!Q368 ->  | T23: =_xll.RiskOutput(,"CBRvacstock",2) + '1+2'!R368 -> 
A24: =A22+1 -> 9 | B24: vac + bio | C24: IA profits | D24: ='1+4'!B365 ->  | E24: ='1+4'!C365 ->  | F24: ='1+4'!D365 ->  | G24: ='1+4'!E365 ->  | H24: ='1+4'!F365 ->  | I24: ='1+4'!G365 ->  | J24: ='1+4'!H365 ->  | K24: ='1+4'!I365 ->  | L24: ='1+4'!J365 ->  | M24: ='1+4'!K365 ->  | N24: ='1+4'!L365 ->  | O24: ='1+4'!M365 ->  | P24: ='1+4'!N365 ->  | Q24: ='1+4'!O365 ->  | R24: ='1+4'!P365 ->  | S24: ='1+4'!Q365 -> 164183.2322 | T24: ='1+4'!R365 -> 
C25: CBA profits | D25: ='1+4'!B368 ->  | E25: ='1+4'!C368 ->  | F25: ='1+4'!D368 ->  | G25: ='1+4'!E368 ->  | H25: ='1+4'!F368 ->  | I25: ='1+4'!G368 ->  | J25: ='1+4'!H368 ->  | K25: ='1+4'!I368 ->  | L25: ='1+4'!J368 ->  | M25: ='1+4'!K368 ->  | N25: ='1+4'!L368 ->  | O25: ='1+4'!M368 ->  | P25: ='1+4'!N368 ->  | Q25: ='1+4'!O368 ->  | R25: ='1+4'!P368 ->  | S25: =_xll.RiskOutput(,"CBRvacbio",1) + '1+4'!Q368 ->  | T25: =_xll.RiskOutput(,"CBRvacbio",2) + '1+4'!R368 -> 
A26: =A24+1 -> 10 | B26: vac + DPRP1 | C26: IA profits | D26: ='1+5.1'!B365 ->  | E26: ='1+5.1'!C365 ->  | F26: ='1+5.1'!D365 ->  | G26: ='1+5.1'!E365 ->  | H26: ='1+5.1'!F365 ->  | I26: ='1+5.1'!G365 ->  | J26: ='1+5.1'!H365 ->  | K26: ='1+5.1'!I365 ->  | L26: ='1+5.1'!J365 ->  | M26: ='1+5.1'!K365 ->  | N26: ='1+5.1'!L365 ->  | O26: ='1+5.1'!M365 ->  | P26: ='1+5.1'!N365 ->  | Q26: ='1+5.1'!O365 ->  | R26: ='1+5.1'!P365 ->  | S26: ='1+5.1'!Q365 -> 116092.0346 | T26: ='1+5.1'!R365 -> 
C27: CBA profits | D27: ='1+5.1'!B368 ->  | E27: ='1+5.1'!C368 ->  | F27: ='1+5.1'!D368 ->  | G27: ='1+5.1'!E368 ->  | H27: ='1+5.1'!F368 ->  | I27: ='1+5.1'!G368 ->  | J27: ='1+5.1'!H368 ->  | K27: ='1+5.1'!I368 ->  | L27: ='1+5.1'!J368 ->  | M27: ='1+5.1'!K368 ->  | N27: ='1+5.1'!L368 ->  | O27: ='1+5.1'!M368 ->  | P27: ='1+5.1'!N368 ->  | Q27: ='1+5.1'!O368 ->  | R27: ='1+5.1'!P368 ->  | S27: =_xll.RiskOutput(,"CBRvacdprp1",1) + '1+5.1'!Q368 ->  | T27: =_xll.RiskOutput(,"CBRvacdprp1",2) + '1+5.1'!R368 -> 
A28: =A26+1 -> 11 | B28: vac + DPRP2 | C28: IA profits | D28: ='1+5.2'!B365 ->  | E28: ='1+5.2'!C365 ->  | F28: ='1+5.2'!D365 ->  | G28: ='1+5.2'!E365 ->  | H28: ='1+5.2'!F365 ->  | I28: ='1+5.2'!G365 ->  | J28: ='1+5.2'!H365 ->  | K28: ='1+5.2'!I365 ->  | L28: ='1+5.2'!J365 ->  | M28: ='1+5.2'!K365 ->  | N28: ='1+5.2'!L365 ->  | O28: ='1+5.2'!M365 ->  | P28: ='1+5.2'!N365 ->  | Q28: ='1+5.2'!O365 ->  | R28: ='1+5.2'!P365 ->  | S28: ='1+5.2'!Q365 -> 121500.6427 | T28: ='1+5.2'!R365 -> 
C29: CBA profits | D29: ='1+5.2'!B368 ->  | E29: ='1+5.2'!C368 ->  | F29: ='1+5.2'!D368 ->  | G29: ='1+5.2'!E368 ->  | H29: ='1+5.2'!F368 ->  | I29: ='1+5.2'!G368 ->  | J29: ='1+5.2'!H368 ->  | K29: ='1+5.2'!I368 ->  | L29: ='1+5.2'!J368 ->  | M29: ='1+5.2'!K368 ->  | N29: ='1+5.2'!L368 ->  | O29: ='1+5.2'!M368 ->  | P29: ='1+5.2'!N368 ->  | Q29: ='1+5.2'!O368 ->  | R29: ='1+5.2'!P368 ->  | S29: =_xll.RiskOutput(,"CBRvacdprp2",1) + '1+5.2'!Q368 ->  | T29: =_xll.RiskOutput(,"CBRvacdprp2",2) + '1+5.2'!R368 -> 
A30: =A28+1 -> 12 | B30: vac + DPRP3 | C30: IA profits | D30: ='1+5.3'!B365 ->  | E30: ='1+5.3'!C365 ->  | F30: ='1+5.3'!D365 ->  | G30: ='1+5.3'!E365 ->  | H30: ='1+5.3'!F365 ->  | I30: ='1+5.3'!G365 ->  | J30: ='1+5.3'!H365 ->  | K30: ='1+5.3'!I365 ->  | L30: ='1+5.3'!J365 ->  | M30: ='1+5.3'!K365 ->  | N30: ='1+5.3'!L365 ->  | O30: ='1+5.3'!M365 ->  | P30: ='1+5.3'!N365 ->  | Q30: ='1+5.3'!O365 ->  | R30: ='1+5.3'!P365 ->  | S30: ='1+5.3'!Q365 -> 49287.23966 | T30: ='1+5.3'!R365 -> 
C31: CBA profits | D31: ='1+5.3'!B368 ->  | E31: ='1+5.3'!C368 ->  | F31: ='1+5.3'!D368 ->  | G31: ='1+5.3'!E368 ->  | H31: ='1+5.3'!F368 ->  | I31: ='1+5.3'!G368 ->  | J31: ='1+5.3'!H368 ->  | K31: ='1+5.3'!I368 ->  | L31: ='1+5.3'!J368 ->  | M31: ='1+5.3'!K368 ->  | N31: ='1+5.3'!L368 ->  | O31: ='1+5.3'!M368 ->  | P31: ='1+5.3'!N368 ->  | Q31: ='1+5.3'!O368 ->  | R31: ='1+5.3'!P368 ->  | S31: =_xll.RiskOutput(,"CBRdprp3",1) + '1+5.3'!Q368 ->  | T31: =_xll.RiskOutput(,"CBRdprp3",2) + '1+5.3'!R368 -> 
A32: =A30+1 -> 13 | B32: bio + diet | C32: IA profits | D32: ='4+3'!B365 ->  | E32: ='4+3'!C365 ->  | F32: ='4+3'!D365 ->  | G32: ='4+3'!E365 ->  | H32: ='4+3'!F365 ->  | I32: ='4+3'!G365 ->  | J32: ='4+3'!H365 ->  | K32: ='4+3'!I365 ->  | L32: ='4+3'!J365 ->  | M32: ='4+3'!K365 ->  | N32: ='4+3'!L365 ->  | O32: ='4+3'!M365 ->  | P32: ='4+3'!N365 ->  | Q32: ='4+3'!O365 ->  | R32: ='4+3'!P365 ->  | S32: ='4+3'!Q365 -> 148282.7203 | T32: ='4+3'!R365 -> 
C33: CBA profits | D33: ='4+3'!B368 ->  | E33: ='4+3'!C368 ->  | F33: ='4+3'!D368 ->  | G33: ='4+3'!E368 ->  | H33: ='4+3'!F368 ->  | I33: ='4+3'!G368 ->  | J33: ='4+3'!H368 ->  | K33: ='4+3'!I368 ->  | L33: ='4+3'!J368 ->  | M33: ='4+3'!K368 ->  | N33: ='4+3'!L368 ->  | O33: ='4+3'!M368 ->  | P33: ='4+3'!N368 ->  | Q33: ='4+3'!O368 ->  | R33: ='4+3'!P368 ->  | S33: =_xll.RiskOutput(,"CBRbiodiet",1) + '4+3'!Q368 ->  | T33: =_xll.RiskOutput(,"CBRbiodiet",2) + '4+3'!R368 -> 
A34: =A32+1 -> 14 | B34: bio + stock | C34: IA profits | D34: ='4+2'!B365 ->  | E34: ='4+2'!C365 ->  | F34: ='4+2'!D365 ->  | G34: ='4+2'!E365 ->  | H34: ='4+2'!F365 ->  | I34: ='4+2'!G365 ->  | J34: ='4+2'!H365 ->  | K34: ='4+2'!I365 ->  | L34: ='4+2'!J365 ->  | M34: ='4+2'!K365 ->  | N34: ='4+2'!L365 ->  | O34: ='4+2'!M365 ->  | P34: ='4+2'!N365 ->  | Q34: ='4+2'!O365 ->  | R34: ='4+2'!P365 ->  | S34: ='4+2'!Q365 -> 105651.5688 | T34: ='4+2'!R365 -> 
C35: CBA profits | D35: ='4+2'!B368 ->  | E35: ='4+2'!C368 ->  | F35: ='4+2'!D368 ->  | G35: ='4+2'!E368 ->  | H35: ='4+2'!F368 ->  | I35: ='4+2'!G368 ->  | J35: ='4+2'!H368 ->  | K35: ='4+2'!I368 ->  | L35: ='4+2'!J368 ->  | M35: ='4+2'!K368 ->  | N35: ='4+2'!L368 ->  | O35: ='4+2'!M368 ->  | P35: ='4+2'!N368 ->  | Q35: ='4+2'!O368 ->  | R35: ='4+2'!P368 ->  | S35: =_xll.RiskOutput(,"CBRbiostock",1) + '4+2'!Q368 ->  | T35: =_xll.RiskOutput(,"CBRbiostock",2) + '4+2'!R368 -> 
A36: =A34+1 -> 15 | B36: bio + DPRP1 | C36: IA profits | D36: ='4+5.1'!B365 ->  | E36: ='4+5.1'!C365 ->  | F36: ='4+5.1'!D365 ->  | G36: ='4+5.1'!E365 ->  | H36: ='4+5.1'!F365 ->  | I36: ='4+5.1'!G365 ->  | J36: ='4+5.1'!H365 ->  | K36: ='4+5.1'!I365 ->  | L36: ='4+5.1'!J365 ->  | M36: ='4+5.1'!K365 ->  | N36: ='4+5.1'!L365 ->  | O36: ='4+5.1'!M365 ->  | P36: ='4+5.1'!N365 ->  | Q36: ='4+5.1'!O365 ->  | R36: ='4+5.1'!P365 ->  | S36: ='4+5.1'!Q365 -> 106619.8904 | T36: ='4+5.1'!R365 -> 
C37: CBA profits | D37: ='4+5.1'!B368 ->  | E37: ='4+5.1'!C368 ->  | F37: ='4+5.1'!D368 ->  | G37: ='4+5.1'!E368 ->  | H37: ='4+5.1'!F368 ->  | I37: ='4+5.1'!G368 ->  | J37: ='4+5.1'!H368 ->  | K37: ='4+5.1'!I368 ->  | L37: ='4+5.1'!J368 ->  | M37: ='4+5.1'!K368 ->  | N37: ='4+5.1'!L368 ->  | O37: ='4+5.1'!M368 ->  | P37: ='4+5.1'!N368 ->  | Q37: ='4+5.1'!O368 ->  | R37: ='4+5.1'!P368 ->  | T37: =_xll.RiskOutput(,"CBR biodprp1",2) + '4+5.1'!R368 -> 
A38: =A36+1 -> 16 | B38: bio + DPRP2 | C38: IA profits | D38: ='4+5.2'!B365 ->  | E38: ='4+5.2'!C365 ->  | F38: ='4+5.2'!D365 ->  | G38: ='4+5.2'!E365 ->  | H38: ='4+5.2'!F365 ->  | I38: ='4+5.2'!G365 ->  | J38: ='4+5.2'!H365 ->  | K38: ='4+5.2'!I365 ->  | L38: ='4+5.2'!J365 ->  | M38: ='4+5.2'!K365 ->  | N38: ='4+5.2'!L365 ->  | O38: ='4+5.2'!M365 ->  | P38: ='4+5.2'!N365 ->  | Q38: ='4+5.2'!O365 ->  | R38: ='4+5.2'!P365 ->  | S38: ='4+5.2'!Q365 -> 112895.5903 | T38: ='4+5.2'!R365 -> 
C39: CBA profits | D39: ='4+5.2'!B368 ->  | E39: ='4+5.2'!C368 ->  | F39: ='4+5.2'!D368 ->  | G39: ='4+5.2'!E368 ->  | H39: ='4+5.2'!F368 ->  | I39: ='4+5.2'!G368 ->  | J39: ='4+5.2'!H368 ->  | K39: ='4+5.2'!I368 ->  | L39: ='4+5.2'!J368 ->  | M39: ='4+5.2'!K368 ->  | N39: ='4+5.2'!L368 ->  | O39: ='4+5.2'!M368 ->  | P39: ='4+5.2'!N368 ->  | Q39: ='4+5.2'!O368 ->  | R39: ='4+5.2'!P368 ->  | S39: =_xll.RiskOutput(,"CBR biodprp2",1) + '4+5.2'!Q368 ->  | T39: =_xll.RiskOutput(,"CBR biodprp2",2) + '4+5.2'!R368 -> 
A40: =A38+1 -> 17 | B40: bio + DPRP3 | C40: IA profits | D40: ='4+5.3'!B365 ->  | E40: ='4+5.3'!C365 ->  | F40: ='4+5.3'!D365 ->  | G40: ='4+5.3'!E365 ->  | H40: ='4+5.3'!F365 ->  | I40: ='4+5.3'!G365 ->  | J40: ='4+5.3'!H365 ->  | K40: ='4+5.3'!I365 ->  | L40: ='4+5.3'!J365 ->  | M40: ='4+5.3'!K365 ->  | N40: ='4+5.3'!L365 ->  | O40: ='4+5.3'!M365 ->  | P40: ='4+5.3'!N365 ->  | Q40: ='4+5.3'!O365 ->  | R40: ='4+5.3'!P365 ->  | S40: ='4+5.3'!Q365 -> 40682.18725 | T40: ='4+5.3'!R365 -> 
C41: CBA profits | D41: ='4+5.3'!B368 ->  | E41: ='4+5.3'!C368 ->  | F41: ='4+5.3'!D368 ->  | G41: ='4+5.3'!E368 ->  | H41: ='4+5.3'!F368 ->  | I41: ='4+5.3'!G368 ->  | J41: ='4+5.3'!H368 ->  | K41: ='4+5.3'!I368 ->  | L41: ='4+5.3'!J368 ->  | M41: ='4+5.3'!K368 ->  | N41: ='4+5.3'!L368 ->  | O41: ='4+5.3'!M368 ->  | P41: ='4+5.3'!N368 ->  | Q41: ='4+5.3'!O368 ->  | R41: ='4+5.3'!P368 ->  | S41: =_xll.RiskOutput(,"CBRbiodprp3",1) + '4+5.3'!Q368 ->  | T41: =_xll.RiskOutput(,"CBRbiodprp3",2) + '4+5.3'!R368 -> 
A42: =A40+1 -> 18 | B42: Diet + stock | C42: IA profits | D42: ='3+2'!B365 ->  | E42: ='3+2'!C365 ->  | F42: ='3+2'!D365 ->  | G42: ='3+2'!E365 ->  | H42: ='3+2'!F365 ->  | I42: ='3+2'!G365 ->  | J42: ='3+2'!H365 ->  | K42: ='3+2'!I365 ->  | L42: ='3+2'!J365 ->  | M42: ='3+2'!K365 ->  | N42: ='3+2'!L365 ->  | O42: ='3+2'!M365 ->  | P42: ='3+2'!N365 ->  | Q42: ='3+2'!O365 ->  | R42: ='3+2'!P365 ->  | S42: ='3+2'!Q365 -> 98816.04765 | T42: ='3+2'!R365 -> 
C43: CBA profits | D43: ='3+2'!B368 ->  | E43: ='3+2'!C368 ->  | F43: ='3+2'!D368 ->  | G43: ='3+2'!E368 ->  | H43: ='3+2'!F368 ->  | I43: ='3+2'!G368 ->  | J43: ='3+2'!H368 ->  | K43: ='3+2'!I368 ->  | L43: ='3+2'!J368 ->  | M43: ='3+2'!K368 ->  | N43: ='3+2'!L368 ->  | O43: ='3+2'!M368 ->  | P43: ='3+2'!N368 ->  | Q43: ='3+2'!O368 ->  | R43: ='3+2'!P368 ->  | S43: =_xll.RiskOutput(,"CBRdietstock",1) + '3+2'!Q368 ->  | T43: =_xll.RiskOutput(,"CBRdietstock",2) + '3+2'!R368 -> 
A44: =A42+1 -> 19 | B44: diet + DPRP1 | C44: IA profits | D44: ='3+5.1'!B365 ->  | E44: ='3+5.1'!C365 ->  | F44: ='3+5.1'!D365 ->  | G44: ='3+5.1'!E365 ->  | H44: ='3+5.1'!F365 ->  | I44: ='3+5.1'!G365 ->  | J44: ='3+5.1'!H365 ->  | K44: ='3+5.1'!I365 ->  | L44: ='3+5.1'!J365 ->  | M44: ='3+5.1'!K365 ->  | N44: ='3+5.1'!L365 ->  | O44: ='3+5.1'!M365 ->  | P44: ='3+5.1'!N365 ->  | Q44: ='3+5.1'!O365 ->  | R44: ='3+5.1'!P365 ->  | S44: ='3+5.1'!Q365 -> 103856.7953 | T44: ='3+5.1'!R365 -> 
C45: CBA profits | D45: ='3+5.1'!B368 ->  | E45: ='3+5.1'!C368 ->  | F45: ='3+5.1'!D368 ->  | G45: ='3+5.1'!E368 ->  | H45: ='3+5.1'!F368 ->  | I45: ='3+5.1'!G368 ->  | J45: ='3+5.1'!H368 ->  | K45: ='3+5.1'!I368 ->  | L45: ='3+5.1'!J368 ->  | M45: ='3+5.1'!K368 ->  | N45: ='3+5.1'!L368 ->  | O45: ='3+5.1'!M368 ->  | P45: ='3+5.1'!N368 ->  | Q45: ='3+5.1'!O368 ->  | R45: ='3+5.1'!P368 ->  | S45: =_xll.RiskOutput(,"CBRdietdprp1",1) + '3+5.1'!Q368 ->  | T45: =_xll.RiskOutput(,"CBRdietdprp1",2) + '3+5.1'!R368 -> 
A46: =A44+1 -> 20 | B46: diet + DPRP2 | C46: IA profits | D46: ='3+5.2'!B365 ->  | E46: ='3+5.2'!C365 ->  | F46: ='3+5.2'!D365 ->  | G46: ='3+5.2'!E365 ->  | H46: ='3+5.2'!F365 ->  | I46: ='3+5.2'!G365 ->  | J46: ='3+5.2'!H365 ->  | K46: ='3+5.2'!I365 ->  | L46: ='3+5.2'!J365 ->  | M46: ='3+5.2'!K365 ->  | N46: ='3+5.2'!L365 ->  | O46: ='3+5.2'!M365 ->  | P46: ='3+5.2'!N365 ->  | Q46: ='3+5.2'!O365 ->  | R46: ='3+5.2'!P365 ->  | S46: ='3+5.2'!Q365 -> 110132.4952 | T46: ='3+5.2'!R365 -> 
C47: CBA profits | D47: ='3+5.2'!B368 ->  | E47: ='3+5.2'!C368 ->  | F47: ='3+5.2'!D368 ->  | G47: ='3+5.2'!E368 ->  | H47: ='3+5.2'!F368 ->  | I47: ='3+5.2'!G368 ->  | J47: ='3+5.2'!H368 ->  | K47: ='3+5.2'!I368 ->  | L47: ='3+5.2'!J368 ->  | M47: ='3+5.2'!K368 ->  | N47: ='3+5.2'!L368 ->  | O47: ='3+5.2'!M368 ->  | P47: ='3+5.2'!N368 ->  | Q47: ='3+5.2'!O368 ->  | R47: ='3+5.2'!P368 ->  | S47: =_xll.RiskOutput(,"CBRdietdprp2",1) + '3+5.2'!Q368 ->  | T47: =_xll.RiskOutput(,"CBRdietdprp2",2) + '3+5.2'!R368 -> 
A48: =A46+1 -> 21 | B48: diet + DPRP3 | C48: IA profits | D48: ='3+5.3'!B365 ->  | E48: ='3+5.3'!C365 ->  | F48: ='3+5.3'!D365 ->  | G48: ='3+5.3'!E365 ->  | H48: ='3+5.3'!F365 ->  | I48: ='3+5.3'!G365 ->  | J48: ='3+5.3'!H365 ->  | K48: ='3+5.3'!I365 ->  | L48: ='3+5.3'!J365 ->  | M48: ='3+5.3'!K365 ->  | N48: ='3+5.3'!L365 ->  | O48: ='3+5.3'!M365 ->  | P48: ='3+5.3'!N365 ->  | Q48: ='3+5.3'!O365 ->  | R48: ='3+5.3'!P365 ->  | S48: ='3+5.3'!Q365 -> 33176.30115 | T48: ='3+5.3'!R365 -> 
C49: CBA profits | D49: ='3+5.3'!B368 ->  | E49: ='3+5.3'!C368 ->  | F49: ='3+5.3'!D368 ->  | G49: ='3+5.3'!E368 ->  | H49: ='3+5.3'!F368 ->  | I49: ='3+5.3'!G368 ->  | J49: ='3+5.3'!H368 ->  | K49: ='3+5.3'!I368 ->  | L49: ='3+5.3'!J368 ->  | M49: ='3+5.3'!K368 ->  | N49: ='3+5.3'!L368 ->  | O49: ='3+5.3'!M368 ->  | P49: ='3+5.3'!N368 ->  | Q49: ='3+5.3'!O368 ->  | R49: ='3+5.3'!P368 ->  | S49: =_xll.RiskOutput(,"CBRdietdprp3",1) + '3+5.3'!Q368 ->  | T49: =_xll.RiskOutput(,"CBRdietdprp3",2) + '3+5.3'!R368 -> 
A50: =A48+1 -> 22 | B50: Stock + DPRP1 | C50: IA profits | D50: ='2+5.1'!B365 ->  | E50: ='2+5.1'!C365 ->  | F50: ='2+5.1'!D365 ->  | G50: ='2+5.1'!E365 ->  | H50: ='2+5.1'!F365 ->  | I50: ='2+5.1'!G365 ->  | J50: ='2+5.1'!H365 ->  | K50: ='2+5.1'!I365 ->  | L50: ='2+5.1'!J365 ->  | M50: ='2+5.1'!K365 ->  | N50: ='2+5.1'!L365 ->  | O50: ='2+5.1'!M365 ->  | P50: ='2+5.1'!N365 ->  | Q50: ='2+5.1'!O365 ->  | R50: ='2+5.1'!P365 ->  | S50: ='2+5.1'!Q365 -> 69971.14453 | T50: ='2+5.1'!R365 -> 
C51: CBA profits | D51: ='2+5.1'!B368 ->  | E51: ='2+5.1'!C368 ->  | F51: ='2+5.1'!D368 ->  | G51: ='2+5.1'!E368 ->  | H51: ='2+5.1'!F368 ->  | I51: ='2+5.1'!G368 ->  | J51: ='2+5.1'!H368 ->  | K51: ='2+5.1'!I368 ->  | L51: ='2+5.1'!J368 ->  | M51: ='2+5.1'!K368 ->  | N51: ='2+5.1'!L368 ->  | O51: ='2+5.1'!M368 ->  | P51: ='2+5.1'!N368 ->  | Q51: ='2+5.1'!O368 ->  | R51: ='2+5.1'!P368 ->  | S51: =_xll.RiskOutput(,"CBRstockdprp1",1) + '2+5.1'!Q368 ->  | T51: =_xll.RiskOutput(,"CBRstockdprp1",2) + '2+5.1'!R368 -> 
A52: =A50+1 -> 23 | B52: Stock + DPRP2 | C52: IA profits | D52: ='2+5.2'!B365 ->  | E52: ='2+5.2'!C365 ->  | F52: ='2+5.2'!D365 ->  | G52: ='2+5.2'!E365 ->  | H52: ='2+5.2'!F365 ->  | I52: ='2+5.2'!G365 ->  | J52: ='2+5.2'!H365 ->  | K52: ='2+5.2'!I365 ->  | L52: ='2+5.2'!J365 ->  | M52: ='2+5.2'!K365 ->  | N52: ='2+5.2'!L365 ->  | O52: ='2+5.2'!M365 ->  | P52: ='2+5.2'!N365 ->  | Q52: ='2+5.2'!O365 ->  | R52: ='2+5.2'!P365 ->  | S52: ='2+5.2'!Q365 -> 76795.79334 | T52: ='2+5.2'!R365 -> 
C53: CBA profits | D53: ='2+5.2'!B368 ->  | E53: ='2+5.2'!C368 ->  | F53: ='2+5.2'!D368 ->  | G53: ='2+5.2'!E368 ->  | H53: ='2+5.2'!F368 ->  | I53: ='2+5.2'!G368 ->  | J53: ='2+5.2'!H368 ->  | K53: ='2+5.2'!I368 ->  | L53: ='2+5.2'!J368 ->  | M53: ='2+5.2'!K368 ->  | N53: ='2+5.2'!L368 ->  | O53: ='2+5.2'!M368 ->  | P53: ='2+5.2'!N368 ->  | Q53: ='2+5.2'!O368 ->  | R53: ='2+5.2'!P368 ->  | S53: =_xll.RiskOutput(,"CBRstockdprp2",1) + '2+5.2'!Q368 ->  | T53: =_xll.RiskOutput(,"CBRstockdprp2",2) + '2+5.2'!R368 -> 
A54: =A52+1 -> 24 | B54: Stock + DPRP3 | C54: IA profits | D54: ='2+5.3'!B365 ->  | E54: ='2+5.3'!C365 ->  | F54: ='2+5.3'!D365 ->  | G54: ='2+5.3'!E365 ->  | H54: ='2+5.3'!F365 ->  | I54: ='2+5.3'!G365 ->  | J54: ='2+5.3'!H365 ->  | K54: ='2+5.3'!I365 ->  | L54: ='2+5.3'!J365 ->  | M54: ='2+5.3'!K365 ->  | N54: ='2+5.3'!L365 ->  | O54: ='2+5.3'!M365 ->  | P54: ='2+5.3'!N365 ->  | Q54: ='2+5.3'!O365 ->  | R54: ='2+5.3'!P365 ->  | S54: ='2+5.3'!Q365 -> -6097.893179 | T54: ='2+5.3'!R365 -> 
C55: CBA profits | D55: ='2+5.3'!B368 ->  | E55: ='2+5.3'!C368 ->  | F55: ='2+5.3'!D368 ->  | G55: ='2+5.3'!E368 ->  | H55: ='2+5.3'!F368 ->  | I55: ='2+5.3'!G368 ->  | J55: ='2+5.3'!H368 ->  | K55: ='2+5.3'!I368 ->  | L55: ='2+5.3'!J368 ->  | M55: ='2+5.3'!K368 ->  | N55: ='2+5.3'!L368 ->  | O55: ='2+5.3'!M368 ->  | P55: ='2+5.3'!N368 ->  | Q55: ='2+5.3'!O368 ->  | R55: ='2+5.3'!P368 ->  | S55: =_xll.RiskOutput(,"CBRstockdprp3",1) + '2+5.3'!Q368 ->  | T55: =_xll.RiskOutput(,"CBRstockdprp3",2) + '2+5.3'!R368 -> 
A56: =A54+1 -> 25 | B56: Vac + diet + bio | C56: IA profits | D56: ='1+3+4'!B365 ->  | E56: ='1+3+4'!C365 ->  | F56: ='1+3+4'!D365 ->  | G56: ='1+3+4'!E365 ->  | H56: ='1+3+4'!F365 ->  | I56: ='1+3+4'!G365 ->  | J56: ='1+3+4'!H365 ->  | K56: ='1+3+4'!I365 ->  | L56: ='1+3+4'!J365 ->  | M56: ='1+3+4'!K365 ->  | N56: ='1+3+4'!L365 ->  | O56: ='1+3+4'!M365 ->  | P56: ='1+3+4'!N365 ->  | Q56: ='1+3+4'!O365 ->  | R56: ='1+3+4'!P365 ->  | S56: ='1+3+4'!Q365 -> 113073.4099 | T56: ='1+3+4'!R365 -> 
C57: CBA profits | D57: ='1+3+4'!B368 ->  | E57: ='1+3+4'!C368 ->  | F57: ='1+3+4'!D368 ->  | G57: ='1+3+4'!E368 ->  | H57: ='1+3+4'!F368 ->  | I57: ='1+3+4'!G368 ->  | J57: ='1+3+4'!H368 ->  | K57: ='1+3+4'!I368 ->  | L57: ='1+3+4'!J368 ->  | M57: ='1+3+4'!K368 ->  | N57: ='1+3+4'!L368 ->  | O57: ='1+3+4'!M368 ->  | P57: ='1+3+4'!N368 ->  | Q57: ='1+3+4'!O368 ->  | R57: ='1+3+4'!P368 ->  | S57: =_xll.RiskOutput(,"CBR134",1) + '1+3+4'!Q368 ->  | T57: =_xll.RiskOutput(,"CBR134",2) + '1+3+4'!R368 -> 
A58: =A56+1 -> 26 | B58: Vac + bio + stock | C58: IA profits | D58: ='1+4+2'!B365 ->  | E58: ='1+4+2'!C365 ->  | F58: ='1+4+2'!D365 ->  | G58: ='1+4+2'!E365 ->  | H58: ='1+4+2'!F365 ->  | I58: ='1+4+2'!G365 ->  | J58: ='1+4+2'!H365 ->  | K58: ='1+4+2'!I365 ->  | L58: ='1+4+2'!J365 ->  | M58: ='1+4+2'!K365 ->  | N58: ='1+4+2'!L365 ->  | O58: ='1+4+2'!M365 ->  | P58: ='1+4+2'!N365 ->  | Q58: ='1+4+2'!O365 ->  | R58: ='1+4+2'!P365 ->  | S58: ='1+4+2'!Q365 -> 76304.33736 | T58: ='1+4+2'!R365 -> 
C59: CBA profits | D59: ='1+4+2'!B368 ->  | E59: ='1+4+2'!C368 ->  | F59: ='1+4+2'!D368 ->  | G59: ='1+4+2'!E368 ->  | H59: ='1+4+2'!F368 ->  | I59: ='1+4+2'!G368 ->  | J59: ='1+4+2'!H368 ->  | K59: ='1+4+2'!I368 ->  | L59: ='1+4+2'!J368 ->  | M59: ='1+4+2'!K368 ->  | N59: ='1+4+2'!L368 ->  | O59: ='1+4+2'!M368 ->  | P59: ='1+4+2'!N368 ->  | Q59: ='1+4+2'!O368 ->  | R59: ='1+4+2'!P368 ->  | S59: =_xll.RiskOutput(,"CBR142",1) + '1+4+2'!Q368 ->  | T59: =_xll.RiskOutput(,"CBR142",2) + '1+4+2'!R368 -> 
A60: =A58+1 -> 27 | B60: vac + bio + DPRP1 | C60: IA profits | D60: ='1+4+5.1'!B365 ->  | E60: ='1+4+5.1'!C365 ->  | F60: ='1+4+5.1'!D365 ->  | G60: ='1+4+5.1'!E365 ->  | H60: ='1+4+5.1'!F365 ->  | I60: ='1+4+5.1'!G365 ->  | J60: ='1+4+5.1'!H365 ->  | K60: ='1+4+5.1'!I365 ->  | L60: ='1+4+5.1'!J365 ->  | M60: ='1+4+5.1'!K365 ->  | N60: ='1+4+5.1'!L365 ->  | O60: ='1+4+5.1'!M365 ->  | P60: ='1+4+5.1'!N365 ->  | Q60: ='1+4+5.1'!O365 ->  | R60: ='1+4+5.1'!P365 ->  | S60: ='1+4+5.1'!Q365 -> 76613.13086 | T60: ='1+4+5.1'!R365 -> 
C61: CBA profits | D61: ='1+4+5.1'!B368 ->  | E61: ='1+4+5.1'!C368 ->  | F61: ='1+4+5.1'!D368 ->  | G61: ='1+4+5.1'!E368 ->  | H61: ='1+4+5.1'!F368 ->  | I61: ='1+4+5.1'!G368 ->  | J61: ='1+4+5.1'!H368 ->  | K61: ='1+4+5.1'!I368 ->  | L61: ='1+4+5.1'!J368 ->  | M61: ='1+4+5.1'!K368 ->  | N61: ='1+4+5.1'!L368 ->  | O61: ='1+4+5.1'!M368 ->  | P61: ='1+4+5.1'!N368 ->  | Q61: ='1+4+5.1'!O368 ->  | R61: ='1+4+5.1'!P368 ->  | S61: =_xll.RiskOutput(,"CBR145.1",1) + '1+4+5.1'!Q368 ->  | T61: =_xll.RiskOutput(,"CBR145.1",2) + '1+4+5.1'!R368 -> 
A62: =A60+1 -> 28 | B62: vac+ bio + DPRP2 | C62: IA profits | D62: ='1+4+5.2'!B365 ->  | E62: ='1+4+5.2'!C365 ->  | F62: ='1+4+5.2'!D365 ->  | G62: ='1+4+5.2'!E365 ->  | H62: ='1+4+5.2'!F365 ->  | I62: ='1+4+5.2'!G365 ->  | J62: ='1+4+5.2'!H365 ->  | K62: ='1+4+5.2'!I365 ->  | L62: ='1+4+5.2'!J365 ->  | M62: ='1+4+5.2'!K365 ->  | N62: ='1+4+5.2'!L365 ->  | O62: ='1+4+5.2'!M365 ->  | P62: ='1+4+5.2'!N365 ->  | Q62: ='1+4+5.2'!O365 ->  | R62: ='1+4+5.2'!P365 ->  | S62: ='1+4+5.2'!Q365 -> 82021.73897 | T62: ='1+4+5.2'!R365 -> 
C63: CBA profits | D63: ='1+4+5.2'!B368 ->  | E63: ='1+4+5.2'!C368 ->  | F63: ='1+4+5.2'!D368 ->  | G63: ='1+4+5.2'!E368 ->  | H63: ='1+4+5.2'!F368 ->  | I63: ='1+4+5.2'!G368 ->  | J63: ='1+4+5.2'!H368 ->  | K63: ='1+4+5.2'!I368 ->  | L63: ='1+4+5.2'!J368 ->  | M63: ='1+4+5.2'!K368 ->  | N63: ='1+4+5.2'!L368 ->  | O63: ='1+4+5.2'!M368 ->  | P63: ='1+4+5.2'!N368 ->  | Q63: ='1+4+5.2'!O368 ->  | R63: ='1+4+5.2'!P368 ->  | S63: =_xll.RiskOutput(,"CBR145.2",1) + '1+4+5.2'!Q368 ->  | T63: =_xll.RiskOutput(,"CBR145.2",2) + '1+4+5.2'!R368 -> 
A64: =A62+1 -> 29 | B64: vac + bio + DPRP3 | C64: IA profits | D64: ='1+4+5.3'!B365 ->  | E64: ='1+4+5.3'!C365 ->  | F64: ='1+4+5.3'!D365 ->  | G64: ='1+4+5.3'!E365 ->  | H64: ='1+4+5.3'!F365 ->  | I64: ='1+4+5.3'!G365 ->  | J64: ='1+4+5.3'!H365 ->  | K64: ='1+4+5.3'!I365 ->  | L64: ='1+4+5.3'!J365 ->  | M64: ='1+4+5.3'!K365 ->  | N64: ='1+4+5.3'!L365 ->  | O64: ='1+4+5.3'!M365 ->  | P64: ='1+4+5.3'!N365 ->  | Q64: ='1+4+5.3'!O365 ->  | R64: ='1+4+5.3'!P365 ->  | S64: ='1+4+5.3'!Q365 -> 9808.33592 | T64: ='1+4+5.3'!R365 -> 
C65: CBA profits | D65: ='1+4+5.3'!B368 ->  | E65: ='1+4+5.3'!C368 ->  | F65: ='1+4+5.3'!D368 ->  | G65: ='1+4+5.3'!E368 ->  | H65: ='1+4+5.3'!F368 ->  | I65: ='1+4+5.3'!G368 ->  | J65: ='1+4+5.3'!H368 ->  | K65: ='1+4+5.3'!I368 ->  | L65: ='1+4+5.3'!J368 ->  | M65: ='1+4+5.3'!K368 ->  | N65: ='1+4+5.3'!L368 ->  | O65: ='1+4+5.3'!M368 ->  | P65: ='1+4+5.3'!N368 ->  | Q65: ='1+4+5.3'!O368 ->  | R65: ='1+4+5.3'!P368 ->  | S65: =_xll.RiskOutput(,"CBR145.3",1) + '1+4+5.3'!Q368 ->  | T65: =_xll.RiskOutput(,"CBR145.3",2) + '1+4+5.3'!R368 -> 
A66: =A64+1 -> 30 | B66: vac + diet + stock | C66: IA profits | D66: ='1+3+2'!B365 ->  | E66: ='1+3+2'!C365 ->  | F66: ='1+3+2'!D365 ->  | G66: ='1+3+2'!E365 ->  | H66: ='1+3+2'!F365 ->  | I66: ='1+3+2'!G365 ->  | J66: ='1+3+2'!H365 ->  | K66: ='1+3+2'!I365 ->  | L66: ='1+3+2'!J365 ->  | M66: ='1+3+2'!K365 ->  | N66: ='1+3+2'!L365 ->  | O66: ='1+3+2'!M365 ->  | P66: ='1+3+2'!N365 ->  | Q66: ='1+3+2'!O365 ->  | R66: ='1+3+2'!P365 ->  | S66: ='1+3+2'!Q365 -> 69468.81619 | T66: ='1+3+2'!R365 -> 
C67: CBA profits | D67: ='1+3+2'!B368 ->  | E67: ='1+3+2'!C368 ->  | F67: ='1+3+2'!D368 ->  | G67: ='1+3+2'!E368 ->  | H67: ='1+3+2'!F368 ->  | I67: ='1+3+2'!G368 ->  | J67: ='1+3+2'!H368 ->  | K67: ='1+3+2'!I368 ->  | L67: ='1+3+2'!J368 ->  | M67: ='1+3+2'!K368 ->  | N67: ='1+3+2'!L368 ->  | O67: ='1+3+2'!M368 ->  | P67: ='1+3+2'!N368 ->  | Q67: ='1+3+2'!O368 ->  | R67: ='1+3+2'!P368 ->  | S67: =_xll.RiskOutput(,"CBR132",1) + '1+3+2'!Q368 ->  | T67: =_xll.RiskOutput(,"CBR132",2) + '1+3+2'!R368 -> 
A68: =A66+1 -> 31 | B68: vac + diet + DPRP1 | C68: IA profits | D68: ='1+3+5.1'!B365 ->  | E68: ='1+3+5.1'!C365 ->  | F68: ='1+3+5.1'!D365 ->  | G68: ='1+3+5.1'!E365 ->  | H68: ='1+3+5.1'!F365 ->  | I68: ='1+3+5.1'!G365 ->  | J68: ='1+3+5.1'!H365 ->  | K68: ='1+3+5.1'!I365 ->  | L68: ='1+3+5.1'!J365 ->  | M68: ='1+3+5.1'!K365 ->  | N68: ='1+3+5.1'!L365 ->  | O68: ='1+3+5.1'!M365 ->  | P68: ='1+3+5.1'!N365 ->  | Q68: ='1+3+5.1'!O365 ->  | R68: ='1+3+5.1'!P365 ->  | S68: ='1+3+5.1'!Q365 -> 73850.03581 | T68: ='1+3+5.1'!R365 -> 
C69: CBA profits | D69: ='1+3+5.1'!B368 ->  | E69: ='1+3+5.1'!C368 ->  | F69: ='1+3+5.1'!D368 ->  | G69: ='1+3+5.1'!E368 ->  | H69: ='1+3+5.1'!F368 ->  | I69: ='1+3+5.1'!G368 ->  | J69: ='1+3+5.1'!H368 ->  | K69: ='1+3+5.1'!I368 ->  | L69: ='1+3+5.1'!J368 ->  | M69: ='1+3+5.1'!K368 ->  | N69: ='1+3+5.1'!L368 ->  | O69: ='1+3+5.1'!M368 ->  | P69: ='1+3+5.1'!N368 ->  | Q69: ='1+3+5.1'!O368 ->  | R69: ='1+3+5.1'!P368 ->  | S69: =_xll.RiskOutput(,"CBR135.1",1) + '1+3+5.1'!Q368 ->  | T69: =_xll.RiskOutput(,"CBR135.1",2) + '1+3+5.1'!R368 -> 
A70: =A68+1 -> 32 | B70: vac + diet + DPRP2 | C70: IA profits | D70: ='1+3+5.2'!B365 ->  | E70: ='1+3+5.2'!C365 ->  | F70: ='1+3+5.2'!D365 ->  | G70: ='1+3+5.2'!E365 ->  | H70: ='1+3+5.2'!F365 ->  | I70: ='1+3+5.2'!G365 ->  | J70: ='1+3+5.2'!H365 ->  | K70: ='1+3+5.2'!I365 ->  | L70: ='1+3+5.2'!J365 ->  | M70: ='1+3+5.2'!K365 ->  | N70: ='1+3+5.2'!L365 ->  | O70: ='1+3+5.2'!M365 ->  | P70: ='1+3+5.2'!N365 ->  | Q70: ='1+3+5.2'!O365 ->  | R70: ='1+3+5.2'!P365 ->  | S70: ='1+3+5.2'!Q365 -> 79258.64392 | T70: ='1+3+5.2'!R365 -> 
C71: CBA profits | D71: ='1+3+5.2'!B368 ->  | E71: ='1+3+5.2'!C368 ->  | F71: ='1+3+5.2'!D368 ->  | G71: ='1+3+5.2'!E368 ->  | H71: ='1+3+5.2'!F368 ->  | I71: ='1+3+5.2'!G368 ->  | J71: ='1+3+5.2'!H368 ->  | K71: ='1+3+5.2'!I368 ->  | L71: ='1+3+5.2'!J368 ->  | M71: ='1+3+5.2'!K368 ->  | N71: ='1+3+5.2'!L368 ->  | O71: ='1+3+5.2'!M368 ->  | P71: ='1+3+5.2'!N368 ->  | Q71: ='1+3+5.2'!O368 ->  | R71: ='1+3+5.2'!P368 ->  | S71: =_xll.RiskOutput(,"CBR135.2",1) + '1+3+5.2'!Q368 ->  | T71: =_xll.RiskOutput(,"CBR135.2",2) + '1+3+5.2'!R368 -> 
A72: =A70+1 -> 33 | B72: vac + diet + DPRP3 | C72: IA profits | D72: ='1+3+5.3'!B365 ->  | E72: ='1+3+5.3'!C365 ->  | F72: ='1+3+5.3'!D365 ->  | G72: ='1+3+5.3'!E365 ->  | H72: ='1+3+5.3'!F365 ->  | I72: ='1+3+5.3'!G365 ->  | J72: ='1+3+5.3'!H365 ->  | K72: ='1+3+5.3'!I365 ->  | L72: ='1+3+5.3'!J365 ->  | M72: ='1+3+5.3'!K365 ->  | N72: ='1+3+5.3'!L365 ->  | O72: ='1+3+5.3'!M365 ->  | P72: ='1+3+5.3'!N365 ->  | Q72: ='1+3+5.3'!O365 ->  | R72: ='1+3+5.3'!P365 ->  | S72: ='1+3+5.3'!Q365 -> 2302.449828 | T72: ='1+3+5.3'!R365 -> 
C73: CBA profits | D73: ='1+3+5.3'!B368 ->  | E73: ='1+3+5.3'!C368 ->  | F73: ='1+3+5.3'!D368 ->  | G73: ='1+3+5.3'!E368 ->  | H73: ='1+3+5.3'!F368 ->  | I73: ='1+3+5.3'!G368 ->  | J73: ='1+3+5.3'!H368 ->  | K73: ='1+3+5.3'!I368 ->  | L73: ='1+3+5.3'!J368 ->  | M73: ='1+3+5.3'!K368 ->  | N73: ='1+3+5.3'!L368 ->  | O73: ='1+3+5.3'!M368 ->  | P73: ='1+3+5.3'!N368 ->  | Q73: ='1+3+5.3'!O368 ->  | R73: ='1+3+5.3'!P368 ->  | S73: =_xll.RiskOutput(,"CBR135.3",1) + '1+3+5.3'!Q368 ->  | T73: =_xll.RiskOutput(,"CBR135.3",2) + '1+3+5.3'!R368 -> 
A74: =A72+1 -> 34 | B74: vac + stock + DPRP1 | C74: IA profits | D74: ='1+2+5.1'!B365 ->  | E74: ='1+2+5.1'!C365 ->  | F74: ='1+2+5.1'!D365 ->  | G74: ='1+2+5.1'!E365 ->  | H74: ='1+2+5.1'!F365 ->  | I74: ='1+2+5.1'!G365 ->  | J74: ='1+2+5.1'!H365 ->  | K74: ='1+2+5.1'!I365 ->  | L74: ='1+2+5.1'!J365 ->  | M74: ='1+2+5.1'!K365 ->  | N74: ='1+2+5.1'!L365 ->  | O74: ='1+2+5.1'!M365 ->  | P74: ='1+2+5.1'!N365 ->  | Q74: ='1+2+5.1'!O365 ->  | R74: ='1+2+5.1'!P365 ->  | S74: ='1+2+5.1'!Q365 -> 42965.06098 | T74: ='1+2+5.1'!R365 -> 
C75: CBA profits | D75: ='1+2+5.1'!B368 ->  | E75: ='1+2+5.1'!C368 ->  | F75: ='1+2+5.1'!D368 ->  | G75: ='1+2+5.1'!E368 ->  | H75: ='1+2+5.1'!F368 ->  | I75: ='1+2+5.1'!G368 ->  | J75: ='1+2+5.1'!H368 ->  | K75: ='1+2+5.1'!I368 ->  | L75: ='1+2+5.1'!J368 ->  | M75: ='1+2+5.1'!K368 ->  | N75: ='1+2+5.1'!L368 ->  | O75: ='1+2+5.1'!M368 ->  | P75: ='1+2+5.1'!N368 ->  | Q75: ='1+2+5.1'!O368 ->  | R75: ='1+2+5.1'!P368 ->  | S75: =_xll.RiskOutput(,"CBR125.1",1) + '1+2+5.1'!Q368 ->  | T75: =_xll.RiskOutput(,"CBR125.1",2) + '1+2+5.1'!R368 -> 
A76: =A74+1 -> 35 | B76: vac + stock + DPRP2 | C76: IA profits | D76: ='1+2+5.2'!B365 ->  | E76: ='1+2+5.2'!C365 ->  | F76: ='1+2+5.2'!D365 ->  | G76: ='1+2+5.2'!E365 ->  | H76: ='1+2+5.2'!F365 ->  | I76: ='1+2+5.2'!G365 ->  | J76: ='1+2+5.2'!H365 ->  | K76: ='1+2+5.2'!I365 ->  | L76: ='1+2+5.2'!J365 ->  | M76: ='1+2+5.2'!K365 ->  | N76: ='1+2+5.2'!L365 ->  | O76: ='1+2+5.2'!M365 ->  | P76: ='1+2+5.2'!N365 ->  | Q76: ='1+2+5.2'!O365 ->  | R76: ='1+2+5.2'!P365 ->  | S76: ='1+2+5.2'!Q365 -> 49009.32715 | T76: ='1+2+5.2'!R365 -> 
C77: CBA profits | D77: ='1+2+5.2'!B368 ->  | E77: ='1+2+5.2'!C368 ->  | F77: ='1+2+5.2'!D368 ->  | G77: ='1+2+5.2'!E368 ->  | H77: ='1+2+5.2'!F368 ->  | I77: ='1+2+5.2'!G368 ->  | J77: ='1+2+5.2'!H368 ->  | K77: ='1+2+5.2'!I368 ->  | L77: ='1+2+5.2'!J368 ->  | M77: ='1+2+5.2'!K368 ->  | N77: ='1+2+5.2'!L368 ->  | O77: ='1+2+5.2'!M368 ->  | P77: ='1+2+5.2'!N368 ->  | Q77: ='1+2+5.2'!O368 ->  | R77: ='1+2+5.2'!P368 ->  | S77: =_xll.RiskOutput(,"CBR125.2",1) + '1+2+5.2'!Q368 ->  | T77: =_xll.RiskOutput(,"CBR125.2",2) + '1+2+5.2'!R368 -> 
A78: =A76+1 -> 36 | B78: vac + stock + DPRP3 | C78: IA profits | D78: ='1+2+5.3'!B365 ->  | E78: ='1+2+5.3'!C365 ->  | F78: ='1+2+5.3'!D365 ->  | G78: ='1+2+5.3'!E365 ->  | H78: ='1+2+5.3'!F365 ->  | I78: ='1+2+5.3'!G365 ->  | J78: ='1+2+5.3'!H365 ->  | K78: ='1+2+5.3'!I365 ->  | L78: ='1+2+5.3'!J365 ->  | M78: ='1+2+5.3'!K365 ->  | N78: ='1+2+5.3'!L365 ->  | O78: ='1+2+5.3'!M365 ->  | P78: ='1+2+5.3'!N365 ->  | Q78: ='1+2+5.3'!O365 ->  | R78: ='1+2+5.3'!P365 ->  | S78: ='1+2+5.3'!Q365 -> -33884.35937 | T78: ='1+2+5.3'!R365 -> 
C79: CBA profits | D79: ='1+2+5.3'!B368 ->  | E79: ='1+2+5.3'!C368 ->  | F79: ='1+2+5.3'!D368 ->  | G79: ='1+2+5.3'!E368 ->  | H79: ='1+2+5.3'!F368 ->  | I79: ='1+2+5.3'!G368 ->  | J79: ='1+2+5.3'!H368 ->  | K79: ='1+2+5.3'!I368 ->  | L79: ='1+2+5.3'!J368 ->  | M79: ='1+2+5.3'!K368 ->  | N79: ='1+2+5.3'!L368 ->  | O79: ='1+2+5.3'!M368 ->  | P79: ='1+2+5.3'!N368 ->  | Q79: ='1+2+5.3'!O368 ->  | R79: ='1+2+5.3'!P368 ->  | S79: =_xll.RiskOutput(,"CBR125.3",1) + '1+2+5.3'!Q368 ->  | T79: =_xll.RiskOutput(,"CBR125.3",2) + '1+2+5.3'!R368 -> 
A80: =A78+1 -> 37 | B80: bio + diet + stock | C80: IA profits | D80: ='4+3+2'!B365 ->  | E80: ='4+3+2'!C365 ->  | F80: ='4+3+2'!D365 ->  | G80: ='4+3+2'!E365 ->  | H80: ='4+3+2'!F365 ->  | I80: ='4+3+2'!G365 ->  | J80: ='4+3+2'!H365 ->  | K80: ='4+3+2'!I365 ->  | L80: ='4+3+2'!J365 ->  | M80: ='4+3+2'!K365 ->  | N80: ='4+3+2'!L365 ->  | O80: ='4+3+2'!M365 ->  | P80: ='4+3+2'!N365 ->  | Q80: ='4+3+2'!O365 ->  | R80: ='4+3+2'!P365 ->  | S80: ='4+3+2'!Q365 -> 59652.72868 | T80: ='4+3+2'!R365 -> 
C81: CBA profits | D81: ='4+3+2'!B368 ->  | E81: ='4+3+2'!C368 ->  | F81: ='4+3+2'!D368 ->  | G81: ='4+3+2'!E368 ->  | H81: ='4+3+2'!F368 ->  | I81: ='4+3+2'!G368 ->  | J81: ='4+3+2'!H368 ->  | K81: ='4+3+2'!I368 ->  | L81: ='4+3+2'!J368 ->  | M81: ='4+3+2'!K368 ->  | N81: ='4+3+2'!L368 ->  | O81: ='4+3+2'!M368 ->  | P81: ='4+3+2'!N368 ->  | Q81: ='4+3+2'!O368 ->  | R81: ='4+3+2'!P368 ->  | S81: =_xll.RiskOutput(,"CBR432",1) + '4+3+2'!Q368 ->  | T81: =_xll.RiskOutput(,"CBR432",2) + '4+3+2'!R368 -> 
A82: =A80+1 -> 38 | B82: bio + diet + DPRP1 | C82: IA profits | D82: ='4+3+5.1'!B365 ->  | E82: ='4+3+5.1'!C365 ->  | F82: ='4+3+5.1'!D365 ->  | G82: ='4+3+5.1'!E365 ->  | H82: ='4+3+5.1'!F365 ->  | I82: ='4+3+5.1'!G365 ->  | J82: ='4+3+5.1'!H365 ->  | K82: ='4+3+5.1'!I365 ->  | L82: ='4+3+5.1'!J365 ->  | M82: ='4+3+5.1'!K365 ->  | N82: ='4+3+5.1'!L365 ->  | O82: ='4+3+5.1'!M365 ->  | P82: ='4+3+5.1'!N365 ->  | Q82: ='4+3+5.1'!O365 ->  | R82: ='4+3+5.1'!P365 ->  | S82: ='4+3+5.1'!Q365 -> 64377.89158 | T82: ='4+3+5.1'!R365 -> 
C83: CBA profits | D83: ='4+3+5.1'!B368 ->  | E83: ='4+3+5.1'!C368 ->  | F83: ='4+3+5.1'!D368 ->  | G83: ='4+3+5.1'!E368 ->  | H83: ='4+3+5.1'!F368 ->  | I83: ='4+3+5.1'!G368 ->  | J83: ='4+3+5.1'!H368 ->  | K83: ='4+3+5.1'!I368 ->  | L83: ='4+3+5.1'!J368 ->  | M83: ='4+3+5.1'!K368 ->  | N83: ='4+3+5.1'!L368 ->  | O83: ='4+3+5.1'!M368 ->  | P83: ='4+3+5.1'!N368 ->  | Q83: ='4+3+5.1'!O368 ->  | R83: ='4+3+5.1'!P368 ->  | S83: =_xll.RiskOutput(,"CBR435.1",1) + '4+3+5.1'!Q368 ->  | T83: =_xll.RiskOutput(,"CBR435.1",2) + '4+3+5.1'!R368 -> 
A84: =A82+1 -> 39 | B84: bio + diet + DPRP2 | C84: IA profits | D84: ='4+3+5.2'!B365 ->  | E84: ='4+3+5.2'!C365 ->  | F84: ='4+3+5.2'!D365 ->  | G84: ='4+3+5.2'!E365 ->  | H84: ='4+3+5.2'!F365 ->  | I84: ='4+3+5.2'!G365 ->  | J84: ='4+3+5.2'!H365 ->  | K84: ='4+3+5.2'!I365 ->  | L84: ='4+3+5.2'!J365 ->  | M84: ='4+3+5.2'!K365 ->  | N84: ='4+3+5.2'!L365 ->  | O84: ='4+3+5.2'!M365 ->  | P84: ='4+3+5.2'!N365 ->  | Q84: ='4+3+5.2'!O365 ->  | R84: ='4+3+5.2'!P365 ->  | S84: ='4+3+5.2'!Q365 -> 70653.5915 | T84: ='4+3+5.2'!R365 -> 
C85: CBA profits | D85: ='4+3+5.2'!B368 ->  | E85: ='4+3+5.2'!C368 ->  | F85: ='4+3+5.2'!D368 ->  | G85: ='4+3+5.2'!E368 ->  | H85: ='4+3+5.2'!F368 ->  | I85: ='4+3+5.2'!G368 ->  | J85: ='4+3+5.2'!H368 ->  | K85: ='4+3+5.2'!I368 ->  | L85: ='4+3+5.2'!J368 ->  | M85: ='4+3+5.2'!K368 ->  | N85: ='4+3+5.2'!L368 ->  | O85: ='4+3+5.2'!M368 ->  | P85: ='4+3+5.2'!N368 ->  | Q85: ='4+3+5.2'!O368 ->  | R85: ='4+3+5.2'!P368 ->  | S85: =_xll.RiskOutput(,"CBR435.2",1) + '4+3+5.2'!Q368 ->  | T85: =_xll.RiskOutput(,"CBR435.2",2) + '4+3+5.2'!R368 -> 
A86: =A84+1 -> 40 | B86: bio + diet + DPRP3 | C86: IA profits | D86: ='4+3+5.3'!B365 ->  | E86: ='4+3+5.3'!C365 ->  | F86: ='4+3+5.3'!D365 ->  | G86: ='4+3+5.3'!E365 ->  | H86: ='4+3+5.3'!F365 ->  | I86: ='4+3+5.3'!G365 ->  | J86: ='4+3+5.3'!H365 ->  | K86: ='4+3+5.3'!I365 ->  | L86: ='4+3+5.3'!J365 ->  | M86: ='4+3+5.3'!K365 ->  | N86: ='4+3+5.3'!L365 ->  | O86: ='4+3+5.3'!M365 ->  | P86: ='4+3+5.3'!N365 ->  | Q86: ='4+3+5.3'!O365 ->  | R86: ='4+3+5.3'!P365 ->  | S86: ='4+3+5.3'!Q365 -> -6302.602586 | T86: ='4+3+5.3'!R365 -> 
C87: CBA profits | D87: ='4+3+5.3'!B368 ->  | E87: ='4+3+5.3'!C368 ->  | F87: ='4+3+5.3'!D368 ->  | G87: ='4+3+5.3'!E368 ->  | H87: ='4+3+5.3'!F368 ->  | I87: ='4+3+5.3'!G368 ->  | J87: ='4+3+5.3'!H368 ->  | K87: ='4+3+5.3'!I368 ->  | L87: ='4+3+5.3'!J368 ->  | M87: ='4+3+5.3'!K368 ->  | N87: ='4+3+5.3'!L368 ->  | O87: ='4+3+5.3'!M368 ->  | P87: ='4+3+5.3'!N368 ->  | Q87: ='4+3+5.3'!O368 ->  | R87: ='4+3+5.3'!P368 ->  | S87: =_xll.RiskOutput(,"CBR435.3",1) + '4+3+5.3'!Q368 ->  | T87: =_xll.RiskOutput(,"CBR435.3",2) + '4+3+5.3'!R368 -> 
A88: =A86+1 -> 41 | B88: bio + stock + DPRP1 | C88: IA profits | D88: ='4+2+5.1'!B365 ->  | E88: ='4+2+5.1'!C365 ->  | F88: ='4+2+5.1'!D365 ->  | G88: ='4+2+5.1'!E365 ->  | H88: ='4+2+5.1'!F365 ->  | I88: ='4+2+5.1'!G365 ->  | J88: ='4+2+5.1'!H365 ->  | K88: ='4+2+5.1'!I365 ->  | L88: ='4+2+5.1'!J365 ->  | M88: ='4+2+5.1'!K365 ->  | N88: ='4+2+5.1'!L365 ->  | O88: ='4+2+5.1'!M365 ->  | P88: ='4+2+5.1'!N365 ->  | Q88: ='4+2+5.1'!O365 ->  | R88: ='4+2+5.1'!P365 ->  | S88: ='4+2+5.1'!Q365 -> 31201.5075 | T88: ='4+2+5.1'!R365 -> 
C89: CBA profits | D89: ='4+2+5.1'!B368 ->  | E89: ='4+2+5.1'!C368 ->  | F89: ='4+2+5.1'!D368 ->  | G89: ='4+2+5.1'!E368 ->  | H89: ='4+2+5.1'!F368 ->  | I89: ='4+2+5.1'!G368 ->  | J89: ='4+2+5.1'!H368 ->  | K89: ='4+2+5.1'!I368 ->  | L89: ='4+2+5.1'!J368 ->  | M89: ='4+2+5.1'!K368 ->  | N89: ='4+2+5.1'!L368 ->  | O89: ='4+2+5.1'!M368 ->  | P89: ='4+2+5.1'!N368 ->  | Q89: ='4+2+5.1'!O368 ->  | R89: ='4+2+5.1'!P368 ->  | S89: =_xll.RiskOutput(,"CBR425.1",1) + '4+2+5.1'!Q368 ->  | T89: =_xll.RiskOutput(,"CBR425.1",2) + '4+2+5.1'!R368 -> 
A90: =A88+1 -> 42 | B90: bio + stock + DPRP2 | C90: IA profits | D90: ='4+2+5.2'!B365 ->  | E90: ='4+2+5.2'!C365 ->  | F90: ='4+2+5.2'!D365 ->  | G90: ='4+2+5.2'!E365 ->  | H90: ='4+2+5.2'!F365 ->  | I90: ='4+2+5.2'!G365 ->  | J90: ='4+2+5.2'!H365 ->  | K90: ='4+2+5.2'!I365 ->  | L90: ='4+2+5.2'!J365 ->  | M90: ='4+2+5.2'!K365 ->  | N90: ='4+2+5.2'!L365 ->  | O90: ='4+2+5.2'!M365 ->  | P90: ='4+2+5.2'!N365 ->  | Q90: ='4+2+5.2'!O365 ->  | R90: ='4+2+5.2'!P365 ->  | S90: ='4+2+5.2'!Q365 -> 38026.15631 | T90: ='4+2+5.2'!R365 -> 
C91: CBA profits | D91: ='4+2+5.2'!B368 ->  | E91: ='4+2+5.2'!C368 ->  | F91: ='4+2+5.2'!D368 ->  | G91: ='4+2+5.2'!E368 ->  | H91: ='4+2+5.2'!F368 ->  | I91: ='4+2+5.2'!G368 ->  | J91: ='4+2+5.2'!H368 ->  | K91: ='4+2+5.2'!I368 ->  | L91: ='4+2+5.2'!J368 ->  | M91: ='4+2+5.2'!K368 ->  | N91: ='4+2+5.2'!L368 ->  | O91: ='4+2+5.2'!M368 ->  | P91: ='4+2+5.2'!N368 ->  | Q91: ='4+2+5.2'!O368 ->  | R91: ='4+2+5.2'!P368 ->  | S91: =_xll.RiskOutput(,"CBR425.2",1) + '4+2+5.2'!Q368 ->  | T91: =_xll.RiskOutput(,"CBR425.2",2) + '4+2+5.2'!R368 -> 
A92: =A90+1 -> 43 | B92: bio + stock + DPRP3 | C92: IA profits | D92: ='4+2+5.3'!B365 ->  | E92: ='4+2+5.3'!C365 ->  | F92: ='4+2+5.3'!D365 ->  | G92: ='4+2+5.3'!E365 ->  | H92: ='4+2+5.3'!F365 ->  | I92: ='4+2+5.3'!G365 ->  | J92: ='4+2+5.3'!H365 ->  | K92: ='4+2+5.3'!I365 ->  | L92: ='4+2+5.3'!J365 ->  | M92: ='4+2+5.3'!K365 ->  | N92: ='4+2+5.3'!L365 ->  | O92: ='4+2+5.3'!M365 ->  | P92: ='4+2+5.3'!N365 ->  | Q92: ='4+2+5.3'!O365 ->  | R92: ='4+2+5.3'!P365 ->  | S92: ='4+2+5.3'!Q365 -> -44867.53022 | T92: ='4+2+5.3'!R365 -> 
C93: CBA profits | D93: ='4+2+5.3'!B368 ->  | E93: ='4+2+5.3'!C368 ->  | F93: ='4+2+5.3'!D368 ->  | G93: ='4+2+5.3'!E368 ->  | H93: ='4+2+5.3'!F368 ->  | I93: ='4+2+5.3'!G368 ->  | J93: ='4+2+5.3'!H368 ->  | K93: ='4+2+5.3'!I368 ->  | L93: ='4+2+5.3'!J368 ->  | M93: ='4+2+5.3'!K368 ->  | N93: ='4+2+5.3'!L368 ->  | O93: ='4+2+5.3'!M368 ->  | P93: ='4+2+5.3'!N368 ->  | Q93: ='4+2+5.3'!O368 ->  | R93: ='4+2+5.3'!P368 ->  | S93: =_xll.RiskOutput(,"CBR425.3",1) + '4+2+5.3'!Q368 ->  | T93: =_xll.RiskOutput(,"CBR425.3",2) + '4+2+5.3'!R368 -> 
A94: =A92+1 -> 44 | B94: vac + bio + diet + stock | C94: IA profits | D94: ='1+4+3+2'!B365 ->  | E94: ='1+4+3+2'!C365 ->  | F94: ='1+4+3+2'!D365 ->  | G94: ='1+4+3+2'!E365 ->  | H94: ='1+4+3+2'!F365 ->  | I94: ='1+4+3+2'!G365 ->  | J94: ='1+4+3+2'!H365 ->  | K94: ='1+4+3+2'!I365 ->  | L94: ='1+4+3+2'!J365 ->  | M94: ='1+4+3+2'!K365 ->  | N94: ='1+4+3+2'!L365 ->  | O94: ='1+4+3+2'!M365 ->  | P94: ='1+4+3+2'!N365 ->  | Q94: ='1+4+3+2'!O365 ->  | R94: ='1+4+3+2'!P365 ->  | S94: ='1+4+3+2'!Q365 -> 30305.49722 | T94: ='1+4+3+2'!R365 -> 
